Workbook

Sheet User's Guide (hidden)
B2: INTRODUCTION TO OSU ENTERPRISE BUDGET SOFTWARE
C3: By Damona Doye and Roger Sahs
B14: User's Guide Contents
B24: Overview
B33: Getting Started
B85: Your computer may have a few settings to adjust before the enterprise budgets will work properly.
B86: In order for the macros to operate, please review the following settings:
B87: 1. Click on Tools, Macro, and Security on the menu bar at the top of the page. (Note that you may
B88: use the Alt key with underlined letter to select an item from the menu.)
B89: You will have three choices; High, Medium and Low.
B90: 2. Click on the Medium option button and click OK.
B92: 1 | G92: 2
B148: Using the Menu Bar
B174: What are Comment Boxes
C179: Reporting | D179: Yield | E179: Est. Harvest
B180: Corn | C180: District | D180: bu/acre | E180: Price ($/bu)
B181: Default | C181: State | D181: 200 | E181: 2.521
B182: Your Value
B184: Tips on viewing comments:
B191: If you are not able to view comment boxes, do the following:
B192: 1. Click on Tools, Options on the menu bar at the top of the page.
B194: 2. Next click on the tab labeled View. In the Comments section, choose Comment indicator only.
B195: Click OK.
B198: 1 | G198: 2
B213: Worksheet Data Entry
B241: Erasing Default Information
B248: Entering Percentages
B249: If you attempt to enter a percentage and rather than appearing as 5% for example, it reads 500%, do the following:
B250: 1. Click on Tools, Options on the menu bar at the top of the page.
B252: 2. Next click on the tab labeled Edit. Select the option box Enable automatic percent entry located
B253: on the right-side in the Settings section. Click OK.
B256: 1 | F256: 2 | G256: 2
B270: Printing Reports
B271: Summary sheets are available for each worksheet tab in the budget.
B302: Database Update Procedure
B350: Error Messages
F367: Roger Sahs, Extension Assistant
F368: 520 Ag Hall
F369: Oklahoma State University
F370: (405) 744-7075
F371: roger.sahs@okstate.edu

Sheet Budget
B2: Dryland Corn Enterprise Budget | BA2: Ttl Acres | BB2: 1000 | BG2: FALSE
B3: 1000 acres farmed, 160 acres for this budget | BA3: Dry/Irr | BB3: TRUE | BG3: FALSE
BA4: NassArea | BB4: Southwest | BG4: FALSE
BA5: Land | BB5: Own | BC5: TRUE | BG5: FALSE
B6: 2026 Planning Budget with harvest price estimated in October | BA6: Cash | BC6: FALSE | BG6: FALSE
G7: Total | H7: =BB8 -> Tenant | BA7: Share % | BB7: 1 | BC7: FALSE | BG7: FALSE
B8: TOTAL REVENUE (production) | D8: Units | E8: Price | F8: Quantity | G8: $/Acre | H8: Value | BA8: Own/tenant | BB8: Tenant | BC8: Tenant | BG8: FALSE
C9: Corn | D9: Bu. | E9: =ROUND(Yield!AJ15,2) -> 4.4 | F9: =ROUND(IF(ISNUMBER(Yield!D10),Yield!D10,Yield!D9),2) -> 97 | G9: =ROUND(F9,2)*ROUND(E9,2) -> 426.8 | H9: =G9*ROUND(Yield!AJ19,4) -> 426.8 | BA9: Budget Area | BB9: Southwest | BG9: FALSE
BA10: Machinery | BB10: =+IF(Machinery!V33,IF(Machinery!V34,"Custom field work",IF(Machinery!V35,"Owned equipment","Custom field work and owned equipment")),IF(Machinery!V32,"Custom field work","Owned equipment")) -> Custom field work | BG10: FALSE
C11: Other Income | D11: Acre | E11: ='Other Inc'!D17 -> 0 | F11: =IF(E11=0,0,1) -> 0 | G11: =ROUND(F11,2)*ROUND(E11,2) -> 0 | H11: =ROUND('Other Inc'!F17,2) -> 0 | BA11: Run Start-up | BB11: TRUE | BG11: FALSE
B12: Total Revenue (Receipts) | G12: =SUM(G9:G11) -> 426.8 | H12: =SUM(H9:H11) -> 426.8 | BB12: Grain Only | BG12: FALSE
B13: TOTAL COSTS (Operating + Fixed) | BA13: Corn Acres | BB13: 160 | BG13: FALSE
C14: OPERATING INPUTS | D14: Units | E14: Price | F14: Quantity | G14: $/Acre | H14: Value | BA14: County | BB14: Tillman | BG14: FALSE
C15: Corn Seed | D15: Acre | E15: =+Seed!P16 -> 75 | F15: =IF(E15<=0,0,1) -> 1 | G15: =ROUND(F15,2)*ROUND(E15,2) -> 75 | H15: =ROUND(G15*ROUND(Seed!G10,4),2) -> 75 | BA15: New ? | BB15: FALSE | BG15: FALSE
C16: Fertilizer | D16: Acre | E16: =+Fertilizer!F26 -> 65.290135 | F16: =IF(E16<=0,0,1) -> 1 | G16: 65.29 | H16: =ROUND(Fertilizer!BH12,2) -> 65.29 | BG16: FALSE
C17: Custom Harvest | D17: Acre | E17: =IF(Harvest!P6,Harvest!D21,0) -> 80.26 | F17: =IF(E17<=0,0,1) -> 1 | G17: 80.26 | H17: =+ROUND(G17*ROUND(Harvest!G13,4),2) -> 80.26 | BB17: Spring | BG17: FALSE
C18: Pesticide | D18: Acre | E18: =Pesticide!J17 -> 88.43 | F18: =IF(E18<=0,0,1) -> 1 | G18: 88.43 | H18: =ROUND(Pesticide!I17,2) -> 88.43 | BA18: Compliment | BB18: Large | BC18: Large
C19: Crop Insurance | D19: Acre | E19: =Ins!C13 -> 20 | F19: =IF(E19<=0,0,1) -> 1 | G19: 20 | H19: =ROUND(Ins!C15,2) -> 20 | BA19: Diversified? | BB19: TRUE | BC19: TRUE
C20: Annual Operating Capital | D20: Dollars | E20: =Parameters!P10 -> 0.071 | F20: =IF(Oper_Int!$AP$50<0,0,Oper_Int!$AP$50) -> 141.7675788 | G20: =ROUND(ROUND(F20,2)*ROUND(E20,4),2) -> 10.07 | H20: =ROUND(IF(Oper_Int!$P$50<0,0,ROUND(Oper_Int!$P$50,2))*ROUND(E20,4),2) -> 10.07 | BA20: Tillage | BB20: No Till Rot | BC20: Lo Till Rot
C21: Machinery Labor | D21: Hrs. | E21: =Parameters!P8 -> 18.25 | F21: =Machinery!X30+Machinery!Z30 -> 0 | G21: =ROUND(ROUND(F21,2)*ROUND(E21,2),2) -> 0 | H21: =ROUND((ROUND(Machinery!AB30+Machinery!AD30,2))*ROUND(Budget!E21,2),2) -> 0
C22: Irrigation Labor | D22: Hrs. | E22: =IF(F22<=0,0,Parameters!P8) -> 0 | F22: =IF(BB3,0,Irrig!BH4) -> 0 | G22: =ROUND(ROUND(F22,2)*ROUND(E22,2),2) -> 0 | H22: =ROUND(G22*ROUND(Irrig!F35,4),2) -> 0 | BB22: owned | BC22: share
C23: Custom Hire | D23: Acre | E23: =IF(Machinery!V32, Machinery!Q65,0)+IF(Machinery!V33,Machinery!Q66,0)+Fertilizer!BH13+Pesticide!L17 -> 55.59 | F23: =IF(E23<=0,0,1) -> 1 | G23: 55.59 | H23: =ROUND((IF(Machinery!V32,Machinery!Q65,0)+IF(Machinery!V33,Machinery!Q66,0)+Pesticide!L17+Fertilizer!BH13)*ROUND(Machinery!J13,4),2) -> 0 | BA23: custom hire | BB23: =+E23 -> 55.59 | BC23: =(IF(Machinery!V32,Machinery!Q65,0)+IF(Machinery!V33, Machinery!Q66,0)+Pesticide!L17+Fertilizer!BH13)*Machinery!J13 -> 0
C24: Machinery Fuel, Lube, Repairs | D24: Acre | E24: =SUM(Machinery!AA19:AA21) -> 0 | F24: =IF(E24<=0,0,1) -> 0 | G24: 0 | H24: =ROUND(Machinery!AE22,2) -> 0 | BA24: Workbook Open | BB24: TRUE
C25: Irrigation Fuel, Lube, Repair | D25: Acre | E25: =IF(BB3,0,Irrig!D26) -> 0 | F25: =IF(E25<=0,0,1) -> 0 | G25: 0 | H25: =ROUND(G25*ROUND(Irrig!F26,4),2) -> 0
C26: Rent | D26: Acre | E26: =+IF(BB5="Cash",BB6,0) -> 0 | F26: =IF(E26<=0,0,1) -> 0 | G26: 0 | H26: =G26 -> 0
C27: Other Expense | D27: Acre | E27: ='Other Exp'!D17 -> 5 | F27: =IF(E27<=0,0,1) -> 1 | G27: 5 | H27: =ROUND('Other Exp'!F17,2) -> 5 | BA27: IFFS Acres/Plant | BB27: 160
D28: Total Operating Costs | G28: =SUM(G15:G27) -> 399.64 | H28: =SUM(H15:H27) -> 344.05 | BA28: IFFS Acres/Harvest | BB28: 160
D29: Returns Above Total Operating Costs | G29: =G12-G28 -> 27.16 | H29: =H12-H28 -> 82.75 | BA29: Iffs Lime | BB29: FALSE
B30: FIXED COSTS | D30: Units | E30: Rate | G30: $/Acre | H30: Value | BA30: Iffs Prop Taxes | BB30: TRUE
C31: Machinery/Irrigation | D31: $/value | L31: =+IF(Machinery!D27=0,"Caution: Default non-harvest machinery costs are not available. The user may wish to specify a different budget setting ","") ->  | BA31: Iffs Real Taxes | BB31: TRUE
C32: Interest at | D32: Dollars | E32: =Parameters!P11 -> 0.07 | G32: =ROUND(Machinery!AA27,2) -> 0 | H32: =+ROUND(Machinery!AE27,2) -> 0 | L32: =+IF(Machinery!D27=0,"in the Start-Up form via the Restart command button. The farm size/organization or the machinery complement may be ","") ->  | BA32: Iffs Prop Ins | BB32: TRUE
C33: Taxes at | D33: Dollars | E33: =Parameters!P12 -> 0.01 | G33: =ROUND(Machinery!AA26,2) -> 0 | H33: =+ROUND(Machinery!AE26,2) -> 0 | L33: =+IF(Machinery!D27=0,"changed on the form. The user can also enter their own cost revisions on the Machinery Sheet. ","") -> 
C34: Insurance | D34: Dollars | E34: =Parameters!P13 -> 0.0085 | G34: =ROUND(Machinery!AA25,2) -> 0 | H34: =+ROUND(Machinery!AE25,2) -> 0
C35: Depreciation | D35: Dollars | G35: =ROUND(Machinery!AA24,2) -> 0 | H35: =+ROUND(Machinery!AE24,2) -> 0
C36: Land | D36: $/acre | E36: =Parameters!P17 -> 3000
C37: Interest at | D37: Dollars | E37: =Parameters!P15 -> 0.03 | G37: =ROUND(ROUND(E37,4)*ROUND(E36,2)*ROUND(Parameters!P18,4),2)*IF(BB5="cash", 0,1) -> 90 | H37: =IF($BB$8="owner",G37,0) -> 0 | BA37: B/W | BB37: TRUE
C38: Taxes at | D38: Dollars | E38: =Parameters!P16 -> 0.001289795737 | G38: =ROUND(ROUND(E38,4)*ROUND(E36,2)*ROUND(Parameters!P18,4),2)*IF(BB5="cash", 0,1) -> 3.9 | H38: =IF($BB$8="owner",G38,0) -> 0
D39: Total Fixed Costs | G39: =SUM(G32:G38) -> 93.9 | H39: =SUM(H32:H38) -> 0
B40: Total Costs (Operating + Fixed) | G40: =G28+G39 -> 493.54 | H40: =H28+H39 -> 344.05
B41: TOTAL PROFIT (Returns Above All Specified Costs) | G41: =G12-G40 -> -66.74 | H41: =H12-H40 -> 82.75
B43: Tillman County - Southwest OK | E43: Owner-Operator
B44: =BB10 -> Custom field work
D46: Grain Break-Even (B-E) Analysis
C47: B-E Yield at $/bu. | D47: =crop_price -> 4.4 | E47: B-E Price at bu./acre | G47: =Crop_Yield -> 97 | U47: Income Above Operating Costs at Differing Yields and Prices1
C48: Above Operating Costs (Bu.) | D48: =IF(crop_price<=0,"NA",IF($BB$5="share",(H28-H12+H9)/(crop_price*AI57),(G28-G12+G9)/crop_price)) -> 90.82727273 | F48: Above Operating Costs | G48: =IF(Crop_Yield<=0,"NA",IF($BB$5="share",(H28-H12+H9)/(Crop_Yield*AI57),(G28-G12+G9)/Crop_Yield)) -> 4.12 | T48: Yield | U48: ----------------------- | W48: Price ($/bu) ---------------------- | AI48: Amt Yld | AJ48: Cust Harv | AK48: If Custom
C49: Above Total Costs (Bu.) | D49: =IF(crop_price<=0,"NA",IF($BB$5="share",(H40-H12+H9)/(crop_price*AI57),(G40-G12+G9)/crop_price)) -> 112.1681818 | F49: Above Total Costs | G49: =IF(Crop_Yield<=0,"NA",IF($BB$5="share",(H40-H12+H9)/(Crop_Yield*AI57),(G40-G12+G9)/Crop_Yield)) -> 5.088041237 | T49: bu/acre | U49: =$W$49*(1-(2*$AA$50)) -> 3.96 | V49: =$W$49*(1-$AA$50) -> 4.18 | W49: =crop_price -> 4.4 | X49: =$W$49*(1+$AA$50) -> 4.62 | Y49: =$W$49*(1+(2*$AA$50)) -> 4.84 | AA49: Vary Price by | AH49: Yld | AI49: Over chg | AJ49: Charge | AK49: Harvest
T50: =$T$52*(1-(2*$AA$54)) -> 87.3 | U50: =IF($BB$5="share",$H$29-$H$9+$AK$52-$AK50+(U$49*$T50*$AI$57),$G$29-$G$9+$AK$52-$AK50+(U$49*$T50*$AI$57)) -> -48.306 | V50: -29.1 | W50: -9.894 | X50: 9.312 | Y50: 28.518 | AA50: =AF50/100 -> 0.05 | AF50: 5 | AH50: =T50 -> 87.3 | AI50: =+AH50 -> 87.3 | AJ50: =Harvest!$O$14+Budget!$AI50*Harvest!$O$16+Harvest!$O$17*Budget!$AH50*IF(Budget!$BB$8="owner",IF(Budget!$BB$5="share",0,1),1) -> 50.634 | AK50: =IF(Harvest!$P$6,$AJ50,0) -> 50.634
T51: =$T$52*(1-$AA$54) -> 92.15 | U51: -31.913 | V51: -11.64 | W51: 8.633 | X51: 28.906 | Y51: 49.179 | AH51: =T51 -> 92.15 | AI51: =+AH51 -> 92.15 | AJ51: =Harvest!$O$14+Budget!$AI51*Harvest!$O$16+Harvest!$O$17*Budget!$AH51*IF(Budget!$BB$8="owner",IF(Budget!$BB$5="share",0,1),1) -> 53.447 | AK51: =IF(Harvest!$P$6,$AJ51,0) -> 53.447
T52: =Crop_Yield -> 97 | U52: -15.52 | V52: 5.82 | W52: =IF($BB$5="share",$H$29-$H$9+$AK$52-$AK52+(W$49*$T52*$AI$57),$G$29-$G$9+$AK$52-$AK52+(W$49*$T52*$AI$57)) -> 27.16 | X52: 48.5 | Y52: 69.84 | AH52: =T52 -> 97 | AI52: =+AH52 -> 97 | AJ52: =Harvest!$O$14+Budget!$AI52*Harvest!$O$16+Harvest!$O$17*Budget!$AH52*IF(Budget!$BB$8="owner",IF(Budget!$BB$5="share",0,1),1) -> 56.26 | AK52: =IF(Harvest!$P$6,$AJ52,0) -> 56.26
T53: =$T$52*(1+$AA$54) -> 101.85 | U53: 0.873 | V53: 23.28 | W53: 45.687 | X53: 68.094 | Y53: 90.501 | AA53: Vary Yield by | AH53: =T53 -> 101.85 | AI53: =+AH53 -> 101.85 | AJ53: =Harvest!$O$14+Budget!$AI53*Harvest!$O$16+Harvest!$O$17*Budget!$AH53*IF(Budget!$BB$8="owner",IF(Budget!$BB$5="share",0,1),1) -> 59.073 | AK53: =IF(Harvest!$P$6,$AJ53,0) -> 59.073
T54: =$T$52*(1+(2*$AA$54)) -> 106.7 | U54: 17.266 | V54: 40.74 | W54: 64.214 | X54: 87.688 | Y54: 111.162 | AA54: =AF54/100 -> 0.05 | AF54: 5 | AH54: =T54 -> 106.7 | AI54: =+AH54 -> 106.7 | AJ54: =Harvest!$O$14+Budget!$AI54*Harvest!$O$16+Harvest!$O$17*Budget!$AH54*IF(Budget!$BB$8="owner",IF(Budget!$BB$5="share",0,1),1) -> 61.886 | AK54: =IF(Harvest!$P$6,$AJ54,0) -> 61.886
C56: Budget software questions? | D56: Contact Cheryl DeVuyst | U56: Income Above All Costs at Differing Yields and Prices1
D57: Visit OSU Enterprise Budget Website | T57: Yield | U57: ----------------------- | W57: Price ($/bu) ---------------------- | AA57: Return | AH57: Yld Share | AI57: =IF(G9=0,1,H9/G9) -> 1
T58: bu/acre | U58: =$W$49*(1-(2*$AA$50)) -> 3.96 | V58: =$W$49*(1-$AA$50) -> 4.18 | W58: =crop_price -> 4.4 | X58: =$W$49*(1+$AA$50) -> 4.62 | Y58: =$W$49*(1+(2*$AA$50)) -> 4.84
D59: Return | T59: =$T$52*(1-(2*$AA$54)) -> 87.3 | U59: =IF($BB$5="share",$H$41-$H$9+$AK$52-$AK50+(U$49*$T59*$AI$57),$G$41-$G$9+$AK$52-$AK50+(U$49*$T59*$AI$57)) -> -142.206 | V59: -123 | W59: -103.794 | X59: -84.588 | Y59: -65.382 | AI59: =+G48*G47 -> 399.64
T60: =$T$52*(1-$AA$54) -> 92.15 | U60: -125.813 | V60: -105.54 | W60: -85.267 | X60: -64.994 | Y60: -44.721 | AI60: =+G49*G47 -> 493.54
T61: =Crop_Yield -> 97 | U61: -109.42 | V61: -88.08 | W61: -66.74 | X61: -45.4 | Y61: -24.06
T62: =$T$52*(1+$AA$54) -> 101.85 | U62: =IF($BB$5="share",$H$41-$H$9+$AK$52-$AK53+(U$49*$T62*$AI$57),$G$41-$G$9+$AK$52-$AK53+(U$49*$T62*$AI$57)) -> -93.027 | V62: -70.62 | W62: -48.213 | X62: -25.806 | Y62: -3.399
T63: =$T$52*(1+(2*$AA$54)) -> 106.7 | U63: -76.634 | V63: -53.16 | W63: -29.686 | X63: -6.212 | Y63: 17.262
T65: 1 | U65: If custom harvest is used, the custom harvest
U66: charge used is based on the new yield

Sheet Yield
B1: Yield | S1: Average district corn yields have not been available since 2009. Prices are from data collected by the Oklahoma Agricultural Statistics | AG1: Month | AH1: Percent | AI1: Sale Price | AJ1: Avg Price | AK1: Oct | AL1: Est. Price | AM1: User Spec
S2: Service (OASS). For more information, visit the OASS web page by clicking on the OASS link. | AG2: of Sale | AH2: Of Sale | AI2: by Month | AJ2: for sales | AK2: Base | AL2: w/ Base | AM2: Price | AR2: WC | AS2: SW | AT2: NC | AU2: Cen | AV2: SC | AW2: NE | AX2: EC | AY2: SE | AZ2: OK
AG3: January | AH3: 0 | AI3: =IF(AM3="",AL3,AM3) -> 4.63 | AJ3: =AH3*AI3/100 -> 0 | AK3: 1.052 | AL3: =($AJ$23-$AJ$24)*AK3 -> 4.6288 | AM3: 4.63 | AN3: 1.032418953
AG4: February | AH4: 0 | AI4: =IF(AM4="",AL4,AM4) -> 4.73 | AJ4: =AH4*AI4/100 -> 0 | AK4: 1.075 | AL4: 4.73 | AM4: 4.73 | AN4: 1.050706567
X5: Market | AG5: March | AH5: 0 | AI5: 4.84 | AJ5: 0 | AK5: 1.1 | AL5: 4.84 | AM5: 4.84 | AN5: 1.073566085 | AQ5: 2014 | AR5: 169.8 | AS5: 119.7 | AT5: 110.5 | AU5: 93.2 | AV5: 120.8 | AW5: 140.6 | AX5: 153.2 | AY5: 143
S6: Crop | T6: 10 year average (2023) | X6: Year Avg. | AG6: April | AH6: 0 | AI6: 4.88 | AJ6: 0 | AK6: 1.11 | AL6: 4.884 | AM6: 4.88 | AN6: 1.088944306 | AQ6: 2015 | AT6: 87.1 | AU6: 92.9 | AW6: 66.3 | AX6: 96.1
C7: Reporting | D7: Yield | E7: Est. Harvest | F7: Harvest | G7: Sales | H7: Weighted | S7: Reporting | T7: Dryland | U7: Irrigated | W7: Year | X7: OK Price | AG7: May | AH7: 0 | AI7: 4.9 | AJ7: 0 | AK7: 1.114 | AL7: 4.9016 | AM7: 4.9 | AN7: 1.097256858 | AQ7: 2016 | AR7: 88.9 | AS7: 63.2 | AT7: 64.5 | AU7: 103.2 | AV7: 82.2 | AW7: 97.4 | AX7: 103.7 | AY7: 106.4
B8: Corn | C8: District | D8: bu/acre | E8: Price ($/bu) | F8: Month | G8: Information | H8: Avg. Price | S8: District | T8: bu./acre | U8: bu./acre | W8: 2014 | X8: 4.11 | AG8: June | AH8: 0 | AI8: 4.83 | AJ8: 0 | AK8: 1.097 | AL8: 4.8268 | AM8: 4.83 | AN8: 1.088113051 | AQ8: 2017 | AT8: 68.1 | AU8: 94.1 | AV8: 103.8 | AW8: 93.9 | AX8: 127.2
B9: Default | C9: Southwest | D9: =IF( OR(Budget!BB3=TRUE, UPPER(Budget!BB3 & "")="TRUE"), _xlfn.XLOOKUP(C9, $S$9:$S$18, $T$9:$T$18, $T$18), $U$18 ) -> 97 | E9: =AJ15 -> 4.4 | F9: 10 | H9: =SUMPRODUCT($AH$3:$AH$14,$AK$3:$AK$14)*E9/100 -> 4.4 | P9: month to use | S9: Panhandle | T9: =T18 -> 125.075 | U9: 200 | W9: 2015 | X9: 3.93 | AG9: July | AH9: 0 | AI9: 4.68 | AJ9: 0 | AK9: 1.064 | AL9: 4.6816 | AM9: 4.68 | AN9: 1.075644223 | AQ9: 2018 | AR9: 168.7 | AU9: 99.8 | AV9: 117.2 | AW9: 104.3 | AX9: 79.2 | AY9: 108.4 | AZ9: 92.3
B10: Your Value | D10: =D9 -> 97 | E10: =E9 -> 4.4 | F10: =F9 -> 10 | H10: =+AJ15 -> 4.4 | P10: =+IF(ISNUMBER(F10),F10,F9) -> 10 | S10: West Central | T10: =AR15 -> 176.15 | U10: 200 | W10: 2016 | X10: 3.39 | AG10: August | AH10: 0 | AI10: 4.55 | AJ10: 0 | AK10: 1.035 | AL10: 4.554 | AM10: 4.55 | AN10: 1.039068994 | AQ10: 2019 | AR10: 183.3 | AS10: 73.6 | AT10: 106.9 | AU10: 72.2 | AV10: 103.6 | AW10: 107.8 | AX10: 91.5 | AY10: 111.8 | AZ10: 140.7
S11: Southwest | T11: =AS15 -> 97 | U11: 200 | W11: 2017 | X11: 3.59 | AG11: September | AH11: 0 | AI11: 4.57 | AJ11: 0 | AK11: 1.038 | AL11: 4.5672 | AM11: 4.57 | AN11: 1.033665835 | AQ11: 2020 | AR11: 181.65 | AS11: 102.1 | AT11: 106.4 | AU11: 87.1 | AV11: 118.075 | AW11: 92.6 | AX11: 82.1 | AY11: 131.5 | AZ11: 138
S12: North Central | T12: =AT15 -> 83.8962963 | U12: 200 | W12: 2018 | X12: 3.86 | AG12: October | AH12: 100 | AI12: 4.4 | AJ12: 4.4 | AK12: 1 | AL12: =($AJ$23-$AJ$24)*AK12 -> 4.4 | AM12: 4.4 | AN12: 1 | AQ12: 2021 | AR12: 215.65 | AS12: 126.4 | AT12: 68.56666667 | AU12: 118.7166667 | AV12: 113.625 | AW12: 118.5 | AX12: 109.6833333 | AY12: 136.65 | AZ12: 129.3
S13: Central | T13: =AU15 -> 92.30366667 | U13: 200 | W13: 2019 | X13: 4 | AG13: November | AH13: 0 | AI13: 4.37 | AJ13: 0 | AK13: 0.993 | AL13: =($AJ$23-$AJ$24)*AK13 -> 4.3692 | AM13: 4.37 | AN13: 0.9833748961 | AQ13: 2022 | AR13: 176.8 | AT13: 95.4 | AU13: 44.8 | AV13: 39.1 | AW13: 72.4 | AX13: 37.65 | AZ13: 106.3
S14: South Central | T14: =AV15 -> 103.6555556 | U14: 200 | W14: 2020 | X14: 4.35 | AG14: December | AH14: 0 | AI14: 4.53 | AJ14: 0 | AK14: 1.029 | AL14: 4.5276 | AM14: 4.53 | AN14: 1.011637573 | AQ14: 2023 | AR14: 224.4 | AT14: 47.6 | AU14: 117.02 | AV14: 134.5 | AW14: 110 | AX14: 115.08 | AY14: 170.9 | AZ14: 174
S15: Northeast | T15: =AW15 -> 100.38 | U15: 200 | W15: 2021 | X15: 6.14 | AI15: Wght. Avg. | AJ15: =SUM(AJ3:AJ14) -> 4.4 | AL15: For harvest price of: | AM15: 4.4 | AQ15: avg | AR15: =+AVERAGE(AR5:AR14) -> 176.15 | AS15: =+AVERAGE(AS5:AS14) -> 97 | AT15: 83.8962963 | AU15: 92.30366667 | AV15: 103.6555556 | AW15: 100.38 | AX15: 99.54133333 | AY15: 129.8071429 | AZ15: =+AVERAGE(AZ3:AZ12) -> 125.075
B16: 2026 estimated harvest price | E16: =E9 -> 4.4 | S16: East Central | T16: =AX15 -> 99.54133333 | U16: 200 | W16: 2022 | X16: 7.55 | AI16: Oct price | AJ16: =AJ15 -> 4.4
S17: Southeast | T17: =AY15 -> 129.8071429 | U17: 200 | W17: 2023 | X17: 5.65
S18: State | T18: =AZ15 -> 125.075 | U18: 200 | W18: Average | X18: =AVERAGE(X8:X17) -> 4.657 | AI18: Share of Crop Received: | AJ18: =IF(Budget!BB7<>"",Budget!BB7,1) -> 1
AI19: Share amount to use: | AJ19: =ROUND(IF(F12="",AJ18,F12),4) -> 1
S20: For more information:
S21: Oklahoma Agricultural Statistics
AI22: https://www.cmegroup.com/markets/agriculture/grains/corn.quotes.html | AQ22: 2007 | AR22: 148 | AS22: 100 | AT22: 107.5 | AU22: 88.5 | AV22: 134.5 | AW22: 117.5 | AX22: 130 | AY22: 120 | AZ22: 102.3
AI23: 2026-12-01 | AJ23: 4.6 | AQ23: =+AQ22+1 -> 2008 | AT23: 64 | AU23: 90 | AV23: 86 | AW23: 84 | AX23: 92 | AY23: 86 | AZ23: 67
AI24: Basis | AJ24: 0.2 | AQ24: =+AQ23+1 -> 2009 | AT24: 49 | AU24: 59 | AW24: 63 | AX24: 73 | AY24: 64 | AZ24: 110
AQ25: 2010 | AR25: 98.3 | AS25: 94 | AT25: 79.8 | AU25: 108.3 | AW25: 96.4 | AX25: 99.8
AQ26: 2011 | AT26: 46 | AU26: 30.7 | AV26: 79 | AW26: 19.4 | AX26: 39.4 | AY26: 58.5
AQ27: 2012 | AR27: 98.7 | AS27: 116.9 | AT27: 42.4 | AU27: 85.3 | AV27: 91.6 | AW27: 43.4 | AX27: 98.8 | AY27: 107.9
AQ28: 2013 | AR28: 145.8 | AS28: 132.5 | AT28: 72.3 | AU28: 84.2 | AV28: 73 | AW28: 68.4 | AX28: 138 | AY28: 125.1
AQ29: 2014 | AR29: 169.8 | AS29: 119.7 | AT29: 110.5 | AU29: 93.2 | AV29: 120.8 | AW29: 140.6 | AX29: 153.2 | AY29: 143
AQ30: 2015 | AT30: 87.1 | AU30: 92.9 | AW30: 66.3 | AX30: 96.1
AQ31: 2016 | AR31: 88.9 | AS31: 63.2 | AT31: 64.5 | AU31: 103.2 | AV31: 82.2 | AW31: 97.4 | AX31: 103.7 | AY31: 106.4
AQ32: 2017 | AT32: 68.1 | AU32: 94.1 | AV32: 103.8 | AW32: 93.9 | AX32: 127.2
AQ33: 2018 | AT33: 98 | AU33: 117.2 | AV33: 104.3 | AW33: 79.2 | AX33: 108.4 | AY33: 92.3

Sheet Seed
B1: Seed
B7: Seeding | D7: Plant Pop. | E7: Seed Cost | F7: Planting | G7: Share | T7: Non-Irrigation | V7: Irrigation
B8: Rate | C8: Area | D8: (000/acre) | E8: $/bag | F8: Month | G8: Amount | T8: Plant | U8: Row | V8: Plant | W8: Row
B9: Default | C9: State | D9: =+IF(Budget!BB3,20,32) -> 20 | E9: 300 | F9: 4 | P9: month to use | S9: Area of | T9: Population | U9: Width | V9: Population | W9: Width
B10: Your Value | G10: 1 | P10: =+IF(ISNUMBER(F10),F10,F9) -> 4 | S10: State | T10: (000/acre) | U10: (inches) | V10: (000/acre) | W10: (in inches)
P11: rate to use | S11: Panhandle | T11: 14-18 | U11: 30 | V11: 30-34 | W11: 30
P12: =+IF(ISNUMBER(D10),D10,D9) -> 20 | S12: West of I-35 | T12: 14-20 | U12: 30 | V12: 30-34 | W12: 30
P13: price to use | S13: East of I-35 | T13: 16-24 | U13: 30 | V13: 30-34 | W13: 30
P14: =+IF(ISNUMBER(E10),E10,E9) -> 300
B15: *Seed Cost ($/bag) is for 80,000 kernals unit | P15: cost to use
B16: **Plant population (000/acre) is typically a forth of more of a unit | P16: =+P12/80*P14 -> 75

Sheet Fertilizer
B1: Fertilizer | Q1: Nitrogen | T1: Phosphorus | W1: Potassium | BH1: Share Cost
Q2: Requirements | T2: Recommendations | W2: Recommendations | BH2: of Fertilizer
R3: Nitrogen | T3: Soil | U3: Rate of | W3: Soil | X3: Rate of | AD3: Month to | AE3: Lbs. Applied | AF3: Number of | AG3: % | AH3: % | AI3: % | AK3: Custom | AL3: When | AN3: 0 | BG3: =B9 -> Anhydrous Ammonia | BH3: =(D9*M9)*K9 -> 46.790135
Q4: Corn | R4: Required | T4: Test | U4: P2O5 | W4: Test | X4: K2O | AC4: Fertilizer | AD4: Apply | AE4: per acre | AF4: Acres | AG4: N | AH4: P | AI4: K | AJ4: $/Ton1 | AK4: App Charge | AL4: Applied | BG4: Diammonium Phosphate | BH4: =(D10*M10)*K10 -> 18.5
Q5: (bu/A) | R5: (lbs/A) | T5: Index* | U5: (lbs./A) | W5: Index* | X5: (lbs./A) | AC5: Anhydrous Ammonia | AD5: 3 | AE5: 113 | AF5: =Budget!$BB$13 -> 160 | AG5: 82 | AH5: 0 | AI5: 0 | AJ5: 820 | AK5: 0 | AL5: Pre-Plant | AU5: Tons | AY5: Custom | AZ5: # of Years | BG5: 0 | BH5: 0
Q6: 40 | R6: 40 | T6: 0 | U6: 80 | W6: 0 | X6: 120 | AC6: Ammonium Nitrate | AF6: =Budget!$BB$13 -> 160 | AG6: 34 | AH6: 0 | AI6: 0 | AK6: 6.09 | AL6: Pre-Plant | AT6: Month to | AU6: Applied | AV6: Acreage | AW6: Percent | AX6: Price | AY6: Application | AZ6: to Allocate | BA6: Share of | BG6: 0 | BH6: 0
C7: Month to | D7: Lbs. Applied | E7: Acreage | F7: Percent | G7: Percent | H7: Percent | I7: Price | J7: Custom App. | K7: Share of | L7: Fertilizer | M7: Prorated | N7: Prorated | Q7: 50 | R7: 50 | T7: 10 | U7: 60 | W7: 75 | X7: 80 | AC7: Ammonium Polyphosphate | AF7: =Budget!$BB$13 -> 160 | AG7: 10 | AH7: 34 | AI7: 0 | AJ7: 625 | AK7: 5.85 | AL7: Pre-Plant | AT7: Apply | AU7: per acre | AV7: Applied | AW7: ECCE | AX7: per Ton | AY7: per Ton | AZ7: App. Over | BA7: Expense | BG7: 0 | BH7: 0 | BJ7: custom fert | BK7: Monthly allocation of expenditures(%)
B8: Fertilizer | C8: Apply | D8: per Acre | E8: Applied | F8: N | G8: P | H8: K | I8: per Ton | J8: Charge | K8: Expense | L8: Price/Lb. | M8: Cost/lb. | N8: Cust. App. | Q8: 60 | R8: 60 | T8: 20 | U8: 40 | W8: 125 | X8: 60 | AC8: Diammonium Phosphate | AD8: 4 | AE8: 50 | AF8: =Budget!$BB$13 -> 160 | AG8: 18 | AH8: 46 | AI8: 0 | AJ8: 740 | AK8: 0 | AL8: Pre-Plant | AT8: 3 | AU8: 0 | AV8: 160 | AW8: 0.5 | AX8: 60 | AY8: 10 | AZ8: 5 | BA8: 1 | BG8: 0 | BH8: 0 | BJ8: applic | BK8: 1 | BL8: 2 | BM8: 3 | BN8: 4 | BO8: 5 | BP8: 6 | BQ8: 7 | BR8: 8 | BS8: 9 | BT8: 10 | BU8: 11 | BV8: 12
B9: Anhydrous Ammonia | C9: 3 | D9: =IF((OR(F9=0,(F19-F18-(D10*F10+D11*F11+D12*F12+D13*F13+D14*F14+D15*F15+D16*F16))<0)),0,(F19-F18-(D10*F10+D11*F11+D12*F12+D13*F13+D14*F14+D15*F15+D16*F16))/F9) -> 114.1222805 | E9: 160 | F9: 0.82 | G9: 0 | H9: 0 | I9: 820 | J9: 0 | K9: 1 | L9: =I9/2000 -> 0.41 | M9: =L9*E9/Budget!BB$13 -> 0.41 | N9: =E9*J9/Budget!BB$13 -> 0 | Q9: 85 | R9: 85 | T9: 40 | U9: 20 | W9: 200 | X9: 40 | AC9: Monoammonium Phosphate | AF9: =Budget!$BB$13 -> 160 | AG9: 11 | AH9: 52 | AI9: 0 | AJ9: 800 | AK9: 6.09 | AL9: Pre-Plant | BG9: 0 | BH9: 0 | BK9: =IF($C9=BK$8,100,0) -> 0 | BL9: 0 | BM9: 100 | BN9: 0 | BO9: 0 | BP9: 0 | BQ9: 0 | BR9: 0 | BS9: 0 | BT9: 0 | BU9: 0 | BV9: 0
B10: Diammonium Phosphate | C10: 4 | D10: 50 | E10: 160 | F10: 0.18 | G10: 0.46 | H10: 0 | I10: 740 | J10: 0 | K10: 1 | L10: =I10/2000 -> 0.37 | M10: =L10*E10/Budget!BB$13 -> 0.37 | N10: =E10*J10/Budget!BB$13 -> 0 | Q10: 100 | R10: 110 | T10: 65+ | U10: None | W10: 250+ | X10: None | AC10: Potassium Chloride | AF10: =Budget!$BB$13 -> 160 | AG10: 0 | AH10: 0 | AI10: 60 | AJ10: 520 | AK10: 6.09 | AL10: Pre-Plant | AV10: Total cost of lime: | AW10: =IF(AZ8=0,0,AU8*AX8)*BH17 -> 0 | AX10: /budget ac. | BG10: 0 | BH10: 0 | BK10: 0 | BL10: 0 | BM10: 0 | BN10: 100 | BO10: 0 | BP10: 0 | BQ10: 0 | BR10: 0 | BS10: 0 | BT10: 0 | BU10: 0 | BV10: 0
K11: 1 | L11: 0 | M11: =L11*E11/Budget!BB$13 -> 0 | N11: =E11*J11/Budget!BB$13 -> 0 | Q11: 120 | R11: 130 | T11: *Oklahoma State | W11: *Oklahoma State | AC11: UREA | AD11: 3 | AE11: 150 | AF11: =Budget!$BB$13 -> 160 | AG11: 46 | AH11: 0 | AI11: 0 | AJ11: 642 | AK11: 4 | AV11: Prorated cost: | AW11: =IF(AZ8=0,0,AW10/AZ8) -> 0 | AX11: /budget ac. | BG11: Lime | BH11: =+AW11*BA8 -> 0 | BK11: 0 | BL11: 0 | BM11: 0 | BN11: 0 | BO11: 0 | BP11: 0 | BQ11: 0 | BR11: 0 | BS11: 0 | BT11: 0 | BU11: 0 | BV11: 0
K12: 1 | L12: 0 | M12: =L12*E12/Budget!BB$13 -> 0 | N12: =E12*J12/Budget!BB$13 -> 0 | Q12: 160 | R12: 190 | T12: University Tests | W12: University Tests | AF12: =Budget!$BB$13 -> 160 | AV12: ECCE equivalent applied: | AW12: =AU8*AW8 -> 0 | AX12: tons/acre | BG12: Total Share Cost | BH12: =SUM(BH3:BH11) -> 65.290135 | BK12: 0 | BL12: 0 | BM12: 0 | BN12: 0 | BO12: 0 | BP12: 0 | BQ12: 0 | BR12: 0 | BS12: 0 | BT12: 0 | BU12: 0 | BV12: 0
K13: 1 | L13: 0 | M13: =L13*E13/Budget!BB$13 -> 0 | N13: =E13*J13/Budget!BB$13 -> 0 | Q13: 180 | R13: 215 | AF13: =Budget!$BB$13 -> 160 | BG13: custom hire/prorated lime app | BH13: =SUM(N9:N16)+(IF(AZ8=0,0,AU8*AY8/AZ8)*IF(AW10=0,0,1)*BH17) -> 0 | BK13: 0 | BL13: 0 | BM13: 0 | BN13: 0 | BO13: 0 | BP13: 0 | BQ13: 0 | BR13: 0 | BS13: 0 | BT13: 0 | BU13: 0 | BV13: 0
K14: 1 | L14: 0 | M14: =L14*E14/Budget!BB$13 -> 0 | N14: =E14*J14/Budget!BB$13 -> 0 | Q14: 200 | R14: 240 | AF14: =Budget!$BB$13 -> 160 | AT14: For additional information, see: | BG14: custom hire +lime app | BH14: =SUM(N9:N16)+(IF(AZ8=0,0,AU8*AY8)*IF(AW10=0,0,1)*BH17) -> 0 | BK14: 0 | BL14: 0 | BM14: 0 | BN14: 0 | BO14: 0 | BP14: 0 | BQ14: 0 | BR14: 0 | BS14: 0 | BT14: 0 | BU14: 0 | BV14: 0
K15: 1 | L15: 0 | M15: =L15*E15/Budget!BB$13 -> 0 | N15: =E15*J15/Budget!BB$13 -> 0 | AF15: =Budget!$BB$13 -> 160 | AT15: PSS-2225 OSU Soil Test Interpretations | BG15: lime app share | BH15: =IF(AZ8=0,0,IF(Budget!BB5="share",AU8*AY8*Machinery!J13,AU8*AY8))*IF(AW10=0,0,1)*BH17 -> 0 | BK15: 0 | BL15: 0 | BM15: 0 | BN15: 0 | BO15: 0 | BP15: 0 | BQ15: 0 | BR15: 0 | BS15: 0 | BT15: 0 | BU15: 0 | BV15: 0
K16: 1 | L16: 0 | M16: =L16*E16/Budget!BB$13 -> 0 | N16: =E16*J16/Budget!BB$13 -> 0 | AF16: =Budget!$BB$13 -> 160 | AT16: PSS-2229 Soil pH and Buffer Index | BG16: prorated lime app share | BH16: =+IF(AZ8=0,BH15,BH15/AZ8) -> 0 | BK16: 0 | BL16: 0 | BM16: 0 | BN16: 0 | BO16: 0 | BP16: 0 | BQ16: 0 | BR16: 0 | BS16: 0 | BT16: 0 | BU16: 0 | BV16: 0
B17: Pounds/acre applied | F17: =SUMPRODUCT(D9:D16,F9:F16) -> 102.58027 | G17: =$D$9*G$9+$D$10*G$10+$D$11*G$11+$D$14*G$14+$D$15*G$15+$D$16*G$16 -> 23 | H17: =$D$9*H$9+$D$10*H$10+$D$11*H$11+$D$14*H$14+$D$15*H$15+$D$16*H$16 -> 0 | AF17: =Budget!$BB$13 -> 160 | AT17: PSS-2239 Causes and Effects of Soil Acidity | BG17: lime prorated ac | BH17: =+AV8/Budget!BB13 -> 1
B18: Pounds of N/acre present per soil test results | F18: 0 | Q18: For additional information, see: | AF18: =Budget!$BB$13 -> 160 | BJ18: cost/ac | BK18: =SUMPRODUCT(BK9:BK16*$N9:$N16/100) -> 0 | BL18: =SUMPRODUCT(BL9:BL16*$N9:$N16/100) -> 0 | BM18: 0 | BN18: 0 | BO18: 0 | BP18: 0 | BQ18: 0 | BR18: 0 | BS18: 0 | BT18: 0 | BU18: 0 | BV18: 0 | BW18: =SUM(BK18:BV18) -> 0
B19: Estimated pounds N, P and K required | F19: =IF(Crop_Yield<=85,1*Crop_Yield,1.34798*Crop_Yield-28.17379) -> 102.58027 | G19: 20 | H19: 0 | Q19: PSS-2225 OSU Soil Test Interpretations | AF19: =Budget!$BB$13 -> 160 | AN19: OSU Ag | AT19: View these and other OSU Publications at:
AT20: OSU Fact Sheets | BJ20: custom lime | BK20: Monthly allocation of expenditures(%)
Q21: View these and other OSU Publications at: | BJ21: applic | BK21: 1 | BL21: 2 | BM21: 3 | BN21: 4 | BO21: 5 | BP21: 6 | BQ21: 7 | BR21: 8 | BS21: 9 | BT21: 10 | BU21: 11 | BV21: 12
Q22: OSU Fact Sheets | BK22: =IF($AT8=BK$8,100,0) -> 0 | BL22: =IF($AT8=BL$8,100,0) -> 0 | BM22: 100 | BN22: 0 | BO22: 0 | BP22: 0 | BQ22: 0 | BR22: 0 | BS22: 0 | BT22: 0 | BU22: 0 | BV22: 0
C24: Fertilizer cost/budget acre | F24: =SUMPRODUCT(D9:D16,M9:M16) -> 65.290135 | BJ24: cost/ac | BK24: =+BK22*IF($AZ8=0,0,$AU$8*$AY$8)/100*IF($AW$10=0,0,1)*$BH$17 -> 0 | BL24: =+BL22*IF($AZ8=0,0,$AU$8*$AY$8)/100*IF($AW$10=0,0,1)*$BH$17 -> 0 | BM24: 0 | BN24: 0 | BO24: 0 | BP24: 0 | BQ24: 0 | BR24: 0 | BS24: 0 | BT24: 0 | BU24: 0 | BV24: 0 | BW24: =SUM(BK24:BV24) -> 0
C25: Prorated lime cost/budget acre | F25: =AW11 -> 0
C26: Total cost/budget acre | F26: =SUM(F24:F25) -> 65.290135 | AD26: Month to | AE26: Lbs. Applied | AF26: Number of | AG26: % | AH26: % | AI26: % | AK26: Custom | AL26: When
C27: Custom application cost/budget acre | F27: =+BH13 -> 0 | AC27: Fertilizer | AD27: Apply | AE27: per acre | AF27: Acres | AG27: N | AH27: P | AI27: K | AJ27: $/Ton1 | AK27: App Charge | AL27: Applied
AC28: Anhydrous Ammonia | AF28: =+Budget!$BB$13 -> 160 | AG28: 82 | AH28: 0 | AI28: 0 | AJ28: 820 | AK28: 12 | AL28: Pre-Plant
AC29: Ammonium Nitrate | AF29: =+Budget!$BB$13 -> 160 | AG29: 34 | AH29: 0 | AI29: 0 | AK29: 6.09 | AL29: Pre-Plant
AC30: Ammonium Polyphosphate | AF30: =+Budget!$BB$13 -> 160 | AG30: 10 | AH30: 34 | AI30: 0 | AJ30: 625 | AK30: 5.85 | AL30: Pre-Plant
AC31: Diammonium Phosphate | AF31: =+Budget!$BB$13 -> 160 | AG31: 18 | AH31: 46 | AI31: 0 | AJ31: 740 | AK31: 6.09 | AL31: Pre-Plant
AC32: Monoammonium Phosphate | AF32: =+Budget!$BB$13 -> 160 | AG32: 11 | AH32: 52 | AI32: 0 | AJ32: 800 | AK32: 6.09 | AL32: Pre-Plant
AC33: Potassium Chloride | AF33: =+Budget!$BB$13 -> 160 | AG33: 0 | AH33: 0 | AI33: 60 | AJ33: 520 | AK33: 6.09 | AL33: Pre-Plant
AC34: UREA | AD34: 3 | AE34: 150 | AF34: 160 | AG34: 46 | AH34: 0 | AI34: 0 | AJ34: 642 | AK34: 4
AF35: =+Budget!$BB$13 -> 160
AF36: =+Budget!$BB$13 -> 160
AF37: =+Budget!$BB$13 -> 160
AF38: =+Budget!$BB$13 -> 160
AF39: =+Budget!$BB$13 -> 160
AF40: =+Budget!$BB$13 -> 160
AF41: =+Budget!$BB$13 -> 160
AF42: =+Budget!$BB$13 -> 160

Sheet Harvest
A1: Harvest | B1: Will this crop be harvested using your own equipment or using a custom harvester?
O6: Custom harvest? | P6: TRUE
D9: Flat rate | E9: Flat rate | F9: Cost for | N9: Yield (from Budget) | P9: =Crop_Yield -> 97
D10: per acre | E10: per bu. | F10: hauling | G10: Share | N10: Extra cost for yld | P10: =IF(E13<=0,E12,E13) -> 0.38
B11: Custom Harvest | D11: charge | E11: charge | F11: grain | G11: Amount | N11: Amount over | P11: =P9-P10 -> 96.62
B12: Default | D12: 38 | E12: 0.38 | F12: 0.2 | N12: if < 0 =0 | P12: =IF(P11<0,0,P11) -> 96.62
B13: Your values | D13: 0 | G13: 1 | S13: 1
N14: Per acre | O14: =IF(Crop_Yield<=0,0,IF(ISNUMBER(D13),D13,D12)) -> 0
D16: Per Acre | N16: Per Buchel | O16: =IF(ISNUMBER(E13),E13,E12) -> 0.38
B17: Custom Harvest | D17: Cost | N17: hauling | O17: =IF(ISNUMBER(F13),F13,F12) -> 0.2
B18: Per acre charge | D18: 24
B19: Per bushel charge | D19: =O16*Crop_Yield -> 36.86
B20: Hauling cost | D20: =O17*Crop_Yield -> 19.4
B21: Total Custom Cost | D21: =SUM(D18:D20) -> 80.26
B22: Total Share Cost | D22: =IF(Budget!BB5="share",D21*G13,D21) -> 80.26
B25: Owned Harvest Machinery Costs | M25: Combine Cost Estimator
M26: (includes header equipment)
M27: Crop Type (1 for corn) | O27: 1
M28: Combine (1=New, 2=Used) | O28: 2
AC29: Harvest
E30: Your | M30: Combine Information | Q30: Harvest Cost per Acre | AC30: Cost
D31: Default | E31: Value | N31: Make | Q31: Variable costs | S31: Combine | T31: Other | U31: Total | AA31: Variable costs
B32: Variable costs | N32: Model | Q32: Fuel | S32: =AA61 -> 4.829768382 | T32: 0 | U32: =SUM(S32:T32) -> 4.829768382 | AB32: Fuel | AC32: =IF(ISNUMBER(E33),E33,D33) -> 4.829768382
C33: Fuel | D33: =IF(Crop_Yield<=0,0,U32) -> 4.829768382 | N33: List Price | O33: 639000 | Q33: Lube | S33: =AA62 -> 0.7244652574 | T33: 0 | U33: =SUM(S33:T33) -> 0.7244652574 | AB33: Lube | AC33: =IF(ISNUMBER(E34),E34,D34) -> 0.7244652574
C34: Lube | D34: =IF(Crop_Yield<=0,0,U33) -> 0.7244652574 | G34: Variable | N34: Use: acres/year | O34: 3000 | Q34: Repairs | S34: =AA59 -> 9.868966921 | T34: 0 | U34: 9.868966921 | AB34: Repairs | AC34: =IF(ISNUMBER(E35),E35,D35) -> 9.868966921
C35: Repairs | D35: =IF(Crop_Yield<=0,0,U34) -> 9.868966921 | G35: Cost Share | N35: Header width (ft) | O35: 30 | Q35: Total | S35: =SUM(S32:S34) -> 15.42320056 | T35: =SUM(T32:T34) -> 0 | U35: 15.42320056 | AB35: Total | AC35: =SUM(AC32:AC34) -> 15.42320056
C36: Total | D36: =SUM(D33:D35) -> 15.42320056 | E36: =IF(P6,0,IF(ISNUMBER(E33),E33,D33)+IF(ISNUMBER(E34),E34,D34)+IF(ISNUMBER(E35),E35,D35)) -> 0 | G36: 1 | N36: Field speed (mph) | O36: 4 | Q36: Fixed costs | AA36: Fixed costs
B37: Fixed costs | N37: Engine horsepower | O37: 375 | Q37: Depreciation | S37: =AA68 -> 10.38444268 | T37: 0 | U37: 10.38444268 | AB37: Depreciation | AC37: =IF(ISNUMBER(E38),E38,D38) -> 10.38444268
C38: Depreciation | D38: =IF(Crop_Yield<=0,0,U37) -> 10.38444268 | N38: Field efficiency | O38: 0.85 | Q38: Insurance | S38: =AA70 -> 0.559517434 | T38: 0 | U38: 0.559517434 | AB38: Insurance | AC38: =IF(ISNUMBER(E39),E39,D39) -> 0.559517434
C39: Insurance | D39: =IF(Crop_Yield<=0,0,U38) -> 0.559517434 | N39: Interest rate (if financed) | O39: 0.0775 | Q39: Taxes | S39: =AA69 -> 0.9178668716 | T39: 0 | U39: 0.9178668716 | AB39: Taxes | AC39: =IF(ISNUMBER(E40),E40,D40) -> 0.9178668716
C40: Taxes | D40: =IF(Crop_Yield<=0,0,U39) -> 0.9178668716 | G40: Fixed | M40: New Machine | Q40: Interest | S40: =AA72 -> 5.101482487 | T40: 0 | U40: 5.101482487 | AB40: Interest | AC40: =IF(ISNUMBER(E41),E41,D41) -> 5.101482487
C41: Interest | D41: =IF(Crop_Yield<=0,0,U40) -> 5.101482487 | G41: Cost Share | N41: Purchase price | O41: =0.9*O33 -> 575100 | Q41: Total | S41: =SUM(S37:S40) -> 16.96330947 | T41: =SUM(T37:T40) -> 0 | U41: 16.96330947 | AB41: Total | AC41: =SUM(AC37:AC40) -> 16.96330947
C42: Total | D42: =SUM(D38:D41) -> 16.96330947 | E42: =IF(P6,0,IF(ISNUMBER(E38),E38,D38)+IF(ISNUMBER(E39),E39,D39)+IF(ISNUMBER(E40),E40,D40)+IF(ISNUMBER(E41),E41,D41)) -> 0 | G42: 1 | N42: Years you will use | O42: 10
M43: Used Machine: | Q43: Hours of labor | S43: =AA63 -> 0.09705882353 | T43: 0 | U43: 0.09705882353 | AA43: Hours of labor | AC43: =IF(ISNUMBER(E44),E44,D44) -> 0.09705882353
B44: Hours of labor | D44: =IF(Crop_Yield<=0,0,U43) -> 0.09705882353 | G44: Labor Share | N44: Estimated purchase price | O44: =+(O33*AI62*AI63^O46)*1.25 -> 275360.0615 | Q44: Perf. rate (hrs/ac) | S44: =+AA57 -> 0.08088235294
B45: Labor costs per acre | D45: =D44*IF(Parameters!D8>0,Parameters!D8,Parameters!C8) -> 1.771323529 | E45: =IF(P6,0,IF(ISNUMBER(E44),E44,D44)*Parameters!P8) -> 0 | G45: 1 | N45: Your purchase price | Q45: Perf. rate (ac/hr) | S45: =+AC56 -> 12.36363636 | AC45: 160
B46: Total costs | D46: =+D36+D42+D45 -> 34.15783356 | E46: =+E36+E42+E45 -> 0 | N46: Age when purchased | O46: 5 | Q46: Breakeven acreage to justify
N47: Hours when purchased | O47: 1500 | Q47: machine ownership (vs. Custom Harvest) | U47: =+IF(D18+D19-AA65=0,"NA",IF(AB73/(D18+D19-AA65)<=0,"NA",AB73/(D18+D19-AA65))) -> 1165.449989 | AC47: TRUE
B48: For additional information, see: | N48: Years you will use | O48: 5 | U48: =+IF(Crop_Yield<=0,"",IF(D18+D19-AA65=0,"",IF(AB73/(D18+D19-AA65)<0,"Custom rate is less than variable costs and labor.",""))) -> 
B49: CR-205 Oklahoma Farm and Ranch Custom Rates
B50: AGEC-240 Machinery Ownership versus Custom Harvest
B52: View these and other OSU Publications at: | AA52: Combine Cost Calculator (Developed by Darrell Kletke)
B53: OSU Fact Sheets
AD54: Ownership
AA55: PerAcre | AB55: Annual | AC55: PerHour | AD55: Period
Z56: Acres | AA56: 1 | AB56: =O34 -> 3000 | AC56: =O36*O35*AI58/8.25 -> 12.36363636
Z57: Hours of use | AA57: =IF(AC56=0,0,1/AC56) -> 0.08088235294 | AB57: =IF(AC56=0,0,O34/AC56) -> 242.6470588 | AC57: 1 | AD57: =IF(O28=1,AB57*O42,AB57*O48) -> 1213.235294 | AF57: Cost estimation parameters
AH58: Field efficiency | AI58: =+O38 -> 0.85
Z59: Total Accumulated repairs | AA59: =IF(O34=0,0,AB59/O34) -> 9.868966921 | AB59: =IF(O28=1,IF(O42=0,0,AD59/O42),IF(O48=0,0,AD59/O48)) -> 29606.90076 | AC59: =IF(AB57=0,0,AB59/AB57) -> 122.0163183 | AD59: =IF(O28=1,O33*AI59*AI60*((AB57*O42/AI64*100)^AI61),O33*AI59*AI60*(((O47+AB57*O48)/AI64*100)^AI61)-O33*AI59*AI60*((O47/AI64*100)^AI61)) -> 148034.5038 | AH59: RC1 | AI59: 0.401804
Z60: Total Gallons of Diesel | AA60: =IF(O27=1,AI66,IF(O27=2,AI67,AI68)) -> 1.468014706 | AB60: =AA60*AB56 -> 4404.044118 | AC60: =AA60*AC56 -> 18.15 | AH60: RC2 | AI60: 6.31e-05
Z61: Total fuel cost | AA61: =IF(O34=0,0,IF(O34="",0,AA60*$AI$69)) -> 4.829768382 | AB61: =AB60*$AI$69 -> 14489.30515 | AC61: =AC60*$AI$69 -> 59.7135 | AH61: RC3 | AI61: 2.1
Z62: Total lube cost (15% of fuel) | AA62: =0.15*AA61 -> 0.7244652574 | AB62: =0.15*AB61 -> 2173.395772 | AC62: =0.15*AC61 -> 8.957025 | AH62: RFV1 | AI62: 0.635
Z63: Total hours labor | AA63: =1.2*AA57 -> 0.09705882353 | AB63: =1.2*AB57 -> 291.1764706 | AC63: =1.2*AC57 -> 1.2 | AH63: RFV2 | AI63: 0.885
Z64: Total combine labor cost | AA64: =$AI$70*AA63 -> 1.771323529 | AB64: =$AI$70*AB63 -> 5313.970588 | AC64: =$AI$70*AC63 -> 21.9 | AH64: Hours of life | AI64: 3000
Z65: Variable costs | AA65: =AA59+AA61+AA62+AA64 -> 17.19452409 | AB65: =AB59+AB61+AB62+AB64 -> 51583.57227 | AC65: =AC59+AC61+AC62+AC64 -> 212.5868433 | AH65: Fuel Multiplier | AI65: 0.044
AH66: Diesel per acre(corn) | AI66: =+((O37*AI65)/AC56)*1.1 -> 1.468014706
Z67: Salvage value | AD67: =IF(O28=1,O33*AI62*AI63^O42,O33*AI62*AI63^(O46+O48)) -> 119593.4213
Z68: Depreciation | AA68: =IF(AC56=0,0,AC68/$AC$56) -> 10.38444268 | AB68: =IF(O42=0,0,(IF(O28=1,IF(O41=0,0,(O41-AD67)/O42),IF(O48=0,0,IF(AI73=0,0,(AI73-AD67)/O48))))) -> 31153.32803 | AC68: =IF(AB57=0,0,AB68/$AB$57) -> 128.3894731
Z69: Taxes | AA69: =IF(AC56=0,0,AC69/$AC$56) -> 0.9178668716 | AB69: =AI71*IF(O28=1,O41,AI73) -> 2753.600615 | AC69: =IF(AB57=0,0,AB69/$AB$57) -> 11.34817223 | AH69: Fuel price/gallon ($) | AI69: =Parameters!P9 -> 3.29
Z70: Insurance | AA70: =IF(AC56=0,0,AC70/$AC$56) -> 0.559517434 | AB70: =+AB71*$AI$72 -> 1678.552302 | AC70: =IF(AB57=0,0,AB70/$AB$57) -> 6.917670093 | AH70: Wage rate/hour ($) | AI70: =Parameters!P8 -> 18.25
Z71: Average Investment | AA71: =IF(AC56=0,0,AC71/$AC$56) -> 65.82558047 | AB71: =IF(O28=1,(O41+AD67)/2,(AI73+AD67)/2) -> 197476.7414 | AC71: =IF(AB57=0,0,AB71/$AB$57) -> 813.8435404 | AH71: Taxes (% of purchase price) | AI71: =Parameters!P12 -> 0.01
Z72: Interest | AA72: =AA71*$O$39 -> 5.101482487 | AB72: =AB71*$O$39 -> 15304.44746 | AC72: =AC71*$O$39 -> 63.07287438 | AH72: Insurance (% of purchase price) | AI72: =Parameters!P13 -> 0.0085
Z73: Fixed costs | AA73: =AA68+AA69+AA70+AA72 -> 16.96330947 | AB73: =AB68+AB69+AB70+AB72 -> 50889.9284 | AC73: =AC68+AC69+AC70+AC72 -> 209.7281898 | AH73: purchase price | AI73: =+IF(ISNUMBER(O45),O45,O44) -> 275360.0615
AH74: engine HP | AI74: =+O37 -> 375
U75: Local Custom Combine Rates | Z75: Totals | AA75: =AA65+AA73 -> 34.15783356 | AB75: =AB65+AB73 -> 102473.5007 | AC75: =AC65+AC73 -> 422.3150331 | AH75: Diesel per hr | AI75: =+AI74*AI65 -> 16.5
U76: Flat rate per acre ($) | V76: 12
U77: Extra charge per bushel ($) | V77: 0.12
U78: For excess over xx bu./ac. | V78: 20
U79: Yield per acre | V79: 35

Sheet Ins
B1: Insurance
B6: Crop Insurance Specification
B8: Approved APH yield
B9: Yield coverage level
B10: Crop price election
B11: Value of coverage | C11: =+C8*C9*C10 -> 0
B12: Month of Expense | C12: 10
B13: Cost of Insurance | C13: 20
B14: Share Amount | C14: 1
B15: Cost of Insurance (share) | C15: =C13*C14 -> 20
B17: For more information:
B18: OSU Fact Sheets

Sheet Pesticide
B1: Pesticide | AB1: Pesticide Descriptions
AB2: (a max of 20 Pesticides can be listed, start in aa5 and go down, no blank rows)
AC3: Month to | AD3: Application | AE3: Units | AF3: Number of | AG3: Cost | AH3: Charge for | AI3: What it
AB4: Pesticide | AC4: Apply | AD4: Unit | AE4: per Acre | AF4: Acres | AG4: per Unit | AH4: Cust App | AI4: Controls | AJ4: Other Comments
AB5: Accent | AD5: Ounce | AE5: 1 | AF5: =Budget!$BB$13 -> 160 | AG5: 21.9 | AH5: 5.63 | AI5: Grasses/bindweed | AJ5: Apply postemergence. Follow label for optimum control of johnsongrass and shattercane.
AB6: Aim EC | AD6: Fl. Oz. | AE6: 0.5 | AF6: =Budget!$BB$13 -> 160 | AG6: 6.75 | AH6: 5.63 | AI6: Annual broadleaf weeds | AJ6: Postemergence, see label for restrictions/waiting periods.
C7: Month to | D7: Application | E7: Units | F7: Acreage | G7: Cost | H7: Custom App. | I7: Share of | J7: Cost of | K7: Total App. | L7: prorated | AB7: Atrazine 4L | AD7: Pint | AE7: 4 | AF7: =Budget!$BB$13 -> 160 | AG7: 2.34 | AH7: 5.63 | AI7: Annual weeds/grasses | AJ7: Resticted use pesticide. Apply preplant or preemergence. See label for restrictions/waiting periods. | AM7: custom pest | AN7: Monthly allocation of expenditures(%)
B8: Pesticide | C8: Apply | D8: Unit | E8: per Acre | F8: Applied | G8: per Unit | H8: Charge | I8: Expense | J8: Chemical | K8: Cost | AB8: Balance Flexx | AD8: Fl. Oz. | AE8: 4 | AF8: =Budget!$BB$13 -> 160 | AG8: 5.15 | AH8: 5.63 | AI8: Annual broadleaf weeds/grasses | AJ8: Early preplant, preplant incorp, or preemergence. See label for restrictions/waiting periods. | AM8: applic | AN8: 1 | AO8: 2 | AP8: 3 | AQ8: 4 | AR8: 5 | AS8: 6 | AT8: 7 | AU8: 8 | AV8: 9 | AW8: 10 | AX8: 11 | AY8: 12
B9: Clarity | C9: 4 | D9: Fl. Oz. | E9: 16 | F9: 160 | G9: 0.78 | H9: 0 | I9: 1 | J9: =$G9*$E9*F9/Budget!BB$13 -> 12.48 | K9: =+J9+L9 -> 12.48 | L9: =H9*F9/Budget!BB$13 -> 0 | AB9: Basis blend | AD9: Ounce | AE9: 0.33 | AF9: =Budget!$BB$13 -> 160 | AG9: 8.1 | AH9: 5.63 | AI9: Annual grasses | AJ9: Preplant, preemergence or postemergence, see label for restrictions/waiting periods. | AN9: =IF($C9=AN$8,100,0) -> 0 | AO9: 0 | AP9: 0 | AQ9: 100 | AR9: 0 | AS9: 0 | AT9: 0 | AU9: 0 | AV9: 0 | AW9: 0 | AX9: 0 | AY9: 0
B10: Glyphosate (generic 4# ai/gal) | C10: 4 | D10: Fl. Oz. | E10: 32 | F10: 160 | G10: 0.25 | H10: 0 | I10: 1 | J10: =$G10*$E10*F10/Budget!BB$13 -> 8 | K10: =+J10+L10 -> 8 | L10: =H10*F10/Budget!BB$13 -> 0 | AB10: Bicep II Magnum | AC10: 3 | AD10: Fl. Oz. | AE10: 27 | AF10: =Budget!$BB$13 -> 160 | AG10: 0.38 | AH10: 0 | AI10: Annual weeds/grasses | AJ10: Resticted use pesticide. Early preplant, preplant incorp, preemergence, postemergence | AN10: 0 | AO10: 0 | AP10: 0 | AQ10: 100 | AR10: 0 | AS10: 0 | AT10: 0 | AU10: 0 | AV10: 0 | AW10: 0 | AX10: 0 | AY10: 0
B11: Bicep II Magnum | C11: 5 | D11: Fl. Oz. | E11: 40 | F11: 160 | G11: 0.38 | H11: 0 | I11: 1 | J11: =$G11*$E11*F11/Budget!BB$13 -> 15.2 | K11: 15.2 | L11: =H11*F11/Budget!BB$13 -> 0 | AB11: Capture LFR | AD11: Fl. Oz. | AE11: 4.2 | AF11: =Budget!$BB$13 -> 160 | AG11: 1.37 | AH11: 5.63 | AI11: SW corn borer, Western bean cutworm, Chinch bug | AJ11: Restricted use pesticide. See label for restrictions/waiting periods. | AN11: 0 | AO11: 0 | AP11: 0 | AQ11: 0 | AR11: 100 | AS11: 0 | AT11: 0 | AU11: 0 | AV11: 0 | AW11: 0 | AX11: 0 | AY11: 0
B12: Fierce | C12: 5 | D12: Ounce | E12: 3 | F12: 160 | G12: 8 | H12: 0 | I12: 1 | J12: =$G12*$E12*F12/Budget!BB$13 -> 24 | K12: 24 | L12: =H12*F12/Budget!BB$13 -> 0 | AB12: Clarity | AC12: 3 | AD12: Fl. Oz. | AE12: 16 | AF12: =Budget!$BB$13 -> 160 | AG12: 0.78 | AH12: 5.63 | AI12: Annual weeds/grasses | AJ12: See label for restrictions/waiting periods. | AN12: 0 | AO12: 0 | AP12: 0 | AQ12: 0 | AR12: 100 | AS12: 0 | AT12: 0 | AU12: 0 | AV12: 0 | AW12: 0 | AX12: 0 | AY12: 0
B13: Glyphosate (generic 4# ai/gal) | C13: 6 | D13: Fl. Oz. | E13: 22 | F13: 160 | G13: 0.25 | H13: 0 | I13: 1 | J13: =$G13*$E13*F13/Budget!BB$13 -> 5.5 | K13: 5.5 | L13: =H13*F13/Budget!BB$13 -> 0 | AB13: Counter 15G | AD13: Pound | AF13: =Budget!$BB$13 -> 160 | AH13: 5.63 | AI13: Corn rootworm | AJ13: Restricted use pesticide. See label for restrictions/waiting periods. | AN13: 0 | AO13: 0 | AP13: 0 | AQ13: 0 | AR13: 0 | AS13: 100 | AT13: 0 | AU13: 0 | AV13: 0 | AW13: 0 | AX13: 0 | AY13: 0
B14: Status | C14: 6 | D14: Ounce | E14: 5 | F14: 160 | G14: 4.65 | H14: 0 | I14: 1 | J14: =$G14*$E14*F14/Budget!BB$13 -> 23.25 | K14: 23.25 | L14: =H14*F14/Budget!BB$13 -> 0 | AB14: Dual II Magnum | AD14: Pint | AE14: 1.33 | AF14: =Budget!$BB$13 -> 160 | AG14: 12.03 | AH14: 5.63 | AI14: Annual weeds/grasses | AJ14: Preplant, preemergence, or layby. | AN14: 0 | AO14: 0 | AP14: 0 | AQ14: 0 | AR14: 0 | AS14: 100 | AT14: 0 | AU14: 0 | AV14: 0 | AW14: 0 | AX14: 0 | AY14: 0
I15: 1 | J15: =$G15*$E15*F15/Budget!BB$13 -> 0 | K15: 0 | L15: =H15*F15/Budget!BB$13 -> 0 | AB15: Fierce | AC15: 4 | AD15: Ounce | AE15: 3 | AF15: =Budget!$BB$13 -> 160 | AG15: 8 | AH15: 5.63 | AI15: Annual weeds/grasses | AJ15: See label for restrictions/waiting periods. | AN15: 0 | AO15: 0 | AP15: 0 | AQ15: 0 | AR15: 0 | AS15: 0 | AT15: 0 | AU15: 0 | AV15: 0 | AW15: 0 | AX15: 0 | AY15: 0
I16: 1 | J16: =$G16*$E16*F16/Budget!BB$13 -> 0 | K16: 0 | L16: =H16*F16/Budget!BB$13 -> 0 | AB16: Glyphosate (generic 4# ai/gal) | AC16: 4 | AD16: Fl. Oz. | AE16: 10 | AF16: =Budget!$BB$13 -> 160 | AG16: 0.25 | AH16: 0 | AI16: Grasses/broadleaf weeds | AJ16: Non-selective herbicide for use on Roundup ready corn. | AN16: 0 | AO16: 0 | AP16: 0 | AQ16: 0 | AR16: 0 | AS16: 0 | AT16: 0 | AU16: 0 | AV16: 0 | AW16: 0 | AX16: 0 | AY16: 0
H17: Total cost per budget acre | I17: =SUMPRODUCT(I9:I16,J9:J16) -> 88.43 | J17: =SUM(J9:J16) -> 88.43 | K17: =SUM(K9:K16) -> 88.43 | L17: =SUM(L9:L16) -> 0 | AB17: Halex GT | AD17: Fl. Oz. | AE17: 19 | AF17: =Budget!$BB$13 -> 160 | AG17: 0.51 | AH17: 0 | AI17: Grasses/broadleaf weeds | AJ17: See label for restrictions/waiting periods.
AB18: Harness Xtra | AD18: Fl. Oz. | AE18: 23 | AF18: =Budget!$BB$13 -> 160 | AG18: 0.45 | AH18: 0 | AI18: Grasses/broadleaf weeds | AJ18: See label for restrictions/waiting periods. | AM18: cost/ac | AN18: =SUMPRODUCT(AN9:AN16*$L9:$L16/100) -> 0 | AO18: =SUMPRODUCT(AO9:AO16*$L9:$L16/100) -> 0 | AP18: 0 | AQ18: 0 | AR18: 0 | AS18: 0 | AT18: 0 | AU18: 0 | AV18: 0 | AW18: 0 | AX18: 0 | AY18: 0
AB19: Karate w/Zeon | AD19: Fl. Oz. | AE19: 1.5 | AF19: =Budget!$BB$13 -> 160 | AG19: 3.02 | AH19: 5.63 | AI19: Chinch Bug, Cutworm, Corn rootworm, Grasshoppers | AJ19: Restricted use pesticide. See label for restrictions/waiting periods.
AB20: Laudis | AD20: Fl. Oz. | AE20: 1 | AF20: =Budget!$BB$13 -> 160 | AG20: 4.6 | AH20: 0 | AI20: Grasses/broadleaf weeds | AJ20: See label for restrictions/waiting periods.
B21: For more information: | AB21: Lorsban 4E | AD21: Pint | AE21: 1.5 | AF21: =Budget!$BB$13 -> 160 | AH21: 5.63 | AI21: Cutworm | AJ21: PLEASE NOTE: EPA has banned chlorpyrifos use in food or feed crops effective February 28, 2022
B22: EPP-322 Pesticide Recordkeeping Requirements for Crop Production | AB22: Mustang MAX | AD22: Fl. Oz. | AE22: 2.8 | AF22: =Budget!$BB$13 -> 160 | AG22: 1.18 | AH22: 5.63 | AI22: SW corn borer, Cutworm | AJ22: 30 day waiting period. See label for restrictions/waiting periods.
B23: EPP-7160 Field Key to Larvae in Corn | AB23: Roundup PowerMAX | AD23: Fl. Oz. | AE23: 22 | AF23: =Budget!$BB$13 -> 160 | AG23: 0.22 | AH23: 5.63 | AI23: Grasses/broadleaf weeds | AJ23: Non-selective herbicide for use on Roundup ready corn.
AB24: Status | AC24: 4 | AD24: Ounce | AE24: 3 | AF24: =Budget!$BB$13 -> 160 | AG24: 4.65 | AH24: 0 | AI24: Broadleaf weeds | AJ24: See label for restrictions/waiting periods.
Z26: Pesticide Data Transfer Row -->
B29: View these and other OSU Publications at: | AC29: Month to | AD29: Application | AE29: Units | AF29: Number of | AG29: Cost | AH29: Charge for | AI29: What it
B30: OSU Fact Sheets | AB30: Pesticide | AC30: Apply | AD30: Unit | AE30: per Acre | AF30: Acres | AG30: per Unit | AH30: Cust App | AI30: Controls | AJ30: Other Comments | AL30: 50# bag
AB31: Accent | AD31: Ounce | AE31: 1 | AF31: =Budget!$BB$13 -> 160 | AG31: 21.9 | AH31: 5.63 | AI31: Grasses/bindweed | AJ31: Apply postemergence. Follow label for optimum control of johnsongrass and shattercane.
B32: For information on Ag Product Labels and Material Safety Data Sheets, see: | AB32: Aim EC | AD32: Fl. Oz. | AE32: 0.5 | AF32: =Budget!$BB$13 -> 160 | AG32: 6.75 | AH32: 5.63 | AI32: Annual broadleaf weeds | AJ32: Postemergence, see label for restrictions/waiting periods.
B33: http://www.cdms.net/ | AB33: Atrazine 4L | AD33: Pint | AE33: 4 | AF33: =Budget!$BB$13 -> 160 | AG33: 2.34 | AH33: 5.63 | AI33: Annual weeds/grasses | AJ33: Resticted use pesticide. Apply preplant or preemergence. See label for restrictions/waiting periods.
AB34: Balance Flexx | AD34: Fl. Oz. | AE34: 4 | AF34: =Budget!$BB$13 -> 160 | AG34: 5.15 | AH34: 5.63 | AI34: Annual broadleaf weeds/grasses | AJ34: Early preplant, preplant incorp, or preemergence. See label for restrictions/waiting periods.
AB35: Basis blend | AD35: Ounce | AE35: 0.33 | AF35: =Budget!$BB$13 -> 160 | AG35: 8.1 | AH35: 5.63 | AI35: Annual grasses | AJ35: Preplant, preemergence or postemergence, see label for restrictions/waiting periods. | AL35: 50# bag
AB36: Bicep II Magnum | AD36: Fl. Oz. | AE36: 27 | AF36: =Budget!$BB$13 -> 160 | AG36: 0.38 | AH36: 5.63 | AI36: Annual weeds/grasses | AJ36: Resticted use pesticide. Early preplant, preplant incorp, preemergence, postemergence
AB37: Capture LFR | AD37: Fl. Oz. | AE37: 4.2 | AF37: =Budget!$BB$13 -> 160 | AG37: 1.37 | AH37: 5.63 | AI37: SW corn borer, Western bean cutworm, Chinch bug | AJ37: Restricted use pesticide. See label for restrictions/waiting periods.
AB38: Clarity | AD38: Fl. Oz. | AE38: 16 | AF38: =Budget!$BB$13 -> 160 | AG38: 0.78 | AH38: 5.63 | AI38: Annual weeds/grasses | AJ38: See label for restrictions/waiting periods.
AB39: Counter 15G | AD39: Pound | AF39: =Budget!$BB$13 -> 160 | AH39: 5.63 | AI39: Corn rootworm | AJ39: Restricted use pesticide. See label for restrictions/waiting periods.
AB40: Dual II Magnum | AD40: Pint | AE40: 1.33 | AF40: =Budget!$BB$13 -> 160 | AG40: 12.03 | AH40: 5.63 | AI40: Annual weeds/grasses | AJ40: Preplant, preemergence, or layby.
AB41: Fierce | AD41: Ounce | AE41: 3 | AF41: =Budget!$BB$13 -> 160 | AG41: 8 | AH41: 5.63 | AI41: Annual weeds/grasses | AJ41: See label for restrictions/waiting periods.
AB42: Glyphosate (generic 4# ai/gal) | AD42: Fl. Oz. | AE42: 10 | AF42: =Budget!$BB$13 -> 160 | AG42: 0.25 | AH42: 5.63 | AI42: Grasses/broadleaf weeds | AJ42: Non-selective herbicide for use on Roundup ready corn.
AB43: Halex GT | AD43: Fl. Oz. | AE43: 19 | AF43: =Budget!$BB$13 -> 160 | AG43: 0.51 | AH43: 5.63 | AI43: Grasses/broadleaf weeds | AJ43: See label for restrictions/waiting periods.
AB44: Harness Xtra | AD44: Fl. Oz. | AE44: 23 | AF44: =Budget!$BB$13 -> 160 | AG44: 0.45 | AH44: 5.63 | AI44: Grasses/broadleaf weeds | AJ44: See label for restrictions/waiting periods.
AB45: Karate w/Zeon | AD45: Fl. Oz. | AE45: 1.5 | AF45: =Budget!$BB$13 -> 160 | AG45: 3.02 | AH45: 5.63 | AI45: Chinch Bug, Cutworm, Corn rootworm, Grasshoppers | AJ45: Restricted use pesticide. See label for restrictions/waiting periods.
AB46: Laudis | AD46: Fl. Oz. | AE46: 1 | AF46: =Budget!$BB$13 -> 160 | AG46: 4.6 | AH46: 5.63 | AI46: Grasses/broadleaf weeds | AJ46: See label for restrictions/waiting periods.
AB47: Lorsban 4E | AD47: Pint | AE47: 1.5 | AF47: =Budget!$BB$13 -> 160 | AH47: 5.63 | AI47: Cutworm | AJ47: PLEASE NOTE: EPA has banned chlorpyrifos use in food or feed crops effective February 28, 2022
AB48: Mustang MAX | AD48: Fl. Oz. | AE48: 2.8 | AF48: =Budget!$BB$13 -> 160 | AG48: 1.18 | AH48: 5.63 | AI48: SW corn borer, Cutworm | AJ48: 30 day waiting period. See label for restrictions/waiting periods.
AB49: Roundup PowerMAX | AD49: Fl. Oz. | AE49: 22 | AF49: =Budget!$BB$13 -> 160 | AG49: 0.22 | AH49: 5.63 | AI49: Grasses/broadleaf weeds | AJ49: Non-selective herbicide for use on Roundup ready corn.
AB50: Status | AD50: Ounce | AE50: 3 | AF50: =Budget!$BB$13 -> 160 | AG50: 4.65 | AH50: 5.63 | AI50: Broadleaf weeds | AJ50: See label for restrictions/waiting periods.

Sheet Parameters
B1: Parameters
P5: Parameter
D6: Your | P6: value to
B7: Parameter Settings | C7: Default | D7: Value | P7: use
B8: Opportunity wage rate charged for labor | C8: 18.25 | O8: Wage | P8: =IF(ISNUMBER(D8),IF(D8<0,C8,D8),C8) -> 18.25
B9: Average fuel price (Diesel) | C9: 3.29 | O9: Fuel | P9: =IF(D9<=0,C9,D9) -> 3.29
B10: Interest rate charged on operating capital (operating loan) | C10: 0.071 | O10: Oper Int | P10: =IF(ISNUMBER(D10),IF(D10<0,C10,D10),C10) -> 0.071
B11: Interest rate charged on machinery loans | C11: 0.07 | O11: Mach Int | P11: =IF(ISNUMBER(D11),IF(D11<0,C11,D11),C11) -> 0.07
B12: Percent taxes on machinery purchase price | C12: 0.01 | O12: Mach Tax | P12: 0.01
B13: Percent insurance on machinery average value | C13: 0.0085 | O13: Ins. Rate | P13: 0.0085
B14: Annual capital month | C14: =Yield!P10 -> 10 | O14: Harv. Mo | P14: =IF(ISNUMBER(D14),D14,C14) -> 10
B15: Opportunity interest rate charged on land capital | C15: 0.03 | O15: Land-opp cost | P15: 0.03
B16: Percent ad valorem tax rate on land | C16: 0.001289795737 | O16: ad valorem | P16: 0.001289795737
B17: Per acre average value for land | C17: 3000 | O17: avg. land value | P17: 3000
B18: Percent of taxes and desired rate of return assigned to corn | C18: 1 | O18: % prop to | P18: 1
O22: Prod | P22: Monthly allocation of expenditures(%)
O23: Land Taxes | P23: 1 | Q23: 2 | R23: 3 | S23: 4 | T23: 5 | U23: 6 | V23: 7 | W23: 8 | X23: 9 | Y23: 10 | Z23: 11 | AA23: 12
P24: 100 | Q24: 0 | R24: 0 | S24: 0 | T24: 0 | U24: 0 | V24: 0 | W24: 0 | X24: 0 | Y24: 0 | Z24: 0 | AA24: 0

Sheet Machinery
B1: Machinery
AA4: Fert | AB4: FALSE
AA5: Pest | AB5: FALSE
E7: Your
D8: Default | E8: Value | AA8: Custom
B9: Variable costs ($/acre) | AA9: Selected | AB9: FALSE | AC9: FALSE | AD9: FALSE | AE9: FALSE
C10: Fuel | D10: =V19*Parameters!$P$9 -> 11.68279
C11: Lube | D11: =V20*Parameters!$P$9 -> 1.76344 | Z11: Row Number | AA11: 33 | AH11: Variable | AJ11: Variable
C12: Repairs | D12: =V21 -> 15.67031577 | Z12: Column Number | AA12: 48 | AH12: Cost Share | AJ12: Cost Share
C13: Total | D13: =SUM(D10:D12) -> 29.11654577 | E13: =IF(V32,0,IF(ISNUMBER(E10),E10,D10)+IF(ISNUMBER(E11),E11,D11)+IF(ISNUMBER(E12),E12,D12))*IF(V33,IF(V34,0,1),1) -> 0 | AH13: 1 | AJ13: 0
B14: Fixed costs ($/acre) | AB14: share
C15: Depreciation | D15: =V24 -> 27.04365162 | V15: Selected | W15: Selected | X15: Mach Cost | Y15: Irrigation | Z15: Owned | AB15: Mach Cost | AC15: Irrigation | AD15: Owned
C16: Insurance | D16: =V25*Parameters!$P$13 -> 2.063307919 | V16: Complement | W16: Complement | X16: Value to use | Z16: Combine | AB16: Value to use | AD16: Combine
C17: Taxes | D17: =V26*Parameters!$P$12 -> 3.779578824 | V17: Parameter | W17: (A-D) | X17: Selected vs | Y17: Fixed | AA17: Variable | AB17: Selected vs | AC17: Fixed | AE17: Variable | AF17: VC | AH17: Fixed | AJ17: Fixed
C18: Interest | D18: =V27*Parameters!$P$11 -> 16.99194757 | U18: Variable costs | V18: Values | X18: custom | Y18: Cost | Z18: Costs | AA18: Cost | AB18: custom | AC18: Cost | AD18: Costs | AE18: Cost | AF18: x column | AH18: Cost Share | AJ18: Cost Share
C19: Total | D19: =SUM(D15:D18) -> 49.87848594 | E19: =IF(V32,0,IF(ISNUMBER(E15),E15,D15)+IF(ISNUMBER(E16),E16,D16)+IF(ISNUMBER(E17),E17,D17)+IF(ISNUMBER(E18),E18,D18))*IF(V33,IF(V34,0,1),1) -> 0 | U19: Fuel | V19: 3.551 | W19: =D10 -> 11.68279 | X19: =IF(ISNUMBER(E10),E10,W19) -> 11.68279 | Z19: =IF(Harvest!$P$6,0,Harvest!AC32) -> 0 | AA19: =IF($V$32,0,X19)*IF(V$33,IF(V$34,0,1),1)+Z19 -> 0 | AB19: =+IF(Budget!$BB$5="share",X19*$J$13,X19)*IF(V$32,0,1)*IF(V$33,IF(V$34,0,1),1) -> 0 | AD19: =Z19*Harvest!$G$36 -> 0 | AE19: =+IF($V$32,0,AB19)+AD19 -> 0 | AF19: =IF($V$32,0,X19)*IF(V$33,IF(V$34,0,1),1) -> 0 | AH19: 1 | AJ19: 0
U20: Lube | V20: 0.536 | W20: =D11 -> 1.76344 | X20: =IF(ISNUMBER(E11),E11,W20) -> 1.76344 | Z20: =IF(Harvest!$P$6,0,Harvest!AC33) -> 0 | AA20: =IF($V$32,0,X20)*IF(V$33,IF(V$34,0,1),1)+Z20 -> 0 | AB20: =+IF(Budget!$BB$5="share",X20*$J$13,X20)*IF(V$32,0,1)*IF(V$33,IF(V$34,0,1),1) -> 0 | AD20: =Z20*Harvest!$G$36 -> 0 | AE20: =+IF($V$32,0,AB20)+AD20 -> 0 | AF20: =IF($V$32,0,X20)*IF(V$33,IF(V$34,0,1),1) -> 0
B21: Hours of labor (Hrs/Acre) | D21: =V30 -> 0.491 | U21: Repairs | V21: 15.67031577 | W21: 15.67031577 | X21: =IF(ISNUMBER(E12),E12,W21) -> 15.67031577 | Z21: =IF(Harvest!$P$6,0,Harvest!AC34) -> 0 | AA21: =IF($V$32,0,X21)*IF(V$33,IF(V$34,0,1),1)+Z21 -> 0 | AB21: =+IF(Budget!$BB$5="share",X21*$J$13,X21)*IF(V$32,0,1)*IF(V$33,IF(V$34,0,1),1) -> 0 | AD21: =Z21*Harvest!$G$36 -> 0 | AE21: =+IF($V$32,0,AB21)+AD21 -> 0 | AF21: =IF($V$32,0,X21)*IF(V$33,IF(V$34,0,1),1) -> 0
U22: Total | W22: 29.11654577 | X22: =SUM(X19:X21) -> 29.11654577 | AA22: =SUM(AA19:AA21) -> 0 | AB22: =SUM(AB19:AB21) -> 0 | AE22: =SUM(AE19:AE21) -> 0 | AF22: =SUM(AF19:AF21) -> 0
B23: Tractor #1 (hp) | D23: 270 | U23: Fixed costs | AA23: FixedCost | AE23: fixed
B24: Tractor #2 (hp) | D24: 95 | U24: Depreciation | V24: 27.04365162 | W24: 27.04365162 | X24: =IF(ISNUMBER(E15),E15,W24) -> 27.04365162 | Y24: =IF(Budget!BB$3,0,Irrig!BH34) -> 0 | Z24: =IF(Harvest!$P$6,0,Harvest!AC37) -> 0 | AA24: =IF($V$32,0,X24)*IF(V$33,IF(V$34,0,1),1)+SUM(Y24:Z24) -> 0 | AB24: =+IF(Budget!$BB$5="share",X24*$J$19,X24)*IF(V$32,0,1)*IF(V$33,IF(V$34,0,1),1) -> 0 | AC24: =+Y24*Irrig!$F$32 -> 0 | AD24: =+Z24*Harvest!$G$42 -> 0 | AE24: =IF($V$32,0,AB24)+SUM(AC24:AD24) -> 0 | AF24: =IF($V$32,0,X24)*IF(V$33,IF(V$34,0,1),1) -> 0
B25: Tractor #3 (hp) | U25: Insurance | V25: 242.7421081 | W25: 2.063307919 | X25: =IF(ISNUMBER(E16),E16,W25) -> 2.063307919 | Y25: =IF(Budget!BB$3,0,Irrig!BH35) -> 0 | Z25: =IF(Harvest!$P$6,0,Harvest!AC38) -> 0 | AA25: =IF($V$32,0,X25)*IF(V$33,IF(V$34,0,1),1)+SUM(Y25:Z25) -> 0 | AB25: =+IF(Budget!$BB$5="share",X25*$J$19,X25)*IF(V$32,0,1)*IF(V$33,IF(V$34,0,1),1) -> 0 | AC25: =+Y25*Irrig!$F$32 -> 0 | AD25: =+Z25*Harvest!$G$42 -> 0 | AE25: =IF($V$32,0,AB25)+SUM(AC25:AD25) -> 0 | AF25: =IF($V$32,0,X25)*IF(V$33,IF(V$34,0,1),1) -> 0 | AH25: Labor Share | AJ25: Labor Share
B26: Labor costs per acre | D26: =D21*IF(Parameters!D8>0,Parameters!D8,Parameters!C8) -> 8.96075 | E26: =IF(V32,0,IF(ISNUMBER(E21),E21,D21))*Parameters!P8*IF(V33,IF(V34,0,1),1) -> 0 | U26: Taxes | V26: 377.9578824 | W26: 3.779578824 | X26: =IF(ISNUMBER(E17),E17,W26) -> 3.779578824 | Y26: =IF(Budget!BB$3,0,Irrig!BH36) -> 0 | Z26: =IF(Harvest!$P$6,0,Harvest!AC39) -> 0 | AA26: =IF($V$32,0,X26)*IF(V$33,IF(V$34,0,1),1)+SUM(Y26:Z26) -> 0 | AB26: =+IF(Budget!$BB$5="share",X26*$J$19,X26)*IF(V$32,0,1)*IF(V$33,IF(V$34,0,1),1) -> 0 | AC26: =+Y26*Irrig!$F$32 -> 0 | AD26: =+Z26*Harvest!$G$42 -> 0 | AE26: =IF($V$32,0,AB26)+SUM(AC26:AD26) -> 0 | AF26: =IF($V$32,0,X26)*IF(V$33,IF(V$34,0,1),1) -> 0 | AH26: 1 | AJ26: 0
B27: Total owned machinery costs | D27: =+D13+D19+D26 -> 87.9557817 | E27: =+E13+E19+E26 -> 0 | U27: Interest | V27: 242.7421081 | W27: 16.99194757 | X27: =IF(ISNUMBER(E18),E18,W27) -> 16.99194757 | Y27: =IF(Budget!BB$3,0,Irrig!BH37) -> 0 | Z27: =IF(Harvest!$P$6,0,Harvest!AC40) -> 0 | AA27: =IF($V$32,0,X27)*IF(V$33,IF(V$34,0,1),1)+SUM(Y27:Z27) -> 0 | AB27: =+IF(Budget!$BB$5="share",X27*$J$19,X27)*IF(V$32,0,1)*IF(V$33,IF(V$34,0,1),1) -> 0 | AC27: =+Y27*Irrig!$F$32 -> 0 | AD27: =+Z27*Harvest!$G$42 -> 0 | AE27: =IF($V$32,0,AB27)+SUM(AC27:AD27) -> 0 | AF27: =IF($V$32,0,X27)*IF(V$33,IF(V$34,0,1),1) -> 0
B28: Total custom machinery costs | E28: =+IF(V32,Q65,0)+IF(V33,Q66,0)+Fertilizer!BH13+Pesticide!L17 -> 55.59 | U28: Total | W28: 49.87848594 | X28: =SUM(X24:X27) -> 49.87848594 | Y28: 0 | Z28: 0 | AA28: 0 | AB28: 0 | AC28: 0 | AD28: 0 | AE28: 0 | BG28: 22050
B29: Total machinery costs | E29: =+E27+E28 -> 55.59
U30: Hours labor | V30: 0.491 | W30: 0.491 | X30: =IF(V32, 0,IF(ISNUMBER(E21),E21,W30))*IF(V$33,IF(V$34,0,1),1) -> 0 | Z30: =IF(Harvest!$P$6,0,Harvest!AC43) -> 0 | AB30: =+X30*J26 -> 0 | AD30: =+Z30*Harvest!G45 -> 0
B31: For additional information, see:
B32: CR-205 Oklahoma Farm and Ranch Custom Rates | U32: Use custom (T/F) | V32: TRUE | X32: =+X22+X28+IF(ISNUMBER(E21),E21,W30)*Parameters!P8 -> 87.9557817
B33: View these and other OSU Publications at: | U33: Use Both (T/F) | V33: FALSE
B34: OSU Fact Sheets | U34: Use Both(All custom) | V34: FALSE
U35: Use Both(All own) | V35: TRUE
U37: Values of chkbox | V37: 0 | W37: 0 | X37: 0 | Y37: 0 | Z37: 0 | AA37: 0 | AB37: 0 | AC37: 0 | AD37: 0 | AE37: 0 | AF37: 0 | AG37: 0 | AH37: 0 | AI37: 0 | AJ37: 0 | AK37: 0 | AL37: 0 | AM37: 0 | AN37: 0 | AO37: 0
U38: Selected Custom Cost | V38: =$D$44*$R$44*$V$37+$D$45*$R$45*$W$37+IF($AB$4,0,$D$46*$R$46*$X$37)+$D$47*$R$47*$Y$37+$D$48*$R$48*$Z$37+$D$49*$R$49*$AA$37+$D$50*$R$50*$AB$37+$D$51*$R$51*$AC$37+$D$52*$R$52*$AD$37+$D$53*$R$53*$AE$37+$D$54*$R$54*$AF$37+$D$55*$R$55*$AG$37+$D$56*$R$56*$AH$37+$D$57*$R$57*$AI$37+IF($AB$5,0,$D$58*$R$58*$AJ$37)+$D$59*$R$59*$AK$37+IF($AB$4,0,$D$60*$R$60*$AL$37)+$D$61*$R$61*$AM$37+$D$62*$R$62*$AN$37+$D$63*$R$63*$AO$37 -> 0 | W38: =$E$44*$R$44*$V$37+$E$45*$R$45*$W$37+IF($AB$4,0,$E$46*$R$46*$X$37)+$E$47*$R$47*$Y$37+$E$48*$R$48*$Z$37+$E$49*$R$49*$AA$37+$E$50*$R$50*$AB$37+$E$51*$R$51*$AC$37+$E$52*$R$52*$AD$37+$E$53*$R$53*$AE$37+$E$54*$R$54*$AF$37+$E$55*$R$55*$AG$37+$E$56*$R$56*$AH$37+$E$57*$R$57*$AI$37+IF($AB$5,0,$E$58*$R$58*$AJ$37)+$E$59*$R$59*$AK$37+IF($AB$4,0,$E$60*$R$60*$AL$37)+$E$61*$R$61*$AM$37+$E$62*$R$62*$AN$37+$E$63*$R$63*$AO$37 -> 0 | X38: =$F$44*$R$44*$V$37+$F$45*$R$45*$W$37+IF($AB$4,0,$F$46*$R$46*$X$37)+$F$47*$R$47*$Y$37+$F$48*$R$48*$Z$37+$F$49*$R$49*$AA$37+$F$50*$R$50*$AB$37+$F$51*$R$51*$AC$37+$F$52*$R$52*$AD$37+$F$53*$R$53*$AE$37+$F$54*$R$54*$AF$37+$F$55*$R$55*$AG$37+$F$56*$R$56*$AH$37+$F$57*$R$57*$AI$37+IF($AB$5,0,$F$58*$R$58*$AJ$37)+$F$59*$R$59*$AK$37+IF($AB$4,0,$F$60*$R$60*$AL$37)+$F$61*$R$61*$AM$37+$F$62*$R$62*$AN$37+$F$63*$R$63*$AO$37 -> 0 | Y38: =$G$44*$R$44*$V$37+$G$45*$R$45*$W$37+IF($AB$4,0,$G$46*$R$46*$X$37)+$G$47*$R$47*$Y$37+$G$48*$R$48*$Z$37+$G$49*$R$49*$AA$37+$G$50*$R$50*$AB$37+$G$51*$R$51*$AC$37+$G$52*$R$52*$AD$37+$G$53*$R$53*$AE$37+$G$54*$R$54*$AF$37+$G$55*$R$55*$AG$37+$G$56*$R$56*$AH$37+$G$57*$R$57*$AI$37+IF($AB$5,0,$G$58*$R$58*$AJ$37)+$G$59*$R$59*$AK$37+IF($AB$4,0,$G$60*$R$60*$AL$37)+$G$61*$R$61*$AM$37+$G$62*$R$62*$AN$37+$G$63*$R$63*$AO$37 -> 0 | Z38: =$H$44*$R$44*$V$37+$H$45*$R$45*$W$37+IF($AB$4,0,$H$46*$R$46*$X$37)+$H$47*$R$47*$Y$37+$H$48*$R$48*$Z$37+$H$49*$R$49*$AA$37+$H$50*$R$50*$AB$37+$H$51*$R$51*$AC$37+$H$52*$R$52*$AD$37+$H$53*$R$53*$AE$37+$H$54*$R$54*$AF$37+$H$55*$R$55*$AG$37+$H$56*$R$56*$AH$37+$H$57*$R$57*$AI$37+IF($AB$5,0,$H$58*$R$58*$AJ$37)+$H$59*$R$59*$AK$37+IF($AB$4,0,$H$60*$R$60*$AL$37)+$H$61*$R$61*$AM$37+$H$62*$R$62*$AN$37+$H$63*$R$63*$AO$37 -> 0 | AA38: =$I$44*$R$44*$V$37+$I$45*$R$45*$W$37+IF($AB$4,0,$I$46*$R$46*$X$37)+$I$47*$R$47*$Y$37+$I$48*$R$48*$Z$37+$I$49*$R$49*$AA$37+$I$50*$R$50*$AB$37+$I$51*$R$51*$AC$37+$I$52*$R$52*$AD$37+$I$53*$R$53*$AE$37+$I$54*$R$54*$AF$37+$I$55*$R$55*$AG$37+$I$56*$R$56*$AH$37+$I$57*$R$57*$AI$37+IF($AB$5,0,$I$58*$R$58*$AJ$37)+$I$59*$R$59*$AK$37+IF($AB$4,0,$I$60*$R$60*$AL$37)+$I$61*$R$61*$AM$37+$I$62*$R$62*$AN$37+$I$63*$R$63*$AO$37 -> 0 | AB38: =$J$44*$R$44*$V$37+$J$45*$R$45*$W$37+IF($AB$4,0,$J$46*$R$46*$X$37)+$J$47*$R$47*$Y$37+$J$48*$R$48*$Z$37+$J$49*$R$49*$AA$37+$J$50*$R$50*$AB$37+$J$51*$R$51*$AC$37+$J$52*$R$52*$AD$37+$J$53*$R$53*$AE$37+$J$54*$R$54*$AF$37+$J$55*$R$55*$AG$37+$J$56*$R$56*$AH$37+$J$57*$R$57*$AI$37+IF($AB$5,0,$J$58*$R$58*$AJ$37)+$J$59*$R$59*$AK$37+IF($AB$4,0,$J$60*$R$60*$AL$37)+$J$61*$R$61*$AM$37+$J$62*$R$62*$AN$37+$J$63*$R$63*$AO$37 -> 0 | AC38: =$K$44*$R$44*$V$37+$K$45*$R$45*$W$37+IF($AB$4,0,$K$46*$R$46*$X$37)+$K$47*$R$47*$Y$37+$K$48*$R$48*$Z$37+$K$49*$R$49*$AA$37+$K$50*$R$50*$AB$37+$K$51*$R$51*$AC$37+$K$52*$R$52*$AD$37+$K$53*$R$53*$AE$37+$K$54*$R$54*$AF$37+$K$55*$R$55*$AG$37+$K$56*$R$56*$AH$37+$K$57*$R$57*$AI$37+IF($AB$5,0,$K$58*$R$58*$AJ$37)+$K$59*$R$59*$AK$37+IF($AB$4,0,$K$60*$R$60*$AL$37)+$K$61*$R$61*$AM$37+$K$62*$R$62*$AN$37+$K$63*$R$63*$AO$37 -> 0 | AD38: =$L$44*$R$44*$V$37+$L$45*$R$45*$W$37+IF($AB$4,0,$L$46*$R$46*$X$37)+$L$47*$R$47*$Y$37+$L$48*$R$48*$Z$37+$L$49*$R$49*$AA$37+$L$50*$R$50*$AB$37+$L$51*$R$51*$AC$37+$L$52*$R$52*$AD$37+$L$53*$R$53*$AE$37+$L$54*$R$54*$AF$37+$L$55*$R$55*$AG$37+$L$56*$R$56*$AH$37+$L$57*$R$57*$AI$37+IF($AB$5,0,$L$58*$R$58*$AJ$37)+$L$59*$R$59*$AK$37+IF($AB$4,0,$L$60*$R$60*$AL$37)+$L$61*$R$61*$AM$37+$L$62*$R$62*$AN$37+$L$63*$R$63*$AO$37 -> 0 | AE38: =$M$44*$R$44*$V$37+$M$45*$R$45*$W$37+IF($AB$4,0,$M$46*$R$46*$X$37)+$M$47*$R$47*$Y$37+$M$48*$R$48*$Z$37+$M$49*$R$49*$AA$37+$M$50*$R$50*$AB$37+$M$51*$R$51*$AC$37+$M$52*$R$52*$AD$37+$M$53*$R$53*$AE37+$M$54*$R$54*$AF$37+$M$55*$R$55*$AG$37+$M$56*$R$56*$AH$37+$M$57*$R$57*$AI$37+IF($AB$5,0,$M$58*$R$58*$AJ$37)+$M$59*$R$59*$AK$37+IF($AB$4,0,$M$60*$R$60*$AL$37)+$M$61*$R$61*$AM$37+$M$62*$R$62*$AN$37+$M$63*$R$63*$AO$37 -> 0 | AF38: =$N$44*$R$44*$V$37+$N$45*$R$45*$W$37+IF($AB$4,0,$N$46*$R$46*$X$37)+$N$47*$R$47*$Y$37+$N$48*$R$48*$Z$37+$N$49*$R$49*$AA$37+$N$50*$R$50*$AB$37+$N$51*$R$51*$AC$37+$N$52*$R$52*$AD$37+$N$53*$R$53*$AE$37+$N$54*$R$54*$AF$37+$N$55*$R$55*$AG$37+$N$56*$R$56*$AH$37+$N$57*$R$57*$AI$37+IF($AB$5,0,$N$58*$R$58*$AJ$37)+$N$59*$R$59*$AK$37+IF($AB$4,0,$N$60*$R$60*$AL$37)+$N$61*$R$61*$AM$37+$N$62*$R$62*$AN$37+$N$63*$R$63*$AO$37 -> 0 | AG38: =$O$44*$R$44*$V$37+$O$45*$R$45*$W$37+IF($AB$4,0,$O$46*$R$46*$X$37)+$O$47*$R$47*$Y$37+$O$48*$R$48*$Z$37+$O$49*$R$49*$AA$37+$O$50*$R$50*$AB$37+$O$51*$R$51*$AC$37+$O$52*$R$52*$AD$37+$O$53*$R$53*$AE$37+$O$54*$R$54*$AF$37+$O$55*$R$55*$AG$37+$O$56*$R$56*$AH$37+$O$57*$R$57*$AI$37+IF($AB$5,0,$O$58*$R$58*$AJ$37)+$O$59*$R$59*$AK$37+IF($AB$4,0,$O$60*$R$60*$AL$37)+$O$61*$R$61*$AM$37+$O$62*$R$62*$AN$37+$O$63*$R$63*$AO$37 -> 0 | AH38: Total
D41: Specified monthly field operations, machinery implement, and custom rate costs (see comment box for more information)
C42: Machinery | P42: Times | Q42: Custom | R42: Cost/per
C43: Description | D43: 1 | E43: 2 | F43: 3 | G43: 4 | H43: 5 | I43: 6 | J43: 7 | K43: 8 | L43: 9 | M43: 10 | N43: 11 | O43: 12 | P43: Over | Q43: Cost | R43: Operation | U43: Taxes | V43: Monthly allocation of expenditures(%)
C44: Offset Disc | P44: =SUM(D44:O44) -> 0 | Q44: =P44*R44 -> 0 | R44: 10.79 | U44: Allocation | V44: 1 | W44: 2 | X44: 3 | Y44: 4 | Z44: 5 | AA44: 6 | AB44: 7 | AC44: 8 | AD44: 9 | AE44: 10 | AF44: 11 | AG44: 12
C45: Chisel | P45: =SUM(D45:O45) -> 0 | Q45: =P45*R45 -> 0 | R45: 16.64 | V45: 100 | W45: 0 | X45: 0 | Y45: 0 | Z45: 0 | AA45: 0 | AB45: 0 | AC45: 0 | AD45: 0 | AE45: 0 | AF45: 0 | AG45: 0
C46: Anhy. App. | F46: 1 | P46: 1 | Q46: =IF($AB$4,0,P46*R46) -> 17.72 | R46: 17.72
C47: Sweep Plow | P47: 0 | Q47: =P47*R47 -> 0 | R47: 13.17
C48: M.B. Plow | P48: 0 | Q48: 0 | R48: 21.8 | U48: Insurance | V48: Monthly allocation of expenditures(%)
C49: Field Cultivator | P49: 0 | Q49: 0 | R49: 15.39 | U49: Allocation | V49: 1 | W49: 2 | X49: 3 | Y49: 4 | Z49: 5 | AA49: 6 | AB49: 7 | AC49: 8 | AD49: 9 | AE49: 10 | AF49: 11 | AG49: 12
C50: Cultipacker | P50: 0 | Q50: 0 | V50: 100 | W50: 0 | X50: 0 | Y50: 0 | Z50: 0 | AA50: 0 | AB50: 0 | AC50: 0 | AD50: 0 | AE50: 0 | AF50: 0 | AG50: 0
C51: Tandem Disk | P51: 0 | Q51: 0 | R51: 12.27
C52: Springtooth | P52: 0 | Q52: 0
C53: S. Harrow | P53: 0 | Q53: 0 | R53: 7.8
C54: Drill | P54: 0 | Q54: 0 | R54: 12.55
C55: Planter | G55: 1 | P55: 1 | Q55: 20.41 | R55: 20.41
C56: Cultivator | P56: 0 | Q56: 0
C57: Rotary Hoe | P57: 0 | Q57: 0
C58: Sprayer | G58: 1 | H58: 1 | I58: 1 | P58: 3 | Q58: =IF($AB$5,0,P58*R58) -> 17.46 | R58: 5.82
C59: S. Shreader | L59: 1 | P59: 1 | Q59: 0
C60: Dry Fert. Spdr. | P60: 0 | Q60: =IF($AB$4,0,P60*R60) -> 0 | R60: 5.6
C61: Windrower | P61: 0 | Q61: =P61*R61 -> 0
C62: Baler | P62: 0 | Q62: =P62*R62 -> 0
P63: 0 | Q63: =P63*R63 -> 0
C64: Operations/Month | D64: =SUM(D44:D63) -> 0 | E64: =SUM(E44:E63) -> 0 | F64: 1 | G64: 2 | H64: 1 | I64: 1 | J64: 0 | K64: 0 | L64: 1 | M64: 0 | N64: 0 | O64: 0 | P64: =SUM(D64:O64) -> 6
C65: Custom Cost/Month | D65: =D44*$R44+D45*$R45+IF($AB$4,0,D46*$R46)+D47*$R47+D48*$R48+D49*$R49+D50*$R50+D51*$R51+D52*$R52+D53*$R53+D54*$R54+D55*$R55+D56*$R56+D57*$R57+IF($AB$5,0,D58*$R58)+D59*$R59+IF($AB$4,0,D60*$R60)+D61*$R61+D62*$R62+D63*$R63 -> 0 | E65: =E44*$R44+E45*$R45+IF($AB$4,0,E46*$R46)+E47*$R47+E48*$R48+E49*$R49+E50*$R50+E51*$R51+E52*$R52+E53*$R53+E54*$R54+E55*$R55+E56*$R56+E57*$R57+IF($AB$5,0,E58*$R58)+E59*$R59+IF($AB$4,0,E60*$R60)+E61*$R61+E62*$R62+E63*$R63 -> 0 | F65: 17.72 | G65: 26.23 | H65: 5.82 | I65: 5.82 | J65: 0 | K65: 0 | L65: 0 | M65: 0 | N65: 0 | O65: 0 | P65: Total | Q65: =SUM(Q44:Q63) -> 55.59
C67: Owned Machinery | D67: =IF($V33,(D44*$R44+D45*$R45+D46*$R46+D47*$R47+D48*$R48+D49*$R49+D50*$R50+D51*$R51+D52*$R52+D53*$R53+D54*$R54+D55*$R55+D56*$R56+D57*$R57+D58*$R58+D59*$R59+D60*$R60+D61*$R61+D62*$R62+D63*$R63)-D66,D44*$R44+D45*$R45+D46*$R46+D47*$R47+D48*$R48+D49*$R49+D50*$R50+D51*$R51+D52*$R52+D53*$R53+D54*$R54+D55*$R55+D56*$R56+D57*$R57+D58*$R58+D59*$R59+D60*$R60+D61*$R61+D62*$R62+D63*$R63) -> 0 | E67: =IF($V33,(E44*$R44+E45*$R45+E46*$R46+E47*$R47+E48*$R48+E49*$R49+E50*$R50+E51*$R51+E52*$R52+E53*$R53+E54*$R54+E55*$R55+E56*$R56+E57*$R57+E58*$R58+E59*$R59+E60*$R60+E61*$R61+E62*$R62+E63*$R63)-E66,E44*$R44+E45*$R45+E46*$R46+E47*$R47+E48*$R48+E49*$R49+E50*$R50+E51*$R51+E52*$R52+E53*$R53+E54*$R54+E55*$R55+E56*$R56+E57*$R57+E58*$R58+E59*$R59+E60*$R60+E61*$R61+E62*$R62+E63*$R63) -> 0 | F67: 17.72 | G67: 26.23 | H67: 5.82 | I67: 5.82 | J67: 0 | K67: 0 | L67: 0 | M67: 0 | N67: 0 | O67: 0 | P67: Total | Q67: =SUM(D67:O67) -> 55.59
D70: =+IF(V33,"If you change the field operations performed, the frequency or timing of such ","") -> 
D71: =+IF(V33,"operations or the custom rates per acre, press the Recalculate button. ------->","") -> 

Sheet Irrig
B1: Irrigation | AE1: Average Monthly Precipitation by Area* | BA1: CP-15 | BB1: CP-Low | BC1: Lateral Move | BD1: Sroll | BE1: Surface-furrow | BG1: Selection | BH1: Actual
AF2: Jan | AG2: Feb | AH2: Mar | AI2: Apr | AJ2: May | AK2: Jun | AL2: Jul | AM2: Aug | AN2: Sept | AO2: Oct | AP2: Nov | AQ2: Dec | AR2: Annual | AZ2: Application Efficiency | BA2: 0.75 | BB2: 0.8 | BC2: 0.75 | BD2: 0.7 | BE2: 0.6 | BG2: 0.75 | BH2: =IF(ISNUMBER(D17),D17,IF(ISNUMBER(C17),C17,"")) -> 
AE3: Panhandle | AF3: 0.57 | AG3: 0.53 | AH3: 1.3 | AI3: 1.69 | AJ3: 2.48 | AK3: 2.96 | AL3: 2.76 | AM3: 2.89 | AN3: 1.56 | AO3: 1.85 | AP3: 0.72 | AQ3: 0.84 | AR3: 20.15 | AZ3: Percent of costs related to repairs | BA3: 0.4 | BB3: 0.4 | BC3: 0.4 | BD3: 0.4 | BE3: 0.2 | BG3: 0.4 | BH3: =IF(ISNUMBER(D25),D25,C25) -> 0
AE4: West Central | AF4: 0.88 | AG4: 1.02 | AH4: 1.98 | AI4: 2.74 | AJ4: 4.01 | AK4: 3.72 | AL4: 2.57 | AM4: 3.18 | AN4: 2.59 | AO4: 2.62 | AP4: 1.43 | AQ4: 1.27 | AR4: 28.01 | AZ4: Hours of irrigation labor per acre | BA4: =0.01*BH10 -> 0 | BB4: =0.01*BH10 -> 0 | BC4: =0.02*BH10 -> 0 | BD4: =0.12*BH10 -> 0 | BE4: =0.14*BH10 -> 0 | BG4: =+IF(BB35=BA38,BA4,IF(BB35=BA39,BB4,IF(BB35=BA40,BC4,BE4))) -> 0 | BH4: =IF(ISNUMBER(D34),D34,C34) -> 0
AE5: Southwest | AF5: 1.05 | AG5: 1.23 | AH5: 2.12 | AI5: 2.89 | AJ5: 4.38 | AK5: 3.76 | AL5: 2.48 | AM5: 2.88 | AN5: 2.88 | AO5: 2.77 | AP5: 1.71 | AQ5: 1.43 | AR5: 29.58 | AZ5: Labor cost per acre | BG5: =+BH4*Parameters!$P$8 -> 0 | BH5: =D35 -> 0
B6: Will this crop be irrigated? | Q6: Initial Irrigation Investment Costs | U6: Additional Irrigation Settings | AE6: North Central | AF6: 0.98 | AG6: 1.21 | AH6: 2.25 | AI6: 3.07 | AJ6: 4.43 | AK6: 4.4 | AL6: 3.29 | AM6: 3.44 | AN6: 2.48 | AO6: 2.92 | AP6: 1.55 | AQ6: 1.35 | AR6: 31.37
R7: Default | S7: Your | V7: Default | W7: Your | AE7: Central | AF7: 1.42 | AG7: 1.63 | AH7: 2.74 | AI7: 3.77 | AJ7: 5.2 | AK7: 4.68 | AL7: 3.38 | AM7: 3.35 | AN7: 3.62 | AO7: 3.41 | AP7: 2.22 | AQ7: 1.97 | AR7: 37.39 | AZ7: Inches of water Required by crop | BA7: 33 | BG7: 33 | BH7: =IF(ISNUMBER(D19),D19,C19) -> 0
R8: Values | S8: Value | V8: Values | W8: Value | AE8: South Central | AF8: 2.03 | AG8: 2.23 | AH8: 3.28 | AI8: 3.76 | AJ8: 5.57 | AK8: 4.43 | AL8: 2.91 | AM8: 2.84 | AN8: 3.92 | AO8: 4 | AP8: 2.74 | AQ8: 2.72 | AR8: 40.43 | AZ8: Inches provided by rainfall | BA8: 15 | BG8: 15 | BH8: =IF(ISNUMBER(D20),D20,C20) -> 0
Q9: Sprinkler System | R9: 120000 | U9: Well Lift (feet) | V9: 125 | AE9: Northeast | AF9: 1.72 | AG9: 1.86 | AH9: 3.2 | AI9: 4.47 | AJ9: 6.11 | AK9: 4.98 | AL9: 3.79 | AM9: 3.65 | AN9: 3.96 | AO9: 3.77 | AP9: 2.82 | AQ9: 2.26 | AR9: 42.59 | AZ9: Inches required from irrigation | BA9: =BA7-BA8 -> 18 | BG9: 18 | BH9: =D21 -> 0
Q10: Pump | R10: 18172.75 | U10: System Pressure (psi) | V10: 35 | AE10: East Central | AF10: 2.42 | AG10: 2.4 | AH10: 3.73 | AI10: 4.81 | AJ10: 5.95 | AK10: 4.72 | AL10: 3.76 | AM10: 3.45 | AN10: 4.49 | AO10: 4.23 | AP10: 3.56 | AQ10: 3.13 | AR10: 46.65 | AZ10: Inches required with efficiency | BG10: =BG9/BG2 -> 24 | BH10: =D22 -> 0
Q11: Natural Gas Motor | R11: 22050 | U11: Pump Flow (gpm) | V11: 1120 | AE11: Southeast | AF11: 3.24 | AG11: 3.24 | AH11: 4.56 | AI11: 5.11 | AJ11: 6.11 | AK11: 4.43 | AL11: 3.71 | AM11: 3.3 | AN11: 4.25 | AO11: 4.66 | AP11: 4.31 | AQ11: 4.25 | AR11: 51.17 | AZ11: Well Lift | BG11: 125 | BH11: =IF(ISNUMBER(W9),W9,V9) -> 125
Q12: Well | R12: 13125 | U12: Natural Gas Cost ($/Mcf) | V12: 3 | AE12: State Avg.** | AF12: 1.59 | AG12: 1.71 | AH12: 2.8 | AI12: 3.59 | AJ12: 4.92 | AK12: 4.23 | AL12: 3.18 | AM12: 3.22 | AN12: 3.31 | AO12: 3.36 | AP12: 2.34 | AQ12: 2.14 | AR12: 36.37 | AZ12: System Pressure | BG12: 35 | BH12: =IF(ISNUMBER(W10),W10,V10) -> 35
Q13: Column Pipe | R13: 9075 | AZ13: Pump flow | BG13: =IF(BB35="CP: 15 psi Drops",5.9*0.85*Budget!BB13,IF(BB35="CP: Low Drift Nozzles",5.9*0.85*Budget!BB13,7*Budget!BB13)) -> 802.4 | BH13: =IF(ISNUMBER(W11),W11,V11) -> 1120 | BI13: reflects adjustment for actual irr acres
Q14: Other | R14: 0 | AE14: * | AF14: Normals for all stations are climatological normals based on the period 1991-2020. | AZ14: Power Cost | BB14: Power Cost ($/kWh) | BD14: Electric Motor | BG14: 0.13 | BH14: =IF(ISNUMBER(W12),W12,V12) -> 3
D15: Your | Q15: Proportion of Cost | R15: 1 | AE15: ** | AF15: State averages based on district averages, weighted by area. | AZ15: Gas Cost | BB15: Natural Gas Cost ($/Mcf) | BD15: Natural Gas Motor | BG15: 3 | BH15: =IF(ISNUMBER(W12),W12,V12) -> 3
B16: Irrigation Costs | C16: Default | D16: Value | Q16: Total | S16: =BH32 -> 182422.75 | AZ16: Diesel Cost | BB16: Diesel Cost ($/gal) | BD16: Diesel Motor | BG16: 3.75 | BH16: =IF(ISNUMBER(W12),W12,V12) -> 3
B17: Application Efficiency | AZ17: Propane Cost | BB17: Propane Cost ($/gal) | BD17: Propane Motor | BG17: 4 | BH17: =IF(ISNUMBER(W12),W12,V12) -> 3
Q18: For additional information, see: | AF18: For more information: | AZ18: TDH | BG18: =BH11+(BH12*2.31) -> 205.85 | BH18: =BG18 -> 205.85
B19: Inches of water required by crop | Q19: BAE-1204 Comparative Energy Costs for Irrigation Pumping | AF19: Oklahoma Agricultural Statistics | AZ19: HP | BG19: =BH13*BH18/3960/0.8 -> 72.77525253 | BI19: improved efficiency
B20: Inches provided by rainfall | Q20: View these and other OSU Publications at:
B21: Inches required from irrigation | D21: =IF(IF(ISNUMBER(D19),D19,C19)-IF(ISNUMBER(D20),D20,C20)<0,0, IF(ISNUMBER(D19),D19,C19)-IF(ISNUMBER(D20),D20,C20)) -> 0 | Q21: OSU Fact Sheets | BA21: Electricity | BB21: Ngas | BC21: Diesel | BD21: Propane
B22: Inches required with efficiency | D22: =+IF(BH2=0,0,IF(ISNUMBER(BH2),D21/BH2,0)) -> 0 | AF22: Oklahoma Agricultural Statistic Districts | AZ22: Cost per acre inch of water | BA22: =8.448*BH18*BH14/65 -> 80.26249846 | BB22: =BH18*BH15/34.691/16 -> 1.112590441 | BC22: =BH18*BH16/4.856/18 -> 7.065142779 | BD22: =BH18*BH17/3.278/16 -> 11.77451952 | BG22: =IF(BB36="Electric",BA22,IF(BB36="Natural Gas",BB22,IF(BB36="Propane",BC22,IF(BB36="Diesel",BD22)))) -> 1.112590441 | BH22: =IF(ISNUMBER(D24),D24,C24) -> 0
B23: Variable Cost ($/acre)
B24: Cost per acre inch of water | F24: Variable | BA24: CP-15 | BB24: CP-Low | BC24: Lateral Move | BD24: Surface-furrow
B25: Percent of cost related to repairs | F25: Cost Share | AZ25: Sprinkler system | BA25: 120000 | BB25: 120000 | BC25: 206000 | BD25: 0 | BE25: 0 | BG25: 120000 | BH25: =IF(ISNUMBER(S9),S9,R9) -> 120000
B26: Total | D26: =IF(ISNUMBER(D24),D24,C24)*D22 -> 0 | F26: 1
B27: Fixed Cost ($/acre) | AZ27: Pump | BG27: 18172.75 | BH27: =IF(ISNUMBER(S10),S10,R10) -> 18172.75
B28: Depreciation | AZ28: Motor cost | BG28: 22050 | BH28: =IF(ISNUMBER(S11),S11,R11) -> 22050 | BI28: pipe and fittings | BJ28: pipe trailer
B29: Insurance | AZ29: other expense | BE29: =(+Budget!$BB$13*125)+BI29+BJ29 -> 39230 | BG29: =IF(BB35=BA41,BE29,0) -> 0 | BH29: =IF(ISNUMBER(S14),S14,R14) -> 0 | BI29: =11900*1.5 -> 17850 | BJ29: =920*1.5 -> 1380
B30: Taxes | F30: Fixed | AZ30: Well | BG30: =+IF(BH11<=250,87.5*BH11*1.2,125*BH11*1.2) -> 13125 | BH30: =IF(ISNUMBER(S12),S12,R12) -> 13125
B31: Interest | F31: Cost Share | AZ31: Column Pipe | BG31: =IF(BH13<=600,54*BH11*1.1,66*BH11*1.1) -> 9075 | BH31: =IF(ISNUMBER(S13),S13,R13) -> 9075
B32: Total | D32: =IF(ISNUMBER(D28),D28,C28)+IF(ISNUMBER(D29),D29,C29)+IF(ISNUMBER(D30),D30,C30)+IF(ISNUMBER(D31),D31,C31) -> 0 | F32: 0 | AZ32: Total | BH32: =(BH25+SUM(BH27:BH31))*IF(ISNUMBER(S15),S15,R15) -> 182422.75
BG33: Per acre | BH33: =BH32/Budget!$BB$13 -> 1140.142188
B34: Hours of irrigation labor per acre | C34: =+IF(BB34,BG4,0) -> 0 | F34: Labor Share | BA34: Irrigated? | BB34: =+IF(Budget!BB3,"FALSE","TRUE") -> FALSE | BF34: Depreciation | BG34: =IF(BB35=BA41,BH33*0.0537,BH33*0.0667) -> 76.04748391 | BH34: =IF(ISNUMBER(D28),D28,C28) -> 0
B35: Labor cost per acre | D35: =IF(ISNUMBER(D34),D34,C34)*Parameters!P8 -> 0 | F35: 1 | BA35: Irrigation System | BB35: CP: 15 psi Drops | BF35: Insurance | BG35: =BH33*Parameters!$P$13 -> 9.691208594 | BH35: =IF(ISNUMBER(D29),D29,C29) -> 0
B36: Total irrigation costs | D36: =+D26+D32+D35 -> 0 | BA36: Pump Power | BB36: Natural Gas | BF36: Taxes | BG36: =BH33*Parameters!$P$12 -> 11.40142188 | BH36: =IF(ISNUMBER(D30),D30,C30) -> 0
BF37: Interest | BG37: =BH33*Parameters!$P$11 -> 79.80995313 | BH37: =IF(ISNUMBER(D31),D31,C31) -> 0
D38: Your | BA38: CP: 15 psi Drops | BC38: Electric
B39: Monthly Water Application | C39: Default | D39: Value | BA39: CP: Low Drift Nozzles | BC39: Natural Gas
B40: January | C40: 0 | BA40: Lateral Move w/ Drag Hose | BC40: Propane | BH40: =+IF(ISNUMBER(D40),D40,C40) -> 0
B41: February | C41: 0 | BA41: Surface-Furrow | BC41: Diesel | BH41: 0
B42: March | C42: =0.1*D22 -> 0 | BH42: 0
B43: April | C43: 0 | BA43: CP: 15 psi Drops | BC43: Natural Gas | BH43: 0
B44: May | C44: =0.1*D22 -> 0 | BH44: 0
B45: June | C45: =0.2*D22 -> 0 | BH45: 0
B46: July | C46: =0.4*D22 -> 0 | BH46: 0
B47: August | C47: =0.2*D22 -> 0 | BH47: 0
B48: September | C48: 0 | BH48: 0
B49: October | C49: 0 | BH49: 0
B50: November | C50: 0 | BH50: 0
B51: December | C51: 0 | BH51: 0
B52: Annual Total: | D52: =+IF(D40="",C40,D40)+IF(D41="",C41,D41)+IF(D42="",C42,D42)+IF(D43="",C43,D43)+IF(D44="",C44,D44)+IF(D45="",C45,D45)+IF(D46="",C46,D46)+IF(D47="",C47,D47)+IF(D48="",C48,D48)+IF(D49="",C49,D49)+IF(D50="",C50,D50)+IF(D51="",C51,D51) -> 0 | BH52: =+SUM(BH40:BH51) -> 0
B53: Your gross annual value: | D53: =+D22 -> 0
AZ54: Taxes | BA54: Monthly allocation of expenditures(%)
AZ55: Allocation | BA55: 1 | BB55: 2 | BC55: 3 | BD55: 4 | BE55: 5 | BF55: 6 | BG55: 7 | BH55: 8 | BI55: 9 | BJ55: 10 | BK55: 11 | BL55: 12
BA56: 100 | BB56: 0 | BC56: 0 | BD56: 0 | BE56: 0 | BF56: 0 | BG56: 0 | BH56: 0 | BI56: 0 | BJ56: 0 | BK56: 0 | BL56: 0
AZ59: Insurance | BA59: Monthly allocation of expenditures(%)
AZ60: Allocation | BA60: 1 | BB60: 2 | BC60: 3 | BD60: 4 | BE60: 5 | BF60: 6 | BG60: 7 | BH60: 8 | BI60: 9 | BJ60: 10 | BK60: 11 | BL60: 12
BA61: 100 | BB61: 0 | BC61: 0 | BD61: 0 | BE61: 0 | BF61: 0 | BG61: 0 | BH61: 0 | BI61: 0 | BJ61: 0 | BK61: 0 | BL61: 0

Sheet CRent (hidden)
B1: Use the "Adjust Rental Amount" to adjust monthly values.
B3: Rental Amount | C3: =+Budget!BB6 -> 0
B5: Month | C5: % Paid
B6: January | C6: 0
B7: February | C7: 0
B8: March | C8: 0
B9: April | C9: 0
B10: May | C10: 0
B11: June | C11: 0
B12: July | C12: 0
B13: August | C13: 0 | E13: For more information:
B14: September | C14: 0 | E14: CR-230 Oklahoma Cropland Rental Rates
B15: October | C15: 1
B16: November | C16: 0
B17: December | C17: 0

Sheet Other Exp
B1: Other Expenses
B7: Other | C7: Month of | D7: Cost | E7: Share | F7: Share
B8: Expense | C8: Expense | D8: per Acre | E8: Amount | F8: Expense
B9: Utilities | C9: 1 | D9: 2.5 | E9: 1 | F9: =D9*E9 -> 2.5
B10: Fees, publications | C10: 1 | D10: 2.5 | E10: 1 | F10: =D10*E10 -> 2.5
E11: 1 | F11: 0
E12: 1 | F12: 0
E13: 1 | F13: 0
E14: 1 | F14: 0
E15: 1 | F15: 0
E16: 1 | F16: 0
C17: Total Cost: | D17: =SUM(D9:D16) -> 5 | F17: =SUM(F9:F16) -> 5

Sheet Other Inc
B1: Other Income
B7: Other | C7: Month of | D7: Income | E7: Share | F7: Share
B8: Income | C8: Income | D8: per Acre | E8: Amount | F8: Income
E9: 1 | F9: =D9*E9 -> 0
E10: 1 | F10: =D10*E10 -> 0
E11: 1 | F11: 0
E12: 1 | F12: 0
E13: 1 | F13: 0
E14: 1 | F14: 0
E15: 1 | F15: 0
E16: 1 | F16: 0
C17: Total Other Income: | D17: =SUM(D9:D16) -> 0 | F17: =SUM(F9:F16) -> 0

Sheet Oper_Int (hidden)
A1: Share Expenses | C1: 1 | D1: 2 | E1: 3 | F1: 4 | G1: 5 | H1: 6 | I1: 7 | J1: 8 | K1: 9 | L1: 10 | M1: 11 | N1: 12 | AA1: All Expenses | AC1: 1 | AD1: 2 | AE1: 3 | AF1: 4 | AG1: 5 | AH1: 6 | AI1: 7 | AJ1: 8 | AK1: 9 | AL1: 10 | AM1: 11 | AN1: 12
B2: Total | C2: Jan | D2: Feb | E2: March | F2: April | G2: May | H2: June | I2: July | J2: Aug | K2: Sept | L2: Oct | M2: Nov | N2: Dec | AB2: Total | AC2: Jan | AD2: Feb | AE2: March | AF2: April | AG2: May | AH2: June | AI2: July | AJ2: Aug | AK2: Sept | AL2: Oct | AM2: Nov | AN2: Dec
A3: Income | AA3: Income
A4: Corn | B4: =IF(Budget!BB$5="share",Budget!H9,Budget!G9) -> 426.8 | C4: =+Yield!$AH3/100*$B4 -> 0 | D4: =+Yield!$AH4/100*$B4 -> 0 | E4: =+Yield!$AH5/100*$B4 -> 0 | F4: =+Yield!$AH6/100*$B4 -> 0 | G4: =+Yield!$AH7/100*$B4 -> 0 | H4: =+Yield!$AH8/100*$B4 -> 0 | I4: =+Yield!$AH9/100*$B4 -> 0 | J4: =+Yield!$AH10/100*$B4 -> 0 | K4: =+Yield!$AH11/100*$B4 -> 0 | L4: =+Yield!$AH12/100*$B4 -> 426.8 | M4: =+Yield!$AH13/100*$B4 -> 0 | N4: =+Yield!$AH14/100*$B4 -> 0 | O4: =SUM(C4:N4) -> 426.8 | AA4: =+A4 -> Corn | AB4: =Budget!G9 -> 426.8 | AC4: =+Yield!$AH3/100*$AB4 -> 0 | AD4: =+Yield!$AH4/100*$AB4 -> 0 | AE4: =+Yield!$AH5/100*$AB4 -> 0 | AF4: =+Yield!$AH6/100*$AB4 -> 0 | AG4: =+Yield!$AH7/100*$AB4 -> 0 | AH4: =+Yield!$AH8/100*$AB4 -> 0 | AI4: =+Yield!$AH9/100*$AB4 -> 0 | AJ4: =+Yield!$AH10/100*$AB4 -> 0 | AK4: =+Yield!$AH11/100*$AB4 -> 0 | AL4: =+Yield!$AH12/100*$AB4 -> 426.8 | AM4: =+Yield!$AH13/100*$AB4 -> 0 | AN4: =+Yield!$AH14/100*$AB4 -> 0 | AO4: =SUM(AC4:AN4) -> 426.8
O5: =SUM(C5:N5) -> 0 | AO5: =SUM(AC5:AN5) -> 0
A6: =IF('Other Inc'!B9="","Other Income",'Other Inc'!B9) -> Other Income | B6: =IF('Other Inc'!D9=0,0,'Other Inc'!F9) -> 0 | C6: =IF('Other Inc'!$C9=Oper_Int!C$1,'Other Inc'!$F9,0) -> 0 | D6: =IF('Other Inc'!$C9=Oper_Int!D$1,'Other Inc'!$F9,0) -> 0 | E6: =IF('Other Inc'!$C9=Oper_Int!E$1,'Other Inc'!$F9,0) -> 0 | F6: =IF('Other Inc'!$C9=Oper_Int!F$1,'Other Inc'!$F9,0) -> 0 | G6: =IF('Other Inc'!$C9=Oper_Int!G$1,'Other Inc'!$F9,0) -> 0 | H6: =IF('Other Inc'!$C9=Oper_Int!H$1,'Other Inc'!$F9,0) -> 0 | I6: =IF('Other Inc'!$C9=Oper_Int!I$1,'Other Inc'!$F9,0) -> 0 | J6: =IF('Other Inc'!$C9=Oper_Int!J$1,'Other Inc'!$F9,0) -> 0 | K6: =IF('Other Inc'!$C9=Oper_Int!K$1,'Other Inc'!$F9,0) -> 0 | L6: =IF('Other Inc'!$C9=Oper_Int!L$1,'Other Inc'!$F9,0) -> 0 | M6: =IF('Other Inc'!$C9=Oper_Int!M$1,'Other Inc'!$F9,0) -> 0 | N6: =IF('Other Inc'!$C9=Oper_Int!N$1,'Other Inc'!$F9,0) -> 0 | O6: 0 | AA6: =+A6 -> Other Income | AB6: =IF('Other Inc'!D9=0,"N/A",'Other Inc'!D9) -> N/A | AC6: =IF('Other Inc'!$C9=Oper_Int!AC$1,'Other Inc'!$D9,0) -> 0 | AD6: =IF('Other Inc'!$C9=Oper_Int!AD$1,'Other Inc'!$D9,0) -> 0 | AE6: =IF('Other Inc'!$C9=Oper_Int!AE$1,'Other Inc'!$D9,0) -> 0 | AF6: =IF('Other Inc'!$C9=Oper_Int!AF$1,'Other Inc'!$D9,0) -> 0 | AG6: =IF('Other Inc'!$C9=Oper_Int!AG$1,'Other Inc'!$D9,0) -> 0 | AH6: =IF('Other Inc'!$C9=Oper_Int!AH$1,'Other Inc'!$D9,0) -> 0 | AI6: =IF('Other Inc'!$C9=Oper_Int!AI$1,'Other Inc'!$D9,0) -> 0 | AJ6: =IF('Other Inc'!$C9=Oper_Int!AJ$1,'Other Inc'!$D9,0) -> 0 | AK6: =IF('Other Inc'!$C9=Oper_Int!AK$1,'Other Inc'!$D9,0) -> 0 | AL6: =IF('Other Inc'!$C9=Oper_Int!AL$1,'Other Inc'!$D9,0) -> 0 | AM6: =IF('Other Inc'!$C9=Oper_Int!AM$1,'Other Inc'!$D9,0) -> 0 | AN6: =IF('Other Inc'!$C9=Oper_Int!AN$1,'Other Inc'!$D9,0) -> 0 | AO6: 0
A7: =IF('Other Inc'!B10="","Other Income",'Other Inc'!B10) -> Other Income | B7: =IF('Other Inc'!F10=0,"N/A",'Other Inc'!F10) -> N/A | C7: =IF('Other Inc'!$C10=Oper_Int!C$1,'Other Inc'!$F10,0) -> 0 | D7: =IF('Other Inc'!$C10=Oper_Int!D$1,'Other Inc'!$F10,0) -> 0 | E7: =IF('Other Inc'!$C10=Oper_Int!E$1,'Other Inc'!$F10,0) -> 0 | F7: =IF('Other Inc'!$C10=Oper_Int!F$1,'Other Inc'!$F10,0) -> 0 | G7: =IF('Other Inc'!$C10=Oper_Int!G$1,'Other Inc'!$F10,0) -> 0 | H7: =IF('Other Inc'!$C10=Oper_Int!H$1,'Other Inc'!$F10,0) -> 0 | I7: =IF('Other Inc'!$C10=Oper_Int!I$1,'Other Inc'!$F10,0) -> 0 | J7: =IF('Other Inc'!$C10=Oper_Int!J$1,'Other Inc'!$F10,0) -> 0 | K7: =IF('Other Inc'!$C10=Oper_Int!K$1,'Other Inc'!$F10,0) -> 0 | L7: =IF('Other Inc'!$C10=Oper_Int!L$1,'Other Inc'!$F10,0) -> 0 | M7: =IF('Other Inc'!$C10=Oper_Int!M$1,'Other Inc'!$F10,0) -> 0 | N7: =IF('Other Inc'!$C10=Oper_Int!N$1,'Other Inc'!$F10,0) -> 0 | O7: 0 | AA7: Other Income | AB7: =IF('Other Inc'!D10=0,"N/A",'Other Inc'!D10) -> N/A | AC7: =IF('Other Inc'!$C10=Oper_Int!AC$1,'Other Inc'!$D10,0) -> 0 | AD7: =IF('Other Inc'!$C10=Oper_Int!AD$1,'Other Inc'!$D10,0) -> 0 | AE7: =IF('Other Inc'!$C10=Oper_Int!AE$1,'Other Inc'!$D10,0) -> 0 | AF7: =IF('Other Inc'!$C10=Oper_Int!AF$1,'Other Inc'!$D10,0) -> 0 | AG7: =IF('Other Inc'!$C10=Oper_Int!AG$1,'Other Inc'!$D10,0) -> 0 | AH7: =IF('Other Inc'!$C10=Oper_Int!AH$1,'Other Inc'!$D10,0) -> 0 | AI7: =IF('Other Inc'!$C10=Oper_Int!AI$1,'Other Inc'!$D10,0) -> 0 | AJ7: =IF('Other Inc'!$C10=Oper_Int!AJ$1,'Other Inc'!$D10,0) -> 0 | AK7: =IF('Other Inc'!$C10=Oper_Int!AK$1,'Other Inc'!$D10,0) -> 0 | AL7: =IF('Other Inc'!$C10=Oper_Int!AL$1,'Other Inc'!$D10,0) -> 0 | AM7: =IF('Other Inc'!$C10=Oper_Int!AM$1,'Other Inc'!$D10,0) -> 0 | AN7: =IF('Other Inc'!$C10=Oper_Int!AN$1,'Other Inc'!$D10,0) -> 0 | AO7: 0
A8: =IF('Other Inc'!B11="","Other Income",'Other Inc'!B11) -> Other Income | B8: =IF('Other Inc'!F11=0,"N/A",'Other Inc'!F11) -> N/A | C8: =IF('Other Inc'!$C11=Oper_Int!C$1,'Other Inc'!$F11,0) -> 0 | D8: =IF('Other Inc'!$C11=Oper_Int!D$1,'Other Inc'!$F11,0) -> 0 | E8: =IF('Other Inc'!$C11=Oper_Int!E$1,'Other Inc'!$F11,0) -> 0 | F8: =IF('Other Inc'!$C11=Oper_Int!F$1,'Other Inc'!$F11,0) -> 0 | G8: =IF('Other Inc'!$C11=Oper_Int!G$1,'Other Inc'!$F11,0) -> 0 | H8: =IF('Other Inc'!$C11=Oper_Int!H$1,'Other Inc'!$F11,0) -> 0 | I8: =IF('Other Inc'!$C11=Oper_Int!I$1,'Other Inc'!$F11,0) -> 0 | J8: =IF('Other Inc'!$C11=Oper_Int!J$1,'Other Inc'!$F11,0) -> 0 | K8: =IF('Other Inc'!$C11=Oper_Int!K$1,'Other Inc'!$F11,0) -> 0 | L8: =IF('Other Inc'!$C11=Oper_Int!L$1,'Other Inc'!$F11,0) -> 0 | M8: =IF('Other Inc'!$C11=Oper_Int!M$1,'Other Inc'!$F11,0) -> 0 | N8: =IF('Other Inc'!$C11=Oper_Int!N$1,'Other Inc'!$F11,0) -> 0 | O8: 0 | AA8: Other Income | AB8: =IF('Other Inc'!D11=0,"N/A",'Other Inc'!D11) -> N/A | AC8: =IF('Other Inc'!$C11=Oper_Int!AC$1,'Other Inc'!$D11,0) -> 0 | AD8: =IF('Other Inc'!$C11=Oper_Int!AD$1,'Other Inc'!$D11,0) -> 0 | AE8: =IF('Other Inc'!$C11=Oper_Int!AE$1,'Other Inc'!$D11,0) -> 0 | AF8: =IF('Other Inc'!$C11=Oper_Int!AF$1,'Other Inc'!$D11,0) -> 0 | AG8: =IF('Other Inc'!$C11=Oper_Int!AG$1,'Other Inc'!$D11,0) -> 0 | AH8: =IF('Other Inc'!$C11=Oper_Int!AH$1,'Other Inc'!$D11,0) -> 0 | AI8: =IF('Other Inc'!$C11=Oper_Int!AI$1,'Other Inc'!$D11,0) -> 0 | AJ8: =IF('Other Inc'!$C11=Oper_Int!AJ$1,'Other Inc'!$D11,0) -> 0 | AK8: =IF('Other Inc'!$C11=Oper_Int!AK$1,'Other Inc'!$D11,0) -> 0 | AL8: =IF('Other Inc'!$C11=Oper_Int!AL$1,'Other Inc'!$D11,0) -> 0 | AM8: =IF('Other Inc'!$C11=Oper_Int!AM$1,'Other Inc'!$D11,0) -> 0 | AN8: =IF('Other Inc'!$C11=Oper_Int!AN$1,'Other Inc'!$D11,0) -> 0 | AO8: 0
A9: =IF('Other Inc'!B12="","Other Income",'Other Inc'!B12) -> Other Income | B9: =IF('Other Inc'!F12=0,"N/A",'Other Inc'!F12) -> N/A | C9: =IF('Other Inc'!$C12=Oper_Int!C$1,'Other Inc'!$F12,0) -> 0 | D9: =IF('Other Inc'!$C12=Oper_Int!D$1,'Other Inc'!$F12,0) -> 0 | E9: =IF('Other Inc'!$C12=Oper_Int!E$1,'Other Inc'!$F12,0) -> 0 | F9: =IF('Other Inc'!$C12=Oper_Int!F$1,'Other Inc'!$F12,0) -> 0 | G9: =IF('Other Inc'!$C12=Oper_Int!G$1,'Other Inc'!$F12,0) -> 0 | H9: =IF('Other Inc'!$C12=Oper_Int!H$1,'Other Inc'!$F12,0) -> 0 | I9: =IF('Other Inc'!$C12=Oper_Int!I$1,'Other Inc'!$F12,0) -> 0 | J9: =IF('Other Inc'!$C12=Oper_Int!J$1,'Other Inc'!$F12,0) -> 0 | K9: =IF('Other Inc'!$C12=Oper_Int!K$1,'Other Inc'!$F12,0) -> 0 | L9: =IF('Other Inc'!$C12=Oper_Int!L$1,'Other Inc'!$F12,0) -> 0 | M9: =IF('Other Inc'!$C12=Oper_Int!M$1,'Other Inc'!$F12,0) -> 0 | N9: =IF('Other Inc'!$C12=Oper_Int!N$1,'Other Inc'!$F12,0) -> 0 | O9: 0 | AA9: Other Income | AB9: =IF('Other Inc'!D12=0,"N/A",'Other Inc'!D12) -> N/A | AC9: =IF('Other Inc'!$C12=Oper_Int!AC$1,'Other Inc'!$D12,0) -> 0 | AD9: =IF('Other Inc'!$C12=Oper_Int!AD$1,'Other Inc'!$D12,0) -> 0 | AE9: =IF('Other Inc'!$C12=Oper_Int!AE$1,'Other Inc'!$D12,0) -> 0 | AF9: =IF('Other Inc'!$C12=Oper_Int!AF$1,'Other Inc'!$D12,0) -> 0 | AG9: =IF('Other Inc'!$C12=Oper_Int!AG$1,'Other Inc'!$D12,0) -> 0 | AH9: =IF('Other Inc'!$C12=Oper_Int!AH$1,'Other Inc'!$D12,0) -> 0 | AI9: =IF('Other Inc'!$C12=Oper_Int!AI$1,'Other Inc'!$D12,0) -> 0 | AJ9: =IF('Other Inc'!$C12=Oper_Int!AJ$1,'Other Inc'!$D12,0) -> 0 | AK9: =IF('Other Inc'!$C12=Oper_Int!AK$1,'Other Inc'!$D12,0) -> 0 | AL9: =IF('Other Inc'!$C12=Oper_Int!AL$1,'Other Inc'!$D12,0) -> 0 | AM9: =IF('Other Inc'!$C12=Oper_Int!AM$1,'Other Inc'!$D12,0) -> 0 | AN9: =IF('Other Inc'!$C12=Oper_Int!AN$1,'Other Inc'!$D12,0) -> 0 | AO9: 0
A10: =IF('Other Inc'!B13="","Other Income",'Other Inc'!B13) -> Other Income | B10: =IF('Other Inc'!F13=0,"N/A",'Other Inc'!F13) -> N/A | C10: =IF('Other Inc'!$C13=Oper_Int!C$1,'Other Inc'!$F13,0) -> 0 | D10: =IF('Other Inc'!$C13=Oper_Int!D$1,'Other Inc'!$F13,0) -> 0 | E10: =IF('Other Inc'!$C13=Oper_Int!E$1,'Other Inc'!$F13,0) -> 0 | F10: =IF('Other Inc'!$C13=Oper_Int!F$1,'Other Inc'!$F13,0) -> 0 | G10: =IF('Other Inc'!$C13=Oper_Int!G$1,'Other Inc'!$F13,0) -> 0 | H10: =IF('Other Inc'!$C13=Oper_Int!H$1,'Other Inc'!$F13,0) -> 0 | I10: =IF('Other Inc'!$C13=Oper_Int!I$1,'Other Inc'!$F13,0) -> 0 | J10: =IF('Other Inc'!$C13=Oper_Int!J$1,'Other Inc'!$F13,0) -> 0 | K10: =IF('Other Inc'!$C13=Oper_Int!K$1,'Other Inc'!$F13,0) -> 0 | L10: =IF('Other Inc'!$C13=Oper_Int!L$1,'Other Inc'!$F13,0) -> 0 | M10: =IF('Other Inc'!$C13=Oper_Int!M$1,'Other Inc'!$F13,0) -> 0 | N10: =IF('Other Inc'!$C13=Oper_Int!N$1,'Other Inc'!$F13,0) -> 0 | O10: 0 | AA10: Other Income | AB10: =IF('Other Inc'!D13=0,"N/A",'Other Inc'!D13) -> N/A | AC10: =IF('Other Inc'!$C13=Oper_Int!AC$1,'Other Inc'!$D13,0) -> 0 | AD10: =IF('Other Inc'!$C13=Oper_Int!AD$1,'Other Inc'!$D13,0) -> 0 | AE10: =IF('Other Inc'!$C13=Oper_Int!AE$1,'Other Inc'!$D13,0) -> 0 | AF10: =IF('Other Inc'!$C13=Oper_Int!AF$1,'Other Inc'!$D13,0) -> 0 | AG10: =IF('Other Inc'!$C13=Oper_Int!AG$1,'Other Inc'!$D13,0) -> 0 | AH10: =IF('Other Inc'!$C13=Oper_Int!AH$1,'Other Inc'!$D13,0) -> 0 | AI10: =IF('Other Inc'!$C13=Oper_Int!AI$1,'Other Inc'!$D13,0) -> 0 | AJ10: =IF('Other Inc'!$C13=Oper_Int!AJ$1,'Other Inc'!$D13,0) -> 0 | AK10: =IF('Other Inc'!$C13=Oper_Int!AK$1,'Other Inc'!$D13,0) -> 0 | AL10: =IF('Other Inc'!$C13=Oper_Int!AL$1,'Other Inc'!$D13,0) -> 0 | AM10: =IF('Other Inc'!$C13=Oper_Int!AM$1,'Other Inc'!$D13,0) -> 0 | AN10: =IF('Other Inc'!$C13=Oper_Int!AN$1,'Other Inc'!$D13,0) -> 0 | AO10: 0
A11: =IF('Other Inc'!B14="","Other Income",'Other Inc'!B14) -> Other Income | B11: =IF('Other Inc'!F14=0,"N/A",'Other Inc'!F14) -> N/A | C11: =IF('Other Inc'!$C14=Oper_Int!C$1,'Other Inc'!$F14,0) -> 0 | D11: =IF('Other Inc'!$C14=Oper_Int!D$1,'Other Inc'!$F14,0) -> 0 | E11: =IF('Other Inc'!$C14=Oper_Int!E$1,'Other Inc'!$F14,0) -> 0 | F11: =IF('Other Inc'!$C14=Oper_Int!F$1,'Other Inc'!$F14,0) -> 0 | G11: =IF('Other Inc'!$C14=Oper_Int!G$1,'Other Inc'!$F14,0) -> 0 | H11: =IF('Other Inc'!$C14=Oper_Int!H$1,'Other Inc'!$F14,0) -> 0 | I11: =IF('Other Inc'!$C14=Oper_Int!I$1,'Other Inc'!$F14,0) -> 0 | J11: =IF('Other Inc'!$C14=Oper_Int!J$1,'Other Inc'!$F14,0) -> 0 | K11: =IF('Other Inc'!$C14=Oper_Int!K$1,'Other Inc'!$F14,0) -> 0 | L11: =IF('Other Inc'!$C14=Oper_Int!L$1,'Other Inc'!$F14,0) -> 0 | M11: =IF('Other Inc'!$C14=Oper_Int!M$1,'Other Inc'!$F14,0) -> 0 | N11: =IF('Other Inc'!$C14=Oper_Int!N$1,'Other Inc'!$F14,0) -> 0 | O11: 0 | AA11: Other Income | AB11: =IF('Other Inc'!D14=0,"N/A",'Other Inc'!D14) -> N/A | AC11: =IF('Other Inc'!$C14=Oper_Int!AC$1,'Other Inc'!$D14,0) -> 0 | AD11: =IF('Other Inc'!$C14=Oper_Int!AD$1,'Other Inc'!$D14,0) -> 0 | AE11: =IF('Other Inc'!$C14=Oper_Int!AE$1,'Other Inc'!$D14,0) -> 0 | AF11: =IF('Other Inc'!$C14=Oper_Int!AF$1,'Other Inc'!$D14,0) -> 0 | AG11: =IF('Other Inc'!$C14=Oper_Int!AG$1,'Other Inc'!$D14,0) -> 0 | AH11: =IF('Other Inc'!$C14=Oper_Int!AH$1,'Other Inc'!$D14,0) -> 0 | AI11: =IF('Other Inc'!$C14=Oper_Int!AI$1,'Other Inc'!$D14,0) -> 0 | AJ11: =IF('Other Inc'!$C14=Oper_Int!AJ$1,'Other Inc'!$D14,0) -> 0 | AK11: =IF('Other Inc'!$C14=Oper_Int!AK$1,'Other Inc'!$D14,0) -> 0 | AL11: =IF('Other Inc'!$C14=Oper_Int!AL$1,'Other Inc'!$D14,0) -> 0 | AM11: =IF('Other Inc'!$C14=Oper_Int!AM$1,'Other Inc'!$D14,0) -> 0 | AN11: =IF('Other Inc'!$C14=Oper_Int!AN$1,'Other Inc'!$D14,0) -> 0 | AO11: 0
A12: =IF('Other Inc'!B15="","Other Income",'Other Inc'!B15) -> Other Income | B12: =IF('Other Inc'!F15=0,"N/A",'Other Inc'!F15) -> N/A | C12: =IF('Other Inc'!$C15=Oper_Int!C$1,'Other Inc'!$F15,0) -> 0 | D12: =IF('Other Inc'!$C15=Oper_Int!D$1,'Other Inc'!$F15,0) -> 0 | E12: =IF('Other Inc'!$C15=Oper_Int!E$1,'Other Inc'!$F15,0) -> 0 | F12: =IF('Other Inc'!$C15=Oper_Int!F$1,'Other Inc'!$F15,0) -> 0 | G12: =IF('Other Inc'!$C15=Oper_Int!G$1,'Other Inc'!$F15,0) -> 0 | H12: =IF('Other Inc'!$C15=Oper_Int!H$1,'Other Inc'!$F15,0) -> 0 | I12: =IF('Other Inc'!$C15=Oper_Int!I$1,'Other Inc'!$F15,0) -> 0 | J12: =IF('Other Inc'!$C15=Oper_Int!J$1,'Other Inc'!$F15,0) -> 0 | K12: =IF('Other Inc'!$C15=Oper_Int!K$1,'Other Inc'!$F15,0) -> 0 | L12: =IF('Other Inc'!$C15=Oper_Int!L$1,'Other Inc'!$F15,0) -> 0 | M12: =IF('Other Inc'!$C15=Oper_Int!M$1,'Other Inc'!$F15,0) -> 0 | N12: =IF('Other Inc'!$C15=Oper_Int!N$1,'Other Inc'!$F15,0) -> 0 | O12: 0 | AA12: Other Income | AB12: =IF('Other Inc'!D15=0,"N/A",'Other Inc'!D15) -> N/A | AC12: =IF('Other Inc'!$C15=Oper_Int!AC$1,'Other Inc'!$D15,0) -> 0 | AD12: =IF('Other Inc'!$C15=Oper_Int!AD$1,'Other Inc'!$D15,0) -> 0 | AE12: =IF('Other Inc'!$C15=Oper_Int!AE$1,'Other Inc'!$D15,0) -> 0 | AF12: =IF('Other Inc'!$C15=Oper_Int!AF$1,'Other Inc'!$D15,0) -> 0 | AG12: =IF('Other Inc'!$C15=Oper_Int!AG$1,'Other Inc'!$D15,0) -> 0 | AH12: =IF('Other Inc'!$C15=Oper_Int!AH$1,'Other Inc'!$D15,0) -> 0 | AI12: =IF('Other Inc'!$C15=Oper_Int!AI$1,'Other Inc'!$D15,0) -> 0 | AJ12: =IF('Other Inc'!$C15=Oper_Int!AJ$1,'Other Inc'!$D15,0) -> 0 | AK12: =IF('Other Inc'!$C15=Oper_Int!AK$1,'Other Inc'!$D15,0) -> 0 | AL12: =IF('Other Inc'!$C15=Oper_Int!AL$1,'Other Inc'!$D15,0) -> 0 | AM12: =IF('Other Inc'!$C15=Oper_Int!AM$1,'Other Inc'!$D15,0) -> 0 | AN12: =IF('Other Inc'!$C15=Oper_Int!AN$1,'Other Inc'!$D15,0) -> 0 | AO12: 0
A13: =IF('Other Inc'!B16="","Other Income",'Other Inc'!B16) -> Other Income | B13: =IF('Other Inc'!F16=0,"N/A",'Other Inc'!F16) -> N/A | C13: =IF('Other Inc'!$C16=Oper_Int!C$1,'Other Inc'!$F16,0) -> 0 | D13: =IF('Other Inc'!$C16=Oper_Int!D$1,'Other Inc'!$F16,0) -> 0 | E13: =IF('Other Inc'!$C16=Oper_Int!E$1,'Other Inc'!$F16,0) -> 0 | F13: =IF('Other Inc'!$C16=Oper_Int!F$1,'Other Inc'!$F16,0) -> 0 | G13: =IF('Other Inc'!$C16=Oper_Int!G$1,'Other Inc'!$F16,0) -> 0 | H13: =IF('Other Inc'!$C16=Oper_Int!H$1,'Other Inc'!$F16,0) -> 0 | I13: =IF('Other Inc'!$C16=Oper_Int!I$1,'Other Inc'!$F16,0) -> 0 | J13: =IF('Other Inc'!$C16=Oper_Int!J$1,'Other Inc'!$F16,0) -> 0 | K13: =IF('Other Inc'!$C16=Oper_Int!K$1,'Other Inc'!$F16,0) -> 0 | L13: =IF('Other Inc'!$C16=Oper_Int!L$1,'Other Inc'!$F16,0) -> 0 | M13: =IF('Other Inc'!$C16=Oper_Int!M$1,'Other Inc'!$F16,0) -> 0 | N13: =IF('Other Inc'!$C16=Oper_Int!N$1,'Other Inc'!$F16,0) -> 0 | O13: 0 | AA13: Other Income | AB13: =IF('Other Inc'!D16=0,"N/A",'Other Inc'!D16) -> N/A | AC13: =IF('Other Inc'!$C16=Oper_Int!AC$1,'Other Inc'!$D16,0) -> 0 | AD13: =IF('Other Inc'!$C16=Oper_Int!AD$1,'Other Inc'!$D16,0) -> 0 | AE13: =IF('Other Inc'!$C16=Oper_Int!AE$1,'Other Inc'!$D16,0) -> 0 | AF13: =IF('Other Inc'!$C16=Oper_Int!AF$1,'Other Inc'!$D16,0) -> 0 | AG13: =IF('Other Inc'!$C16=Oper_Int!AG$1,'Other Inc'!$D16,0) -> 0 | AH13: =IF('Other Inc'!$C16=Oper_Int!AH$1,'Other Inc'!$D16,0) -> 0 | AI13: =IF('Other Inc'!$C16=Oper_Int!AI$1,'Other Inc'!$D16,0) -> 0 | AJ13: =IF('Other Inc'!$C16=Oper_Int!AJ$1,'Other Inc'!$D16,0) -> 0 | AK13: =IF('Other Inc'!$C16=Oper_Int!AK$1,'Other Inc'!$D16,0) -> 0 | AL13: =IF('Other Inc'!$C16=Oper_Int!AL$1,'Other Inc'!$D16,0) -> 0 | AM13: =IF('Other Inc'!$C16=Oper_Int!AM$1,'Other Inc'!$D16,0) -> 0 | AN13: =IF('Other Inc'!$C16=Oper_Int!AN$1,'Other Inc'!$D16,0) -> 0 | AO13: 0
A14: Expense | O14: 0 | AA14: Expense | AO14: 0
A15: Seed | B15: =IF(Budget!BB$5="share",Budget!H15,Budget!G15) -> 75 | C15: =IF(Seed!$P$10=C1,$B15,0) -> 0 | D15: =IF(Seed!$P$10=D1,$B15,0) -> 0 | E15: =IF(Seed!$P$10=E1,$B15,0) -> 0 | F15: =IF(Seed!$P$10=F1,$B15,0) -> 75 | G15: =IF(Seed!$P$10=G1,$B15,0) -> 0 | H15: =IF(Seed!$P$10=H1,$B15,0) -> 0 | I15: =IF(Seed!$P$10=I1,$B15,0) -> 0 | J15: =IF(Seed!$P$10=J1,$B15,0) -> 0 | K15: =IF(Seed!$P$10=K1,$B15,0) -> 0 | L15: =IF(Seed!$P$10=L1,$B15,0) -> 0 | M15: =IF(Seed!$P$10=M1,$B15,0) -> 0 | N15: =IF(Seed!$P$10=N1,$B15,0) -> 0 | O15: 75 | AA15: =+A15 -> Seed | AB15: =Budget!G15 -> 75 | AC15: =IF(Seed!$P$10=AC1,Budget!$G$15,0) -> 0 | AD15: =IF(Seed!$P$10=AD1,Budget!$G$15,0) -> 0 | AE15: =IF(Seed!$P$10=AE1,Budget!$G$15,0) -> 0 | AF15: =IF(Seed!$P$10=AF1,Budget!$G$15,0) -> 75 | AG15: =IF(Seed!$P$10=AG1,Budget!$G$15,0) -> 0 | AH15: =IF(Seed!$P$10=AH1,Budget!$G$15,0) -> 0 | AI15: =IF(Seed!$P$10=AI1,Budget!$G$15,0) -> 0 | AJ15: =IF(Seed!$P$10=AJ1,Budget!$G$15,0) -> 0 | AK15: =IF(Seed!$P$10=AK1,Budget!$G$15,0) -> 0 | AL15: =IF(Seed!$P$10=AL1,Budget!$G$15,0) -> 0 | AM15: =IF(Seed!$P$10=AM1,Budget!$G$15,0) -> 0 | AN15: =IF(Seed!$P$10=AN1,Budget!$G$15,0) -> 0 | AO15: 75
A16: =IF(Fertilizer!B9="","Fertilizer",Fertilizer!B9) -> Anhydrous Ammonia | B16: =IF(Fertilizer!D9="","N/A",(Fertilizer!D9*Fertilizer!M9)*Fertilizer!K9) -> 46.790135 | C16: =IF(Fertilizer!$C9=Oper_Int!C$1,$B16,0) -> 0 | D16: =IF(Fertilizer!$C9=Oper_Int!D$1,$B16,0) -> 0 | E16: =IF(Fertilizer!$C9=Oper_Int!E$1,$B16,0) -> 46.790135 | F16: =IF(Fertilizer!$C9=Oper_Int!F$1,$B16,0) -> 0 | G16: =IF(Fertilizer!$C9=Oper_Int!G$1,$B16,0) -> 0 | H16: =IF(Fertilizer!$C9=Oper_Int!H$1,$B16,0) -> 0 | I16: =IF(Fertilizer!$C9=Oper_Int!I$1,$B16,0) -> 0 | J16: =IF(Fertilizer!$C9=Oper_Int!J$1,$B16,0) -> 0 | K16: =IF(Fertilizer!$C9=Oper_Int!K$1,$B16,0) -> 0 | L16: =IF(Fertilizer!$C9=Oper_Int!L$1,$B16,0) -> 0 | M16: =IF(Fertilizer!$C9=Oper_Int!M$1,$B16,0) -> 0 | N16: =IF(Fertilizer!$C9=Oper_Int!N$1,$B16,0) -> 0 | O16: 46.790135 | AA16: Anhydrous Ammonia | AB16: =IF(Fertilizer!D9="","N/A",Fertilizer!D9*Fertilizer!M9) -> 46.790135 | AC16: =IF(Fertilizer!$C9=Oper_Int!AC$1,$AB16,0) -> 0 | AD16: =IF(Fertilizer!$C9=Oper_Int!AD$1,$AB16,0) -> 0 | AE16: =IF(Fertilizer!$C9=Oper_Int!AE$1,$AB16,0) -> 46.790135 | AF16: =IF(Fertilizer!$C9=Oper_Int!AF$1,$AB16,0) -> 0 | AG16: =IF(Fertilizer!$C9=Oper_Int!AG$1,$AB16,0) -> 0 | AH16: =IF(Fertilizer!$C9=Oper_Int!AH$1,$AB16,0) -> 0 | AI16: =IF(Fertilizer!$C9=Oper_Int!AI$1,$AB16,0) -> 0 | AJ16: =IF(Fertilizer!$C9=Oper_Int!AJ$1,$AB16,0) -> 0 | AK16: =IF(Fertilizer!$C9=Oper_Int!AK$1,$AB16,0) -> 0 | AL16: =IF(Fertilizer!$C9=Oper_Int!AL$1,$AB16,0) -> 0 | AM16: =IF(Fertilizer!$C9=Oper_Int!AM$1,$AB16,0) -> 0 | AN16: =IF(Fertilizer!$C9=Oper_Int!AN$1,$AB16,0) -> 0 | AO16: 46.790135
A17: =IF(Fertilizer!B10="","Fertilizer",Fertilizer!B10) -> Diammonium Phosphate | B17: =IF(Fertilizer!D10="","N/A",(Fertilizer!D10*Fertilizer!M10)*Fertilizer!K10) -> 18.5 | C17: =IF(Fertilizer!$C10=Oper_Int!C$1,$B17,0) -> 0 | D17: =IF(Fertilizer!$C10=Oper_Int!D$1,$B17,0) -> 0 | E17: =IF(Fertilizer!$C10=Oper_Int!E$1,$B17,0) -> 0 | F17: =IF(Fertilizer!$C10=Oper_Int!F$1,$B17,0) -> 18.5 | G17: =IF(Fertilizer!$C10=Oper_Int!G$1,$B17,0) -> 0 | H17: =IF(Fertilizer!$C10=Oper_Int!H$1,$B17,0) -> 0 | I17: =IF(Fertilizer!$C10=Oper_Int!I$1,$B17,0) -> 0 | J17: =IF(Fertilizer!$C10=Oper_Int!J$1,$B17,0) -> 0 | K17: =IF(Fertilizer!$C10=Oper_Int!K$1,$B17,0) -> 0 | L17: =IF(Fertilizer!$C10=Oper_Int!L$1,$B17,0) -> 0 | M17: =IF(Fertilizer!$C10=Oper_Int!M$1,$B17,0) -> 0 | N17: =IF(Fertilizer!$C10=Oper_Int!N$1,$B17,0) -> 0 | O17: 18.5 | AA17: Diammonium Phosphate | AB17: =IF(Fertilizer!D10="","N/A",Fertilizer!D10*Fertilizer!M10) -> 18.5 | AC17: =IF(Fertilizer!$C10=Oper_Int!AC$1,$AB17,0) -> 0 | AD17: =IF(Fertilizer!$C10=Oper_Int!AD$1,$AB17,0) -> 0 | AE17: =IF(Fertilizer!$C10=Oper_Int!AE$1,$AB17,0) -> 0 | AF17: =IF(Fertilizer!$C10=Oper_Int!AF$1,$AB17,0) -> 18.5 | AG17: =IF(Fertilizer!$C10=Oper_Int!AG$1,$AB17,0) -> 0 | AH17: =IF(Fertilizer!$C10=Oper_Int!AH$1,$AB17,0) -> 0 | AI17: =IF(Fertilizer!$C10=Oper_Int!AI$1,$AB17,0) -> 0 | AJ17: =IF(Fertilizer!$C10=Oper_Int!AJ$1,$AB17,0) -> 0 | AK17: =IF(Fertilizer!$C10=Oper_Int!AK$1,$AB17,0) -> 0 | AL17: =IF(Fertilizer!$C10=Oper_Int!AL$1,$AB17,0) -> 0 | AM17: =IF(Fertilizer!$C10=Oper_Int!AM$1,$AB17,0) -> 0 | AN17: =IF(Fertilizer!$C10=Oper_Int!AN$1,$AB17,0) -> 0 | AO17: 18.5
A18: =IF(Fertilizer!B11="","Fertilizer",Fertilizer!B11) -> Fertilizer | B18: =IF(Fertilizer!D11="","N/A",(Fertilizer!D11*Fertilizer!M11)*Fertilizer!K11) -> N/A | C18: =IF(Fertilizer!$C11=Oper_Int!C$1,$B18,0) -> 0 | D18: =IF(Fertilizer!$C11=Oper_Int!D$1,$B18,0) -> 0 | E18: =IF(Fertilizer!$C11=Oper_Int!E$1,$B18,0) -> 0 | F18: =IF(Fertilizer!$C11=Oper_Int!F$1,$B18,0) -> 0 | G18: =IF(Fertilizer!$C11=Oper_Int!G$1,$B18,0) -> 0 | H18: =IF(Fertilizer!$C11=Oper_Int!H$1,$B18,0) -> 0 | I18: =IF(Fertilizer!$C11=Oper_Int!I$1,$B18,0) -> 0 | J18: =IF(Fertilizer!$C11=Oper_Int!J$1,$B18,0) -> 0 | K18: =IF(Fertilizer!$C11=Oper_Int!K$1,$B18,0) -> 0 | L18: =IF(Fertilizer!$C11=Oper_Int!L$1,$B18,0) -> 0 | M18: =IF(Fertilizer!$C11=Oper_Int!M$1,$B18,0) -> 0 | N18: =IF(Fertilizer!$C11=Oper_Int!N$1,$B18,0) -> 0 | O18: 0 | AA18: Fertilizer | AB18: =IF(Fertilizer!D11="","N/A",Fertilizer!D11*Fertilizer!M11) -> N/A | AC18: =IF(Fertilizer!$C11=Oper_Int!AC$1,$AB18,0) -> 0 | AD18: =IF(Fertilizer!$C11=Oper_Int!AD$1,$AB18,0) -> 0 | AE18: =IF(Fertilizer!$C11=Oper_Int!AE$1,$AB18,0) -> 0 | AF18: =IF(Fertilizer!$C11=Oper_Int!AF$1,$AB18,0) -> 0 | AG18: =IF(Fertilizer!$C11=Oper_Int!AG$1,$AB18,0) -> 0 | AH18: =IF(Fertilizer!$C11=Oper_Int!AH$1,$AB18,0) -> 0 | AI18: =IF(Fertilizer!$C11=Oper_Int!AI$1,$AB18,0) -> 0 | AJ18: =IF(Fertilizer!$C11=Oper_Int!AJ$1,$AB18,0) -> 0 | AK18: =IF(Fertilizer!$C11=Oper_Int!AK$1,$AB18,0) -> 0 | AL18: =IF(Fertilizer!$C11=Oper_Int!AL$1,$AB18,0) -> 0 | AM18: =IF(Fertilizer!$C11=Oper_Int!AM$1,$AB18,0) -> 0 | AN18: =IF(Fertilizer!$C11=Oper_Int!AN$1,$AB18,0) -> 0 | AO18: 0
A19: =IF(Fertilizer!B12="","Fertilizer",Fertilizer!B12) -> Fertilizer | B19: =IF(Fertilizer!D12="","N/A",(Fertilizer!D12*Fertilizer!M12)*Fertilizer!K12) -> N/A | C19: =IF(Fertilizer!$C12=Oper_Int!C$1,$B19,0) -> 0 | D19: =IF(Fertilizer!$C12=Oper_Int!D$1,$B19,0) -> 0 | E19: =IF(Fertilizer!$C12=Oper_Int!E$1,$B19,0) -> 0 | F19: =IF(Fertilizer!$C12=Oper_Int!F$1,$B19,0) -> 0 | G19: =IF(Fertilizer!$C12=Oper_Int!G$1,$B19,0) -> 0 | H19: =IF(Fertilizer!$C12=Oper_Int!H$1,$B19,0) -> 0 | I19: =IF(Fertilizer!$C12=Oper_Int!I$1,$B19,0) -> 0 | J19: =IF(Fertilizer!$C12=Oper_Int!J$1,$B19,0) -> 0 | K19: =IF(Fertilizer!$C12=Oper_Int!K$1,$B19,0) -> 0 | L19: =IF(Fertilizer!$C12=Oper_Int!L$1,$B19,0) -> 0 | M19: =IF(Fertilizer!$C12=Oper_Int!M$1,$B19,0) -> 0 | N19: =IF(Fertilizer!$C12=Oper_Int!N$1,$B19,0) -> 0 | O19: 0 | AA19: Fertilizer | AB19: =IF(Fertilizer!D12="","N/A",Fertilizer!D12*Fertilizer!M12) -> N/A | AC19: =IF(Fertilizer!$C12=Oper_Int!AC$1,$AB19,0) -> 0 | AD19: =IF(Fertilizer!$C12=Oper_Int!AD$1,$AB19,0) -> 0 | AE19: =IF(Fertilizer!$C12=Oper_Int!AE$1,$AB19,0) -> 0 | AF19: =IF(Fertilizer!$C12=Oper_Int!AF$1,$AB19,0) -> 0 | AG19: =IF(Fertilizer!$C12=Oper_Int!AG$1,$AB19,0) -> 0 | AH19: =IF(Fertilizer!$C12=Oper_Int!AH$1,$AB19,0) -> 0 | AI19: =IF(Fertilizer!$C12=Oper_Int!AI$1,$AB19,0) -> 0 | AJ19: =IF(Fertilizer!$C12=Oper_Int!AJ$1,$AB19,0) -> 0 | AK19: =IF(Fertilizer!$C12=Oper_Int!AK$1,$AB19,0) -> 0 | AL19: =IF(Fertilizer!$C12=Oper_Int!AL$1,$AB19,0) -> 0 | AM19: =IF(Fertilizer!$C12=Oper_Int!AM$1,$AB19,0) -> 0 | AN19: =IF(Fertilizer!$C12=Oper_Int!AN$1,$AB19,0) -> 0 | AO19: 0
A20: =IF(Fertilizer!B13="","Fertilizer",Fertilizer!B13) -> Fertilizer | B20: =IF(Fertilizer!D13="","N/A",(Fertilizer!D13*Fertilizer!M13)*Fertilizer!K13) -> N/A | C20: =IF(Fertilizer!$C13=Oper_Int!C$1,$B20,0) -> 0 | D20: =IF(Fertilizer!$C13=Oper_Int!D$1,$B20,0) -> 0 | E20: =IF(Fertilizer!$C13=Oper_Int!E$1,$B20,0) -> 0 | F20: =IF(Fertilizer!$C13=Oper_Int!F$1,$B20,0) -> 0 | G20: =IF(Fertilizer!$C13=Oper_Int!G$1,$B20,0) -> 0 | H20: =IF(Fertilizer!$C13=Oper_Int!H$1,$B20,0) -> 0 | I20: =IF(Fertilizer!$C13=Oper_Int!I$1,$B20,0) -> 0 | J20: =IF(Fertilizer!$C13=Oper_Int!J$1,$B20,0) -> 0 | K20: =IF(Fertilizer!$C13=Oper_Int!K$1,$B20,0) -> 0 | L20: =IF(Fertilizer!$C13=Oper_Int!L$1,$B20,0) -> 0 | M20: =IF(Fertilizer!$C13=Oper_Int!M$1,$B20,0) -> 0 | N20: =IF(Fertilizer!$C13=Oper_Int!N$1,$B20,0) -> 0 | O20: 0 | AA20: Fertilizer | AB20: =IF(Fertilizer!D13="","N/A",Fertilizer!D13*Fertilizer!M13) -> N/A | AC20: =IF(Fertilizer!$C13=Oper_Int!AC$1,$AB20,0) -> 0 | AD20: =IF(Fertilizer!$C13=Oper_Int!AD$1,$AB20,0) -> 0 | AE20: =IF(Fertilizer!$C13=Oper_Int!AE$1,$AB20,0) -> 0 | AF20: =IF(Fertilizer!$C13=Oper_Int!AF$1,$AB20,0) -> 0 | AG20: =IF(Fertilizer!$C13=Oper_Int!AG$1,$AB20,0) -> 0 | AH20: =IF(Fertilizer!$C13=Oper_Int!AH$1,$AB20,0) -> 0 | AI20: =IF(Fertilizer!$C13=Oper_Int!AI$1,$AB20,0) -> 0 | AJ20: =IF(Fertilizer!$C13=Oper_Int!AJ$1,$AB20,0) -> 0 | AK20: =IF(Fertilizer!$C13=Oper_Int!AK$1,$AB20,0) -> 0 | AL20: =IF(Fertilizer!$C13=Oper_Int!AL$1,$AB20,0) -> 0 | AM20: =IF(Fertilizer!$C13=Oper_Int!AM$1,$AB20,0) -> 0 | AN20: =IF(Fertilizer!$C13=Oper_Int!AN$1,$AB20,0) -> 0 | AO20: 0
A21: =IF(Fertilizer!B14="","Fertilizer",Fertilizer!B14) -> Fertilizer | B21: =IF(Fertilizer!D14="","N/A",(Fertilizer!D14*Fertilizer!M14)*Fertilizer!K14) -> N/A | C21: =IF(Fertilizer!$C14=Oper_Int!C$1,$B21,0) -> 0 | D21: =IF(Fertilizer!$C14=Oper_Int!D$1,$B21,0) -> 0 | E21: =IF(Fertilizer!$C14=Oper_Int!E$1,$B21,0) -> 0 | F21: =IF(Fertilizer!$C14=Oper_Int!F$1,$B21,0) -> 0 | G21: =IF(Fertilizer!$C14=Oper_Int!G$1,$B21,0) -> 0 | H21: =IF(Fertilizer!$C14=Oper_Int!H$1,$B21,0) -> 0 | I21: =IF(Fertilizer!$C14=Oper_Int!I$1,$B21,0) -> 0 | J21: =IF(Fertilizer!$C14=Oper_Int!J$1,$B21,0) -> 0 | K21: =IF(Fertilizer!$C14=Oper_Int!K$1,$B21,0) -> 0 | L21: =IF(Fertilizer!$C14=Oper_Int!L$1,$B21,0) -> 0 | M21: =IF(Fertilizer!$C14=Oper_Int!M$1,$B21,0) -> 0 | N21: =IF(Fertilizer!$C14=Oper_Int!N$1,$B21,0) -> 0 | O21: 0 | AA21: Fertilizer | AB21: =IF(Fertilizer!D14="","N/A",Fertilizer!D14*Fertilizer!M14) -> N/A | AC21: =IF(Fertilizer!$C14=Oper_Int!AC$1,$AB21,0) -> 0 | AD21: =IF(Fertilizer!$C14=Oper_Int!AD$1,$AB21,0) -> 0 | AE21: =IF(Fertilizer!$C14=Oper_Int!AE$1,$AB21,0) -> 0 | AF21: =IF(Fertilizer!$C14=Oper_Int!AF$1,$AB21,0) -> 0 | AG21: =IF(Fertilizer!$C14=Oper_Int!AG$1,$AB21,0) -> 0 | AH21: =IF(Fertilizer!$C14=Oper_Int!AH$1,$AB21,0) -> 0 | AI21: =IF(Fertilizer!$C14=Oper_Int!AI$1,$AB21,0) -> 0 | AJ21: =IF(Fertilizer!$C14=Oper_Int!AJ$1,$AB21,0) -> 0 | AK21: =IF(Fertilizer!$C14=Oper_Int!AK$1,$AB21,0) -> 0 | AL21: =IF(Fertilizer!$C14=Oper_Int!AL$1,$AB21,0) -> 0 | AM21: =IF(Fertilizer!$C14=Oper_Int!AM$1,$AB21,0) -> 0 | AN21: =IF(Fertilizer!$C14=Oper_Int!AN$1,$AB21,0) -> 0 | AO21: 0
A22: =IF(Fertilizer!B15="","Fertilizer",Fertilizer!B15) -> Fertilizer | B22: =IF(Fertilizer!D15="","N/A",(Fertilizer!D15*Fertilizer!M15)*Fertilizer!K15) -> N/A | C22: =IF(Fertilizer!$C15=Oper_Int!C$1,$B22,0) -> 0 | D22: =IF(Fertilizer!$C15=Oper_Int!D$1,$B22,0) -> 0 | E22: =IF(Fertilizer!$C15=Oper_Int!E$1,$B22,0) -> 0 | F22: =IF(Fertilizer!$C15=Oper_Int!F$1,$B22,0) -> 0 | G22: =IF(Fertilizer!$C15=Oper_Int!G$1,$B22,0) -> 0 | H22: =IF(Fertilizer!$C15=Oper_Int!H$1,$B22,0) -> 0 | I22: =IF(Fertilizer!$C15=Oper_Int!I$1,$B22,0) -> 0 | J22: =IF(Fertilizer!$C15=Oper_Int!J$1,$B22,0) -> 0 | K22: =IF(Fertilizer!$C15=Oper_Int!K$1,$B22,0) -> 0 | L22: =IF(Fertilizer!$C15=Oper_Int!L$1,$B22,0) -> 0 | M22: =IF(Fertilizer!$C15=Oper_Int!M$1,$B22,0) -> 0 | N22: =IF(Fertilizer!$C15=Oper_Int!N$1,$B22,0) -> 0 | O22: 0 | AA22: Fertilizer | AB22: =IF(Fertilizer!D15="","N/A",Fertilizer!D15*Fertilizer!M15) -> N/A | AC22: =IF(Fertilizer!$C15=Oper_Int!AC$1,$AB22,0) -> 0 | AD22: =IF(Fertilizer!$C15=Oper_Int!AD$1,$AB22,0) -> 0 | AE22: =IF(Fertilizer!$C15=Oper_Int!AE$1,$AB22,0) -> 0 | AF22: =IF(Fertilizer!$C15=Oper_Int!AF$1,$AB22,0) -> 0 | AG22: =IF(Fertilizer!$C15=Oper_Int!AG$1,$AB22,0) -> 0 | AH22: =IF(Fertilizer!$C15=Oper_Int!AH$1,$AB22,0) -> 0 | AI22: =IF(Fertilizer!$C15=Oper_Int!AI$1,$AB22,0) -> 0 | AJ22: =IF(Fertilizer!$C15=Oper_Int!AJ$1,$AB22,0) -> 0 | AK22: =IF(Fertilizer!$C15=Oper_Int!AK$1,$AB22,0) -> 0 | AL22: =IF(Fertilizer!$C15=Oper_Int!AL$1,$AB22,0) -> 0 | AM22: =IF(Fertilizer!$C15=Oper_Int!AM$1,$AB22,0) -> 0 | AN22: =IF(Fertilizer!$C15=Oper_Int!AN$1,$AB22,0) -> 0 | AO22: 0
A23: =IF(Fertilizer!B16="","Fertilizer",Fertilizer!B16) -> Fertilizer | B23: =IF(Fertilizer!D16="","N/A",(Fertilizer!D16*Fertilizer!M16)*Fertilizer!K16) -> N/A | C23: =IF(Fertilizer!$C16=Oper_Int!C$1,$B23,0) -> 0 | D23: =IF(Fertilizer!$C16=Oper_Int!D$1,$B23,0) -> 0 | E23: =IF(Fertilizer!$C16=Oper_Int!E$1,$B23,0) -> 0 | F23: =IF(Fertilizer!$C16=Oper_Int!F$1,$B23,0) -> 0 | G23: =IF(Fertilizer!$C16=Oper_Int!G$1,$B23,0) -> 0 | H23: =IF(Fertilizer!$C16=Oper_Int!H$1,$B23,0) -> 0 | I23: =IF(Fertilizer!$C16=Oper_Int!I$1,$B23,0) -> 0 | J23: =IF(Fertilizer!$C16=Oper_Int!J$1,$B23,0) -> 0 | K23: =IF(Fertilizer!$C16=Oper_Int!K$1,$B23,0) -> 0 | L23: =IF(Fertilizer!$C16=Oper_Int!L$1,$B23,0) -> 0 | M23: =IF(Fertilizer!$C16=Oper_Int!M$1,$B23,0) -> 0 | N23: =IF(Fertilizer!$C16=Oper_Int!N$1,$B23,0) -> 0 | O23: 0 | AA23: Fertilizer | AB23: =IF(Fertilizer!D16="","N/A",Fertilizer!D16*Fertilizer!M16) -> N/A | AC23: =IF(Fertilizer!$C16=Oper_Int!AC$1,$AB23,0) -> 0 | AD23: =IF(Fertilizer!$C16=Oper_Int!AD$1,$AB23,0) -> 0 | AE23: =IF(Fertilizer!$C16=Oper_Int!AE$1,$AB23,0) -> 0 | AF23: =IF(Fertilizer!$C16=Oper_Int!AF$1,$AB23,0) -> 0 | AG23: =IF(Fertilizer!$C16=Oper_Int!AG$1,$AB23,0) -> 0 | AH23: =IF(Fertilizer!$C16=Oper_Int!AH$1,$AB23,0) -> 0 | AI23: =IF(Fertilizer!$C16=Oper_Int!AI$1,$AB23,0) -> 0 | AJ23: =IF(Fertilizer!$C16=Oper_Int!AJ$1,$AB23,0) -> 0 | AK23: =IF(Fertilizer!$C16=Oper_Int!AK$1,$AB23,0) -> 0 | AL23: =IF(Fertilizer!$C16=Oper_Int!AL$1,$AB23,0) -> 0 | AM23: =IF(Fertilizer!$C16=Oper_Int!AM$1,$AB23,0) -> 0 | AN23: =IF(Fertilizer!$C16=Oper_Int!AN$1,$AB23,0) -> 0 | AO23: 0
A24: Lime Application | B24: =IF(Fertilizer!AW10=0,0,Fertilizer!AW10*Fertilizer!BA8)*IF(Budget!BB29,1,0) -> 0 | C24: =IF(Fertilizer!$AT$8=Oper_Int!C$1,$B$24,0) -> 0 | D24: =IF(Fertilizer!$AT$8=Oper_Int!D$1,$B$24,0) -> 0 | E24: =IF(Fertilizer!$AT$8=Oper_Int!E$1,$B$24,0) -> 0 | F24: =IF(Fertilizer!$AT$8=Oper_Int!F$1,$B$24,0) -> 0 | G24: =IF(Fertilizer!$AT$8=Oper_Int!G$1,$B$24,0) -> 0 | H24: =IF(Fertilizer!$AT$8=Oper_Int!H$1,$B$24,0) -> 0 | I24: =IF(Fertilizer!$AT$8=Oper_Int!I$1,$B$24,0) -> 0 | J24: =IF(Fertilizer!$AT$8=Oper_Int!J$1,$B$24,0) -> 0 | K24: =IF(Fertilizer!$AT$8=Oper_Int!K$1,$B$24,0) -> 0 | L24: =IF(Fertilizer!$AT$8=Oper_Int!L$1,$B$24,0) -> 0 | M24: =IF(Fertilizer!$AT$8=Oper_Int!M$1,$B$24,0) -> 0 | N24: =IF(Fertilizer!$AT$8=Oper_Int!N$1,$B$24,0) -> 0 | O24: 0 | AA24: Lime Application | AB24: =IF(Fertilizer!AW10=0,0,Fertilizer!AW10)*IF(Budget!BB29,1,0) -> 0 | AC24: =IF(Fertilizer!$AT$8=Oper_Int!AC$1,$AB$24,0) -> 0 | AD24: =IF(Fertilizer!$AT$8=Oper_Int!AD$1,$AB$24,0) -> 0 | AE24: =IF(Fertilizer!$AT$8=Oper_Int!AE$1,$AB$24,0) -> 0 | AF24: =IF(Fertilizer!$AT$8=Oper_Int!AF$1,$AB$24,0) -> 0 | AG24: =IF(Fertilizer!$AT$8=Oper_Int!AG$1,$AB$24,0) -> 0 | AH24: =IF(Fertilizer!$AT$8=Oper_Int!AH$1,$AB$24,0) -> 0 | AI24: =IF(Fertilizer!$AT$8=Oper_Int!AI$1,$AB$24,0) -> 0 | AJ24: =IF(Fertilizer!$AT$8=Oper_Int!AJ$1,$AB$24,0) -> 0 | AK24: =IF(Fertilizer!$AT$8=Oper_Int!AK$1,$AB$24,0) -> 0 | AL24: =IF(Fertilizer!$AT$8=Oper_Int!AL$1,$AB$24,0) -> 0 | AM24: =IF(Fertilizer!$AT$8=Oper_Int!AM$1,$AB$24,0) -> 0 | AN24: =IF(Fertilizer!$AT$8=Oper_Int!AN$1,$AB$24,0) -> 0 | AO24: 0
A25: Custom Harvest | B25: =IF(Budget!BB$5="share",Budget!H17,Budget!G17) -> 80.26 | C25: =IF(Yield!$P$10=Oper_Int!C$1,$B$25,0) -> 0 | D25: =IF(Yield!$P$10=Oper_Int!D$1,$B$25,0) -> 0 | E25: =IF(Yield!$P$10=Oper_Int!E$1,$B$25,0) -> 0 | F25: =IF(Yield!$P$10=Oper_Int!F$1,$B$25,0) -> 0 | G25: =IF(Yield!$P$10=Oper_Int!G$1,$B$25,0) -> 0 | H25: =IF(Yield!$P$10=Oper_Int!H$1,$B$25,0) -> 0 | I25: =IF(Yield!$P$10=Oper_Int!I$1,$B$25,0) -> 0 | J25: =IF(Yield!$P$10=Oper_Int!J$1,$B$25,0) -> 0 | K25: =IF(Yield!$P$10=Oper_Int!K$1,$B$25,0) -> 0 | L25: =IF(Yield!$P$10=Oper_Int!L$1,$B$25,0) -> 80.26 | M25: =IF(Yield!$P$10=Oper_Int!M$1,$B$25,0) -> 0 | N25: =IF(Yield!$P$10=Oper_Int!N$1,$B$25,0) -> 0 | O25: 80.26 | AA25: Custom Harvest | AB25: =Budget!G17 -> 80.26 | AC25: =IF(Yield!$P$10=Oper_Int!AC$1,$AB$25,0) -> 0 | AD25: =IF(Yield!$P$10=Oper_Int!AD$1,$AB$25,0) -> 0 | AE25: =IF(Yield!$P$10=Oper_Int!AE$1,$AB$25,0) -> 0 | AF25: =IF(Yield!$P$10=Oper_Int!AF$1,$AB$25,0) -> 0 | AG25: =IF(Yield!$P$10=Oper_Int!AG$1,$AB$25,0) -> 0 | AH25: =IF(Yield!$P$10=Oper_Int!AH$1,$AB$25,0) -> 0 | AI25: =IF(Yield!$P$10=Oper_Int!AI$1,$AB$25,0) -> 0 | AJ25: =IF(Yield!$P$10=Oper_Int!AJ$1,$AB$25,0) -> 0 | AK25: =IF(Yield!$P$10=Oper_Int!AK$1,$AB$25,0) -> 0 | AL25: =IF(Yield!$P$10=Oper_Int!AL$1,$AB$25,0) -> 80.26 | AM25: =IF(Yield!$P$10=Oper_Int!AM$1,$AB$25,0) -> 0 | AN25: =IF(Yield!$P$10=Oper_Int!AN$1,$AB$25,0) -> 0 | AO25: 80.26
A26: Custom Hire | B26: =IF(Budget!BB$5="share",Budget!BC23,Budget!BB23)-Fertilizer!BH16+IF(Budget!BB29,Fertilizer!BH15,0) -> 55.59 | C26: =(IF(Budget!$BB5="share",((Fertilizer!BK18+Pesticide!AN18)+IF(Machinery!$V$32,Machinery!D65,0)+IF(Machinery!$V$33,Machinery!D66,0))*Machinery!$J$13+IF(Budget!$BB29,Fertilizer!BK24*Machinery!$J$13,0),AC26)) -> 0 | D26: =(IF(Budget!$BB5="share",((Fertilizer!BL18+Pesticide!AO18)+IF(Machinery!$V$32,Machinery!E65,0)+IF(Machinery!$V$33,Machinery!E66,0))*Machinery!$J$13+IF(Budget!$BB29,Fertilizer!BL24*Machinery!$J$13,0),AD26)) -> 0 | E26: =(IF(Budget!$BB5="share",((Fertilizer!BM18+Pesticide!AP18)+IF(Machinery!$V$32,Machinery!F65,0)+IF(Machinery!$V$33,Machinery!F66,0))*Machinery!$J$13+IF(Budget!$BB29,Fertilizer!BM24*Machinery!$J$13,0),AE26)) -> 17.72 | F26: =(IF(Budget!$BB5="share",((Fertilizer!BN18+Pesticide!AQ18)+IF(Machinery!$V$32,Machinery!G65,0)+IF(Machinery!$V$33,Machinery!G66,0))*Machinery!$J$13+IF(Budget!$BB29,Fertilizer!BN24*Machinery!$J$13,0),AF26)) -> 26.23 | G26: =(IF(Budget!$BB5="share",((Fertilizer!BO18+Pesticide!AR18)+IF(Machinery!$V$32,Machinery!H65,0)+IF(Machinery!$V$33,Machinery!H66,0))*Machinery!$J$13+IF(Budget!$BB29,Fertilizer!BO24*Machinery!$J$13,0),AG26)) -> 5.82 | H26: =(IF(Budget!$BB5="share",((Fertilizer!BP18+Pesticide!AS18)+IF(Machinery!$V$32,Machinery!I65,0)+IF(Machinery!$V$33,Machinery!I66,0))*Machinery!$J$13+IF(Budget!$BB29,Fertilizer!BP24*Machinery!$J$13,0),AH26)) -> 5.82 | I26: =(IF(Budget!$BB5="share",((Fertilizer!BQ18+Pesticide!AT18)+IF(Machinery!$V$32,Machinery!J65,0)+IF(Machinery!$V$33,Machinery!J66,0))*Machinery!$J$13+IF(Budget!$BB29,Fertilizer!BQ24*Machinery!$J$13,0),AI26)) -> 0 | J26: =(IF(Budget!$BB5="share",((Fertilizer!BR18+Pesticide!AU18)+IF(Machinery!$V$32,Machinery!K65,0)+IF(Machinery!$V$33,Machinery!K66,0))*Machinery!$J$13+IF(Budget!$BB29,Fertilizer!BR24*Machinery!$J$13,0),AJ26)) -> 0 | K26: =(IF(Budget!$BB5="share",((Fertilizer!BS18+Pesticide!AV18)+IF(Machinery!$V$32,Machinery!L65,0)+IF(Machinery!$V$33,Machinery!L66,0))*Machinery!$J$13+IF(Budget!$BB29,Fertilizer!BS24*Machinery!$J$13,0),AK26)) -> 0 | L26: =(IF(Budget!$BB5="share",((Fertilizer!BT18+Pesticide!AW18)+IF(Machinery!$V$32,Machinery!M65,0)+IF(Machinery!$V$33,Machinery!M66,0))*Machinery!$J$13+IF(Budget!$BB29,Fertilizer!BT24*Machinery!$J$13,0),AL26)) -> 0 | M26: =(IF(Budget!$BB5="share",((Fertilizer!BU18+Pesticide!AX18)+IF(Machinery!$V$32,Machinery!N65,0)+IF(Machinery!$V$33,Machinery!N66,0))*Machinery!$J$13+IF(Budget!$BB29,Fertilizer!BU24*Machinery!$J$13,0),AM26)) -> 0 | N26: =(IF(Budget!$BB5="share",((Fertilizer!BV18+Pesticide!AY18)+IF(Machinery!$V$32,Machinery!O65,0)+IF(Machinery!$V$33,Machinery!O66,0))*Machinery!$J$13+IF(Budget!$BB29,Fertilizer!BV24*Machinery!$J$13,0),AN26)) -> 0 | O26: 55.59 | P26: 2021 edits | AA26: Custom Hire | AB26: =Budget!BB23-Fertilizer!BH13+Fertilizer!BH14-IF(Budget!BB29,0,Fertilizer!BW24) -> 55.59 | AC26: =IF(Machinery!$V$32,Machinery!D65,0)+IF(Machinery!$V$33,Machinery!D66,0)+Fertilizer!BK18+IF(Budget!$BB29,Fertilizer!BK24,0)+Pesticide!AN18 -> 0 | AD26: =IF(Machinery!$V$32,Machinery!E65,0)+IF(Machinery!$V$33,Machinery!E66,0)+Fertilizer!BL18+IF(Budget!$BB29,Fertilizer!BL24,0)+Pesticide!AO18 -> 0 | AE26: =IF(Machinery!$V$32,Machinery!F65,0)+IF(Machinery!$V$33,Machinery!F66,0)+Fertilizer!BM18+IF(Budget!$BB29,Fertilizer!BM24,0)+Pesticide!AP18 -> 17.72 | AF26: =IF(Machinery!$V$32,Machinery!G65,0)+IF(Machinery!$V$33,Machinery!G66,0)+Fertilizer!BN18+IF(Budget!$BB29,Fertilizer!BN24,0)+Pesticide!AQ18 -> 26.23 | AG26: =IF(Machinery!$V$32,Machinery!H65,0)+IF(Machinery!$V$33,Machinery!H66,0)+Fertilizer!BO18+IF(Budget!$BB29,Fertilizer!BO24,0)+Pesticide!AR18 -> 5.82 | AH26: =IF(Machinery!$V$32,Machinery!I65,0)+IF(Machinery!$V$33,Machinery!I66,0)+Fertilizer!BP18+IF(Budget!$BB29,Fertilizer!BP24,0)+Pesticide!AS18 -> 5.82 | AI26: =IF(Machinery!$V$32,Machinery!J65,0)+IF(Machinery!$V$33,Machinery!J66,0)+Fertilizer!BQ18+IF(Budget!$BB29,Fertilizer!BQ24,0)+Pesticide!AT18 -> 0 | AJ26: =IF(Machinery!$V$32,Machinery!K65,0)+IF(Machinery!$V$33,Machinery!K66,0)+Fertilizer!BR18+IF(Budget!$BB29,Fertilizer!BR24,0)+Pesticide!AU18 -> 0 | AK26: =IF(Machinery!$V$32,Machinery!L65,0)+IF(Machinery!$V$33,Machinery!L66,0)+Fertilizer!BS18+IF(Budget!$BB29,Fertilizer!BS24,0)+Pesticide!AV18 -> 0 | AL26: =IF(Machinery!$V$32,Machinery!M65,0)+IF(Machinery!$V$33,Machinery!M66,0)+Fertilizer!BT18+IF(Budget!$BB29,Fertilizer!BT24,0)+Pesticide!AW18 -> 0 | AM26: =IF(Machinery!$V$32,Machinery!N65,0)+IF(Machinery!$V$33,Machinery!N66,0)+Fertilizer!BU18+IF(Budget!$BB29,Fertilizer!BU24,0)+Pesticide!AX18 -> 0 | AN26: =IF(Machinery!$V$32,Machinery!O65,0)+IF(Machinery!$V$33,Machinery!O66,0)+Fertilizer!BV18+IF(Budget!$BB29,Fertilizer!BV24,0)+Pesticide!AY18 -> 0 | AO26: 55.59 | AP26: 2021 edits
A27: =IF(Pesticide!B9="","Pest-N/A",Pesticide!B9) -> Clarity | B27: =IF(Pesticide!K9=0,"N/A",Pesticide!I9*Pesticide!J9) -> 12.48 | C27: =IF(Pesticide!$C$9=Oper_Int!C$1,$B27,0) -> 0 | D27: =IF(Pesticide!$C9=Oper_Int!D$1,$B27,0) -> 0 | E27: =IF(Pesticide!$C9=Oper_Int!E$1,$B27,0) -> 0 | F27: =IF(Pesticide!$C9=Oper_Int!F$1,$B27,0) -> 12.48 | G27: =IF(Pesticide!$C9=Oper_Int!G$1,$B27,0) -> 0 | H27: =IF(Pesticide!$C9=Oper_Int!H$1,$B27,0) -> 0 | I27: =IF(Pesticide!$C9=Oper_Int!I$1,$B27,0) -> 0 | J27: =IF(Pesticide!$C9=Oper_Int!J$1,$B27,0) -> 0 | K27: =IF(Pesticide!$C9=Oper_Int!K$1,$B27,0) -> 0 | L27: =IF(Pesticide!$C9=Oper_Int!L$1,$B27,0) -> 0 | M27: =IF(Pesticide!$C9=Oper_Int!M$1,$B27,0) -> 0 | N27: =IF(Pesticide!$C9=Oper_Int!N$1,$B27,0) -> 0 | O27: 12.48 | AA27: Clarity | AB27: =IF(Pesticide!K9=0,"N/A",Pesticide!J9) -> 12.48 | AC27: =IF(Pesticide!$C$9=Oper_Int!AC$1,$AB27,0) -> 0 | AD27: =IF(Pesticide!$C9=Oper_Int!AD$1,$AB27,0) -> 0 | AE27: =IF(Pesticide!$C9=Oper_Int!AE$1,$AB27,0) -> 0 | AF27: =IF(Pesticide!$C9=Oper_Int!AF$1,$AB27,0) -> 12.48 | AG27: =IF(Pesticide!$C9=Oper_Int!AG$1,$AB27,0) -> 0 | AH27: =IF(Pesticide!$C9=Oper_Int!AH$1,$AB27,0) -> 0 | AI27: =IF(Pesticide!$C9=Oper_Int!AI$1,$AB27,0) -> 0 | AJ27: =IF(Pesticide!$C9=Oper_Int!AJ$1,$AB27,0) -> 0 | AK27: =IF(Pesticide!$C9=Oper_Int!AK$1,$AB27,0) -> 0 | AL27: =IF(Pesticide!$C9=Oper_Int!AL$1,$AB27,0) -> 0 | AM27: =IF(Pesticide!$C9=Oper_Int!AM$1,$AB27,0) -> 0 | AN27: =IF(Pesticide!$C9=Oper_Int!AN$1,$AB27,0) -> 0 | AO27: 12.48
A28: =IF(Pesticide!B10="","Pest-N/A",Pesticide!B10) -> Glyphosate (generic 4# ai/gal) | B28: =IF(Pesticide!K10=0,"N/A",Pesticide!I10*Pesticide!J10) -> 8 | C28: =IF(Pesticide!$C10=Oper_Int!C$1,$B28,0) -> 0 | D28: =IF(Pesticide!$C10=Oper_Int!D$1,$B28,0) -> 0 | E28: =IF(Pesticide!$C10=Oper_Int!E$1,$B28,0) -> 0 | F28: =IF(Pesticide!$C10=Oper_Int!F$1,$B28,0) -> 8 | G28: =IF(Pesticide!$C10=Oper_Int!G$1,$B28,0) -> 0 | H28: =IF(Pesticide!$C10=Oper_Int!H$1,$B28,0) -> 0 | I28: =IF(Pesticide!$C10=Oper_Int!I$1,$B28,0) -> 0 | J28: =IF(Pesticide!$C10=Oper_Int!J$1,$B28,0) -> 0 | K28: =IF(Pesticide!$C10=Oper_Int!K$1,$B28,0) -> 0 | L28: =IF(Pesticide!$C10=Oper_Int!L$1,$B28,0) -> 0 | M28: =IF(Pesticide!$C10=Oper_Int!M$1,$B28,0) -> 0 | N28: =IF(Pesticide!$C10=Oper_Int!N$1,$B28,0) -> 0 | O28: 8 | AA28: Glyphosate (generic 4# ai/gal) | AB28: =IF(Pesticide!K10=0,"N/A",Pesticide!J10) -> 8 | AC28: =IF(Pesticide!$C10=Oper_Int!AC$1,$AB28,0) -> 0 | AD28: =IF(Pesticide!$C10=Oper_Int!AD$1,$AB28,0) -> 0 | AE28: =IF(Pesticide!$C10=Oper_Int!AE$1,$AB28,0) -> 0 | AF28: =IF(Pesticide!$C10=Oper_Int!AF$1,$AB28,0) -> 8 | AG28: =IF(Pesticide!$C10=Oper_Int!AG$1,$AB28,0) -> 0 | AH28: =IF(Pesticide!$C10=Oper_Int!AH$1,$AB28,0) -> 0 | AI28: =IF(Pesticide!$C10=Oper_Int!AI$1,$AB28,0) -> 0 | AJ28: =IF(Pesticide!$C10=Oper_Int!AJ$1,$AB28,0) -> 0 | AK28: =IF(Pesticide!$C10=Oper_Int!AK$1,$AB28,0) -> 0 | AL28: =IF(Pesticide!$C10=Oper_Int!AL$1,$AB28,0) -> 0 | AM28: =IF(Pesticide!$C10=Oper_Int!AM$1,$AB28,0) -> 0 | AN28: =IF(Pesticide!$C10=Oper_Int!AN$1,$AB28,0) -> 0 | AO28: 8
A29: =IF(Pesticide!B11="","Pest-N/A",Pesticide!B11) -> Bicep II Magnum | B29: =IF(Pesticide!K11=0,"N/A",Pesticide!I11*Pesticide!J11) -> 15.2 | C29: =IF(Pesticide!$C11=Oper_Int!C$1,$B29,0) -> 0 | D29: =IF(Pesticide!$C11=Oper_Int!D$1,$B29,0) -> 0 | E29: =IF(Pesticide!$C11=Oper_Int!E$1,$B29,0) -> 0 | F29: =IF(Pesticide!$C11=Oper_Int!F$1,$B29,0) -> 0 | G29: =IF(Pesticide!$C11=Oper_Int!G$1,$B29,0) -> 15.2 | H29: =IF(Pesticide!$C11=Oper_Int!H$1,$B29,0) -> 0 | I29: =IF(Pesticide!$C11=Oper_Int!I$1,$B29,0) -> 0 | J29: =IF(Pesticide!$C11=Oper_Int!J$1,$B29,0) -> 0 | K29: =IF(Pesticide!$C11=Oper_Int!K$1,$B29,0) -> 0 | L29: =IF(Pesticide!$C11=Oper_Int!L$1,$B29,0) -> 0 | M29: =IF(Pesticide!$C11=Oper_Int!M$1,$B29,0) -> 0 | N29: =IF(Pesticide!$C11=Oper_Int!N$1,$B29,0) -> 0 | O29: 15.2 | AA29: Bicep II Magnum | AB29: =IF(Pesticide!K11=0,"N/A",Pesticide!J11) -> 15.2 | AC29: =IF(Pesticide!$C11=Oper_Int!AC$1,$AB29,0) -> 0 | AD29: =IF(Pesticide!$C11=Oper_Int!AD$1,$AB29,0) -> 0 | AE29: =IF(Pesticide!$C11=Oper_Int!AE$1,$AB29,0) -> 0 | AF29: =IF(Pesticide!$C11=Oper_Int!AF$1,$AB29,0) -> 0 | AG29: =IF(Pesticide!$C11=Oper_Int!AG$1,$AB29,0) -> 15.2 | AH29: =IF(Pesticide!$C11=Oper_Int!AH$1,$AB29,0) -> 0 | AI29: =IF(Pesticide!$C11=Oper_Int!AI$1,$AB29,0) -> 0 | AJ29: =IF(Pesticide!$C11=Oper_Int!AJ$1,$AB29,0) -> 0 | AK29: =IF(Pesticide!$C11=Oper_Int!AK$1,$AB29,0) -> 0 | AL29: =IF(Pesticide!$C11=Oper_Int!AL$1,$AB29,0) -> 0 | AM29: =IF(Pesticide!$C11=Oper_Int!AM$1,$AB29,0) -> 0 | AN29: =IF(Pesticide!$C11=Oper_Int!AN$1,$AB29,0) -> 0 | AO29: 15.2
A30: =IF(Pesticide!B12="","Pest-N/A",Pesticide!B12) -> Fierce | B30: =IF(Pesticide!K12=0,"N/A",Pesticide!I12*Pesticide!J12) -> 24 | C30: =IF(Pesticide!$C12=Oper_Int!C$1,$B30,0) -> 0 | D30: =IF(Pesticide!$C12=Oper_Int!D$1,$B30,0) -> 0 | E30: =IF(Pesticide!$C12=Oper_Int!E$1,$B30,0) -> 0 | F30: =IF(Pesticide!$C12=Oper_Int!F$1,$B30,0) -> 0 | G30: =IF(Pesticide!$C12=Oper_Int!G$1,$B30,0) -> 24 | H30: =IF(Pesticide!$C12=Oper_Int!H$1,$B30,0) -> 0 | I30: =IF(Pesticide!$C12=Oper_Int!I$1,$B30,0) -> 0 | J30: =IF(Pesticide!$C12=Oper_Int!J$1,$B30,0) -> 0 | K30: =IF(Pesticide!$C12=Oper_Int!K$1,$B30,0) -> 0 | L30: =IF(Pesticide!$C12=Oper_Int!L$1,$B30,0) -> 0 | M30: =IF(Pesticide!$C12=Oper_Int!M$1,$B30,0) -> 0 | N30: =IF(Pesticide!$C12=Oper_Int!N$1,$B30,0) -> 0 | O30: 24 | AA30: Fierce | AB30: =IF(Pesticide!K12=0,"N/A",Pesticide!J12) -> 24 | AC30: =IF(Pesticide!$C12=Oper_Int!AC$1,$AB30,0) -> 0 | AD30: =IF(Pesticide!$C12=Oper_Int!AD$1,$AB30,0) -> 0 | AE30: =IF(Pesticide!$C12=Oper_Int!AE$1,$AB30,0) -> 0 | AF30: =IF(Pesticide!$C12=Oper_Int!AF$1,$AB30,0) -> 0 | AG30: =IF(Pesticide!$C12=Oper_Int!AG$1,$AB30,0) -> 24 | AH30: =IF(Pesticide!$C12=Oper_Int!AH$1,$AB30,0) -> 0 | AI30: =IF(Pesticide!$C12=Oper_Int!AI$1,$AB30,0) -> 0 | AJ30: =IF(Pesticide!$C12=Oper_Int!AJ$1,$AB30,0) -> 0 | AK30: =IF(Pesticide!$C12=Oper_Int!AK$1,$AB30,0) -> 0 | AL30: =IF(Pesticide!$C12=Oper_Int!AL$1,$AB30,0) -> 0 | AM30: =IF(Pesticide!$C12=Oper_Int!AM$1,$AB30,0) -> 0 | AN30: =IF(Pesticide!$C12=Oper_Int!AN$1,$AB30,0) -> 0 | AO30: 24
A31: =IF(Pesticide!B13="","Pest-N/A",Pesticide!B13) -> Glyphosate (generic 4# ai/gal) | B31: =IF(Pesticide!K13=0,"N/A",Pesticide!I13*Pesticide!J13) -> 5.5 | C31: =IF(Pesticide!$C13=Oper_Int!C$1,$B31,0) -> 0 | D31: =IF(Pesticide!$C13=Oper_Int!D$1,$B31,0) -> 0 | E31: =IF(Pesticide!$C13=Oper_Int!E$1,$B31,0) -> 0 | F31: =IF(Pesticide!$C13=Oper_Int!F$1,$B31,0) -> 0 | G31: =IF(Pesticide!$C13=Oper_Int!G$1,$B31,0) -> 0 | H31: =IF(Pesticide!$C13=Oper_Int!H$1,$B31,0) -> 5.5 | I31: =IF(Pesticide!$C13=Oper_Int!I$1,$B31,0) -> 0 | J31: =IF(Pesticide!$C13=Oper_Int!J$1,$B31,0) -> 0 | K31: =IF(Pesticide!$C13=Oper_Int!K$1,$B31,0) -> 0 | L31: =IF(Pesticide!$C13=Oper_Int!L$1,$B31,0) -> 0 | M31: =IF(Pesticide!$C13=Oper_Int!M$1,$B31,0) -> 0 | N31: =IF(Pesticide!$C13=Oper_Int!N$1,$B31,0) -> 0 | O31: 5.5 | AA31: Glyphosate (generic 4# ai/gal) | AB31: =IF(Pesticide!K13=0,"N/A",Pesticide!J13) -> 5.5 | AC31: =IF(Pesticide!$C13=Oper_Int!AC$1,$AB31,0) -> 0 | AD31: =IF(Pesticide!$C13=Oper_Int!AD$1,$AB31,0) -> 0 | AE31: =IF(Pesticide!$C13=Oper_Int!AE$1,$AB31,0) -> 0 | AF31: =IF(Pesticide!$C13=Oper_Int!AF$1,$AB31,0) -> 0 | AG31: =IF(Pesticide!$C13=Oper_Int!AG$1,$AB31,0) -> 0 | AH31: =IF(Pesticide!$C13=Oper_Int!AH$1,$AB31,0) -> 5.5 | AI31: =IF(Pesticide!$C13=Oper_Int!AI$1,$AB31,0) -> 0 | AJ31: =IF(Pesticide!$C13=Oper_Int!AJ$1,$AB31,0) -> 0 | AK31: =IF(Pesticide!$C13=Oper_Int!AK$1,$AB31,0) -> 0 | AL31: =IF(Pesticide!$C13=Oper_Int!AL$1,$AB31,0) -> 0 | AM31: =IF(Pesticide!$C13=Oper_Int!AM$1,$AB31,0) -> 0 | AN31: =IF(Pesticide!$C13=Oper_Int!AN$1,$AB31,0) -> 0 | AO31: 5.5
A32: =IF(Pesticide!B14="","Pest-N/A",Pesticide!B14) -> Status | B32: =IF(Pesticide!K14=0,"N/A",Pesticide!I14*Pesticide!J14) -> 23.25 | C32: =IF(Pesticide!$C14=Oper_Int!C$1,$B32,0) -> 0 | D32: =IF(Pesticide!$C14=Oper_Int!D$1,$B32,0) -> 0 | E32: =IF(Pesticide!$C14=Oper_Int!E$1,$B32,0) -> 0 | F32: =IF(Pesticide!$C14=Oper_Int!F$1,$B32,0) -> 0 | G32: =IF(Pesticide!$C14=Oper_Int!G$1,$B32,0) -> 0 | H32: =IF(Pesticide!$C14=Oper_Int!H$1,$B32,0) -> 23.25 | I32: =IF(Pesticide!$C14=Oper_Int!I$1,$B32,0) -> 0 | J32: =IF(Pesticide!$C14=Oper_Int!J$1,$B32,0) -> 0 | K32: =IF(Pesticide!$C14=Oper_Int!K$1,$B32,0) -> 0 | L32: =IF(Pesticide!$C14=Oper_Int!L$1,$B32,0) -> 0 | M32: =IF(Pesticide!$C14=Oper_Int!M$1,$B32,0) -> 0 | N32: =IF(Pesticide!$C14=Oper_Int!N$1,$B32,0) -> 0 | O32: 23.25 | AA32: Status | AB32: =IF(Pesticide!K14=0,"N/A",Pesticide!J14) -> 23.25 | AC32: =IF(Pesticide!$C14=Oper_Int!AC$1,$AB32,0) -> 0 | AD32: =IF(Pesticide!$C14=Oper_Int!AD$1,$AB32,0) -> 0 | AE32: =IF(Pesticide!$C14=Oper_Int!AE$1,$AB32,0) -> 0 | AF32: =IF(Pesticide!$C14=Oper_Int!AF$1,$AB32,0) -> 0 | AG32: =IF(Pesticide!$C14=Oper_Int!AG$1,$AB32,0) -> 0 | AH32: =IF(Pesticide!$C14=Oper_Int!AH$1,$AB32,0) -> 23.25 | AI32: =IF(Pesticide!$C14=Oper_Int!AI$1,$AB32,0) -> 0 | AJ32: =IF(Pesticide!$C14=Oper_Int!AJ$1,$AB32,0) -> 0 | AK32: =IF(Pesticide!$C14=Oper_Int!AK$1,$AB32,0) -> 0 | AL32: =IF(Pesticide!$C14=Oper_Int!AL$1,$AB32,0) -> 0 | AM32: =IF(Pesticide!$C14=Oper_Int!AM$1,$AB32,0) -> 0 | AN32: =IF(Pesticide!$C14=Oper_Int!AN$1,$AB32,0) -> 0 | AO32: 23.25
A33: =IF(Pesticide!B15="","Pest-N/A",Pesticide!B15) -> Pest-N/A | B33: =IF(Pesticide!K15=0,"N/A",Pesticide!I15*Pesticide!J15) -> N/A | C33: =IF(Pesticide!$C15=Oper_Int!C$1,$B33,0) -> 0 | D33: =IF(Pesticide!$C15=Oper_Int!D$1,$B33,0) -> 0 | E33: =IF(Pesticide!$C15=Oper_Int!E$1,$B33,0) -> 0 | F33: =IF(Pesticide!$C15=Oper_Int!F$1,$B33,0) -> 0 | G33: =IF(Pesticide!$C15=Oper_Int!G$1,$B33,0) -> 0 | H33: =IF(Pesticide!$C15=Oper_Int!H$1,$B33,0) -> 0 | I33: =IF(Pesticide!$C15=Oper_Int!I$1,$B33,0) -> 0 | J33: =IF(Pesticide!$C15=Oper_Int!J$1,$B33,0) -> 0 | K33: =IF(Pesticide!$C15=Oper_Int!K$1,$B33,0) -> 0 | L33: =IF(Pesticide!$C15=Oper_Int!L$1,$B33,0) -> 0 | M33: =IF(Pesticide!$C15=Oper_Int!M$1,$B33,0) -> 0 | N33: =IF(Pesticide!$C15=Oper_Int!N$1,$B33,0) -> 0 | O33: 0 | AA33: Pest-N/A | AB33: =IF(Pesticide!K15=0,"N/A",Pesticide!J15) -> N/A | AC33: =IF(Pesticide!$C15=Oper_Int!AC$1,$AB33,0) -> 0 | AD33: =IF(Pesticide!$C15=Oper_Int!AD$1,$AB33,0) -> 0 | AE33: =IF(Pesticide!$C15=Oper_Int!AE$1,$AB33,0) -> 0 | AF33: =IF(Pesticide!$C15=Oper_Int!AF$1,$AB33,0) -> 0 | AG33: =IF(Pesticide!$C15=Oper_Int!AG$1,$AB33,0) -> 0 | AH33: =IF(Pesticide!$C15=Oper_Int!AH$1,$AB33,0) -> 0 | AI33: =IF(Pesticide!$C15=Oper_Int!AI$1,$AB33,0) -> 0 | AJ33: =IF(Pesticide!$C15=Oper_Int!AJ$1,$AB33,0) -> 0 | AK33: =IF(Pesticide!$C15=Oper_Int!AK$1,$AB33,0) -> 0 | AL33: =IF(Pesticide!$C15=Oper_Int!AL$1,$AB33,0) -> 0 | AM33: =IF(Pesticide!$C15=Oper_Int!AM$1,$AB33,0) -> 0 | AN33: =IF(Pesticide!$C15=Oper_Int!AN$1,$AB33,0) -> 0 | AO33: 0
A34: =IF(Pesticide!B16="","Pest-N/A",Pesticide!B16) -> Pest-N/A | B34: =IF(Pesticide!K16=0,"N/A",Pesticide!I16*Pesticide!J16) -> N/A | C34: =IF(Pesticide!$C16=Oper_Int!C$1,$B34,0) -> 0 | D34: =IF(Pesticide!$C16=Oper_Int!D$1,$B34,0) -> 0 | E34: =IF(Pesticide!$C16=Oper_Int!E$1,$B34,0) -> 0 | F34: =IF(Pesticide!$C16=Oper_Int!F$1,$B34,0) -> 0 | G34: =IF(Pesticide!$C16=Oper_Int!G$1,$B34,0) -> 0 | H34: =IF(Pesticide!$C16=Oper_Int!H$1,$B34,0) -> 0 | I34: =IF(Pesticide!$C16=Oper_Int!I$1,$B34,0) -> 0 | J34: =IF(Pesticide!$C16=Oper_Int!J$1,$B34,0) -> 0 | K34: =IF(Pesticide!$C16=Oper_Int!K$1,$B34,0) -> 0 | L34: =IF(Pesticide!$C16=Oper_Int!L$1,$B34,0) -> 0 | M34: =IF(Pesticide!$C16=Oper_Int!M$1,$B34,0) -> 0 | N34: =IF(Pesticide!$C16=Oper_Int!N$1,$B34,0) -> 0 | O34: 0 | AA34: Pest-N/A | AB34: =IF(Pesticide!K16=0,"N/A",Pesticide!J16) -> N/A | AC34: =IF(Pesticide!$C16=Oper_Int!AC$1,$AB34,0) -> 0 | AD34: =IF(Pesticide!$C16=Oper_Int!AD$1,$AB34,0) -> 0 | AE34: =IF(Pesticide!$C16=Oper_Int!AE$1,$AB34,0) -> 0 | AF34: =IF(Pesticide!$C16=Oper_Int!AF$1,$AB34,0) -> 0 | AG34: =IF(Pesticide!$C16=Oper_Int!AG$1,$AB34,0) -> 0 | AH34: =IF(Pesticide!$C16=Oper_Int!AH$1,$AB34,0) -> 0 | AI34: =IF(Pesticide!$C16=Oper_Int!AI$1,$AB34,0) -> 0 | AJ34: =IF(Pesticide!$C16=Oper_Int!AJ$1,$AB34,0) -> 0 | AK34: =IF(Pesticide!$C16=Oper_Int!AK$1,$AB34,0) -> 0 | AL34: =IF(Pesticide!$C16=Oper_Int!AL$1,$AB34,0) -> 0 | AM34: =IF(Pesticide!$C16=Oper_Int!AM$1,$AB34,0) -> 0 | AN34: =IF(Pesticide!$C16=Oper_Int!AN$1,$AB34,0) -> 0 | AO34: 0
A35: Irrig. Labor | B35: =IF(Budget!BB$5="share",Budget!H22,Budget!G22) -> 0 | C35: =IF(Irrig!$BH40<=0,0,Irrig!$BH40/Irrig!$BH52)*$B35 -> 0 | D35: =IF(Irrig!$BH41<=0,0,Irrig!$BH41/Irrig!$BH52)*$B35 -> 0 | E35: =IF(Irrig!$BH42<=0,0,Irrig!$BH42/Irrig!$BH$52)*$B35 -> 0 | F35: =IF(Irrig!$BH43<=0,0,Irrig!$BH43/Irrig!$BH$52)*$B35 -> 0 | G35: =IF(Irrig!$BH44<=0,0,Irrig!$BH44/Irrig!$BH$52)*$B35 -> 0 | H35: =IF(Irrig!$BH45<=0,0,Irrig!$BH45/Irrig!$BH$52)*$B35 -> 0 | I35: =IF(Irrig!$BH46<=0,0,Irrig!$BH46/Irrig!$BH$52)*$B35 -> 0 | J35: =IF(Irrig!$BH47<=0,0,Irrig!$BH47/Irrig!$BH$52)*$B35 -> 0 | K35: =IF(Irrig!$BH48<=0,0,Irrig!$BH48/Irrig!$BH$52)*$B35 -> 0 | L35: =IF(Irrig!$BH49<=0,0,Irrig!$BH49/Irrig!$BH$52)*$B35 -> 0 | M35: =IF(Irrig!$BH50<=0,0,Irrig!$BH50/Irrig!$BH$52)*$B35 -> 0 | N35: =IF(Irrig!$BH51<=0,0,Irrig!$BH51/Irrig!$BH$52)*$B35 -> 0 | O35: 0 | AA35: Irrig. Labor | AB35: =Budget!G22 -> 0 | AC35: =IF(Irrig!$BH40<=0,0,Irrig!$BH40/Irrig!$BH$52)*$AB35 -> 0 | AD35: =IF(Irrig!$BH41<=0,0,Irrig!$BH41/Irrig!$BH$52)*$AB35 -> 0 | AE35: =IF(Irrig!$BH42<=0,0,Irrig!$BH42/Irrig!$BH$52)*$AB35 -> 0 | AF35: =IF(Irrig!$BH43<=0,0,Irrig!$BH43/Irrig!$BH$52)*$AB35 -> 0 | AG35: =IF(Irrig!$BH44<=0,0,Irrig!$BH44/Irrig!$BH$52)*$AB35 -> 0 | AH35: =IF(Irrig!$BH45<=0,0,Irrig!$BH45/Irrig!$BH$52)*$AB35 -> 0 | AI35: =IF(Irrig!$BH46<=0,0,Irrig!$BH46/Irrig!$BH$52)*$AB35 -> 0 | AJ35: =IF(Irrig!$BH47<=0,0,Irrig!$BH47/Irrig!$BH$52)*$AB35 -> 0 | AK35: =IF(Irrig!$BH48<=0,0,Irrig!$BH48/Irrig!$BH$52)*$AB35 -> 0 | AL35: =IF(Irrig!$BH49<=0,0,Irrig!$BH49/Irrig!$BH$52)*$AB35 -> 0 | AM35: =IF(Irrig!$BH50<=0,0,Irrig!$BH50/Irrig!$BH$52)*$AB35 -> 0 | AN35: =IF(Irrig!$BH51<=0,0,Irrig!$BH51/Irrig!$BH$52)*$AB35 -> 0 | AO35: 0
A36: Irr.Fuel/Rep | B36: =IF(Budget!BB$5="share",Budget!H25,Budget!G25) -> 0 | C36: =IF(Irrig!$BH40<=0,0,Irrig!$BH40/Irrig!$BH$52)*$B36 -> 0 | D36: =IF(Irrig!$BH41<=0,0,Irrig!$BH41/Irrig!$BH$52)*$B36 -> 0 | E36: =IF(Irrig!$BH42<=0,0,Irrig!$BH42/Irrig!$BH$52)*$B36 -> 0 | F36: =IF(Irrig!$BH43<=0,0,Irrig!$BH43/Irrig!$BH$52)*$B36 -> 0 | G36: =IF(Irrig!$BH44<=0,0,Irrig!$BH44/Irrig!$BH$52)*$B36 -> 0 | H36: =IF(Irrig!$BH45<=0,0,Irrig!$BH45/Irrig!$BH$52)*$B36 -> 0 | I36: =IF(Irrig!$BH46<=0,0,Irrig!$BH46/Irrig!$BH$52)*$B36 -> 0 | J36: =IF(Irrig!$BH47<=0,0,Irrig!$BH47/Irrig!$BH$52)*$B36 -> 0 | K36: =IF(Irrig!$BH48<=0,0,Irrig!$BH48/Irrig!$BH$52)*$B36 -> 0 | L36: =IF(Irrig!$BH49<=0,0,Irrig!$BH49/Irrig!$BH$52)*$B36 -> 0 | M36: =IF(Irrig!$BH50<=0,0,Irrig!$BH50/Irrig!$BH$52)*$B36 -> 0 | N36: =IF(Irrig!$BH51<=0,0,Irrig!$BH51/Irrig!$BH$52)*$B36 -> 0 | O36: 0 | AA36: Irr.Fuel/Rep | AB36: =Budget!G25 -> 0 | AC36: =IF(Irrig!$BH40<=0,0,Irrig!$BH40/Irrig!$BH$52)*$AB36 -> 0 | AD36: =IF(Irrig!$BH41<=0,0,Irrig!$BH41/Irrig!$BH$52)*$AB36 -> 0 | AE36: =IF(Irrig!$BH42<=0,0,Irrig!$BH42/Irrig!$BH$52)*$AB36 -> 0 | AF36: =IF(Irrig!$BH43<=0,0,Irrig!$BH43/Irrig!$BH$52)*$AB36 -> 0 | AG36: =IF(Irrig!$BH44<=0,0,Irrig!$BH44/Irrig!$BH$52)*$AB36 -> 0 | AH36: =IF(Irrig!$BH45<=0,0,Irrig!$BH45/Irrig!$BH$52)*$AB36 -> 0 | AI36: =IF(Irrig!$BH46<=0,0,Irrig!$BH46/Irrig!$BH$52)*$AB36 -> 0 | AJ36: =IF(Irrig!$BH47<=0,0,Irrig!$BH47/Irrig!$BH$52)*$AB36 -> 0 | AK36: =IF(Irrig!$BH48<=0,0,Irrig!$BH48/Irrig!$BH$52)*$AB36 -> 0 | AL36: =IF(Irrig!$BH49<=0,0,Irrig!$BH49/Irrig!$BH$52)*$AB36 -> 0 | AM36: =IF(Irrig!$BH50<=0,0,Irrig!$BH50/Irrig!$BH$52)*$AB36 -> 0 | AN36: =IF(Irrig!$BH51<=0,0,Irrig!$BH51/Irrig!$BH$52)*$AB36 -> 0 | AO36: 0
A37: Mach Lab | B37: =IF(Budget!BB$5="share",Budget!H21,Budget!G21) -> 0 | C37: =IF($B37=0,0,IF($B38=0,$B37/12,$B37*(C38/$B38))) -> 0 | D37: =IF($B37=0,0,IF($B38=0,$B37/12,$B37*(D38/$B38))) -> 0 | E37: 0 | F37: 0 | G37: 0 | H37: 0 | I37: 0 | J37: 0 | K37: 0 | L37: 0 | M37: 0 | N37: 0 | O37: 0 | AA37: Mach Lab | AB37: =Budget!G21 -> 0 | AC37: =IF($AB37=0,0,IF($AB38=0,$AB37/12,$AB37*(AC38/$AB38))) -> 0 | AD37: =IF($AB37=0,0,IF($AB38=0,$AB37/12,$AB37*(AD38/$AB38))) -> 0 | AE37: 0 | AF37: 0 | AG37: 0 | AH37: 0 | AI37: 0 | AJ37: 0 | AK37: 0 | AL37: 0 | AM37: 0 | AN37: 0 | AO37: 0
A38: Mach Lub/rep | B38: =IF(Budget!BB$5="share",Machinery!AE22,Budget!E24) -> 0 | C38: =IF(Budget!$BB5="share",IF(Machinery!$Q$67=0,IF(Machinery!$V$32=FALSE,SUM(Machinery!$AB$19:'Machinery'!$AB$21),0)/12,IF(Machinery!$V$32=FALSE,SUM(Machinery!$AB$19:'Machinery'!$AB$21),0)*(Machinery!D$67/Machinery!$Q$67))+IF(Yield!$P$10=Oper_Int!C$1,SUM(Machinery!$AD$19:$AD$21),0),AC38) -> 0 | D38: =IF(Budget!$BB5="share",IF(Machinery!$Q$67=0,IF(Machinery!$V$32=FALSE,SUM(Machinery!$AB$19:'Machinery'!$AB$21),0)/12,IF(Machinery!$V$32=FALSE,SUM(Machinery!$AB$19:'Machinery'!$AB$21),0)*(Machinery!E$67/Machinery!$Q$67))+IF(Yield!$P$10=Oper_Int!D$1,SUM(Machinery!$AD$19:$AD$21),0),AD38) -> 0 | E38: =IF(Budget!$BB5="share",IF(Machinery!$Q$67=0,IF(Machinery!$V$32=FALSE,SUM(Machinery!$AB$19:'Machinery'!$AB$21),0)/12,IF(Machinery!$V$32=FALSE,SUM(Machinery!$AB$19:'Machinery'!$AB$21),0)*(Machinery!F$67/Machinery!$Q$67))+IF(Yield!$P$10=Oper_Int!E$1,SUM(Machinery!$AD$19:$AD$21),0),AE38) -> 0 | F38: =IF(Budget!$BB5="share",IF(Machinery!$Q$67=0,IF(Machinery!$V$32=FALSE,SUM(Machinery!$AB$19:'Machinery'!$AB$21),0)/12,IF(Machinery!$V$32=FALSE,SUM(Machinery!$AB$19:'Machinery'!$AB$21),0)*(Machinery!G$67/Machinery!$Q$67))+IF(Yield!$P$10=Oper_Int!F$1,SUM(Machinery!$AD$19:$AD$21),0),AF38) -> 0 | G38: =IF(Budget!$BB5="share",IF(Machinery!$Q$67=0,IF(Machinery!$V$32=FALSE,SUM(Machinery!$AB$19:'Machinery'!$AB$21),0)/12,IF(Machinery!$V$32=FALSE,SUM(Machinery!$AB$19:'Machinery'!$AB$21),0)*(Machinery!H$67/Machinery!$Q$67))+IF(Yield!$P$10=Oper_Int!G$1,SUM(Machinery!$AD$19:$AD$21),0),AG38) -> 0 | H38: =IF(Budget!$BB5="share",IF(Machinery!$Q$67=0,IF(Machinery!$V$32=FALSE,SUM(Machinery!$AB$19:'Machinery'!$AB$21),0)/12,IF(Machinery!$V$32=FALSE,SUM(Machinery!$AB$19:'Machinery'!$AB$21),0)*(Machinery!I$67/Machinery!$Q$67))+IF(Yield!$P$10=Oper_Int!H$1,SUM(Machinery!$AD$19:$AD$21),0),AH38) -> 0 | I38: =IF(Budget!$BB5="share",IF(Machinery!$Q$67=0,IF(Machinery!$V$32=FALSE,SUM(Machinery!$AB$19:'Machinery'!$AB$21),0)/12,IF(Machinery!$V$32=FALSE,SUM(Machinery!$AB$19:'Machinery'!$AB$21),0)*(Machinery!J$67/Machinery!$Q$67))+IF(Yield!$P$10=Oper_Int!I$1,SUM(Machinery!$AD$19:$AD$21),0),AI38) -> 0 | J38: =IF(Budget!$BB5="share",IF(Machinery!$Q$67=0,IF(Machinery!$V$32=FALSE,SUM(Machinery!$AB$19:'Machinery'!$AB$21),0)/12,IF(Machinery!$V$32=FALSE,SUM(Machinery!$AB$19:'Machinery'!$AB$21),0)*(Machinery!K$67/Machinery!$Q$67))+IF(Yield!$P$10=Oper_Int!J$1,SUM(Machinery!$AD$19:$AD$21),0),AJ38) -> 0 | K38: =IF(Budget!$BB5="share",IF(Machinery!$Q$67=0,IF(Machinery!$V$32=FALSE,SUM(Machinery!$AB$19:'Machinery'!$AB$21),0)/12,IF(Machinery!$V$32=FALSE,SUM(Machinery!$AB$19:'Machinery'!$AB$21),0)*(Machinery!L$67/Machinery!$Q$67))+IF(Yield!$P$10=Oper_Int!K$1,SUM(Machinery!$AD$19:$AD$21),0),AK38) -> 0 | L38: =IF(Budget!$BB5="share",IF(Machinery!$Q$67=0,IF(Machinery!$V$32=FALSE,SUM(Machinery!$AB$19:'Machinery'!$AB$21),0)/12,IF(Machinery!$V$32=FALSE,SUM(Machinery!$AB$19:'Machinery'!$AB$21),0)*(Machinery!M$67/Machinery!$Q$67))+IF(Yield!$P$10=Oper_Int!L$1,SUM(Machinery!$AD$19:$AD$21),0),AL38) -> 0 | M38: =IF(Budget!$BB5="share",IF(Machinery!$Q$67=0,IF(Machinery!$V$32=FALSE,SUM(Machinery!$AB$19:'Machinery'!$AB$21),0)/12,IF(Machinery!$V$32=FALSE,SUM(Machinery!$AB$19:'Machinery'!$AB$21),0)*(Machinery!N$67/Machinery!$Q$67))+IF(Yield!$P$10=Oper_Int!M$1,SUM(Machinery!$AD$19:$AD$21),0),AM38) -> 0 | N38: =IF(Budget!$BB5="share",IF(Machinery!$Q$67=0,IF(Machinery!$V$32=FALSE,SUM(Machinery!$AB$19:'Machinery'!$AB$21),0)/12,IF(Machinery!$V$32=FALSE,SUM(Machinery!$AB$19:'Machinery'!$AB$21),0)*(Machinery!O$67/Machinery!$Q$67))+IF(Yield!$P$10=Oper_Int!N$1,SUM(Machinery!$AD$19:$AD$21),0),AN38) -> 0 | O38: 0 | AA38: Mach Lub/rep | AB38: =+Budget!E24 -> 0 | AC38: =IF(Machinery!$Q$67=0,IF(Machinery!$V$32=FALSE,SUM(Machinery!$AF$19:'Machinery'!$AF$21),0)/12,IF(Machinery!$V$32=FALSE,SUM(Machinery!$AF$19:'Machinery'!$AF$21),0)*(Machinery!D$67/Machinery!$Q$67))+IF(Yield!$P$10=Oper_Int!AC$1,SUM(Machinery!$Z$19:$Z$21),0) -> 0 | AD38: =IF(Machinery!$Q$67=0,IF(Machinery!$V$32=FALSE,SUM(Machinery!$AF$19:'Machinery'!$AF$21),0)/12,IF(Machinery!$V$32=FALSE,SUM(Machinery!$AF$19:'Machinery'!$AF$21),0)*(Machinery!E$67/Machinery!$Q$67))+IF(Yield!$P$10=Oper_Int!AD$1,SUM(Machinery!$Z$19:$Z$21),0) -> 0 | AE38: =IF(Machinery!$Q$67=0,IF(Machinery!$V$32=FALSE,SUM(Machinery!$AF$19:'Machinery'!$AF$21),0)/12,IF(Machinery!$V$32=FALSE,SUM(Machinery!$AF$19:'Machinery'!$AF$21),0)*(Machinery!F$67/Machinery!$Q$67))+IF(Yield!$P$10=Oper_Int!AE$1,SUM(Machinery!$Z$19:$Z$21),0) -> 0 | AF38: =IF(Machinery!$Q$67=0,IF(Machinery!$V$32=FALSE,SUM(Machinery!$AF$19:'Machinery'!$AF$21),0)/12,IF(Machinery!$V$32=FALSE,SUM(Machinery!$AF$19:'Machinery'!$AF$21),0)*(Machinery!G$67/Machinery!$Q$67))+IF(Yield!$P$10=Oper_Int!AF$1,SUM(Machinery!$Z$19:$Z$21),0) -> 0 | AG38: =IF(Machinery!$Q$67=0,IF(Machinery!$V$32=FALSE,SUM(Machinery!$AF$19:'Machinery'!$AF$21),0)/12,IF(Machinery!$V$32=FALSE,SUM(Machinery!$AF$19:'Machinery'!$AF$21),0)*(Machinery!H$67/Machinery!$Q$67))+IF(Yield!$P$10=Oper_Int!AG$1,SUM(Machinery!$Z$19:$Z$21),0) -> 0 | AH38: =IF(Machinery!$Q$67=0,IF(Machinery!$V$32=FALSE,SUM(Machinery!$AF$19:'Machinery'!$AF$21),0)/12,IF(Machinery!$V$32=FALSE,SUM(Machinery!$AF$19:'Machinery'!$AF$21),0)*(Machinery!I$67/Machinery!$Q$67))+IF(Yield!$P$10=Oper_Int!AH$1,SUM(Machinery!$Z$19:$Z$21),0) -> 0 | AI38: =IF(Machinery!$Q$67=0,IF(Machinery!$V$32=FALSE,SUM(Machinery!$AF$19:'Machinery'!$AF$21),0)/12,IF(Machinery!$V$32=FALSE,SUM(Machinery!$AF$19:'Machinery'!$AF$21),0)*(Machinery!J$67/Machinery!$Q$67))+IF(Yield!$P$10=Oper_Int!AI$1,SUM(Machinery!$Z$19:$Z$21),0) -> 0 | AJ38: =IF(Machinery!$Q$67=0,IF(Machinery!$V$32=FALSE,SUM(Machinery!$AF$19:'Machinery'!$AF$21),0)/12,IF(Machinery!$V$32=FALSE,SUM(Machinery!$AF$19:'Machinery'!$AF$21),0)*(Machinery!K$67/Machinery!$Q$67))+IF(Yield!$P$10=Oper_Int!AJ$1,SUM(Machinery!$Z$19:$Z$21),0) -> 0 | AK38: =IF(Machinery!$Q$67=0,IF(Machinery!$V$32=FALSE,SUM(Machinery!$AF$19:'Machinery'!$AF$21),0)/12,IF(Machinery!$V$32=FALSE,SUM(Machinery!$AF$19:'Machinery'!$AF$21),0)*(Machinery!L$67/Machinery!$Q$67))+IF(Yield!$P$10=Oper_Int!AK$1,SUM(Machinery!$Z$19:$Z$21),0) -> 0 | AL38: =IF(Machinery!$Q$67=0,IF(Machinery!$V$32=FALSE,SUM(Machinery!$AF$19:'Machinery'!$AF$21),0)/12,IF(Machinery!$V$32=FALSE,SUM(Machinery!$AF$19:'Machinery'!$AF$21),0)*(Machinery!M$67/Machinery!$Q$67))+IF(Yield!$P$10=Oper_Int!AL$1,SUM(Machinery!$Z$19:$Z$21),0) -> 0 | AM38: =IF(Machinery!$Q$67=0,IF(Machinery!$V$32=FALSE,SUM(Machinery!$AF$19:'Machinery'!$AF$21),0)/12,IF(Machinery!$V$32=FALSE,SUM(Machinery!$AF$19:'Machinery'!$AF$21),0)*(Machinery!N$67/Machinery!$Q$67))+IF(Yield!$P$10=Oper_Int!AM$1,SUM(Machinery!$Z$19:$Z$21),0) -> 0 | AN38: =IF(Machinery!$Q$67=0,IF(Machinery!$V$32=FALSE,SUM(Machinery!$AF$19:'Machinery'!$AF$21),0)/12,IF(Machinery!$V$32=FALSE,SUM(Machinery!$AF$19:'Machinery'!$AF$21),0)*(Machinery!O$67/Machinery!$Q$67))+IF(Yield!$P$10=Oper_Int!AN$1,SUM(Machinery!$Z$19:$Z$21),0) -> 0 | AO38: 0
A39: =IF('Other Exp'!B9="","Other Expense",'Other Exp'!B9) -> Utilities | B39: ='Other Exp'!F9 -> 2.5 | C39: =IF('Other Exp'!$C9=Oper_Int!C$1,'Other Exp'!$F9,0) -> 2.5 | D39: =IF('Other Exp'!$C9=Oper_Int!D$1,'Other Exp'!$F9,0) -> 0 | E39: =IF('Other Exp'!$C9=Oper_Int!E$1,'Other Exp'!$F9,0) -> 0 | F39: =IF('Other Exp'!$C9=Oper_Int!F$1,'Other Exp'!$F9,0) -> 0 | G39: =IF('Other Exp'!$C9=Oper_Int!G$1,'Other Exp'!$F9,0) -> 0 | H39: =IF('Other Exp'!$C9=Oper_Int!H$1,'Other Exp'!$F9,0) -> 0 | I39: =IF('Other Exp'!$C9=Oper_Int!I$1,'Other Exp'!$F9,0) -> 0 | J39: =IF('Other Exp'!$C9=Oper_Int!J$1,'Other Exp'!$F9,0) -> 0 | K39: =IF('Other Exp'!$C9=Oper_Int!K$1,'Other Exp'!$F9,0) -> 0 | L39: =IF('Other Exp'!$C9=Oper_Int!L$1,'Other Exp'!$F9,0) -> 0 | M39: =IF('Other Exp'!$C9=Oper_Int!M$1,'Other Exp'!$F9,0) -> 0 | N39: =IF('Other Exp'!$C9=Oper_Int!N$1,'Other Exp'!$D9,0) -> 0 | O39: 2.5 | AA39: Utilities | AB39: ='Other Exp'!D9 -> 2.5 | AC39: =IF('Other Exp'!$C9=Oper_Int!AC$1,'Other Exp'!$D9,0) -> 2.5 | AD39: =IF('Other Exp'!$C9=Oper_Int!AD$1,'Other Exp'!$D9,0) -> 0 | AE39: =IF('Other Exp'!$C9=Oper_Int!AE$1,'Other Exp'!$D9,0) -> 0 | AF39: =IF('Other Exp'!$C9=Oper_Int!AF$1,'Other Exp'!$D9,0) -> 0 | AG39: =IF('Other Exp'!$C9=Oper_Int!AG$1,'Other Exp'!$D9,0) -> 0 | AH39: =IF('Other Exp'!$C9=Oper_Int!AH$1,'Other Exp'!$D9,0) -> 0 | AI39: =IF('Other Exp'!$C9=Oper_Int!AI$1,'Other Exp'!$D9,0) -> 0 | AJ39: =IF('Other Exp'!$C9=Oper_Int!AJ$1,'Other Exp'!$D9,0) -> 0 | AK39: =IF('Other Exp'!$C9=Oper_Int!AK$1,'Other Exp'!$D9,0) -> 0 | AL39: =IF('Other Exp'!$C9=Oper_Int!AL$1,'Other Exp'!$D9,0) -> 0 | AM39: =IF('Other Exp'!$C9=Oper_Int!AM$1,'Other Exp'!$D9,0) -> 0 | AN39: =IF('Other Exp'!$C9=Oper_Int!AN$1,'Other Exp'!$D9,0) -> 0 | AO39: 2.5
A40: =IF('Other Exp'!B10="","Other Expense",'Other Exp'!B10) -> Fees, publications | B40: ='Other Exp'!F10 -> 2.5 | C40: =IF('Other Exp'!$C10=Oper_Int!C$1,'Other Exp'!$F10,0) -> 2.5 | D40: =IF('Other Exp'!$C10=Oper_Int!D$1,'Other Exp'!$F10,0) -> 0 | E40: =IF('Other Exp'!$C10=Oper_Int!E$1,'Other Exp'!$F10,0) -> 0 | F40: =IF('Other Exp'!$C10=Oper_Int!F$1,'Other Exp'!$F10,0) -> 0 | G40: =IF('Other Exp'!$C10=Oper_Int!G$1,'Other Exp'!$F10,0) -> 0 | H40: =IF('Other Exp'!$C10=Oper_Int!H$1,'Other Exp'!$F10,0) -> 0 | I40: =IF('Other Exp'!$C10=Oper_Int!I$1,'Other Exp'!$F10,0) -> 0 | J40: =IF('Other Exp'!$C10=Oper_Int!J$1,'Other Exp'!$F10,0) -> 0 | K40: =IF('Other Exp'!$C10=Oper_Int!K$1,'Other Exp'!$F10,0) -> 0 | L40: =IF('Other Exp'!$C10=Oper_Int!L$1,'Other Exp'!$F10,0) -> 0 | M40: =IF('Other Exp'!$C10=Oper_Int!M$1,'Other Exp'!$F10,0) -> 0 | N40: =IF('Other Exp'!$C10=Oper_Int!N$1,'Other Exp'!$D10,0) -> 0 | O40: 2.5 | AA40: Fees, publications | AB40: ='Other Exp'!D10 -> 2.5 | AC40: =IF('Other Exp'!$C10=Oper_Int!AC$1,'Other Exp'!$D10,0) -> 2.5 | AD40: =IF('Other Exp'!$C10=Oper_Int!AD$1,'Other Exp'!$D10,0) -> 0 | AE40: =IF('Other Exp'!$C10=Oper_Int!AE$1,'Other Exp'!$D10,0) -> 0 | AF40: =IF('Other Exp'!$C10=Oper_Int!AF$1,'Other Exp'!$D10,0) -> 0 | AG40: =IF('Other Exp'!$C10=Oper_Int!AG$1,'Other Exp'!$D10,0) -> 0 | AH40: =IF('Other Exp'!$C10=Oper_Int!AH$1,'Other Exp'!$D10,0) -> 0 | AI40: =IF('Other Exp'!$C10=Oper_Int!AI$1,'Other Exp'!$D10,0) -> 0 | AJ40: =IF('Other Exp'!$C10=Oper_Int!AJ$1,'Other Exp'!$D10,0) -> 0 | AK40: =IF('Other Exp'!$C10=Oper_Int!AK$1,'Other Exp'!$D10,0) -> 0 | AL40: =IF('Other Exp'!$C10=Oper_Int!AL$1,'Other Exp'!$D10,0) -> 0 | AM40: =IF('Other Exp'!$C10=Oper_Int!AM$1,'Other Exp'!$D10,0) -> 0 | AN40: =IF('Other Exp'!$C10=Oper_Int!AN$1,'Other Exp'!$D10,0) -> 0 | AO40: 2.5
A41: =IF('Other Exp'!B11="","Other Expense",'Other Exp'!B11) -> Other Expense | B41: ='Other Exp'!F11 -> 0 | C41: =IF('Other Exp'!$C11=Oper_Int!C$1,'Other Exp'!$F11,0) -> 0 | D41: =IF('Other Exp'!$C11=Oper_Int!D$1,'Other Exp'!$F11,0) -> 0 | E41: =IF('Other Exp'!$C11=Oper_Int!E$1,'Other Exp'!$F11,0) -> 0 | F41: =IF('Other Exp'!$C11=Oper_Int!F$1,'Other Exp'!$F11,0) -> 0 | G41: =IF('Other Exp'!$C11=Oper_Int!G$1,'Other Exp'!$F11,0) -> 0 | H41: =IF('Other Exp'!$C11=Oper_Int!H$1,'Other Exp'!$F11,0) -> 0 | I41: =IF('Other Exp'!$C11=Oper_Int!I$1,'Other Exp'!$F11,0) -> 0 | J41: =IF('Other Exp'!$C11=Oper_Int!J$1,'Other Exp'!$F11,0) -> 0 | K41: =IF('Other Exp'!$C11=Oper_Int!K$1,'Other Exp'!$F11,0) -> 0 | L41: =IF('Other Exp'!$C11=Oper_Int!L$1,'Other Exp'!$F11,0) -> 0 | M41: =IF('Other Exp'!$C11=Oper_Int!M$1,'Other Exp'!$F11,0) -> 0 | N41: =IF('Other Exp'!$C11=Oper_Int!N$1,'Other Exp'!$D11,0) -> 0 | O41: 0 | AA41: Other Expense | AB41: ='Other Exp'!D11 -> 0 | AC41: =IF('Other Exp'!$C11=Oper_Int!AC$1,'Other Exp'!$D11,0) -> 0 | AD41: =IF('Other Exp'!$C11=Oper_Int!AD$1,'Other Exp'!$D11,0) -> 0 | AE41: =IF('Other Exp'!$C11=Oper_Int!AE$1,'Other Exp'!$D11,0) -> 0 | AF41: =IF('Other Exp'!$C11=Oper_Int!AF$1,'Other Exp'!$D11,0) -> 0 | AG41: =IF('Other Exp'!$C11=Oper_Int!AG$1,'Other Exp'!$D11,0) -> 0 | AH41: =IF('Other Exp'!$C11=Oper_Int!AH$1,'Other Exp'!$D11,0) -> 0 | AI41: =IF('Other Exp'!$C11=Oper_Int!AI$1,'Other Exp'!$D11,0) -> 0 | AJ41: =IF('Other Exp'!$C11=Oper_Int!AJ$1,'Other Exp'!$D11,0) -> 0 | AK41: =IF('Other Exp'!$C11=Oper_Int!AK$1,'Other Exp'!$D11,0) -> 0 | AL41: =IF('Other Exp'!$C11=Oper_Int!AL$1,'Other Exp'!$D11,0) -> 0 | AM41: =IF('Other Exp'!$C11=Oper_Int!AM$1,'Other Exp'!$D11,0) -> 0 | AN41: =IF('Other Exp'!$C11=Oper_Int!AN$1,'Other Exp'!$D11,0) -> 0 | AO41: 0
A42: =IF('Other Exp'!B12="","Other Expense",'Other Exp'!B12) -> Other Expense | B42: ='Other Exp'!F12 -> 0 | C42: =IF('Other Exp'!$C12=Oper_Int!C$1,'Other Exp'!$F12,0) -> 0 | D42: =IF('Other Exp'!$C12=Oper_Int!D$1,'Other Exp'!$F12,0) -> 0 | E42: =IF('Other Exp'!$C12=Oper_Int!E$1,'Other Exp'!$F12,0) -> 0 | F42: =IF('Other Exp'!$C12=Oper_Int!F$1,'Other Exp'!$F12,0) -> 0 | G42: =IF('Other Exp'!$C12=Oper_Int!G$1,'Other Exp'!$F12,0) -> 0 | H42: =IF('Other Exp'!$C12=Oper_Int!H$1,'Other Exp'!$F12,0) -> 0 | I42: =IF('Other Exp'!$C12=Oper_Int!I$1,'Other Exp'!$F12,0) -> 0 | J42: =IF('Other Exp'!$C12=Oper_Int!J$1,'Other Exp'!$F12,0) -> 0 | K42: =IF('Other Exp'!$C12=Oper_Int!K$1,'Other Exp'!$F12,0) -> 0 | L42: =IF('Other Exp'!$C12=Oper_Int!L$1,'Other Exp'!$F12,0) -> 0 | M42: =IF('Other Exp'!$C12=Oper_Int!M$1,'Other Exp'!$F12,0) -> 0 | N42: =IF('Other Exp'!$C12=Oper_Int!N$1,'Other Exp'!$D12,0) -> 0 | O42: 0 | AA42: Other Expense | AB42: ='Other Exp'!D12 -> 0 | AC42: =IF('Other Exp'!$C12=Oper_Int!AC$1,'Other Exp'!$D12,0) -> 0 | AD42: =IF('Other Exp'!$C12=Oper_Int!AD$1,'Other Exp'!$D12,0) -> 0 | AE42: =IF('Other Exp'!$C12=Oper_Int!AE$1,'Other Exp'!$D12,0) -> 0 | AF42: =IF('Other Exp'!$C12=Oper_Int!AF$1,'Other Exp'!$D12,0) -> 0 | AG42: =IF('Other Exp'!$C12=Oper_Int!AG$1,'Other Exp'!$D12,0) -> 0 | AH42: =IF('Other Exp'!$C12=Oper_Int!AH$1,'Other Exp'!$D12,0) -> 0 | AI42: =IF('Other Exp'!$C12=Oper_Int!AI$1,'Other Exp'!$D12,0) -> 0 | AJ42: =IF('Other Exp'!$C12=Oper_Int!AJ$1,'Other Exp'!$D12,0) -> 0 | AK42: =IF('Other Exp'!$C12=Oper_Int!AK$1,'Other Exp'!$D12,0) -> 0 | AL42: =IF('Other Exp'!$C12=Oper_Int!AL$1,'Other Exp'!$D12,0) -> 0 | AM42: =IF('Other Exp'!$C12=Oper_Int!AM$1,'Other Exp'!$D12,0) -> 0 | AN42: =IF('Other Exp'!$C12=Oper_Int!AN$1,'Other Exp'!$D12,0) -> 0 | AO42: 0
A43: =IF('Other Exp'!B13="","Other Expense",'Other Exp'!B13) -> Other Expense | B43: ='Other Exp'!F13 -> 0 | C43: =IF('Other Exp'!$C13=Oper_Int!C$1,'Other Exp'!$F13,0) -> 0 | D43: =IF('Other Exp'!$C13=Oper_Int!D$1,'Other Exp'!$F13,0) -> 0 | E43: =IF('Other Exp'!$C13=Oper_Int!E$1,'Other Exp'!$F13,0) -> 0 | F43: =IF('Other Exp'!$C13=Oper_Int!F$1,'Other Exp'!$F13,0) -> 0 | G43: =IF('Other Exp'!$C13=Oper_Int!G$1,'Other Exp'!$F13,0) -> 0 | H43: =IF('Other Exp'!$C13=Oper_Int!H$1,'Other Exp'!$F13,0) -> 0 | I43: =IF('Other Exp'!$C13=Oper_Int!I$1,'Other Exp'!$F13,0) -> 0 | J43: =IF('Other Exp'!$C13=Oper_Int!J$1,'Other Exp'!$F13,0) -> 0 | K43: =IF('Other Exp'!$C13=Oper_Int!K$1,'Other Exp'!$F13,0) -> 0 | L43: =IF('Other Exp'!$C13=Oper_Int!L$1,'Other Exp'!$F13,0) -> 0 | M43: =IF('Other Exp'!$C13=Oper_Int!M$1,'Other Exp'!$F13,0) -> 0 | N43: =IF('Other Exp'!$C13=Oper_Int!N$1,'Other Exp'!$D13,0) -> 0 | O43: 0 | AA43: Other Expense | AB43: ='Other Exp'!D13 -> 0 | AC43: =IF('Other Exp'!$C13=Oper_Int!AC$1,'Other Exp'!$D13,0) -> 0 | AD43: =IF('Other Exp'!$C13=Oper_Int!AD$1,'Other Exp'!$D13,0) -> 0 | AE43: =IF('Other Exp'!$C13=Oper_Int!AE$1,'Other Exp'!$D13,0) -> 0 | AF43: =IF('Other Exp'!$C13=Oper_Int!AF$1,'Other Exp'!$D13,0) -> 0 | AG43: =IF('Other Exp'!$C13=Oper_Int!AG$1,'Other Exp'!$D13,0) -> 0 | AH43: =IF('Other Exp'!$C13=Oper_Int!AH$1,'Other Exp'!$D13,0) -> 0 | AI43: =IF('Other Exp'!$C13=Oper_Int!AI$1,'Other Exp'!$D13,0) -> 0 | AJ43: =IF('Other Exp'!$C13=Oper_Int!AJ$1,'Other Exp'!$D13,0) -> 0 | AK43: =IF('Other Exp'!$C13=Oper_Int!AK$1,'Other Exp'!$D13,0) -> 0 | AL43: =IF('Other Exp'!$C13=Oper_Int!AL$1,'Other Exp'!$D13,0) -> 0 | AM43: =IF('Other Exp'!$C13=Oper_Int!AM$1,'Other Exp'!$D13,0) -> 0 | AN43: =IF('Other Exp'!$C13=Oper_Int!AN$1,'Other Exp'!$D13,0) -> 0 | AO43: 0
A44: =IF('Other Exp'!B14="","Other Expense",'Other Exp'!B14) -> Other Expense | B44: ='Other Exp'!F14 -> 0 | C44: =IF('Other Exp'!$C14=Oper_Int!C$1,'Other Exp'!$F14,0) -> 0 | D44: =IF('Other Exp'!$C14=Oper_Int!D$1,'Other Exp'!$F14,0) -> 0 | E44: =IF('Other Exp'!$C14=Oper_Int!E$1,'Other Exp'!$F14,0) -> 0 | F44: =IF('Other Exp'!$C14=Oper_Int!F$1,'Other Exp'!$F14,0) -> 0 | G44: =IF('Other Exp'!$C14=Oper_Int!G$1,'Other Exp'!$F14,0) -> 0 | H44: =IF('Other Exp'!$C14=Oper_Int!H$1,'Other Exp'!$F14,0) -> 0 | I44: =IF('Other Exp'!$C14=Oper_Int!I$1,'Other Exp'!$F14,0) -> 0 | J44: =IF('Other Exp'!$C14=Oper_Int!J$1,'Other Exp'!$F14,0) -> 0 | K44: =IF('Other Exp'!$C14=Oper_Int!K$1,'Other Exp'!$F14,0) -> 0 | L44: =IF('Other Exp'!$C14=Oper_Int!L$1,'Other Exp'!$F14,0) -> 0 | M44: =IF('Other Exp'!$C14=Oper_Int!M$1,'Other Exp'!$F14,0) -> 0 | N44: =IF('Other Exp'!$C14=Oper_Int!N$1,'Other Exp'!$D14,0) -> 0 | O44: 0 | AA44: Other Expense | AB44: ='Other Exp'!D14 -> 0 | AC44: =IF('Other Exp'!$C14=Oper_Int!AC$1,'Other Exp'!$D14,0) -> 0 | AD44: =IF('Other Exp'!$C14=Oper_Int!AD$1,'Other Exp'!$D14,0) -> 0 | AE44: =IF('Other Exp'!$C14=Oper_Int!AE$1,'Other Exp'!$D14,0) -> 0 | AF44: =IF('Other Exp'!$C14=Oper_Int!AF$1,'Other Exp'!$D14,0) -> 0 | AG44: =IF('Other Exp'!$C14=Oper_Int!AG$1,'Other Exp'!$D14,0) -> 0 | AH44: =IF('Other Exp'!$C14=Oper_Int!AH$1,'Other Exp'!$D14,0) -> 0 | AI44: =IF('Other Exp'!$C14=Oper_Int!AI$1,'Other Exp'!$D14,0) -> 0 | AJ44: =IF('Other Exp'!$C14=Oper_Int!AJ$1,'Other Exp'!$D14,0) -> 0 | AK44: =IF('Other Exp'!$C14=Oper_Int!AK$1,'Other Exp'!$D14,0) -> 0 | AL44: =IF('Other Exp'!$C14=Oper_Int!AL$1,'Other Exp'!$D14,0) -> 0 | AM44: =IF('Other Exp'!$C14=Oper_Int!AM$1,'Other Exp'!$D14,0) -> 0 | AN44: =IF('Other Exp'!$C14=Oper_Int!AN$1,'Other Exp'!$D14,0) -> 0 | AO44: 0
A45: =IF('Other Exp'!B15="","Other Expense",'Other Exp'!B15) -> Other Expense | B45: ='Other Exp'!F15 -> 0 | C45: =IF('Other Exp'!$C15=Oper_Int!C$1,'Other Exp'!$F15,0) -> 0 | D45: =IF('Other Exp'!$C15=Oper_Int!D$1,'Other Exp'!$F15,0) -> 0 | E45: =IF('Other Exp'!$C15=Oper_Int!E$1,'Other Exp'!$F15,0) -> 0 | F45: =IF('Other Exp'!$C15=Oper_Int!F$1,'Other Exp'!$F15,0) -> 0 | G45: =IF('Other Exp'!$C15=Oper_Int!G$1,'Other Exp'!$F15,0) -> 0 | H45: =IF('Other Exp'!$C15=Oper_Int!H$1,'Other Exp'!$F15,0) -> 0 | I45: =IF('Other Exp'!$C15=Oper_Int!I$1,'Other Exp'!$F15,0) -> 0 | J45: =IF('Other Exp'!$C15=Oper_Int!J$1,'Other Exp'!$F15,0) -> 0 | K45: =IF('Other Exp'!$C15=Oper_Int!K$1,'Other Exp'!$F15,0) -> 0 | L45: =IF('Other Exp'!$C15=Oper_Int!L$1,'Other Exp'!$F15,0) -> 0 | M45: =IF('Other Exp'!$C15=Oper_Int!M$1,'Other Exp'!$F15,0) -> 0 | N45: =IF('Other Exp'!$C15=Oper_Int!N$1,'Other Exp'!$D15,0) -> 0 | O45: 0 | AA45: Other Expense | AB45: ='Other Exp'!D15 -> 0 | AC45: =IF('Other Exp'!$C15=Oper_Int!AC$1,'Other Exp'!$D15,0) -> 0 | AD45: =IF('Other Exp'!$C15=Oper_Int!AD$1,'Other Exp'!$D15,0) -> 0 | AE45: =IF('Other Exp'!$C15=Oper_Int!AE$1,'Other Exp'!$D15,0) -> 0 | AF45: =IF('Other Exp'!$C15=Oper_Int!AF$1,'Other Exp'!$D15,0) -> 0 | AG45: =IF('Other Exp'!$C15=Oper_Int!AG$1,'Other Exp'!$D15,0) -> 0 | AH45: =IF('Other Exp'!$C15=Oper_Int!AH$1,'Other Exp'!$D15,0) -> 0 | AI45: =IF('Other Exp'!$C15=Oper_Int!AI$1,'Other Exp'!$D15,0) -> 0 | AJ45: =IF('Other Exp'!$C15=Oper_Int!AJ$1,'Other Exp'!$D15,0) -> 0 | AK45: =IF('Other Exp'!$C15=Oper_Int!AK$1,'Other Exp'!$D15,0) -> 0 | AL45: =IF('Other Exp'!$C15=Oper_Int!AL$1,'Other Exp'!$D15,0) -> 0 | AM45: =IF('Other Exp'!$C15=Oper_Int!AM$1,'Other Exp'!$D15,0) -> 0 | AN45: =IF('Other Exp'!$C15=Oper_Int!AN$1,'Other Exp'!$D15,0) -> 0 | AO45: 0
A46: =IF('Other Exp'!B16="","Other Expense",'Other Exp'!B16) -> Other Expense | B46: ='Other Exp'!F16 -> 0 | C46: =IF('Other Exp'!$C16=Oper_Int!C$1,'Other Exp'!$F16,0) -> 0 | D46: =IF('Other Exp'!$C16=Oper_Int!D$1,'Other Exp'!$F16,0) -> 0 | E46: =IF('Other Exp'!$C16=Oper_Int!E$1,'Other Exp'!$F16,0) -> 0 | F46: =IF('Other Exp'!$C16=Oper_Int!F$1,'Other Exp'!$F16,0) -> 0 | G46: =IF('Other Exp'!$C16=Oper_Int!G$1,'Other Exp'!$F16,0) -> 0 | H46: =IF('Other Exp'!$C16=Oper_Int!H$1,'Other Exp'!$F16,0) -> 0 | I46: =IF('Other Exp'!$C16=Oper_Int!I$1,'Other Exp'!$F16,0) -> 0 | J46: =IF('Other Exp'!$C16=Oper_Int!J$1,'Other Exp'!$F16,0) -> 0 | K46: =IF('Other Exp'!$C16=Oper_Int!K$1,'Other Exp'!$F16,0) -> 0 | L46: =IF('Other Exp'!$C16=Oper_Int!L$1,'Other Exp'!$F16,0) -> 0 | M46: =IF('Other Exp'!$C16=Oper_Int!M$1,'Other Exp'!$F16,0) -> 0 | N46: =IF('Other Exp'!$C16=Oper_Int!N$1,'Other Exp'!$D16,0) -> 0 | O46: 0 | AA46: Other Expense | AB46: ='Other Exp'!D16 -> 0 | AC46: =IF('Other Exp'!$C16=Oper_Int!AC$1,'Other Exp'!$D16,0) -> 0 | AD46: =IF('Other Exp'!$C16=Oper_Int!AD$1,'Other Exp'!$D16,0) -> 0 | AE46: =IF('Other Exp'!$C16=Oper_Int!AE$1,'Other Exp'!$D16,0) -> 0 | AF46: =IF('Other Exp'!$C16=Oper_Int!AF$1,'Other Exp'!$D16,0) -> 0 | AG46: =IF('Other Exp'!$C16=Oper_Int!AG$1,'Other Exp'!$D16,0) -> 0 | AH46: =IF('Other Exp'!$C16=Oper_Int!AH$1,'Other Exp'!$D16,0) -> 0 | AI46: =IF('Other Exp'!$C16=Oper_Int!AI$1,'Other Exp'!$D16,0) -> 0 | AJ46: =IF('Other Exp'!$C16=Oper_Int!AJ$1,'Other Exp'!$D16,0) -> 0 | AK46: =IF('Other Exp'!$C16=Oper_Int!AK$1,'Other Exp'!$D16,0) -> 0 | AL46: =IF('Other Exp'!$C16=Oper_Int!AL$1,'Other Exp'!$D16,0) -> 0 | AM46: =IF('Other Exp'!$C16=Oper_Int!AM$1,'Other Exp'!$D16,0) -> 0 | AN46: =IF('Other Exp'!$C16=Oper_Int!AN$1,'Other Exp'!$D16,0) -> 0 | AO46: 0
A47: Crop Insurance | B47: =Ins!C15 -> 20 | C47: =IF(Ins!$C$12=Oper_Int!C$1,Ins!$C$15,0) -> 0 | D47: =IF(Ins!$C$12=Oper_Int!D$1,Ins!$C$15,0) -> 0 | E47: =IF(Ins!$C$12=Oper_Int!E$1,Ins!$C$15,0) -> 0 | F47: =IF(Ins!$C$12=Oper_Int!F$1,Ins!$C$15,0) -> 0 | G47: =IF(Ins!$C$12=Oper_Int!G$1,Ins!$C$15,0) -> 0 | H47: =IF(Ins!$C$12=Oper_Int!H$1,Ins!$C$15,0) -> 0 | I47: =IF(Ins!$C$12=Oper_Int!I$1,Ins!$C$15,0) -> 0 | J47: =IF(Ins!$C$12=Oper_Int!J$1,Ins!$C$15,0) -> 0 | K47: =IF(Ins!$C$12=Oper_Int!K$1,Ins!$C$15,0) -> 0 | L47: =IF(Ins!$C$12=Oper_Int!L$1,Ins!$C$15,0) -> 20 | M47: =IF(Ins!$C$12=Oper_Int!M$1,Ins!$C$15,0) -> 0 | N47: =IF(Ins!$C$12=Oper_Int!N$1,Ins!$C$15,0) -> 0 | O47: 20 | AA47: Crop Insurance | AB47: =Ins!C13 -> 20 | AC47: =IF(Ins!$C$12=Oper_Int!AC$1,Ins!$C$13,0) -> 0 | AD47: =IF(Ins!$C$12=Oper_Int!AD$1,Ins!$C$13,0) -> 0 | AE47: =IF(Ins!$C$12=Oper_Int!AE$1,Ins!$C$13,0) -> 0 | AF47: =IF(Ins!$C$12=Oper_Int!AF$1,Ins!$C$13,0) -> 0 | AG47: =IF(Ins!$C$12=Oper_Int!AG$1,Ins!$C$13,0) -> 0 | AH47: =IF(Ins!$C$12=Oper_Int!AH$1,Ins!$C$13,0) -> 0 | AI47: =IF(Ins!$C$12=Oper_Int!AI$1,Ins!$C$13,0) -> 0 | AJ47: =IF(Ins!$C$12=Oper_Int!AJ$1,Ins!$C$13,0) -> 0 | AK47: =IF(Ins!$C$12=Oper_Int!AK$1,Ins!$C$13,0) -> 0 | AL47: =IF(Ins!$C$12=Oper_Int!AL$1,Ins!$C$13,0) -> 20 | AM47: =IF(Ins!$C$12=Oper_Int!AM$1,Ins!$C$13,0) -> 0 | AN47: =IF(Ins!$C$12=Oper_Int!AN$1,Ins!$C$13,0) -> 0 | AO47: 20
A48: Rent | B48: =Budget!BB6 -> 0 | C48: =$B$48*CRent!$C6 -> 0 | D48: =$B$48*CRent!$C7 -> 0 | E48: =$B$48*CRent!$C8 -> 0 | F48: =$B$48*CRent!$C9 -> 0 | G48: =$B$48*CRent!$C10 -> 0 | H48: =$B$48*CRent!$C11 -> 0 | I48: =$B$48*CRent!$C12 -> 0 | J48: =$B$48*CRent!$C13 -> 0 | K48: =$B$48*CRent!$C14 -> 0 | L48: =$B$48*CRent!$C15 -> 0 | M48: =$B$48*CRent!$C16 -> 0 | N48: =$B$48*CRent!$C17 -> 0 | O48: 0 | AA48: Rent | AB48: =Budget!BB6 -> 0 | AC48: =$B$48*CRent!$C6 -> 0 | AD48: =$B$48*CRent!$C7 -> 0 | AE48: =$B$48*CRent!$C8 -> 0 | AF48: =$B$48*CRent!$C9 -> 0 | AG48: =$B$48*CRent!$C10 -> 0 | AH48: =$B$48*CRent!$C11 -> 0 | AI48: =$B$48*CRent!$C12 -> 0 | AJ48: =$B$48*CRent!$C13 -> 0 | AK48: =$B$48*CRent!$C14 -> 0 | AL48: =$B$48*CRent!$C15 -> 0 | AM48: =$B$48*CRent!$C16 -> 0 | AN48: =$B$48*CRent!$C17 -> 0 | AO48: 0
A49: Total | B49: =SUM(B15:B48)-SUM(B4:B13) -> -37.229865 | C49: =SUM(C15:C48)-SUM(C4:C13) -> 5 | D49: =SUM(D15:D48)-SUM(D4:D13) -> 0 | E49: 64.510135 | F49: 140.21 | G49: 45.02 | H49: 34.57 | I49: 0 | J49: 0 | K49: 0 | L49: -326.54 | M49: 0 | N49: 0 | P49: Ttl Oper | AA49: Total | AB49: =SUM(AB15:AB48)-SUM(AB4:AB13) -> -37.229865 | AC49: 5 | AD49: 0 | AE49: 64.510135 | AF49: 140.21 | AG49: 45.02 | AH49: 34.57 | AI49: 0 | AJ49: 0 | AK49: 0 | AL49: -326.54 | AM49: 0 | AN49: 0 | AP49: Ttl Oper
A50: Part of year | C50: =C49*IF(C49<0,0,C51)/12 -> 3.75 | D50: =D49*IF(D49<0,0,D51)/12 -> 0 | E50: 37.63091208 | F50: 70.105 | G50: 18.75833333 | H50: 11.52333333 | I50: 0 | J50: 0 | K50: 0 | L50: 0 | M50: 0 | N50: 0 | P50: =SUM(C50:N50) -> 141.7675788 | AA50: Part of year | AC50: =AC49*IF(AC49<0,0,AC51)/12 -> 3.75 | AD50: =AD49*IF(AD49<0,0,AD51)/12 -> 0 | AE50: 37.63091208 | AF50: 70.105 | AG50: 18.75833333 | AH50: 11.52333333 | AI50: 0 | AJ50: 0 | AK50: 0 | AL50: 0 | AM50: 0 | AN50: 0 | AP50: =SUM(AC50:AN50) -> 141.7675788
C51: =+C64 -> 9 | D51: =+D64 -> 8 | E51: 7 | F51: 6 | G51: 5 | H51: 4 | I51: 3 | J51: 2 | K51: 1 | L51: 0 | M51: 11 | N51: 10 | AC51: =+C51 -> 9 | AD51: =+D51 -> 8 | AE51: 7 | AF51: 6 | AG51: 5 | AH51: 4 | AI51: 3 | AJ51: 2 | AK51: 1 | AL51: 0 | AM51: 11 | AN51: 10
C52: =+IF(Parameters!$P$14=C1,0,"") ->  | D52: =+IF(Parameters!$P$14=D1,0,"") ->  | E52: =+IF(Parameters!$P$14=E1,0,"") ->  | F52: =+IF(Parameters!$P$14=F1,0,"") ->  | G52: =+IF(Parameters!$P$14=G1,0,"") ->  | H52: =+IF(Parameters!$P$14=H1,0,"") ->  | I52: =+IF(Parameters!$P$14=I1,0,"") ->  | J52: =+IF(Parameters!$P$14=J1,0,"") ->  | K52: =+IF(Parameters!$P$14=K1,0,"") ->  | L52: =+IF(Parameters!$P$14=L1,0,"") -> 0 | M52: =+IF(Parameters!$P$14=M1,0,"") ->  | N52: =+IF(Parameters!$P$14=N1,0,"") -> 
C53: =+IF(N52=0,11,"") ->  | D53: =+IF(C52=0,11,"") ->  | E53: =+IF(D52=0,11,"") ->  | M53: 11
C54: =+IF(N53=11,10,"") ->  | D54: =+IF(C53=11,10,"") ->  | E54: =+IF(D53=11,10,"") ->  | N54: 10
C55: =+IF(N54=10,9,"") -> 9 | D55: =+IF(C54=10,9,"") ->  | E55: =+IF(D54=10,9,"") -> 
C56: =+IF(N55=9,8,"") ->  | D56: =+IF(C55=9,8,"") -> 8 | E56: =+IF(D55=9,8,"") -> 
C57: =+IF(N56=8,7,"") ->  | D57: =+IF(C56=8,7,"") ->  | E57: =+IF(D56=8,7,"") -> 7
C58: =+IF(N57=7,6,"") ->  | D58: =+IF(C57=7,6,"") ->  | E58: =+IF(D57=7,6,"") ->  | F58: 6
C59: =+IF(N58=6,5,"") ->  | D59: =+IF(C58=6,5,"") ->  | E59: =+IF(D58=6,5,"") ->  | G59: 5
C60: =+IF(N59=5,4,"") ->  | D60: =+IF(C59=5,4,"") ->  | E60: =+IF(D59=5,4,"") ->  | H60: 4
C61: =+IF(N60=4,3,"") ->  | D61: =+IF(C60=4,3,"") ->  | E61: =+IF(D60=4,3,"") ->  | I61: 3
C62: =+IF(N61=3,2,"") ->  | D62: =+IF(C61=3,2,"") ->  | E62: =+IF(D61=3,2,"") ->  | J62: 2
C63: =+IF(N62=2,1,"") ->  | D63: =+IF(C62=2,1,"") ->  | E63: =+IF(D62=2,1,"") ->  | K63: 1
C64: =+SUM(C52:C63) -> 9 | D64: =+SUM(D52:D63) -> 8 | E64: 7 | F64: 6 | G64: 5 | H64: 4 | I64: 3 | J64: 2 | K64: 1 | L64: 0 | M64: 11 | N64: 10
B68: 0 | O68: =SUM(C68:N68) -> 0
A69: machinery ins | B69: =+IF(Budget!BB$5="share",Machinery!AB25+Machinery!AD25,Machinery!AF25+Machinery!Z25)*IF(Budget!BB$32,1,0) -> 0 | C69: =+$B69*Machinery!V50/100 -> 0 | D69: =+$B69*Machinery!W50/100 -> 0 | E69: =+$B69*Machinery!X50/100 -> 0 | F69: =+$B69*Machinery!Y50/100 -> 0 | G69: =+$B69*Machinery!Z50/100 -> 0 | H69: =+$B69*Machinery!AA50/100 -> 0 | I69: =+$B69*Machinery!AB50/100 -> 0 | J69: =+$B69*Machinery!AC50/100 -> 0 | K69: =+$B69*Machinery!AD50/100 -> 0 | L69: =+$B69*Machinery!AE50/100 -> 0 | M69: =+$B69*Machinery!AF50/100 -> 0 | N69: =+$B69*Machinery!AG50/100 -> 0 | O69: 0
A70: irrig ins | B70: =+IF(Budget!BB$5="share",Machinery!AC25,Machinery!Y25)*IF(Budget!BB$32,1,0) -> 0 | C70: =+$B70*Irrig!BA61/100 -> 0 | D70: =+$B70*Irrig!BB61/100 -> 0 | E70: =+$B70*Irrig!BC61/100 -> 0 | F70: =+$B70*Irrig!BD61/100 -> 0 | G70: =+$B70*Irrig!BE61/100 -> 0 | H70: =+$B70*Irrig!BF61/100 -> 0 | I70: =+$B70*Irrig!BG61/100 -> 0 | J70: =+$B70*Irrig!BH61/100 -> 0 | K70: =+$B70*Irrig!BI61/100 -> 0 | L70: =+$B70*Irrig!BJ61/100 -> 0 | M70: =+$B70*Irrig!BK61/100 -> 0 | N70: =+$B70*Irrig!BL61/100 -> 0 | O70: 0
B71: 0 | O71: 0
A72: machinery tax | B72: =+IF(Budget!BB$5="share",Machinery!AB26+Machinery!AD26,Machinery!AF26+Machinery!Z26)*IF(Budget!BB$30,1,0) -> 0 | C72: =+$B72*Machinery!V45/100 -> 0 | D72: =+$B72*Machinery!W45/100 -> 0 | E72: =+$B72*Machinery!X45/100 -> 0 | F72: =+$B72*Machinery!Y45/100 -> 0 | G72: =+$B72*Machinery!Z45/100 -> 0 | H72: =+$B72*Machinery!AA45/100 -> 0 | I72: =+$B72*Machinery!AB45/100 -> 0 | J72: =+$B72*Machinery!AC45/100 -> 0 | K72: =+$B72*Machinery!AD45/100 -> 0 | L72: =+$B72*Machinery!AE45/100 -> 0 | M72: =+$B72*Machinery!AF45/100 -> 0 | N72: =+$B72*Machinery!AG45/100 -> 0 | O72: 0
A73: irrig tax | B73: =+IF(Budget!BB$5="share",Machinery!AC26,Machinery!Y26)*IF(Budget!BB$30,1,0) -> 0 | C73: =+$B73*Irrig!BA56/100 -> 0 | D73: =+$B73*Irrig!BB56/100 -> 0 | E73: =+$B73*Irrig!BC56/100 -> 0 | F73: =+$B73*Irrig!BD56/100 -> 0 | G73: =+$B73*Irrig!BE56/100 -> 0 | H73: =+$B73*Irrig!BF56/100 -> 0 | I73: =+$B73*Irrig!BG56/100 -> 0 | J73: =+$B73*Irrig!BH56/100 -> 0 | K73: =+$B73*Irrig!BI56/100 -> 0 | L73: =+$B73*Irrig!BJ56/100 -> 0 | M73: =+$B73*Irrig!BK56/100 -> 0 | N73: =+$B73*Irrig!BL56/100 -> 0 | O73: 0
A74: land tax | B74: =+IF(Budget!$BB$5="share",Budget!$H$38,Budget!$G$38)*IF(Budget!$BB$31,1,0) -> 3.9 | C74: =+$B74*Parameters!P24/100 -> 3.9 | D74: =+$B74*Parameters!Q24/100 -> 0 | E74: =+$B74*Parameters!R24/100 -> 0 | F74: =+$B74*Parameters!S24/100 -> 0 | G74: =+$B74*Parameters!T24/100 -> 0 | H74: =+$B74*Parameters!U24/100 -> 0 | I74: =+$B74*Parameters!V24/100 -> 0 | J74: =+$B74*Parameters!W24/100 -> 0 | K74: =+$B74*Parameters!X24/100 -> 0 | L74: =+$B74*Parameters!Y24/100 -> 0 | M74: =+$B74*Parameters!Z24/100 -> 0 | N74: =+$B74*Parameters!AA24/100 -> 0 | O74: 3.9
B75: =+SUM(B68:B74) -> 3.9

Sheet IFFS (hidden)
A1: ENTERPRISE BUDGET WORKSHEET | G1: NAME: | K1: DATE: | N1: FIELD: | R1: File: | S1: CornIffs | BA1: Save
C2: Enterprise: | E2: Dryland Corn Enterprise Budget
B4: Number of acres: | E4: 160 | G4: Quantity stored: | I4: =0*E4 -> 0 | J4: bu.
B5: Acres Harvested | E5: 160
B6: Yield: per acre | E6: 80 | F6: bu/ac
B7: Price: $/bushel $ | E7: 4.25 | F7: /bu. | O7: Percent change in costs | S7: 0 | T7: %
B8: Operator's share | E8: 100 | F8: %
G9: Interest rate | I9: 4.5 | J9: % | R9: Error Check | T9: =IF(MAX(ABS(MIN(U18:U55)),MAX(U18:U55))<0.5,0,MAX(ABS(MIN(U18:U55)),MAX(U18:U55))) -> 0
G10: Interest Starting Month: January | AC10: Percent Allocation
G11: PER | U11: Error
G12: UNIT | H12: TOTAL | I12: JAN | J12: FEB | K12: MAR | L12: APR | M12: MAY | N12: JUN | O12: JUL | P12: AUG | Q12: SEP | R12: OCT | S12: NOV | T12: DEC | U12: Check | X12: JAN | Y12: FEB | Z12: MAR | AA12: APR | AB12: MAY | AC12: JUN | AD12: JUL | AE12: AUG | AF12: SEP | AG12: OCT | AH12: NOV | AI12: DEC | AJ12: Per Unit | AN12: JAN | AO12: FEB | AP12: MAR | AQ12: APR | AR12: MAY | AS12: JUN | AT12: JUL | AU12: AUG | AV12: SEP | AW12: OCT | AX12: NOV | AY12: DEC
B14: << OPERATING RECEIPTS >>
B15: Livestock sales:
B16: Description | D16: unit | E16: price | F16: quan.
B17: - | C17: ---- | D17: ---- | E17: ----- | F17: -----
A18: > | G18: =E18*F18 -> 0 | H18: =(G18*E4) -> 0 | U18: =SUM(I18:T18)-H18 -> 0
A19: > | G19: =E19*F19 -> 0 | H19: =(G19*E4) -> 0 | U19: =SUM(I19:T19)-H19 -> 0
A20: > | G20: =E20*F20 -> 0 | H20: =(G20*E4) -> 0 | U20: =SUM(I20:T20)-H20 -> 0
A21: > | G21: =E21*F21 -> 0 | H21: =(G21*E4) -> 0 | U21: =SUM(I21:T21)-H21 -> 0
B22: Crop sales:
B23: Description | D23: unit | E23: price | F23: quan.
B24: - | C24: ---- | D24: ---- | E24: ----- | F24: -----
A25: > | B25: Corn | D25: bu | E25: =($E$7) -> 4.25 | F25: =($E$6) -> 80 | G25: =(($E$25*$F$25)*($E$8/100)*($E$5/$E$4))-($I$4*$E$7/$E$4) -> 340 | H25: =($G$25*$E$4) -> 54400 | R25: =$H25/100*100 -> 54400 | U25: =SUM(I25:T25)-H25 -> 0 | X25: =IF(Oper_Int!$B4<>0,Oper_Int!C4/Oper_Int!$B$4,0) -> 0 | Y25: =IF(Oper_Int!$B4<>0,Oper_Int!D4/Oper_Int!$B$4,0) -> 0 | Z25: =IF(Oper_Int!$B4<>0,Oper_Int!E4/Oper_Int!$B$4,0) -> 0 | AA25: =IF(Oper_Int!$B4<>0,Oper_Int!F4/Oper_Int!$B$4,0) -> 0 | AB25: =IF(Oper_Int!$B4<>0,Oper_Int!G4/Oper_Int!$B$4,0) -> 0 | AC25: =IF(Oper_Int!$B4<>0,Oper_Int!H4/Oper_Int!$B$4,0) -> 0 | AD25: =IF(Oper_Int!$B4<>0,Oper_Int!I4/Oper_Int!$B$4,0) -> 0 | AE25: =IF(Oper_Int!$B4<>0,Oper_Int!J4/Oper_Int!$B$4,0) -> 0 | AF25: =IF(Oper_Int!$B4<>0,Oper_Int!K4/Oper_Int!$B$4,0) -> 0 | AG25: =IF(Oper_Int!$B4<>0,Oper_Int!L4/Oper_Int!$B$4,0) -> 1 | AH25: =IF(Oper_Int!$B4<>0,Oper_Int!M4/Oper_Int!$B$4,0) -> 0 | AI25: =IF(Oper_Int!$B4<>0,Oper_Int!N4/Oper_Int!$B$4,0) -> 0 | AJ25: xxx | AW25: =$H25/100*100 -> 54400
A26: > | G26: =E26*F26 -> 0 | H26: =(G26*$E$4) -> 0 | U26: =SUM(I26:T26)-H26 -> 0 | AJ26: xxx
A27: > | B27: Government payments | E27: (totals) | G27: 0 | H27: =(G27*$E$4) -> 0 | U27: =SUM(I27:T27)-H27 -> 0 | X27: =IF(SUM(Oper_Int!$B$6:$B$7)<>0,SUM(Oper_Int!C6:C7)/SUM(Oper_Int!$B$6:$B$7),0) -> 0 | Y27: =IF(SUM(Oper_Int!$B$6:$B$7)<>0,SUM(Oper_Int!D6:D7)/SUM(Oper_Int!$B$6:$B$7),0) -> 0 | Z27: =IF(SUM(Oper_Int!$B$6:$B$7)<>0,SUM(Oper_Int!E6:E7)/SUM(Oper_Int!$B$6:$B$7),0) -> 0 | AA27: =IF(SUM(Oper_Int!$B$6:$B$7)<>0,SUM(Oper_Int!F6:F7)/SUM(Oper_Int!$B$6:$B$7),0) -> 0 | AB27: =IF(SUM(Oper_Int!$B$6:$B$7)<>0,SUM(Oper_Int!G6:G7)/SUM(Oper_Int!$B$6:$B$7),0) -> 0 | AC27: =IF(SUM(Oper_Int!$B$6:$B$7)<>0,SUM(Oper_Int!H6:H7)/SUM(Oper_Int!$B$6:$B$7),0) -> 0 | AD27: =IF(SUM(Oper_Int!$B$6:$B$7)<>0,SUM(Oper_Int!I6:I7)/SUM(Oper_Int!$B$6:$B$7),0) -> 0 | AE27: =IF(SUM(Oper_Int!$B$6:$B$7)<>0,SUM(Oper_Int!J6:J7)/SUM(Oper_Int!$B$6:$B$7),0) -> 0 | AF27: =IF(SUM(Oper_Int!$B$6:$B$7)<>0,SUM(Oper_Int!K6:K7)/SUM(Oper_Int!$B$6:$B$7),0) -> 0 | AG27: =IF(SUM(Oper_Int!$B$6:$B$7)<>0,SUM(Oper_Int!L6:L7)/SUM(Oper_Int!$B$6:$B$7),0) -> 0 | AH27: =IF(SUM(Oper_Int!$B$6:$B$7)<>0,SUM(Oper_Int!M6:M7)/SUM(Oper_Int!$B$6:$B$7),0) -> 0 | AI27: =IF(SUM(Oper_Int!$B$6:$B$7)<>0,SUM(Oper_Int!N6:N7)/SUM(Oper_Int!$B$6:$B$7),0) -> 0 | AJ27: =SUM(Oper_Int!B6:B7) -> 0
A28: > | B28: Other farm income | E28: (totals) | G28: 0 | H28: =(G28*$E$4) -> 0 | U28: =SUM(I28:T28)-H28 -> 0 | X28: =IF(SUM(Oper_Int!$B$8:$B$13)<>0,SUM(Oper_Int!C8:C13)/SUM(Oper_Int!$B$8:$B$13),0) -> 0 | Y28: =IF(SUM(Oper_Int!$B$8:$B$13)<>0,SUM(Oper_Int!D8:D13)/SUM(Oper_Int!$B$8:$B$13),0) -> 0 | Z28: =IF(SUM(Oper_Int!$B$8:$B$13)<>0,SUM(Oper_Int!E8:E13)/SUM(Oper_Int!$B$8:$B$13),0) -> 0 | AA28: =IF(SUM(Oper_Int!$B$8:$B$13)<>0,SUM(Oper_Int!F8:F13)/SUM(Oper_Int!$B$8:$B$13),0) -> 0 | AB28: =IF(SUM(Oper_Int!$B$8:$B$13)<>0,SUM(Oper_Int!G8:G13)/SUM(Oper_Int!$B$8:$B$13),0) -> 0 | AC28: =IF(SUM(Oper_Int!$B$8:$B$13)<>0,SUM(Oper_Int!H8:H13)/SUM(Oper_Int!$B$8:$B$13),0) -> 0 | AD28: =IF(SUM(Oper_Int!$B$8:$B$13)<>0,SUM(Oper_Int!I8:I13)/SUM(Oper_Int!$B$8:$B$13),0) -> 0 | AE28: =IF(SUM(Oper_Int!$B$8:$B$13)<>0,SUM(Oper_Int!J8:J13)/SUM(Oper_Int!$B$8:$B$13),0) -> 0 | AF28: =IF(SUM(Oper_Int!$B$8:$B$13)<>0,SUM(Oper_Int!K8:K13)/SUM(Oper_Int!$B$8:$B$13),0) -> 0 | AG28: =IF(SUM(Oper_Int!$B$8:$B$13)<>0,SUM(Oper_Int!L8:L13)/SUM(Oper_Int!$B$8:$B$13),0) -> 0 | AH28: =IF(SUM(Oper_Int!$B$8:$B$13)<>0,SUM(Oper_Int!M8:M13)/SUM(Oper_Int!$B$8:$B$13),0) -> 0 | AI28: =IF(SUM(Oper_Int!$B$8:$B$13)<>0,SUM(Oper_Int!N8:N13)/SUM(Oper_Int!$B$8:$B$13),0) -> 0 | AJ28: =SUM(Oper_Int!B8:B13) -> 0
A29: > | E29: (totals) | H29: =(G29*$E$4) -> 0 | U29: =SUM(I29:T29)-H29 -> 0
B30: TOTAL CASH OPERATING RECEIPTS | G30: =SUM(G18:G29) -> 340 | H30: 54400 | I30: 0 | J30: 0 | K30: 0 | L30: 0 | M30: 0 | N30: 0 | O30: 0 | P30: 0 | Q30: 0 | R30: 54400 | S30: 0 | T30: 0 | AN30: =SUM(AN18:AN29) -> 0 | AO30: 0 | AP30: 0 | AQ30: 0 | AR30: 0 | AS30: 0 | AT30: 0 | AU30: 0 | AV30: 0 | AW30: 54400 | AX30: 0 | AY30: 0
B32: << OPERATING EXPENSES >>
B33: Custom Hire (machine work) | G33: 45.6 | H33: =IF(A33<>1,(G33*$E$4),(G33*$E$4)*(100+$S$7)/100) -> 7296 | R33: =$H33/100*100 -> 7296 | U33: =SUM(I33:T33)-H33 -> 0 | X33: =IF($AJ$33<>0,(Oper_Int!C25+Oper_Int!C26)/IFFS!$AJ$33*100,0) -> 0 | Y33: =IF($AJ$33<>0,(Oper_Int!D25+Oper_Int!D26)/IFFS!$AJ$33*100,0) -> 0 | Z33: =IF($AJ$33<>0,(Oper_Int!E25+Oper_Int!E26)/IFFS!$AJ$33*100,0) -> 13.04379831 | AA33: =IF($AJ$33<>0,(Oper_Int!F25+Oper_Int!F26)/IFFS!$AJ$33*100,0) -> 19.30806036 | AB33: =IF($AJ$33<>0,(Oper_Int!G25+Oper_Int!G26)/IFFS!$AJ$33*100,0) -> 4.284136916 | AC33: =IF($AJ$33<>0,(Oper_Int!H25+Oper_Int!H26)/IFFS!$AJ$33*100,0) -> 4.284136916 | AD33: =IF($AJ$33<>0,(Oper_Int!I25+Oper_Int!I26)/IFFS!$AJ$33*100,0) -> 0 | AE33: =IF($AJ$33<>0,(Oper_Int!J25+Oper_Int!J26)/IFFS!$AJ$33*100,0) -> 0 | AF33: =IF($AJ$33<>0,(Oper_Int!K25+Oper_Int!K26)/IFFS!$AJ$33*100,0) -> 0 | AG33: =IF($AJ$33<>0,(Oper_Int!L25+Oper_Int!L26)/IFFS!$AJ$33*100,0) -> 59.0798675 | AH33: =IF($AJ$33<>0,(Oper_Int!M25+Oper_Int!M26)/IFFS!$AJ$33*100,0) -> 0 | AI33: =IF($AJ$33<>0,(Oper_Int!N25+Oper_Int!N26)/IFFS!$AJ$33*100,0) -> 0 | AJ33: =Oper_Int!B25+Oper_Int!B26 -> 135.85 | AW33: =$H33/100*100 -> 7296
B34: Feed Purchased | G34: 0 | H34: 0 | U34: 0 | AJ34: 0
B35: Fertilizer, Lime, Chemicals | G35: 83.98402439 | H35: 13437.4439 | K35: =$H35/100*76.1978541215011 -> 10239.0439 | L35: =$H35/100*23.802145878499 -> 3198.4 | U35: 0 | X35: =IF($AJ$35<>0,(SUM(Oper_Int!C16:C24)+SUM(Oper_Int!C27:C34))/IFFS!$AJ$35*100,0) -> 0 | Y35: =IF($AJ$35<>0,(SUM(Oper_Int!D16:D24)+SUM(Oper_Int!D27:D34))/IFFS!$AJ$35*100,0) -> 0 | Z35: =IF($AJ$35<>0,(SUM(Oper_Int!E16:E24)+SUM(Oper_Int!E27:E34))/IFFS!$AJ$35*100,0) -> 30.43852063 | AA35: =IF($AJ$35<>0,(SUM(Oper_Int!F16:F24)+SUM(Oper_Int!F27:F34))/IFFS!$AJ$35*100,0) -> 25.35777112 | AB35: =IF($AJ$35<>0,(SUM(Oper_Int!G16:G24)+SUM(Oper_Int!G27:G34))/IFFS!$AJ$35*100,0) -> 25.50088835 | AC35: =IF($AJ$35<>0,(SUM(Oper_Int!H16:H24)+SUM(Oper_Int!H27:H34))/IFFS!$AJ$35*100,0) -> 18.7028199 | AD35: =IF($AJ$35<>0,(SUM(Oper_Int!I16:I24)+SUM(Oper_Int!I27:I34))/IFFS!$AJ$35*100,0) -> 0 | AE35: =IF($AJ$35<>0,(SUM(Oper_Int!J16:J24)+SUM(Oper_Int!J27:J34))/IFFS!$AJ$35*100,0) -> 0 | AF35: =IF($AJ$35<>0,(SUM(Oper_Int!K16:K24)+SUM(Oper_Int!K27:K34))/IFFS!$AJ$35*100,0) -> 0 | AG35: =IF($AJ$35<>0,(SUM(Oper_Int!L16:L24)+SUM(Oper_Int!L27:L34))/IFFS!$AJ$35*100,0) -> 0 | AH35: =IF($AJ$35<>0,(SUM(Oper_Int!M16:M24)+SUM(Oper_Int!M27:M34))/IFFS!$AJ$35*100,0) -> 0 | AI35: =IF($AJ$35<>0,(SUM(Oper_Int!N16:N24)+SUM(Oper_Int!N27:N34))/IFFS!$AJ$35*100,0) -> 0 | AJ35: =SUM(Oper_Int!B16:B24)+SUM(Oper_Int!B27:B34) -> 153.720135 | AP35: =$H35/100*76.1978541215011 -> 10239.0439 | AQ35: =$H35/100*23.802145878499 -> 3198.4
B36: Freight, Trucking | G36: 0 | H36: 0 | U36: 0 | AJ36: 0
B37: Fuel, Lubricants | G37: 14.715 | H37: 2354.4 | K37: =$H37/100*68.0020811654527 -> 1601.040999 | L37: =$H37/100*31.9979188345474 -> 753.359001 | U37: 0 | X37: =IF(Oper_Int!$B$36+Oper_Int!$B$38<>0,(Oper_Int!C$36+Oper_Int!C$38)/(Oper_Int!$B$36+Oper_Int!$B$38)*100,0) -> 0 | Y37: =IF(Oper_Int!$B$36+Oper_Int!$B$38<>0,(Oper_Int!D$36+Oper_Int!D$38)/(Oper_Int!$B$36+Oper_Int!$B$38)*100,0) -> 0 | Z37: =IF(Oper_Int!$B$36+Oper_Int!$B$38<>0,(Oper_Int!E$36+Oper_Int!E$38)/(Oper_Int!$B$36+Oper_Int!$B$38)*100,0) -> 0 | AA37: =IF(Oper_Int!$B$36+Oper_Int!$B$38<>0,(Oper_Int!F$36+Oper_Int!F$38)/(Oper_Int!$B$36+Oper_Int!$B$38)*100,0) -> 0 | AB37: =IF(Oper_Int!$B$36+Oper_Int!$B$38<>0,(Oper_Int!G$36+Oper_Int!G$38)/(Oper_Int!$B$36+Oper_Int!$B$38)*100,0) -> 0 | AC37: =IF(Oper_Int!$B$36+Oper_Int!$B$38<>0,(Oper_Int!H$36+Oper_Int!H$38)/(Oper_Int!$B$36+Oper_Int!$B$38)*100,0) -> 0 | AD37: =IF(Oper_Int!$B$36+Oper_Int!$B$38<>0,(Oper_Int!I$36+Oper_Int!I$38)/(Oper_Int!$B$36+Oper_Int!$B$38)*100,0) -> 0 | AE37: =IF(Oper_Int!$B$36+Oper_Int!$B$38<>0,(Oper_Int!J$36+Oper_Int!J$38)/(Oper_Int!$B$36+Oper_Int!$B$38)*100,0) -> 0 | AF37: =IF(Oper_Int!$B$36+Oper_Int!$B$38<>0,(Oper_Int!K$36+Oper_Int!K$38)/(Oper_Int!$B$36+Oper_Int!$B$38)*100,0) -> 0 | AG37: =IF(Oper_Int!$B$36+Oper_Int!$B$38<>0,(Oper_Int!L$36+Oper_Int!L$38)/(Oper_Int!$B$36+Oper_Int!$B$38)*100,0) -> 0 | AH37: =IF(Oper_Int!$B$36+Oper_Int!$B$38<>0,(Oper_Int!M$36+Oper_Int!M$38)/(Oper_Int!$B$36+Oper_Int!$B$38)*100,0) -> 0 | AI37: =IF(Oper_Int!$B$36+Oper_Int!$B$38<>0,(Oper_Int!N$36+Oper_Int!N$38)/(Oper_Int!$B$36+Oper_Int!$B$38)*100,0) -> 0 | AJ37: =IF(Budget!BB5="share",Oper_Int!$B$36*(1-Irrig!BH3)+Oper_Int!$B$38-IF(Machinery!V32=FALSE,Machinery!AB21,0)-Machinery!AD21,Oper_Int!$B$36*(1-Irrig!BH3)+Oper_Int!$B$38-IF(Machinery!V32=FALSE,Machinery!AA21,0)) -> 0 | AP37: =$H37/100*68.0020811654527 -> 1601.040999 | AQ37: =$H37/100*31.9979188345474 -> 753.359001
B38: Insurance | G38: 13.90469931 | H38: 2224.75189 | I38: =$H38/100*13.6982416482688 -> 304.75189 | R38: =$H38/100*86.3017583517312 -> 1920 | U38: 0 | X38: =IF($AJ$38<>0,(Oper_Int!C47+SUM(Oper_Int!C69:C70))/$AJ$38*100,0) -> 0 | Y38: =IF($AJ$38<>0,(Oper_Int!D47+SUM(Oper_Int!D69:D70))/$AJ$38*100,0) -> 0 | Z38: =IF($AJ$38<>0,(Oper_Int!E47+SUM(Oper_Int!E69:E70))/$AJ$38*100,0) -> 0 | AA38: =IF($AJ$38<>0,(Oper_Int!F47+SUM(Oper_Int!F69:F70))/$AJ$38*100,0) -> 0 | AB38: =IF($AJ$38<>0,(Oper_Int!G47+SUM(Oper_Int!G69:G70))/$AJ$38*100,0) -> 0 | AC38: =IF($AJ$38<>0,(Oper_Int!H47+SUM(Oper_Int!H69:H70))/$AJ$38*100,0) -> 0 | AD38: =IF($AJ$38<>0,(Oper_Int!I47+SUM(Oper_Int!I69:I70))/$AJ$38*100,0) -> 0 | AE38: =IF($AJ$38<>0,(Oper_Int!J47+SUM(Oper_Int!J69:J70))/$AJ$38*100,0) -> 0 | AF38: =IF($AJ$38<>0,(Oper_Int!K47+SUM(Oper_Int!K69:K70))/$AJ$38*100,0) -> 0 | AG38: =IF($AJ$38<>0,(Oper_Int!L47+SUM(Oper_Int!L69:L70))/$AJ$38*100,0) -> 100 | AH38: =IF($AJ$38<>0,(Oper_Int!M47+SUM(Oper_Int!M69:M70))/$AJ$38*100,0) -> 0 | AI38: =IF($AJ$38<>0,(Oper_Int!N47+SUM(Oper_Int!N69:N70))/$AJ$38*100,0) -> 0 | AJ38: =Oper_Int!B47+SUM(Oper_Int!B69:B70) -> 20 | AN38: =$H38/100*13.6982416482688 -> 304.75189 | AW38: =$H38/100*86.3017583517312 -> 1920
B39: Labor Hired | G39: 11.1 | H39: 1776 | K39: =$H39/100*68.0020811654527 -> 1207.716961 | L39: =$H39/100*31.9979188345474 -> 568.2830385 | U39: 1.818989404e-12 | X39: =IF((Oper_Int!$B$37+Oper_Int!$B$35)<>0,(Oper_Int!C37+Oper_Int!C35)/(Oper_Int!$B$37+Oper_Int!$B$35)*100,0) -> 0 | Y39: =IF((Oper_Int!$B$37+Oper_Int!$B$35)<>0,(Oper_Int!D37+Oper_Int!D35)/(Oper_Int!$B$37+Oper_Int!$B$35)*100,0) -> 0 | Z39: =IF((Oper_Int!$B$37+Oper_Int!$B$35)<>0,(Oper_Int!E37+Oper_Int!E35)/(Oper_Int!$B$37+Oper_Int!$B$35)*100,0) -> 0 | AA39: =IF((Oper_Int!$B$37+Oper_Int!$B$35)<>0,(Oper_Int!F37+Oper_Int!F35)/(Oper_Int!$B$37+Oper_Int!$B$35)*100,0) -> 0 | AB39: =IF((Oper_Int!$B$37+Oper_Int!$B$35)<>0,(Oper_Int!G37+Oper_Int!G35)/(Oper_Int!$B$37+Oper_Int!$B$35)*100,0) -> 0 | AC39: =IF((Oper_Int!$B$37+Oper_Int!$B$35)<>0,(Oper_Int!H37+Oper_Int!H35)/(Oper_Int!$B$37+Oper_Int!$B$35)*100,0) -> 0 | AD39: =IF((Oper_Int!$B$37+Oper_Int!$B$35)<>0,(Oper_Int!I37+Oper_Int!I35)/(Oper_Int!$B$37+Oper_Int!$B$35)*100,0) -> 0 | AE39: =IF((Oper_Int!$B$37+Oper_Int!$B$35)<>0,(Oper_Int!J37+Oper_Int!J35)/(Oper_Int!$B$37+Oper_Int!$B$35)*100,0) -> 0 | AF39: =IF((Oper_Int!$B$37+Oper_Int!$B$35)<>0,(Oper_Int!K37+Oper_Int!K35)/(Oper_Int!$B$37+Oper_Int!$B$35)*100,0) -> 0 | AG39: =IF((Oper_Int!$B$37+Oper_Int!$B$35)<>0,(Oper_Int!L37+Oper_Int!L35)/(Oper_Int!$B$37+Oper_Int!$B$35)*100,0) -> 0 | AH39: =IF((Oper_Int!$B$37+Oper_Int!$B$35)<>0,(Oper_Int!M37+Oper_Int!M35)/(Oper_Int!$B$37+Oper_Int!$B$35)*100,0) -> 0 | AI39: =IF((Oper_Int!$B$37+Oper_Int!$B$35)<>0,(Oper_Int!N37+Oper_Int!N35)/(Oper_Int!$B$37+Oper_Int!$B$35)*100,0) -> 0 | AJ39: =Oper_Int!$B$37+Oper_Int!$B$35 -> 0 | AP39: =$H39/100*68.0020811654527 -> 1207.716961 | AQ39: =$H39/100*31.9979188345474 -> 568.2830385
B40: Rent | G40: 0 | H40: 0 | U40: 0 | X40: =IF(Oper_Int!$B$48<>0,Oper_Int!C48/Oper_Int!$B$48*100,0) -> 0 | Y40: =IF(Oper_Int!$B$48<>0,Oper_Int!D48/Oper_Int!$B$48*100,0) -> 0 | Z40: =IF(Oper_Int!$B$48<>0,Oper_Int!E48/Oper_Int!$B$48*100,0) -> 0 | AA40: =IF(Oper_Int!$B$48<>0,Oper_Int!F48/Oper_Int!$B$48*100,0) -> 0 | AB40: =IF(Oper_Int!$B$48<>0,Oper_Int!G48/Oper_Int!$B$48*100,0) -> 0 | AC40: =IF(Oper_Int!$B$48<>0,Oper_Int!H48/Oper_Int!$B$48*100,0) -> 0 | AD40: =IF(Oper_Int!$B$48<>0,Oper_Int!I48/Oper_Int!$B$48*100,0) -> 0 | AE40: =IF(Oper_Int!$B$48<>0,Oper_Int!J48/Oper_Int!$B$48*100,0) -> 0 | AF40: =IF(Oper_Int!$B$48<>0,Oper_Int!K48/Oper_Int!$B$48*100,0) -> 0 | AG40: =IF(Oper_Int!$B$48<>0,Oper_Int!L48/Oper_Int!$B$48*100,0) -> 0 | AH40: =IF(Oper_Int!$B$48<>0,Oper_Int!M48/Oper_Int!$B$48*100,0) -> 0 | AI40: =IF(Oper_Int!$B$48<>0,Oper_Int!N48/Oper_Int!$B$48*100,0) -> 0 | AJ40: =Oper_Int!B48 -> 0
B41: Repairs, Maintenance | G41: 14.06497842 | H41: 2250.396548 | K41: =$H41/100*68.0020811654527 -> 1530.316487 | L41: =$H41/100*31.9979188345474 -> 720.0800608 | U41: 0 | X41: =IF(Oper_Int!$B$36+Oper_Int!$B$38<>0,(Oper_Int!C$36+Oper_Int!C$38)/(Oper_Int!$B$36+Oper_Int!$B$38)*100,0) -> 0 | Y41: =IF(Oper_Int!$B$36+Oper_Int!$B$38<>0,(Oper_Int!D$36+Oper_Int!D$38)/(Oper_Int!$B$36+Oper_Int!$B$38)*100,0) -> 0 | Z41: =IF(Oper_Int!$B$36+Oper_Int!$B$38<>0,(Oper_Int!E$36+Oper_Int!E$38)/(Oper_Int!$B$36+Oper_Int!$B$38)*100,0) -> 0 | AA41: =IF(Oper_Int!$B$36+Oper_Int!$B$38<>0,(Oper_Int!F$36+Oper_Int!F$38)/(Oper_Int!$B$36+Oper_Int!$B$38)*100,0) -> 0 | AB41: =IF(Oper_Int!$B$36+Oper_Int!$B$38<>0,(Oper_Int!G$36+Oper_Int!G$38)/(Oper_Int!$B$36+Oper_Int!$B$38)*100,0) -> 0 | AC41: =IF(Oper_Int!$B$36+Oper_Int!$B$38<>0,(Oper_Int!H$36+Oper_Int!H$38)/(Oper_Int!$B$36+Oper_Int!$B$38)*100,0) -> 0 | AD41: =IF(Oper_Int!$B$36+Oper_Int!$B$38<>0,(Oper_Int!I$36+Oper_Int!I$38)/(Oper_Int!$B$36+Oper_Int!$B$38)*100,0) -> 0 | AE41: =IF(Oper_Int!$B$36+Oper_Int!$B$38<>0,(Oper_Int!J$36+Oper_Int!J$38)/(Oper_Int!$B$36+Oper_Int!$B$38)*100,0) -> 0 | AF41: =IF(Oper_Int!$B$36+Oper_Int!$B$38<>0,(Oper_Int!K$36+Oper_Int!K$38)/(Oper_Int!$B$36+Oper_Int!$B$38)*100,0) -> 0 | AG41: =IF(Oper_Int!$B$36+Oper_Int!$B$38<>0,(Oper_Int!L$36+Oper_Int!L$38)/(Oper_Int!$B$36+Oper_Int!$B$38)*100,0) -> 0 | AH41: =IF(Oper_Int!$B$36+Oper_Int!$B$38<>0,(Oper_Int!M$36+Oper_Int!M$38)/(Oper_Int!$B$36+Oper_Int!$B$38)*100,0) -> 0 | AI41: =IF(Oper_Int!$B$36+Oper_Int!$B$38<>0,(Oper_Int!N$36+Oper_Int!N$38)/(Oper_Int!$B$36+Oper_Int!$B$38)*100,0) -> 0 | AJ41: =IF(Budget!BB5="share",Oper_Int!$B$36*Irrig!BH3+Oper_Int!$B$38-IF(Machinery!$V$32=FALSE,SUM(Machinery!$AB$19:$AB$20),0)-SUM(Machinery!$AD$19:$AD$20),Oper_Int!$B$36*Irrig!BH3+Oper_Int!$B$38-IF(Machinery!$V$32=FALSE,SUM(Machinery!$AA$19:$AA$20),0)) -> 0 | AP41: =$H41/100*68.0020811654527 -> 1530.316487 | AQ41: =$H41/100*31.9979188345474 -> 720.0800608
B42: Seeds, Plants | G42: 62.5 | H42: 10000 | L42: =$H42/100*100 -> 10000 | U42: 0 | X42: =IF(Oper_Int!$B$15<>0,Oper_Int!C15/Oper_Int!$B$15*100,0) -> 0 | Y42: =IF(Oper_Int!$B$15<>0,Oper_Int!D15/Oper_Int!$B$15*100,0) -> 0 | Z42: =IF(Oper_Int!$B$15<>0,Oper_Int!E15/Oper_Int!$B$15*100,0) -> 0 | AA42: =IF(Oper_Int!$B$15<>0,Oper_Int!F15/Oper_Int!$B$15*100,0) -> 100 | AB42: =IF(Oper_Int!$B$15<>0,Oper_Int!G15/Oper_Int!$B$15*100,0) -> 0 | AC42: =IF(Oper_Int!$B$15<>0,Oper_Int!H15/Oper_Int!$B$15*100,0) -> 0 | AD42: =IF(Oper_Int!$B$15<>0,Oper_Int!I15/Oper_Int!$B$15*100,0) -> 0 | AE42: =IF(Oper_Int!$B$15<>0,Oper_Int!J15/Oper_Int!$B$15*100,0) -> 0 | AF42: =IF(Oper_Int!$B$15<>0,Oper_Int!K15/Oper_Int!$B$15*100,0) -> 0 | AG42: =IF(Oper_Int!$B$15<>0,Oper_Int!L15/Oper_Int!$B$15*100,0) -> 0 | AH42: =IF(Oper_Int!$B$15<>0,Oper_Int!M15/Oper_Int!$B$15*100,0) -> 0 | AI42: =IF(Oper_Int!$B$15<>0,Oper_Int!N15/Oper_Int!$B$15*100,0) -> 0 | AJ42: =Oper_Int!B15 -> 75 | AQ42: =$H42/100*100 -> 10000
B43: Storage, Warehousing | G43: 0 | H43: 0 | U43: 0 | AJ43: 0
B44: Supplies | G44: 0 | H44: 0 | U44: 0 | AJ44: 0
B45: Taxes | G45: 3.47458136 | H45: 555.9330176 | I45: =$H45/100*100 -> 555.9330176 | U45: 0 | X45: =IF($AJ$45<>0,SUM(Oper_Int!C72:C74)/$AJ$45*100,0) -> 100 | Y45: =IF($AJ$45<>0,SUM(Oper_Int!D72:D74)/$AJ$45*100,0) -> 0 | Z45: =IF($AJ$45<>0,SUM(Oper_Int!E72:E74)/$AJ$45*100,0) -> 0 | AA45: =IF($AJ$45<>0,SUM(Oper_Int!F72:F74)/$AJ$45*100,0) -> 0 | AB45: =IF($AJ$45<>0,SUM(Oper_Int!G72:G74)/$AJ$45*100,0) -> 0 | AC45: =IF($AJ$45<>0,SUM(Oper_Int!H72:H74)/$AJ$45*100,0) -> 0 | AD45: =IF($AJ$45<>0,SUM(Oper_Int!I72:I74)/$AJ$45*100,0) -> 0 | AE45: =IF($AJ$45<>0,SUM(Oper_Int!J72:J74)/$AJ$45*100,0) -> 0 | AF45: =IF($AJ$45<>0,SUM(Oper_Int!K72:K74)/$AJ$45*100,0) -> 0 | AG45: =IF($AJ$45<>0,SUM(Oper_Int!L72:L74)/$AJ$45*100,0) -> 0 | AH45: =IF($AJ$45<>0,SUM(Oper_Int!M72:M74)/$AJ$45*100,0) -> 0 | AI45: =IF($AJ$45<>0,SUM(Oper_Int!N72:N74)/$AJ$45*100,0) -> 0 | AJ45: =SUM(Oper_Int!B72:B74) -> 3.9 | AN45: =$H45/100*100 -> 555.9330176
B46: Utilities | G46: 0 | H46: 0 | U46: 0 | AJ46: 0
B47: Veterinary, Medicine | G47: 0 | H47: 0 | U47: 0 | AJ47: 0
B48: Miscellaneous | G48: 5 | H48: 800 | I48: =$H48/100*100 -> 800 | U48: 0 | X48: =IF($AJ$48<>0, (SUM(Oper_Int!C39:C46)/SUM(Oper_Int!$B$39:$B$46))*100,0) -> 100 | Y48: =IF($AJ$48<>0, (SUM(Oper_Int!D39:D46)/SUM(Oper_Int!$B$39:$B$46))*100,0) -> 0 | Z48: =IF($AJ$48<>0, (SUM(Oper_Int!E39:E46)/SUM(Oper_Int!$B$39:$B$46))*100,0) -> 0 | AA48: =IF($AJ$48<>0, (SUM(Oper_Int!F39:F46)/SUM(Oper_Int!$B$39:$B$46))*100,0) -> 0 | AB48: =IF($AJ$48<>0, (SUM(Oper_Int!G39:G46)/SUM(Oper_Int!$B$39:$B$46))*100,0) -> 0 | AC48: =IF($AJ$48<>0, (SUM(Oper_Int!H39:H46)/SUM(Oper_Int!$B$39:$B$46))*100,0) -> 0 | AD48: =IF($AJ$48<>0, (SUM(Oper_Int!I39:I46)/SUM(Oper_Int!$B$39:$B$46))*100,0) -> 0 | AE48: =IF($AJ$48<>0, (SUM(Oper_Int!J39:J46)/SUM(Oper_Int!$B$39:$B$46))*100,0) -> 0 | AF48: =IF($AJ$48<>0, (SUM(Oper_Int!K39:K46)/SUM(Oper_Int!$B$39:$B$46))*100,0) -> 0 | AG48: =IF($AJ$48<>0, (SUM(Oper_Int!L39:L46)/SUM(Oper_Int!$B$39:$B$46))*100,0) -> 0 | AH48: =IF($AJ$48<>0, (SUM(Oper_Int!M39:M46)/SUM(Oper_Int!$B$39:$B$46))*100,0) -> 0 | AI48: =IF($AJ$48<>0, (SUM(Oper_Int!N39:N46)/SUM(Oper_Int!$B$39:$B$46))*100,0) -> 0 | AJ48: =SUM(Oper_Int!B39:B46) -> 5 | AN48: =$H48/100*100 -> 800
G49: 0 | H49: 0 | U49: 0 | AJ49: 0
G50: 0 | H50: 0 | U50: 0 | AJ50: 0
B51: Livestock purchased for resale
B52: Description | D52: unit | E52: price | F52: quan.
B53: - | C53: ---- | D53: ---- | E53: ----- | F53: -----
A54: > | G54: 0 | H54: =(G54*$E$4) -> 0 | U54: =SUM(I54:T54)-H54 -> 0 | AJ54: 0
A55: > | G55: 0 | H55: =(G55*$E$4) -> 0 | U55: =SUM(I55:T55)-H55 -> 0 | AJ55: 0
B56: TOTAL CASH OPERATING EXPENSES | G56: =SUM(G33:G55) -> 254.3432835 | H56: 40694.92536 | I56: 1660.684908 | J56: 0 | K56: 14578.11835 | L56: 15240.1221 | M56: 0 | N56: 0 | O56: 0 | P56: 0 | Q56: 0 | R56: 9216 | S56: 0 | T56: 0 | AN56: =SUM(AN33:AN55) -> 1660.684908 | AO56: 0 | AP56: 14578.11835 | AQ56: 15240.1221 | AR56: 0 | AS56: 0 | AT56: 0 | AU56: 0 | AV56: 0 | AW56: 9216 | AX56: 0 | AY56: 0
B57: NET OPERATING (Rec - Exp) | G57: =IF($E$4=0,0,H57/$E$4) -> 85.65671651 | H57: =(H30-H56) -> 13705.07464 | I57: -1660.684908 | J57: 0 | K57: -14578.11835 | L57: -15240.1221 | M57: 0 | N57: 0 | O57: 0 | P57: 0 | Q57: 0 | R57: 45184 | S57: 0 | T57: 0 | AN57: =(AN30-AN56) -> -1660.684908 | AO57: 0 | AP57: -14578.11835 | AQ57: -15240.1221 | AR57: 0 | AS57: 0 | AT57: 0 | AU57: 0 | AV57: 0 | AW57: 45184 | AX57: 0 | AY57: 0
B59: Operating interest expense | G59: =IF($E$4=0,0,H59/$E$4) -> 4.885165435 | H59: =SUM(I59:T59) -> 781.6264696 | I59: =MAX(-SUM(O82)*($I$9/1200),0) -> 6.227568403 | J59: =MAX(-SUM(O82:P82)*($I$9/1200),0) -> 6.227568403 | K59: =MAX(-SUM(O82:Q82)*($I$9/1200),0) -> 60.89551222 | L59: =MAX(-SUM(O82:R82)*($I$9/1200),0) -> 118.0459701 | M59: =MAX(-SUM(O82:S82)*($I$9/1200),0) -> 118.0459701 | N59: =MAX(-SUM(O82:T82)*($I$9/1200),0) -> 118.0459701 | O59: =MAX(-SUM(O82:U82)*($I$9/1200),0) -> 118.0459701 | P59: =MAX(-SUM(O82:V82)*($I$9/1200),0) -> 118.0459701 | Q59: =MAX(-SUM(O82:W82)*($I$9/1200),0) -> 118.0459701 | R59: =MAX(-SUM(O82:X82)*($I$9/1200),0) -> 0 | S59: =MAX(-SUM(O82:Y82)*($I$9/1200),0) -> 0 | T59: =MAX(-SUM(O82:Z82)*($I$9/1200),0) -> 0 | AN59: =MAX(-SUM(AT82)*($I$9/1200),0) -> 0 | AO59: =MAX(-SUM(AT82:AU82)*($I$9/1200),0) -> 0 | AP59: =MAX(-SUM(AT82:AV82)*($I$9/1200),0) -> 0 | AQ59: =MAX(-SUM(AT82:AW82)*($I$9/1200),0) -> 0 | AR59: =MAX(-SUM(AT82:AX82)*($I$9/1200),0) -> 0 | AS59: =MAX(-SUM(AT82:AY82)*($I$9/1200),0) -> 0 | AT59: =MAX(-SUM(AT82:AZ82)*($I$9/1200),0) -> 0 | AU59: =MAX(-SUM(AT82:BA82)*($I$9/1200),0) -> 0 | AV59: =MAX(-SUM(AT82:BB82)*($I$9/1200),0) -> 0 | AW59: =MAX(-SUM(AT82:BC82)*($I$9/1200),0) -> 0 | AX59: =MAX(-SUM(AT82:BD82)*($I$9/1200),0) -> 0 | AY59: =MAX(-SUM(AT82:BE82)*($I$9/1200),0) -> 0
B60: Net Operating After Interest | G60: =IF($E$4=0,0,H60/$E$4) -> 80.77155108 | H60: =SUM(I60:T60) -> 12923.44817 | I60: =(I57-I59) -> -1666.912476 | J60: -6.227568403 | K60: -14639.01386 | L60: -15358.16807 | M60: -118.0459701 | N60: -118.0459701 | O60: -118.0459701 | P60: -118.0459701 | Q60: -118.0459701 | R60: 45184 | S60: 0 | T60: 0 | AN60: =(AN57-AN59) -> -1660.684908 | AO60: 0 | AP60: -14578.11835 | AQ60: -15240.1221 | AR60: 0 | AS60: 0 | AT60: 0 | AU60: 0 | AV60: 0 | AW60: 45184 | AX60: 0 | AY60: 0
B62: Contribut'n to Other Enterprise | H62: =G62*E4 -> 0 | U62: =SUM(I62:T62)-H62 -> 0
B63: Contribut'n of Other Enterprise | G63: 0 | H63: =G63*E4 -> 0 | U63: =SUM(I63:T63)-H63 -> 0 | X63: 0 | Y63: 0 | Z63: 0 | AA63: 0 | AB63: 0 | AC63: 0 | AD63: 0 | AE63: 0 | AF63: 0 | AG63: 0 | AH63: 0 | AI63: 0 | AJ63: 0
B64: Net after contribution | G64: =IF($E$4=0,0,H64/$E$4) -> 80.77155108 | H64: =SUM(I64:T64) -> 12923.44817 | I64: =I60+I62-I63 -> -1666.912476 | J64: -6.227568403 | K64: -14639.01386 | L64: -15358.16807 | M64: -118.0459701 | N64: -118.0459701 | O64: -118.0459701 | P64: -118.0459701 | Q64: -118.0459701 | R64: 45184 | S64: 0 | T64: 0
B65: Land or Other Fixed Charges | G65: 35.3 | H65: =G65*E4 -> 5648 | I65: =$H65/12 -> 470.6666667 | J65: 470.6666667 | K65: 470.6666667 | L65: 470.6666667 | M65: 470.6666667 | N65: 470.6666667 | O65: 470.6666667 | P65: 470.6666667 | Q65: 470.6666667 | R65: 470.6666667 | S65: 470.6666667 | T65: 470.6666667 | U65: =SUM(I65:T65)-H65 -> 0 | X65: =1/12*100 -> 8.333333333 | Y65: 8.333333333 | Z65: 8.333333333 | AA65: 8.333333333 | AB65: 8.333333333 | AC65: 8.333333333 | AD65: 8.333333333 | AE65: 8.333333333 | AF65: 8.333333333 | AG65: 8.333333333 | AH65: 8.333333333 | AI65: 8.333333333 | AJ65: =IF(Budget!BB5="share",Budget!H39,ttl_fixed)-Oper_Int!B75 -> 90
B66: Net After Other Charges | G66: =IF($E$4=0,0,H66/$E$4) -> 45.47155108 | H66: =SUM(I66:T66) -> 7275.448173 | I66: =I64-I65 -> -2137.579143 | J66: -476.8942351 | K66: -15109.68053 | L66: -15828.83474 | M66: -588.7126368 | N66: -588.7126368 | O66: -588.7126368 | P66: -588.7126368 | Q66: -588.7126368 | R66: 44713.33333 | S66: -470.6666667 | T66: -470.6666667
B68: Notes:
B82: JAN | C82: =I57 -> -1660.684908 | D82: 0 | E82: -14578.11835 | F82: -15240.1221 | G82: 0 | H82: 0 | I82: 0 | J82: 0 | K82: 0 | L82: 45184 | M82: 0 | N82: 0 | O82: =I57 -> -1660.684908 | P82: 0 | Q82: -14578.11835 | R82: -15240.1221 | S82: 0 | T82: 0 | U82: 0 | V82: 0 | W82: 0 | X82: 45184 | Y82: 0 | Z82: 0
B83: 1
B84: JAN
A85: JAN | B85: FEB | C85: MAR | D85: APR | E85: MAY | F85: JUNE | G85: JULY | H85: AUG | I85: SEPT | J85: OCT | K85: NOV | L85: DEC
A86: =MAX(-SUM(G109)*($I$9/1200),0) -> 0 | B86: =MAX(-SUM(G109:H109)*($I$9/1200),0) -> 0 | C86: =MAX(-SUM(G109:I109)*($I$9/1200),0) -> 0 | D86: =MAX(-SUM(G109:J109)*($I$9/1200),0) -> 0 | E86: =MAX(-SUM(G109:K109)*($I$9/1200),0) -> 0 | F86: =MAX(-SUM(G109:L109)*($I$9/1200),0) -> 0 | G86: =MAX(-SUM(G109:M109)*($I$9/1200),0) -> 0 | H86: =MAX(-SUM(G109:N109)*($I$9/1200),0) -> 0 | I86: =MAX(-SUM(G109:O109)*($I$9/1200),0) -> 0 | J86: =MAX(-SUM(G109:P109)*($I$9/1200),0) -> 0 | K86: =MAX(-SUM(G109:Q109)*($I$9/1200),0) -> 0 | L86: =MAX(-SUM(G109:R109)*($I$9/1200),0) -> 0 | M86: =MAX(-SUM(S109)*($I$9/1200),0) -> 0 | N86: =MAX(-SUM(S109:T109)*($I$9/1200),0) -> 0 | O86: =MAX(-SUM(S109:U109)*($I$9/1200),0) -> 0 | P86: =MAX(-SUM(S109:V109)*($I$9/1200),0) -> 0 | Q86: =MAX(-SUM(S109:W109)*($I$9/1200),0) -> 0 | R86: =MAX(-SUM(S109:X109)*($I$9/1200),0) -> 0 | S86: =MAX(-SUM(S109:Y112)*($I$9/1200),0) -> 0 | T86: =MAX(-SUM(S109:Z109)*($I$9/1200),0) -> 0 | U86: =MAX(-SUM(S109:AA109)*($I$9/1200),0) -> 0 | V86: =MAX(-SUM(S109:AB109)*($I$9/1200),0) -> 0 | W86: =MAX(-SUM(S109:AC109)*($I$9/1200),0) -> 0
A98: DIF FILE:
A99: JAN | B99: FEB | C99: MAR | D99: APR | E99: MAY | F99: JUNE | G99: JULY | H99: AUG | I99: SEPT | J99: OCT | K99: NOV | L99: DEC | M99: JAN | N99: FEB | O99: MAR | P99: APR | Q99: MAY | R99: JUNE | S99: JULY | T99: AUG | U99: SEPT | V99: OCT | W99: NOV
A100: - | B100: - | C100: - | D100: - | E100: - | F100: - | G100: - | H100: - | I100: - | J100: - | K100: - | L100: - | M100: - | N100: - | O100: - | P100: - | Q100: - | R100: - | S100: - | T100: - | U100: - | V100: - | W100: -
A101: =AN18+#REF! ->  | B101: =AO18+AO19 -> 0 | C101: 0 | D101: 0 | E101: 0 | F101: 0 | G101: 0 | H101: 0 | I101: 0 | J101: 0 | K101: 0 | L101: 0 | M101: =AN18+AN19 -> 0 | N101: 0 | O101: 0 | P101: 0 | Q101: 0 | R101: 0 | S101: 0 | T101: 0 | U101: 0 | V101: 0 | W101: 0
A102: =AN20 -> 0 | B102: 0 | C102: 0 | D102: 0 | E102: 0 | F102: 0 | G102: 0 | H102: 0 | I102: 0 | J102: 0 | K102: 0 | L102: 0 | M102: =AN20 -> 0 | N102: 0 | O102: 0 | P102: 0 | Q102: 0 | R102: 0 | S102: 0 | T102: 0 | U102: 0 | V102: 0 | W102: 0
A103: 0 | B103: 0 | C103: 0 | D103: 0 | E103: 0 | F103: 0 | G103: 0 | H103: 0 | I103: 0 | J103: 0 | K103: 0 | L103: 0 | M103: 0 | N103: 0 | O103: 0 | P103: 0 | Q103: 0 | R103: 0 | S103: 0 | T103: 0 | U103: 0 | V103: 0 | W103: 0
A104: =AN25 -> 0 | B104: 0 | C104: 0 | D104: 0 | E104: 0 | F104: 0 | G104: 0 | H104: 0 | I104: 0 | J104: 54400 | K104: 0 | L104: 0 | M104: =AN25 -> 0 | N104: 0 | O104: 0 | P104: 0 | Q104: 0 | R104: 0 | S104: 0 | T104: 0 | U104: 0 | V104: 54400 | W104: 0
A105: 0 | B105: 0 | C105: 0 | D105: 0 | E105: 0 | F105: 0 | G105: 0 | H105: 0 | I105: 0 | J105: 0 | K105: 0 | L105: 0 | M105: 0 | N105: 0 | O105: 0 | P105: 0 | Q105: 0 | R105: 0 | S105: 0 | T105: 0 | U105: 0 | V105: 0 | W105: 0
A106: 0 | B106: 0 | C106: 0 | D106: 0 | E106: 0 | F106: 0 | G106: 0 | H106: 0 | I106: 0 | J106: 0 | K106: 0 | L106: 0 | M106: 0 | N106: 0 | O106: 0 | P106: 0 | Q106: 0 | R106: 0 | S106: 0 | T106: 0 | U106: 0 | V106: 0 | W106: 0
A107: 0 | B107: 0 | C107: 0 | D107: 0 | E107: 0 | F107: 0 | G107: 0 | H107: 0 | I107: 0 | J107: 0 | K107: 0 | L107: 0 | M107: 0 | N107: 0 | O107: 0 | P107: 0 | Q107: 0 | R107: 0 | S107: 0 | T107: 0 | U107: 0 | V107: 0 | W107: 0
A108: 0 | B108: 0 | C108: 0 | D108: 0 | E108: 0 | F108: 0 | G108: 0 | H108: 0 | I108: 0 | J108: 0 | K108: 0 | L108: 0 | M108: 0 | N108: 0 | O108: 0 | P108: 0 | Q108: 0 | R108: 0 | S108: 0 | T108: 0 | U108: 0 | V108: 0 | W108: 0
A120: =AN33 -> 0 | B120: =AO33 -> 0 | C120: =AP33 -> 0 | D120: =AQ33 -> 0 | E120: =AR33 -> 0 | F120: =AS33 -> 0 | G120: =AT33 -> 0 | H120: =AU33 -> 0 | I120: =AV33 -> 0 | J120: =AW33 -> 7296 | K120: =AX33 -> 0 | L120: =AY33 -> 0 | M120: =AN33 -> 0 | N120: =AO33 -> 0 | O120: =AP33 -> 0 | P120: =AQ33 -> 0 | Q120: =AR33 -> 0 | R120: =AS33 -> 0 | S120: =AT33 -> 0 | T120: =AU33 -> 0 | U120: =AV33 -> 0 | V120: =AW33 -> 7296 | W120: =AX33 -> 0
A121: 0 | B121: 0 | C121: 0 | D121: 0 | E121: 0 | F121: 0 | G121: 0 | H121: 0 | I121: 0 | J121: 0 | K121: 0 | L121: 0 | M121: 0 | N121: 0 | O121: 0 | P121: 0 | Q121: 0 | R121: 0 | S121: 0 | T121: 0 | U121: 0 | V121: 0 | W121: 0
A122: 0 | B122: 0 | C122: 10239.0439 | D122: 3198.4 | E122: 0 | F122: 0 | G122: 0 | H122: 0 | I122: 0 | J122: 0 | K122: 0 | L122: 0 | M122: 0 | N122: 0 | O122: 10239.0439 | P122: 3198.4 | Q122: 0 | R122: 0 | S122: 0 | T122: 0 | U122: 0 | V122: 0 | W122: 0
A123: 0 | B123: 0 | C123: 0 | D123: 0 | E123: 0 | F123: 0 | G123: 0 | H123: 0 | I123: 0 | J123: 0 | K123: 0 | L123: 0 | M123: 0 | N123: 0 | O123: 0 | P123: 0 | Q123: 0 | R123: 0 | S123: 0 | T123: 0 | U123: 0 | V123: 0 | W123: 0
A124: 0 | B124: 0 | C124: 1601.040999 | D124: 753.359001 | E124: 0 | F124: 0 | G124: 0 | H124: 0 | I124: 0 | J124: 0 | K124: 0 | L124: 0 | M124: 0 | N124: 0 | O124: 1601.040999 | P124: 753.359001 | Q124: 0 | R124: 0 | S124: 0 | T124: 0 | U124: 0 | V124: 0 | W124: 0
A125: 304.75189 | B125: 0 | C125: 0 | D125: 0 | E125: 0 | F125: 0 | G125: 0 | H125: 0 | I125: 0 | J125: 1920 | K125: 0 | L125: 0 | M125: 304.75189 | N125: 0 | O125: 0 | P125: 0 | Q125: 0 | R125: 0 | S125: 0 | T125: 0 | U125: 0 | V125: 1920 | W125: 0
A126: 0 | B126: 0 | C126: 1207.716961 | D126: 568.2830385 | E126: 0 | F126: 0 | G126: 0 | H126: 0 | I126: 0 | J126: 0 | K126: 0 | L126: 0 | M126: 0 | N126: 0 | O126: 1207.716961 | P126: 568.2830385 | Q126: 0 | R126: 0 | S126: 0 | T126: 0 | U126: 0 | V126: 0 | W126: 0
A127: 0 | B127: 0 | C127: 0 | D127: 0 | E127: 0 | F127: 0 | G127: 0 | H127: 0 | I127: 0 | J127: 0 | K127: 0 | L127: 0 | M127: 0 | N127: 0 | O127: 0 | P127: 0 | Q127: 0 | R127: 0 | S127: 0 | T127: 0 | U127: 0 | V127: 0 | W127: 0
A128: 0 | B128: 0 | C128: 1530.316487 | D128: 720.0800608 | E128: 0 | F128: 0 | G128: 0 | H128: 0 | I128: 0 | J128: 0 | K128: 0 | L128: 0 | M128: 0 | N128: 0 | O128: 1530.316487 | P128: 720.0800608 | Q128: 0 | R128: 0 | S128: 0 | T128: 0 | U128: 0 | V128: 0 | W128: 0
A129: 0 | B129: 0 | C129: 0 | D129: 10000 | E129: 0 | F129: 0 | G129: 0 | H129: 0 | I129: 0 | J129: 0 | K129: 0 | L129: 0 | M129: 0 | N129: 0 | O129: 0 | P129: 10000 | Q129: 0 | R129: 0 | S129: 0 | T129: 0 | U129: 0 | V129: 0 | W129: 0
A130: 0 | B130: 0 | C130: 0 | D130: 0 | E130: 0 | F130: 0 | G130: 0 | H130: 0 | I130: 0 | J130: 0 | K130: 0 | L130: 0 | M130: 0 | N130: 0 | O130: 0 | P130: 0 | Q130: 0 | R130: 0 | S130: 0 | T130: 0 | U130: 0 | V130: 0 | W130: 0
A131: 0 | B131: 0 | C131: 0 | D131: 0 | E131: 0 | F131: 0 | G131: 0 | H131: 0 | I131: 0 | J131: 0 | K131: 0 | L131: 0 | M131: 0 | N131: 0 | O131: 0 | P131: 0 | Q131: 0 | R131: 0 | S131: 0 | T131: 0 | U131: 0 | V131: 0 | W131: 0
A132: 555.9330176 | B132: 0 | C132: 0 | D132: 0 | E132: 0 | F132: 0 | G132: 0 | H132: 0 | I132: 0 | J132: 0 | K132: 0 | L132: 0 | M132: 555.9330176 | N132: 0 | O132: 0 | P132: 0 | Q132: 0 | R132: 0 | S132: 0 | T132: 0 | U132: 0 | V132: 0 | W132: 0
A133: 0 | B133: 0 | C133: 0 | D133: 0 | E133: 0 | F133: 0 | G133: 0 | H133: 0 | I133: 0 | J133: 0 | K133: 0 | L133: 0 | M133: 0 | N133: 0 | O133: 0 | P133: 0 | Q133: 0 | R133: 0 | S133: 0 | T133: 0 | U133: 0 | V133: 0 | W133: 0
A134: 0 | B134: 0 | C134: 0 | D134: 0 | E134: 0 | F134: 0 | G134: 0 | H134: 0 | I134: 0 | J134: 0 | K134: 0 | L134: 0 | M134: 0 | N134: 0 | O134: 0 | P134: 0 | Q134: 0 | R134: 0 | S134: 0 | T134: 0 | U134: 0 | V134: 0 | W134: 0
A135: 800 | B135: 0 | C135: 0 | D135: 0 | E135: 0 | F135: 0 | G135: 0 | H135: 0 | I135: 0 | J135: 0 | K135: 0 | L135: 0 | M135: 800 | N135: 0 | O135: 0 | P135: 0 | Q135: 0 | R135: 0 | S135: 0 | T135: 0 | U135: 0 | V135: 0 | W135: 0
A136: 0 | B136: 0 | C136: 0 | D136: 0 | E136: 0 | F136: 0 | G136: 0 | H136: 0 | I136: 0 | J136: 0 | K136: 0 | L136: 0 | M136: 0 | N136: 0 | O136: 0 | P136: 0 | Q136: 0 | R136: 0 | S136: 0 | T136: 0 | U136: 0 | V136: 0 | W136: 0
A137: 0 | B137: 0 | C137: 0 | D137: 0 | E137: 0 | F137: 0 | G137: 0 | H137: 0 | I137: 0 | J137: 0 | K137: 0 | L137: 0 | M137: 0 | N137: 0 | O137: 0 | P137: 0 | Q137: 0 | R137: 0 | S137: 0 | T137: 0 | U137: 0 | V137: 0 | W137: 0
A138: =AN54+AN55 -> 0 | B138: 0 | C138: 0 | D138: 0 | E138: 0 | F138: 0 | G138: 0 | H138: 0 | I138: 0 | J138: 0 | K138: 0 | L138: 0 | M138: =AN54+AN55 -> 0 | N138: 0 | O138: 0 | P138: 0 | Q138: 0 | R138: 0 | S138: 0 | T138: 0 | U138: 0 | V138: 0 | W138: 0
A150: T
A151: T
A152: T
A153: T
B164: T

Sheet Data1 (hidden)
A1: COUNTY | B1: NASS Reg | C1: Budget Reg | D1: Haying Reg
A2: Adair | B2: East Central | C2: East-Northeast | D2: East
A3: Alfalfa | B3: North Central | C3: North-Central | D3: West
A4: Atoka | B4: South Central | C4: Southeast | D4: Central
A5: Beaver | B5: Panhandle | C5: Panhandle | D5: West
A6: Beckham | B6: West Central | C6: Southwest | D6: West
A7: Blaine | B7: West Central | C7: West-Northwest | D7: West
A8: Bryan | B8: South Central | C8: Southeast | D8: Central
A9: Caddo | B9: Southwest | C9: South-Central | D9: West
A10: Canadian | B10: Central | C10: North-Central | D10: Central
A11: Carter | B11: South Central | C11: South-Central | D11: Central
A12: Cherokee | B12: East Central | C12: East-Northeast | D12: East
A13: Choctaw | B13: Southeast | C13: Southeast | D13: East
A14: Cimarron | B14: Panhandle | C14: Panhandle | D14: West
A15: Cleveland | B15: Central | C15: South-Central | D15: Central
A16: Coal | B16: South Central | C16: Southeast | D16: Central
A17: Comanche | B17: Southwest | C17: Southwest | D17: West
A18: Cotton | B18: Southwest | C18: Southwest | D18: West
A19: Craig | B19: Northeast | C19: Northeast | D19: East
A20: Creek | B20: Central | C20: Northeast | D20: East
A21: Custer | B21: West Central | C21: West-Northwest | D21: West
A22: Delaware | B22: Northeast | C22: East-Northeast | D22: East
A23: Dewey | B23: West Central | C23: West-Northwest | D23: West
A24: Ellis | B24: Panhandle | C24: West-Northwest | D24: West
A25: Garfield | B25: North Central | C25: North-Central | D25: Central
A26: Garvin | B26: South Central | C26: South-Central | D26: Central
A27: Grady | B27: Central | C27: South-Central | D27: Central
A28: Grant | B28: North Central | C28: North-Central | D28: Central
A29: Greer | B29: Southwest | C29: Southwest | D29: West
A30: Harmon | B30: Southwest | C30: Southwest | D30: West
A31: Harper | B31: Panhandle | C31: West-Northwest | D31: West
A32: Haskell | B32: East Central | C32: Southeast | D32: East
A33: Hughes | B33: East Central | C33: Southeast | D33: Central
A34: Jackson | B34: Southwest | C34: Southwest | D34: West
A35: Jefferson | B35: South Central | C35: South-Central | D35: Central
A36: Johnston | B36: South Central | C36: Southeast | D36: Central
A37: Kay | B37: North Central | C37: North-Central | D37: Central
A38: Kingfisher | B38: Central | C38: North-Central | D38: Central
A39: Kiowa | B39: Southwest | C39: Southwest | D39: West
A40: Latimer | B40: Southeast | C40: Southeast | D40: East
A41: Leflore | B41: Southeast | C41: Southeast | D41: East
A42: Lincoln | B42: Central | C42: Northeast | D42: Central
A43: Logan | B43: Central | C43: North-Central | D43: Central
A44: Love | B44: South Central | C44: South-Central | D44: Central
A45: Major | B45: North Central | C45: West-Northwest | D45: West
A46: Marshall | B46: South Central | C46: Southeast | D46: Central
A47: Mayes | B47: Northeast | C47: Northeast | D47: East
A48: McClain | B48: Central | C48: South-Central | D48: Central
A49: McCurtain | B49: Southeast | C49: Southeast | D49: East
A50: McIntosh | B50: East Central | C50: Northeast | D50: East
A51: Murray | B51: South Central | C51: Southeast | D51: Central
A52: Muskogee | B52: East Central | C52: Northeast | D52: East
A53: Noble | B53: North Central | C53: North-Central | D53: Central
A54: Nowata | B54: Northeast | C54: Northeast | D54: East
A55: Okfuskee | B55: Central | C55: Northeast | D55: Central
A56: Oklahoma | B56: Central | C56: North-Central | D56: Central
A57: Okmulgee | B57: East Central | C57: Northeast | D57: East
A58: Osage | B58: Northeast | C58: Northeast | D58: Central
A59: Ottawa | B59: Northeast | C59: Northeast | D59: East
A60: Pawnee | B60: Northeast | C60: Northeast | D60: Central
A61: Payne | B61: Central | C61: North-Central | D61: Central
A62: Pittsburg | B62: East Central | C62: Southeast | D62: East
A63: Pontotoc | B63: South Central | C63: Southeast | D63: Central
A64: Pottawatomie | B64: Central | C64: Northeast | D64: Central
A65: Pushmataha | B65: Southeast | C65: Southeast | D65: East
A66: Roger Mills | B66: West Central | C66: Southwest | D66: West
A67: Rogers | B67: Northeast | C67: Northeast | D67: East
A68: Seminole | B68: Central | C68: Northeast | D68: Central
A69: Sequoyah | B69: East Central | C69: East-Northeast | D69: East
A70: Stephens | B70: South Central | C70: South-Central | D70: Central
A71: Texas | B71: Panhandle | C71: Panhandle | D71: West
A72: Tillman | B72: Southwest | C72: Southwest | D72: West
A73: Tulsa | B73: Northeast | C73: Northeast | D73: East
A74: Wagoner | B74: Northeast | C74: Northeast | D74: East
A75: Washington | B75: Northeast | C75: Northeast | D75: East
A76: Washita | B76: West Central | C76: Southwest | D76: West
A77: Woods | B77: North Central | C77: West-Northwest | D77: West
A78: Woodward | B78: North Central | C78: West-Northwest | D78: West
A79: Other County | B79: State | C79: North-Central | D79: Central

Sheet MachData1 (hidden)
A1: Conventional tillage | D1: Diversified | EB1: Specified monthly field operations, equipment compliment, and Custom Rate costs (Max equipment is 20 items)
A2: Panhandle | B2: 1 | D2: Area | E2: 1 | F2: 1 | G2: 1 | H2: 1 | I2: 1 | J2: 1 | K2: 1 | L2: 1 | M2: 1 | N2: 1 | O2: 1 | P2: 1 | Q2: 1 | R2: 1 | S2: 1 | T2: 2 | U2: 2 | V2: 2 | W2: 2 | X2: 2 | Y2: 2 | Z2: 2 | AA2: 2 | AB2: 2 | AC2: 2 | AD2: 2 | AE2: 2 | AF2: 2 | AG2: 2 | AH2: 2 | AI2: 3 | AJ2: 3 | AK2: 3 | AL2: 3 | AM2: 3 | AN2: 3 | AO2: 3 | AP2: 3 | AQ2: 3 | AR2: 3 | AS2: 3 | AT2: 3 | AU2: 3 | AV2: 3 | AW2: 3 | AX2: 4 | AY2: 4 | AZ2: 4 | BA2: 4 | BB2: 4 | BC2: 4 | BD2: 4 | BE2: 4 | BF2: 4 | BG2: 4 | BH2: 4 | BI2: 4 | BJ2: 4 | BK2: 4 | BL2: 4 | BM2: 5 | BN2: 5 | BO2: 5 | BP2: 5 | BQ2: 5 | BR2: 5 | BS2: 5 | BT2: 5 | BU2: 5 | BV2: 5 | BW2: 5 | BX2: 5 | BY2: 5 | BZ2: 5 | CA2: 5 | CB2: 6 | CC2: 6 | CD2: 6 | CE2: 6 | CF2: 6 | CG2: 6 | CH2: 6 | CI2: 6 | CJ2: 6 | CK2: 6 | CL2: 6 | CM2: 6 | CN2: 6 | CO2: 6 | CP2: 6 | CQ2: 7 | CR2: 7 | CS2: 7 | CT2: 7 | CU2: 7 | CV2: 7 | CW2: 7 | CX2: 7 | CY2: 7 | CZ2: 7 | DA2: 7 | DB2: 7 | DC2: 7 | DD2: 7 | DE2: 7 | DF2: 8 | DG2: 8 | DH2: 8 | DI2: 8 | DJ2: 8 | DK2: 8 | DL2: 8 | DM2: 8 | DN2: 8 | DO2: 8 | DP2: 8 | DQ2: 8 | DR2: 8 | DS2: 8 | DT2: 8 | EN2: Times | EO2: Custom | EP2: Cost/per
A3: West-Northwest | B3: 2 | D3: Farm Size | E3: Small | F3: Small | G3: Small | H3: Small | I3: Small | J3: Medium | K3: Medium | L3: Medium | M3: Medium | N3: Medium | O3: Large | P3: Large | Q3: Large | R3: Large | S3: Large | T3: Small | U3: Small | V3: Small | W3: Small | X3: Small | Y3: Medium | Z3: Medium | AA3: Medium | AB3: Medium | AC3: Medium | AD3: Large | AE3: Large | AF3: Large | AG3: Large | AH3: Large | AI3: Small | AJ3: Small | AK3: Small | AL3: Small | AM3: Small | AN3: Medium | AO3: Medium | AP3: Medium | AQ3: Medium | AR3: Medium | AS3: Large | AT3: Large | AU3: Large | AV3: Large | AW3: Large | AX3: Small | AY3: Small | AZ3: Small | BA3: Small | BB3: Small | BC3: Medium | BD3: Medium | BE3: Medium | BF3: Medium | BG3: Medium | BH3: Large | BI3: Large | BJ3: Large | BK3: Large | BL3: Large | BM3: Small | BN3: Small | BO3: Small | BP3: Small | BQ3: Small | BR3: Medium | BS3: Medium | BT3: Medium | BU3: Medium | BV3: Medium | BW3: Large | BX3: Large | BY3: Large | BZ3: Large | CA3: Large | CB3: Small | CC3: Small | CD3: Small | CE3: Small | CF3: Small | CG3: Medium | CH3: Medium | CI3: Medium | CJ3: Medium | CK3: Medium | CL3: Large | CM3: Large | CN3: Large | CO3: Large | CP3: Large | CQ3: Small | CR3: Small | CS3: Small | CT3: Small | CU3: Small | CV3: Medium | CW3: Medium | CX3: Medium | CY3: Medium | CZ3: Medium | DA3: Large | DB3: Large | DC3: Large | DD3: Large | DE3: Large | DF3: Small | DG3: Small | DH3: Small | DI3: Small | DJ3: Small | DK3: Medium | DL3: Medium | DM3: Medium | DN3: Medium | DO3: Medium | DP3: Large | DQ3: Large | DR3: Large | DS3: Large | DT3: Large | DZ3: Area | EA3: Equipment Desc. | EB3: 1 | EC3: 2 | ED3: 3 | EE3: 4 | EF3: 5 | EG3: 6 | EH3: 7 | EI3: 8 | EJ3: 9 | EK3: 10 | EL3: 11 | EM3: 12 | EN3: Over | EO3: Cost | EP3: Operation
A4: Southwest | B4: 3 | D4: Acres | E4: =499/1.5 -> 332.6666667 | F4: =499/1.5 -> 332.6666667 | G4: =499/1.5 -> 332.6666667 | H4: =499/1.5 -> 332.6666667 | I4: =499/1.5 -> 332.6666667 | J4: =1999/1.5 -> 1332.666667 | K4: =1999/1.5 -> 1332.666667 | L4: =1999/1.5 -> 1332.666667 | M4: =1999/1.5 -> 1332.666667 | N4: =1999/1.5 -> 1332.666667 | O4: 4950 | P4: 4950 | Q4: 4950 | R4: 4950 | S4: 4950 | T4: =259/1.5 -> 172.6666667 | U4: =259/1.5 -> 172.6666667 | V4: =259/1.5 -> 172.6666667 | W4: =259/1.5 -> 172.6666667 | X4: =259/1.5 -> 172.6666667 | Y4: 666 | Z4: 666 | AA4: 666 | AB4: 666 | AC4: 666 | AD4: 2525 | AE4: 2525 | AF4: 2525 | AG4: 2525 | AH4: 2525 | AI4: =179/1.5 -> 119.3333333 | AJ4: =179/1.5 -> 119.3333333 | AK4: =179/1.5 -> 119.3333333 | AL4: =179/1.5 -> 119.3333333 | AM4: =179/1.5 -> 119.3333333 | AN4: 666 | AO4: 666 | AP4: 666 | AQ4: 666 | AR4: 666 | AS4: 2070 | AT4: 2070 | AU4: 2070 | AV4: 2070 | AW4: 2070 | AX4: =179/1.5 -> 119.3333333 | AY4: =179/1.5 -> 119.3333333 | AZ4: =179/1.5 -> 119.3333333 | BA4: =179/1.5 -> 119.3333333 | BB4: =179/1.5 -> 119.3333333 | BC4: 666 | BD4: 666 | BE4: 666 | BF4: 666 | BG4: 666 | BH4: 1900 | BI4: 1900 | BJ4: 1900 | BK4: 1900 | BL4: 1900 | BM4: =139/1.5 -> 92.66666667 | BN4: =139/1.5 -> 92.66666667 | BO4: =139/1.5 -> 92.66666667 | BP4: =139/1.5 -> 92.66666667 | BQ4: =139/1.5 -> 92.66666667 | BR4: 666 | BS4: 666 | BT4: 666 | BU4: 666 | BV4: 666 | BW4: 2140 | BX4: 2140 | BY4: 2140 | BZ4: 2140 | CA4: 2140 | CB4: 66 | CC4: 66 | CD4: 66 | CE4: 66 | CF4: 66 | CG4: 666 | CH4: 666 | CI4: 666 | CJ4: 666 | CK4: 666 | CL4: 2710 | CM4: 2710 | CN4: 2710 | CO4: 2710 | CP4: 2710 | CQ4: 46 | CR4: 46 | CS4: 46 | CT4: 46 | CU4: 46 | CV4: =499/1.5 -> 332.6666667 | CW4: =499/1.5 -> 332.6666667 | CX4: =499/1.5 -> 332.6666667 | CY4: =499/1.5 -> 332.6666667 | CZ4: =499/1.5 -> 332.6666667 | DA4: 1275 | DB4: 1275 | DC4: 1275 | DD4: 1275 | DE4: 1275 | DF4: 66 | DG4: 66 | DH4: 66 | DI4: 66 | DJ4: 66 | DK4: 666 | DL4: 666 | DM4: 666 | DN4: 666 | DO4: 666 | DP4: 2360 | DQ4: 2360 | DR4: 2360 | DS4: 2360 | DT4: 2360 | DZ4: 1 | EA4: Offset Disc | EC4: 1 | ED4: 1 | EN4: =SUM(EB4:EM4) -> 2 | EO4: =EN4*EP4 -> 21.58 | EP4: 10.79 | ER4: items in black OSU 2021
A5: North-Central | B5: 4 | D5: operation category | E5: 1 | F5: 2 | G5: 3 | H5: 4 | I5: total | J5: 1 | K5: 2 | L5: 3 | M5: 4 | N5: total | O5: 1 | P5: 2 | Q5: 3 | R5: 4 | S5: total | T5: 1 | U5: 2 | V5: 3 | W5: 4 | X5: total | Y5: 1 | Z5: 2 | AA5: 3 | AB5: 4 | AC5: total | AD5: 1 | AE5: 2 | AF5: 3 | AG5: 4 | AH5: total | AI5: 1 | AJ5: 2 | AK5: 3 | AL5: 4 | AM5: total | AN5: 1 | AO5: 2 | AP5: 3 | AQ5: 4 | AR5: total | AS5: 1 | AT5: 2 | AU5: 3 | AV5: 4 | AW5: total | AX5: 1 | AY5: 2 | AZ5: 3 | BA5: 4 | BB5: total | BC5: 1 | BD5: 2 | BE5: 3 | BF5: 4 | BG5: total | BH5: 1 | BI5: 2 | BJ5: 3 | BK5: 4 | BL5: total | BM5: 1 | BN5: 2 | BO5: 3 | BP5: 4 | BQ5: total | BR5: 1 | BS5: 2 | BT5: 3 | BU5: 4 | BV5: total | BW5: 1 | BX5: 2 | BY5: 3 | BZ5: 4 | CA5: total | CB5: 1 | CC5: 2 | CD5: 3 | CE5: 4 | CF5: total | CG5: 1 | CH5: 2 | CI5: 3 | CJ5: 4 | CK5: total | CL5: 1 | CM5: 2 | CN5: 3 | CO5: 4 | CP5: total | CQ5: 1 | CR5: 2 | CS5: 3 | CT5: 4 | CU5: total | CV5: 1 | CW5: 2 | CX5: 3 | CY5: 4 | CZ5: total | DA5: 1 | DB5: 2 | DC5: 3 | DD5: 4 | DE5: total | DF5: 1 | DG5: 2 | DH5: 3 | DI5: 4 | DJ5: total | DK5: 1 | DL5: 2 | DM5: 3 | DN5: 4 | DO5: total | DP5: 1 | DQ5: 2 | DR5: 3 | DS5: 4 | DT5: total | EA5: Chisel | EC5: 1 | EN5: 1 | EO5: 16.64 | EP5: 16.64 | ER5: items in red KSU 2022
A6: South-Central | B6: 5 | D6: Fuel | E6: 3.735 | F6: 0.929 | G6: 0.653 | H6: 0.579 | I6: =+SUM(E6:H6) -> 5.896 | J6: 3.735 | K6: 0.929 | L6: 0.653 | M6: 0.579 | N6: =+SUM(J6:M6) -> 5.896 | S6: =+SUM(O6:R6) -> 0 | T6: 3.735 | U6: 0.929 | V6: 0.653 | W6: 0.579 | X6: =+SUM(T6:W6) -> 5.896 | Y6: 3.735 | Z6: 0.929 | AA6: 0.653 | AB6: 0.579 | AC6: =+SUM(Y6:AB6) -> 5.896 | AD6: 3.735 | AE6: 0.927 | AF6: 0.646 | AG6: 0.579 | AH6: =+SUM(AD6:AG6) -> 5.887 | AI6: 3.735 | AJ6: 0.929 | AK6: 0.653 | AL6: 0.579 | AM6: =+SUM(AI6:AL6) -> 5.896 | AN6: 3.735 | AO6: 0.929 | AP6: 0.653 | AQ6: 0.579 | AR6: =+SUM(AN6:AQ6) -> 5.896 | AS6: 3.735 | AT6: 0.929 | AU6: 0.653 | AV6: 0.579 | AW6: =+SUM(AS6:AV6) -> 5.896 | AX6: 3.735 | AY6: 0.929 | AZ6: 0.653 | BA6: 0.579 | BB6: =+SUM(AX6:BA6) -> 5.896 | BC6: 3.735 | BD6: 0.929 | BE6: 0.653 | BF6: 0.579 | BG6: =+SUM(BC6:BF6) -> 5.896 | BH6: 3.735 | BI6: 0.927 | BJ6: 0.646 | BK6: 0.579 | BL6: =+SUM(BH6:BK6) -> 5.887 | BM6: 3.735 | BN6: 0.929 | BO6: 0.653 | BP6: 0.579 | BQ6: =+SUM(BM6:BP6) -> 5.896 | BR6: 3.735 | BS6: 0.929 | BT6: 0.653 | BU6: 0.579 | BV6: =+SUM(BR6:BU6) -> 5.896 | BW6: 3.735 | BX6: 0.929 | BY6: 0.653 | BZ6: 0.579 | CA6: =+SUM(BW6:BZ6) -> 5.896 | CB6: 2.82 | CC6: 0.929 | CD6: 0.653 | CE6: 0.579 | CF6: =+SUM(CB6:CE6) -> 4.981 | CG6: 2.82 | CH6: 0.929 | CI6: 0.653 | CJ6: 0.579 | CK6: =+SUM(CG6:CJ6) -> 4.981 | CL6: 2.82 | CM6: 0.929 | CN6: 0.653 | CO6: 0.579 | CP6: =+SUM(CL6:CO6) -> 4.981 | CQ6: 2.82 | CR6: 0.929 | CS6: 0.653 | CT6: 0.579 | CU6: =+SUM(CQ6:CT6) -> 4.981 | CV6: 2.82 | CW6: 0.929 | CX6: 0.653 | CY6: 0.579 | CZ6: =+SUM(CV6:CY6) -> 4.981 | DA6: 2.82 | DB6: 0.929 | DC6: 0.653 | DD6: 0.579 | DE6: =+SUM(DA6:DD6) -> 4.981 | DF6: 2.82 | DG6: 0.929 | DH6: 0.653 | DI6: 0.579 | DJ6: =+SUM(DF6:DI6) -> 4.981 | DK6: 2.82 | DL6: 0.929 | DM6: 0.653 | DN6: 0.579 | DO6: =+SUM(DK6:DN6) -> 4.981 | DP6: 2.82 | DQ6: 0.929 | DR6: 0.653 | DS6: 0.579 | DT6: =+SUM(DP6:DS6) -> 4.981 | EA6: Anhy. App. | ED6: 1 | EN6: 1 | EO6: 17.72 | EP6: 17.72
A7: Northeast | B7: 6 | D7: Lube | E7: 0.56 | F7: 0.139 | G7: 0.098 | H7: 0.087 | I7: 0.884 | J7: 0.56 | K7: 0.139 | L7: 0.098 | M7: 0.087 | N7: 0.884 | S7: 0 | T7: 0.56 | U7: 0.138 | V7: 0.098 | W7: 0.087 | X7: 0.883 | Y7: 0.56 | Z7: 0.139 | AA7: 0.098 | AB7: 0.087 | AC7: 0.884 | AD7: 0.56 | AE7: 0.139 | AF7: 0.097 | AG7: 0.087 | AH7: 0.883 | AI7: 0.56 | AJ7: 0.139 | AK7: 0.098 | AL7: 0.087 | AM7: 0.884 | AN7: 0.56 | AO7: 0.139 | AP7: 0.098 | AQ7: 0.087 | AR7: 0.884 | AS7: 0.56 | AT7: 0.139 | AU7: 0.098 | AV7: 0.087 | AW7: 0.884 | AX7: 0.56 | AY7: 0.139 | AZ7: 0.098 | BA7: 0.087 | BB7: 0.884 | BC7: 0.56 | BD7: 0.139 | BE7: 0.098 | BF7: 0.087 | BG7: 0.884 | BH7: 0.56 | BI7: 0.139 | BJ7: 0.097 | BK7: 0.087 | BL7: 0.883 | BM7: 0.56 | BN7: 0.139 | BO7: 0.098 | BP7: 0.087 | BQ7: 0.884 | BR7: 0.56 | BS7: 0.139 | BT7: 0.098 | BU7: 0.087 | BV7: 0.884 | BW7: 0.56 | BX7: 0.139 | BY7: 0.098 | BZ7: 0.087 | CA7: 0.884 | CB7: 0.423 | CC7: 0.139 | CD7: 0.098 | CE7: 0.087 | CF7: 0.747 | CG7: 0.423 | CH7: 0.139 | CI7: 0.098 | CJ7: 0.087 | CK7: 0.747 | CL7: 0.423 | CM7: 0.139 | CN7: 0.098 | CO7: 0.087 | CP7: 0.747 | CQ7: 0.423 | CR7: 0.139 | CS7: 0.098 | CT7: 0.087 | CU7: 0.747 | CV7: 0.423 | CW7: 0.139 | CX7: 0.098 | CY7: 0.087 | CZ7: 0.747 | DA7: 0.423 | DB7: 0.139 | DC7: 0.098 | DD7: 0.087 | DE7: 0.747 | DF7: 0.423 | DG7: 0.139 | DH7: 0.098 | DI7: 0.087 | DJ7: 0.747 | DK7: 0.423 | DL7: 0.139 | DM7: 0.098 | DN7: 0.087 | DO7: 0.747 | DP7: 0.423 | DQ7: 0.139 | DR7: 0.098 | DS7: 0.087 | DT7: 0.747 | EA7: Sweep Plow | EN7: 0 | EO7: 0 | EP7: 13.17
A8: East-Northeast | B8: 7 | C8: 7.659 | D8: Repairs | E8: 16.54213077 | F8: 5.213503376 | G8: 2.62289641 | H8: 4.604971538 | I8: =+SUM(E8:H8) -> 28.98350209 | J8: 18.94893628 | K8: 5.745037308 | L8: 2.555833718 | M8: 5.181213932 | N8: =+SUM(J8:M8) -> 32.43102124 | O8: 0 | P8: 0 | Q8: 0 | R8: 0 | S8: 0 | T8: 14.81588739 | U8: 4.850868077 | V8: 2.404321709 | W8: 4.311882735 | X8: 26.38295991 | Y8: 16.66880474 | Z8: 5.278082265 | AA8: 2.637799231 | AB8: 4.520522222 | AC8: 29.10520846 | AD8: 20.32993098 | AE8: 5.732618291 | AF8: 2.761989402 | AG8: 4.828513846 | AH8: 33.65305252 | AI8: 14.74137329 | AJ8: 4.828513846 | AK8: 2.389418889 | AL8: 4.301947521 | AM8: 26.26125355 | AN8: 17.92312547 | AO8: 5.476786538 | AP8: 2.786827436 | AQ8: 4.788772991 | AR8: 30.97551244 | AS8: 24.02831427 | AT8: 6.760912906 | AU8: 2.794278846 | AV8: 6.028190897 | AW8: 39.61169692 | AX8: 14.8183712 | AY8: 4.84590047 | AZ8: 2.401837906 | BA8: 4.311882735 | BB8: 26.37799231 | BC8: 17.71945359 | BD8: 5.469335128 | BE8: 2.771924615 | BF8: 4.669550427 | BG8: 30.63026376 | BH8: 22.3070385 | BI8: 5.958644402 | BJ8: 2.918469017 | BK8: 5.516527393 | BL8: 36.70067932 | BM8: 14.22225838 | BN8: 4.724194103 | BO8: 2.33229141 | BP8: 4.252271453 | BQ8: 25.53101534 | BR8: 15.74731368 | BS8: 5.044604744 | BT8: 2.508641453 | BU8: 4.406267265 | BV8: 27.70682714 | BW8: 19.41340752 | BX8: 5.836938034 | BY8: 2.647734444 | BZ8: 5.044604744 | CA8: 32.94268474 | CB8: 9.594932607 | CC8: 4.704323675 | CD8: 2.319872393 | CE8: 4.242336239 | CF8: 20.86146491 | CG8: 9.957567906 | CH8: 4.840932863 | CI8: 2.394386496 | CJ8: 4.306915128 | CK8: 21.49980239 | CL8: 12.87355312 | CM8: 5.677974615 | CN8: 2.861341538 | CO8: 5.235857607 | CP8: 26.64872688 | CQ8: 9.602384017 | CR8: 4.709291282 | CS8: 2.322356197 | CT8: 4.242336239 | CU8: 20.87636774 | CV8: 9.664479103 | CW8: 4.746548333 | CX8: 2.337259017 | CY8: 4.254755256 | CZ8: 21.00304171 | DA8: 11.42797953 | DB8: 5.355080171 | DC8: 2.692442906 | DD8: 4.674518034 | DE8: 24.15002064 | DF8: 9.594932607 | DG8: 4.704323675 | DH8: 2.319872393 | DI8: 4.242336239 | DJ8: 20.86146491 | DK8: 9.820958718 | DL8: 4.808643419 | DM8: 2.367064658 | DN8: 4.304431325 | DO8: 21.30109812 | DP8: 11.82290427 | DQ8: 5.456916111 | DR8: 2.555833718 | DS8: 4.806159615 | DT8: 24.64181372 | EA8: M.B. Plow | EN8: 0 | EO8: 0 | EP8: 21.8
A9: Southeast | B9: 8 | C9: 17.2178 | D9: Depreciation | E9: 37.18750479 | F9: 9.008755 | G9: 3.807670641 | H9: 13.07225739 | I9: 63.07618782 | J9: 19.23705748 | K9: 3.728188932 | L9: 3.546871282 | M9: 5.541365427 | N9: 32.05348312 | O9: 0 | P9: 0 | Q9: 0 | R9: 0 | S9: 0 | T9: 71.21561162 | U9: 18.3776615 | V9: 9.259619145 | W9: 29.70380509 | X9: 128.5566974 | Y9: 42.75619205 | Z9: 6.755945299 | AA9: 4.25723906 | AB9: 24.35866013 | AC9: 78.12803654 | AD9: 15.62560731 | AE9: 3.268685299 | AF9: 3.01533735 | AG9: 7.205513718 | AH9: 29.11514368 | AI9: 70.05070782 | AJ9: 21.62150876 | AK9: 10.85422094 | AL9: 30.08382701 | AM9: 132.6102645 | AN9: 21.41286927 | AO9: 5.712747863 | AP9: 2.901082393 | AQ9: 10.63813004 | AR9: 40.66482957 | AS9: 9.115558547 | AT9: 1.987042735 | AU9: 1.967172308 | AV9: 3.467389573 | AW9: 16.53716316 | AX9: 67.36323252 | AY9: 20.95088184 | AZ9: 10.38478209 | BA9: 29.66903184 | BB9: 128.3679283 | BC9: 30.31482073 | BD9: 5.605944316 | BE9: 3.328296581 | BF9: 18.25595513 | BG9: 57.50501675 | BH9: 10.47419902 | BI9: 2.915985214 | BJ9: 2.647734444 | BK9: 3.916957991 | BL9: 19.95487667 | BM9: 104.4190957 | BN9: 36.9788653 | BO9: 16.10249756 | BP9: 33.44441303 | BQ9: 190.9448716 | BR9: 50.12066919 | BS9: 11.14979355 | BT9: 7.811561752 | BU9: 27.96265889 | BV9: 97.04468338 | BW9: 17.74429162 | BX9: 3.688448077 | BY9: 2.955726068 | BZ9: 7.473764487 | CA9: 31.86223026 | CB9: 74.49423214 | CC9: 41.9911806 | CD9: 17.86351419 | CE9: 35.00424158 | CF9: 169.3531685 | CG9: 45.08351585 | CH9: 24.89267786 | CI9: 12.09363885 | CJ9: 29.89009034 | CK9: 111.9599229 | CL9: 9.234781111 | CM9: 4.284560897 | CN9: 2.098813889 | CO9: 4.781321581 | CP9: 20.39947748 | CQ9: 73.12068885 | CR9: 38.19841278 | CS9: 17.54558735 | CT9: 34.72357179 | CU9: 163.5882608 | CV9: 64.82726923 | CW9: 30.66503701 | CX9: 15.62560731 | CY9: 33.02216645 | CZ9: 144.14008 | DA9: 18.98370953 | DB9: 15.983275 | DC9: 4.195143974 | DD9: 12.75929816 | DE9: 51.92142667 | DF9: 74.49423214 | DG9: 41.9911806 | DH9: 17.86351419 | DI9: 35.00424158 | DJ9: 169.3531685 | DK9: 49.29853026 | DL9: 23.27572184 | DM9: 11.90735359 | DN9: 25.89116684 | DO9: 110.3727725 | DP9: 14.47063872 | DQ9: 7.528408162 | DR9: 4.088340427 | DS9: 9.716638974 | DT9: 35.80402628 | EA9: Field Cultivator | EN9: 0 | EO9: 0 | EP9: 15.39
A10: small machinery | C10: 150.4545 | D10: Insurance | E10: 324.9560013 | F10: 78.88808038 | G10: 35.02907962 | H10: 109.4587329 | I10: 548.3318941 | J10: 174.4325465 | K10: 34.56460838 | L10: 34.78318308 | M10: 46.77995359 | N10: 290.5602915 | O10: 0 | P10: 0 | Q10: 0 | R10: 0 | S10: 0 | T10: 634.6614496 | U10: 163.2305931 | V10: 85.13732979 | W10: 249.2844463 | X10: 1132.313819 | Y10: 368.4548506 | Z10: 60.29184419 | AA10: 38.39463325 | AB10: 200.4752253 | AC10: 667.6165533 | AD10: 142.7466663 | AE10: 30.90844974 | AF10: 27.49073624 | AG10: 61.99573333 | AH10: 263.1415856 | AI10: 630.7469754 | AJ10: 190.8206815 | AK10: 99.00937188 | AL10: 253.2187909 | AM10: 1173.79582 | AN10: 189.6781319 | AO10: 50.30198684 | AP10: 26.34818667 | AQ10: 88.58484893 | AR10: 354.9131543 | AS10: 83.64456393 | AT10: 18.38759671 | AU10: 19.2519603 | AV10: 29.03814577 | AW10: 150.3222667 | AX10: 603.0004074 | AY10: 183.9181918 | AZ10: 94.1585038 | BA10: 248.9193272 | BB10: 1129.99643 | BC10: 261.9816494 | BD10: 49.52207256 | BE10: 29.8602847 | BF10: 150.2253984 | BG10: 491.589405 | BH10: 96.27967192 | BI10: 27.08587628 | BJ10: 23.60110009 | BK10: 33.38728556 | BL10: 180.3539338 | BM10: 957.2081615 | BN10: 327.0895884 | BO10: 149.9323096 | BP10: 287.9051057 | BQ10: 1722.135165 | BR10: 438.9377402 | BS10: 98.52751402 | BT10: 69.05718645 | BU10: 231.3141286 | BV10: 837.8365692 | BW10: 159.1497041 | BX10: 33.57853842 | BY10: 28.12410611 | BZ10: 62.36333624 | CA10: 283.2156848 | CB10: 704.6003862 | CC10: 373.2287207 | CD10: 168.121202 | CE10: 304.0274737 | CF10: 1549.977783 | CG10: 410.9750813 | CH10: 216.5802067 | CI10: 108.5322742 | CJ10: 251.209394 | CK10: 987.2969562 | CL10: 85.52977073 | CM10: 38.38221423 | CN10: 19.60217658 | CO10: 40.86850145 | CP10: 184.382663 | CQ10: 690.4278039 | CR10: 341.5527757 | CS10: 164.8400977 | CT10: 301.1164561 | CU10: 1497.937133 | CV10: 604.7812944 | CW10: 274.50747 | CX10: 145.0069274 | CY10: 283.5385793 | CZ10: 1307.834271 | DA10: 168.4192584 | DB10: 134.1527065 | DC10: 37.36633863 | DD10: 106.234756 | DE10: 446.1730595 | DF10: 704.6003862 | DG10: 373.2287207 | DH10: 168.121202 | DI10: 304.0274737 | DJ10: 1549.977783 | DK10: 457.3601101 | DL10: 207.5689679 | DM10: 109.8760118 | DN10: 221.3987853 | DO10: 996.2038752 | DP10: 131.7011925 | DQ10: 65.48547714 | DR10: 38.41947128 | DS10: 81.18808235 | DT10: 316.7942232 | EA10: Cultipacker | EN10: 0 | EO10: 0
A11: medium machinery | C11: 236.5412 | D11: Taxes | E11: 510.8885576 | F11: 123.936823 | G11: 54.06494902 | H11: 174.8200198 | I11: 863.7103494 | J11: 270.6128663 | K11: 53.20306923 | L11: 52.51257188 | M11: 74.48678073 | N11: 450.8152881 | O11: 0 | P11: 0 | Q11: 0 | R11: 0 | S11: 0 | T11: 990.7444753 | U11: 255.1164168 | V11: 131.4254903 | W11: 397.8034718 | X11: 1775.089854 | Y11: 582.2432622 | Z11: 94.07653829 | AA11: 59.67834474 | AB11: 322.2710098 | AC11: 1058.269155 | AD11: 220.8697352 | AE11: 47.24690863 | AF11: 42.56742299 | AG11: 98.02826953 | AH11: 408.7123364 | AI11: 981.0029983 | AJ11: 298.9232576 | AK11: 153.2804766 | AL11: 403.6428936 | AM11: 1836.849626 | AN11: 296.7375106 | AO11: 78.86324235 | AP11: 40.85111483 | AQ11: 141.7804668 | AR11: 558.2323346 | AS11: 129.2248405 | AT11: 28.32529419 | AU11: 29.08782184 | AV11: 46.38006124 | AW11: 233.0180177 | AX11: 939.81657 | AY11: 288.6775685 | AZ11: 146.0824143 | BA11: 397.2620026 | BB11: 1771.838555 | BC11: 413.555753 | BD11: 77.55179415 | BE11: 46.4992838 | BF11: 241.5101416 | BG11: 779.1169726 | BH11: 148.6556346 | BI11: 41.66828615 | BJ11: 36.8372885 | BK11: 52.97455932 | BL11: 280.1357686 | BM11: 1479.308608 | BN11: 511.9863987 | BO11: 230.4423136 | BP11: 455.1246871 | BQ11: 2676.862007 | BR11: 689.5460537 | BS11: 154.2739979 | BT11: 108.1199628 | BU11: 371.1323906 | BV11: 1323.072405 | BW11: 247.8711622 | BX11: 52.0207788 | BY11: 42.90273645 | BZ11: 99.73961009 | CA11: 442.5342875 | CB11: 1077.069063 | CC11: 583.1846237 | CD11: 257.4387729 | CE11: 479.0536492 | CF11: 2396.746109 | CG11: 636.3926606 | CH11: 341.043596 | CI11: 168.9979846 | CJ11: 400.6598457 | CK11: 1547.094087 | CL11: 131.7036763 | CM11: 59.80750252 | CN11: 30.09127842 | CO11: 64.77759316 | CP11: 286.3800504 | CQ11: 1056.036216 | CR11: 532.5498072 | CS11: 252.5680344 | CT11: 474.734315 | CU11: 2315.888372 | CV11: 928.9275758 | CW11: 427.8276875 | CX11: 223.1299963 | CY11: 448.6419601 | CZ11: 2028.52722 | DA11: 263.3402899 | DB11: 214.0715653 | DC11: 58.3370909 | DD11: 170.0362144 | DE11: 705.7851605 | DF11: 1077.069063 | DG11: 583.1846237 | DH11: 257.4387729 | DI11: 479.0536492 | DJ11: 2396.746109 | DK11: 703.8552452 | DL11: 323.9525447 | DM11: 169.4078122 | DN11: 350.8521357 | DO11: 1548.067738 | DP11: 204.0568699 | DQ11: 103.1324856 | DR11: 58.85868962 | DS11: 129.7712772 | DT11: 495.8193223 | EA11: Tandem Disk | EN11: 0 | EO11: 0 | EP11: 12.27
A12: large machinery | C12: 150.4545 | D12: Interest | E12: 324.9560013 | F12: 78.88808038 | G12: 35.02907962 | H12: 109.4587329 | I12: 548.3318941 | J12: 174.4325465 | K12: 34.56460838 | L12: 34.78318308 | M12: 46.77995359 | N12: 290.5602915 | O12: 0 | P12: 0 | Q12: 0 | R12: 0 | S12: 0 | T12: 634.6614496 | U12: 163.2305931 | V12: 85.13732979 | W12: 249.2844463 | X12: 1132.313819 | Y12: 368.4548506 | Z12: 60.29184419 | AA12: 38.39463325 | AB12: 200.4752253 | AC12: 667.6165533 | AD12: 142.7466663 | AE12: 30.90844974 | AF12: 27.49073624 | AG12: 61.99573333 | AH12: 263.1415856 | AI12: 630.7469754 | AJ12: 190.8206815 | AK12: 99.00937188 | AL12: 253.2187909 | AM12: 1173.79582 | AN12: 189.6781319 | AO12: 50.30198684 | AP12: 26.34818667 | AQ12: 88.58484893 | AR12: 354.9131543 | AS12: 83.64456393 | AT12: 18.38759671 | AU12: 19.2519603 | AV12: 29.03814577 | AW12: 150.3222667 | AX12: 603.0004074 | AY12: 183.9181918 | AZ12: 94.1585038 | BA12: 248.9193272 | BB12: 1129.99643 | BC12: 261.9816494 | BD12: 49.52207256 | BE12: 29.8602847 | BF12: 150.2253984 | BG12: 491.589405 | BH12: 96.27967192 | BI12: 27.08587628 | BJ12: 23.60110009 | BK12: 33.38728556 | BL12: 180.3539338 | BM12: 957.2081615 | BN12: 327.0895884 | BO12: 149.9323096 | BP12: 287.9051057 | BQ12: 1722.135165 | BR12: 438.9377402 | BS12: 98.52751402 | BT12: 69.05718645 | BU12: 231.3141286 | BV12: 837.8365692 | BW12: 159.1497041 | BX12: 33.57853842 | BY12: 28.12410611 | BZ12: 62.36333624 | CA12: 283.2156848 | CB12: 704.6003862 | CC12: 373.2287207 | CD12: 168.121202 | CE12: 304.0274737 | CF12: 1549.977783 | CG12: 410.9750813 | CH12: 216.5802067 | CI12: 108.5322742 | CJ12: 251.209394 | CK12: 987.2969562 | CL12: 85.52977073 | CM12: 38.38221423 | CN12: 19.60217658 | CO12: 40.86850145 | CP12: 184.382663 | CQ12: 690.4278039 | CR12: 341.5527757 | CS12: 164.8400977 | CT12: 301.1164561 | CU12: 1497.937133 | CV12: 604.7812944 | CW12: 274.50747 | CX12: 145.0069274 | CY12: 283.5385793 | CZ12: 1307.834271 | DA12: 168.4192584 | DB12: 134.1527065 | DC12: 37.36633863 | DD12: 106.234756 | DE12: 446.1730595 | DF12: 704.6003862 | DG12: 373.2287207 | DH12: 168.121202 | DI12: 304.0274737 | DJ12: 1549.977783 | DK12: 457.3601101 | DL12: 207.5689679 | DM12: 109.8760118 | DN12: 221.3987853 | DO12: 996.2038752 | DP12: 131.7011925 | DQ12: 65.48547714 | DR12: 38.41947128 | DS12: 81.18808235 | DT12: 316.7942232 | EA12: Springtooth | EN12: 0 | EO12: 0
A13: All Used | D13: Ttl Variable Costs | E13: =(SUM(E6:E7)*Parameters!$C$9)+E8 -> 30.67268077 | F13: =(SUM(F6:F7)*Parameters!$C$9)+F8 -> 8.727223376 | G13: =(SUM(G6:G7)*Parameters!$C$9)+G8 -> 5.09368641 | H13: =(SUM(H6:H7)*Parameters!$C$9)+H8 -> 6.796111538 | I13: =(SUM(I6:I7)*Parameters!$C$9)+I8 -> 51.28970209 | J13: =(SUM(J6:J7)*Parameters!$C$9)+J8 -> 33.07948628 | K13: =(SUM(K6:K7)*Parameters!$C$9)+K8 -> 9.258757308 | L13: =(SUM(L6:L7)*Parameters!$C$9)+L8 -> 5.026623718 | M13: =(SUM(M6:M7)*Parameters!$C$9)+M8 -> 7.372353932 | N13: =(SUM(N6:N7)*Parameters!$C$9)+N8 -> 54.73722124 | O13: =(SUM(O6:O7)*Parameters!$C$9)+O8 -> 0 | P13: =(SUM(P6:P7)*Parameters!$C$9)+P8 -> 0 | Q13: =(SUM(Q6:Q7)*Parameters!$C$9)+Q8 -> 0 | R13: =(SUM(R6:R7)*Parameters!$C$9)+R8 -> 0 | S13: =(SUM(S6:S7)*Parameters!$C$9)+S8 -> 0 | T13: =(SUM(T6:T7)*Parameters!$C$9)+T8 -> 28.94643739 | U13: =(SUM(U6:U7)*Parameters!$C$9)+U8 -> 8.361298077 | V13: =(SUM(V6:V7)*Parameters!$C$9)+V8 -> 4.875111709 | W13: =(SUM(W6:W7)*Parameters!$C$9)+W8 -> 6.503022735 | X13: =(SUM(X6:X7)*Parameters!$C$9)+X8 -> 48.68586991 | Y13: =(SUM(Y6:Y7)*Parameters!$C$9)+Y8 -> 30.79935474 | Z13: =(SUM(Z6:Z7)*Parameters!$C$9)+Z8 -> 8.791802265 | AA13: =(SUM(AA6:AA7)*Parameters!$C$9)+AA8 -> 5.108589231 | AB13: =(SUM(AB6:AB7)*Parameters!$C$9)+AB8 -> 6.711662222 | AC13: =(SUM(AC6:AC7)*Parameters!$C$9)+AC8 -> 51.41140846 | AD13: =(SUM(AD6:AD7)*Parameters!$C$9)+AD8 -> 34.46048098 | AE13: =(SUM(AE6:AE7)*Parameters!$C$9)+AE8 -> 9.239758291 | AF13: =(SUM(AF6:AF7)*Parameters!$C$9)+AF8 -> 5.206459402 | AG13: =(SUM(AG6:AG7)*Parameters!$C$9)+AG8 -> 7.019653846 | AH13: =(SUM(AH6:AH7)*Parameters!$C$9)+AH8 -> 55.92635252 | AI13: =(SUM(AI6:AI7)*Parameters!$C$9)+AI8 -> 28.87192329 | AJ13: =(SUM(AJ6:AJ7)*Parameters!$C$9)+AJ8 -> 8.342233846 | AK13: =(SUM(AK6:AK7)*Parameters!$C$9)+AK8 -> 4.860208889 | AL13: =(SUM(AL6:AL7)*Parameters!$C$9)+AL8 -> 6.493087521 | AM13: =(SUM(AM6:AM7)*Parameters!$C$9)+AM8 -> 48.56745355 | AN13: =(SUM(AN6:AN7)*Parameters!$C$9)+AN8 -> 32.05367547 | AO13: =(SUM(AO6:AO7)*Parameters!$C$9)+AO8 -> 8.990506538 | AP13: =(SUM(AP6:AP7)*Parameters!$C$9)+AP8 -> 5.257617436 | AQ13: =(SUM(AQ6:AQ7)*Parameters!$C$9)+AQ8 -> 6.979912991 | AR13: =(SUM(AR6:AR7)*Parameters!$C$9)+AR8 -> 53.28171244 | AS13: =(SUM(AS6:AS7)*Parameters!$C$9)+AS8 -> 38.15886427 | AT13: =(SUM(AT6:AT7)*Parameters!$C$9)+AT8 -> 10.27463291 | AU13: =(SUM(AU6:AU7)*Parameters!$C$9)+AU8 -> 5.265068846 | AV13: =(SUM(AV6:AV7)*Parameters!$C$9)+AV8 -> 8.219330897 | AW13: =(SUM(AW6:AW7)*Parameters!$C$9)+AW8 -> 61.91789692 | AX13: =(SUM(AX6:AX7)*Parameters!$C$9)+AX8 -> 28.9489212 | AY13: =(SUM(AY6:AY7)*Parameters!$C$9)+AY8 -> 8.35962047 | AZ13: =(SUM(AZ6:AZ7)*Parameters!$C$9)+AZ8 -> 4.872627906 | BA13: =(SUM(BA6:BA7)*Parameters!$C$9)+BA8 -> 6.503022735 | BB13: =(SUM(BB6:BB7)*Parameters!$C$9)+BB8 -> 48.68419231 | BC13: =(SUM(BC6:BC7)*Parameters!$C$9)+BC8 -> 31.85000359 | BD13: =(SUM(BD6:BD7)*Parameters!$C$9)+BD8 -> 8.983055128 | BE13: =(SUM(BE6:BE7)*Parameters!$C$9)+BE8 -> 5.242714615 | BF13: =(SUM(BF6:BF7)*Parameters!$C$9)+BF8 -> 6.860690427 | BG13: =(SUM(BG6:BG7)*Parameters!$C$9)+BG8 -> 52.93646376 | BH13: =(SUM(BH6:BH7)*Parameters!$C$9)+BH8 -> 36.4375885 | BI13: =(SUM(BI6:BI7)*Parameters!$C$9)+BI8 -> 9.465784402 | BJ13: =(SUM(BJ6:BJ7)*Parameters!$C$9)+BJ8 -> 5.362939017 | BK13: =(SUM(BK6:BK7)*Parameters!$C$9)+BK8 -> 7.707667393 | BL13: =(SUM(BL6:BL7)*Parameters!$C$9)+BL8 -> 58.97397932 | BM13: =(SUM(BM6:BM7)*Parameters!$C$9)+BM8 -> 28.35280838 | BN13: =(SUM(BN6:BN7)*Parameters!$C$9)+BN8 -> 8.237914103 | BO13: =(SUM(BO6:BO7)*Parameters!$C$9)+BO8 -> 4.80308141 | BP13: =(SUM(BP6:BP7)*Parameters!$C$9)+BP8 -> 6.443411453 | BQ13: =(SUM(BQ6:BQ7)*Parameters!$C$9)+BQ8 -> 47.83721534 | BR13: =(SUM(BR6:BR7)*Parameters!$C$9)+BR8 -> 29.87786368 | BS13: =(SUM(BS6:BS7)*Parameters!$C$9)+BS8 -> 8.558324744 | BT13: =(SUM(BT6:BT7)*Parameters!$C$9)+BT8 -> 4.979431453 | BU13: =(SUM(BU6:BU7)*Parameters!$C$9)+BU8 -> 6.597407265 | BV13: =(SUM(BV6:BV7)*Parameters!$C$9)+BV8 -> 50.01302714 | BW13: =(SUM(BW6:BW7)*Parameters!$C$9)+BW8 -> 33.54395752 | BX13: =(SUM(BX6:BX7)*Parameters!$C$9)+BX8 -> 9.350658034 | BY13: =(SUM(BY6:BY7)*Parameters!$C$9)+BY8 -> 5.118524444 | BZ13: =(SUM(BZ6:BZ7)*Parameters!$C$9)+BZ8 -> 7.235744744 | CA13: =(SUM(CA6:CA7)*Parameters!$C$9)+CA8 -> 55.24888474 | CB13: =(SUM(CB6:CB7)*Parameters!$C$9)+CB8 -> 20.26440261 | CC13: =(SUM(CC6:CC7)*Parameters!$C$9)+CC8 -> 8.218043675 | CD13: =(SUM(CD6:CD7)*Parameters!$C$9)+CD8 -> 4.790662393 | CE13: =(SUM(CE6:CE7)*Parameters!$C$9)+CE8 -> 6.433476239 | CF13: =(SUM(CF6:CF7)*Parameters!$C$9)+CF8 -> 39.70658491 | CG13: =(SUM(CG6:CG7)*Parameters!$C$9)+CG8 -> 20.62703791 | CH13: =(SUM(CH6:CH7)*Parameters!$C$9)+CH8 -> 8.354652863 | CI13: =(SUM(CI6:CI7)*Parameters!$C$9)+CI8 -> 4.865176496 | CJ13: =(SUM(CJ6:CJ7)*Parameters!$C$9)+CJ8 -> 6.498055128 | CK13: =(SUM(CK6:CK7)*Parameters!$C$9)+CK8 -> 40.34492239 | CL13: =(SUM(CL6:CL7)*Parameters!$C$9)+CL8 -> 23.54302312 | CM13: =(SUM(CM6:CM7)*Parameters!$C$9)+CM8 -> 9.191694615 | CN13: =(SUM(CN6:CN7)*Parameters!$C$9)+CN8 -> 5.332131538 | CO13: =(SUM(CO6:CO7)*Parameters!$C$9)+CO8 -> 7.426997607 | CP13: =(SUM(CP6:CP7)*Parameters!$C$9)+CP8 -> 45.49384688 | CQ13: =(SUM(CQ6:CQ7)*Parameters!$C$9)+CQ8 -> 20.27185402 | CR13: =(SUM(CR6:CR7)*Parameters!$C$9)+CR8 -> 8.223011282 | CS13: =(SUM(CS6:CS7)*Parameters!$C$9)+CS8 -> 4.793146197 | CT13: =(SUM(CT6:CT7)*Parameters!$C$9)+CT8 -> 6.433476239 | CU13: =(SUM(CU6:CU7)*Parameters!$C$9)+CU8 -> 39.72148774 | CV13: =(SUM(CV6:CV7)*Parameters!$C$9)+CV8 -> 20.3339491 | CW13: =(SUM(CW6:CW7)*Parameters!$C$9)+CW8 -> 8.260268333 | CX13: =(SUM(CX6:CX7)*Parameters!$C$9)+CX8 -> 4.808049017 | CY13: =(SUM(CY6:CY7)*Parameters!$C$9)+CY8 -> 6.445895256 | CZ13: =(SUM(CZ6:CZ7)*Parameters!$C$9)+CZ8 -> 39.84816171 | DA13: =(SUM(DA6:DA7)*Parameters!$C$9)+DA8 -> 22.09744953 | DB13: =(SUM(DB6:DB7)*Parameters!$C$9)+DB8 -> 8.868800171 | DC13: =(SUM(DC6:DC7)*Parameters!$C$9)+DC8 -> 5.163232906 | DD13: =(SUM(DD6:DD7)*Parameters!$C$9)+DD8 -> 6.865658034 | DE13: =(SUM(DE6:DE7)*Parameters!$C$9)+DE8 -> 42.99514064 | DF13: =(SUM(DF6:DF7)*Parameters!$C$9)+DF8 -> 20.26440261 | DG13: =(SUM(DG6:DG7)*Parameters!$C$9)+DG8 -> 8.218043675 | DH13: =(SUM(DH6:DH7)*Parameters!$C$9)+DH8 -> 4.790662393 | DI13: =(SUM(DI6:DI7)*Parameters!$C$9)+DI8 -> 6.433476239 | DJ13: =(SUM(DJ6:DJ7)*Parameters!$C$9)+DJ8 -> 39.70658491 | DK13: =(SUM(DK6:DK7)*Parameters!$C$9)+DK8 -> 20.49042872 | DL13: =(SUM(DL6:DL7)*Parameters!$C$9)+DL8 -> 8.322363419 | DM13: =(SUM(DM6:DM7)*Parameters!$C$9)+DM8 -> 4.837854658 | DN13: =(SUM(DN6:DN7)*Parameters!$C$9)+DN8 -> 6.495571325 | DO13: =(SUM(DO6:DO7)*Parameters!$C$9)+DO8 -> 40.14621812 | DP13: =(SUM(DP6:DP7)*Parameters!$C$9)+DP8 -> 22.49237427 | DQ13: =(SUM(DQ6:DQ7)*Parameters!$C$9)+DQ8 -> 8.970636111 | DR13: =(SUM(DR6:DR7)*Parameters!$C$9)+DR8 -> 5.026623718 | DS13: =(SUM(DS6:DS7)*Parameters!$C$9)+DS8 -> 6.997299615 | DT13: =(SUM(DT6:DT7)*Parameters!$C$9)+DT8 -> 43.48693372 | EA13: S. Harrow | EN13: 0 | EO13: 0 | EP13: 7.8
D14: Ttl Fixed Costs | E14: =E9+E10*Parameters!$C$13+E11*Parameters!$C$12+E12*Parameters!$C$11 -> 67.80543646 | F14: =F9+F10*Parameters!$C$13+F11*Parameters!$C$12+F12*Parameters!$C$11 -> 16.44083754 | G14: =G9+G10*Parameters!$C$13+G11*Parameters!$C$12+G12*Parameters!$C$11 -> 7.098102881 | H14: =H9+H10*Parameters!$C$13+H11*Parameters!$C$12+H12*Parameters!$C$11 -> 23.41296812 | I14: =I9+I10*Parameters!$C$13+I11*Parameters!$C$12+I12*Parameters!$C$11 -> 114.757345 | J14: =J9+J10*Parameters!$C$13+J11*Parameters!$C$12+J12*Parameters!$C$11 -> 35.63614104 | K14: =K9+K10*Parameters!$C$13+K11*Parameters!$C$12+K12*Parameters!$C$11 -> 6.973541381 | L14: =L9+L10*Parameters!$C$13+L11*Parameters!$C$12+L12*Parameters!$C$11 -> 6.802476872 | M14: =M9+M10*Parameters!$C$13+M11*Parameters!$C$12+M12*Parameters!$C$11 -> 9.958459591 | N14: =N9+N10*Parameters!$C$13+N11*Parameters!$C$12+N12*Parameters!$C$11 -> 59.37061889 | O14: =O9+O10*Parameters!$C$13+O11*Parameters!$C$12+O12*Parameters!$C$11 -> 0 | P14: =P9+P10*Parameters!$C$13+P11*Parameters!$C$12+P12*Parameters!$C$11 -> 0 | Q14: =Q9+Q10*Parameters!$C$13+Q11*Parameters!$C$12+Q12*Parameters!$C$11 -> 0 | R14: =R9+R10*Parameters!$C$13+R11*Parameters!$C$12+R12*Parameters!$C$11 -> 0 | S14: =S9+S10*Parameters!$C$13+S11*Parameters!$C$12+S12*Parameters!$C$11 -> 0 | T14: =T9+T10*Parameters!$C$13+T11*Parameters!$C$12+T12*Parameters!$C$11 -> 130.9439802 | U14: =U9+U10*Parameters!$C$13+U11*Parameters!$C$12+U12*Parameters!$C$11 -> 33.74242722 | V14: =V9+V10*Parameters!$C$13+V11*Parameters!$C$12+V12*Parameters!$C$11 -> 17.25715444 | W14: =W9+W10*Parameters!$C$13+W11*Parameters!$C$12+W12*Parameters!$C$11 -> 53.25066884 | X14: =X9+X10*Parameters!$C$13+X11*Parameters!$C$12+X12*Parameters!$C$11 -> 235.1942307 | Y14: =Y9+Y10*Parameters!$C$13+Y11*Parameters!$C$12+Y12*Parameters!$C$11 -> 77.50233044 | Z14: =Z9+Z10*Parameters!$C$13+Z11*Parameters!$C$12+Z12*Parameters!$C$11 -> 12.42962045 | AA14: =AA9+AA10*Parameters!$C$13+AA11*Parameters!$C$12+AA12*Parameters!$C$11 -> 7.868001217 | AB14: =AB9+AB10*Parameters!$C$13+AB11*Parameters!$C$12+AB12*Parameters!$C$11 -> 43.31867542 | AC14: =AC9+AC10*Parameters!$C$13+AC11*Parameters!$C$12+AC12*Parameters!$C$11 -> 141.1186275 | AD14: =AD9+AD10*Parameters!$C$13+AD11*Parameters!$C$12+AD12*Parameters!$C$11 -> 29.03991796 | AE14: =AE9+AE10*Parameters!$C$13+AE11*Parameters!$C$12+AE12*Parameters!$C$11 -> 6.16746769 | AF14: =AF9+AF10*Parameters!$C$13+AF11*Parameters!$C$12+AF12*Parameters!$C$11 -> 5.599034375 | AG14: =AG9+AG10*Parameters!$C$13+AG11*Parameters!$C$12+AG12*Parameters!$C$11 -> 13.05246148 | AH14: =AH9+AH10*Parameters!$C$13+AH11*Parameters!$C$12+AH12*Parameters!$C$11 -> 53.85888151 | AI14: =AI9+AI10*Parameters!$C$13+AI11*Parameters!$C$12+AI12*Parameters!$C$11 -> 129.3743754 | AJ14: =AJ9+AJ10*Parameters!$C$13+AJ11*Parameters!$C$12+AJ12*Parameters!$C$11 -> 39.59016483 | AK14: =AK9+AK10*Parameters!$C$13+AK11*Parameters!$C$12+AK12*Parameters!$C$11 -> 20.1592614 | AL14: =AL9+AL10*Parameters!$C$13+AL11*Parameters!$C$12+AL12*Parameters!$C$11 -> 53.99793103 | AM14: =AM9+AM10*Parameters!$C$13+AM11*Parameters!$C$12+AM12*Parameters!$C$11 -> 243.1217326 | AN14: =AN9+AN10*Parameters!$C$13+AN11*Parameters!$C$12+AN12*Parameters!$C$11 -> 39.26997773 | AO14: =AO9+AO10*Parameters!$C$13+AO11*Parameters!$C$12+AO12*Parameters!$C$11 -> 10.45008625 | AP14: =AP9+AP10*Parameters!$C$13+AP11*Parameters!$C$12+AP12*Parameters!$C$11 -> 5.377926195 | AQ14: =AQ9+AQ10*Parameters!$C$13+AQ11*Parameters!$C$12+AQ12*Parameters!$C$11 -> 19.00984535 | AR14: =AR9+AR10*Parameters!$C$13+AR11*Parameters!$C$12+AR12*Parameters!$C$11 -> 74.10783553 | AS14: =AS9+AS10*Parameters!$C$13+AS11*Parameters!$C$12+AS12*Parameters!$C$11 -> 16.97390522 | AT14: =AT9+AT10*Parameters!$C$13+AT11*Parameters!$C$12+AT12*Parameters!$C$11 -> 3.713722019 | AU14: =AU9+AU10*Parameters!$C$13+AU11*Parameters!$C$12+AU12*Parameters!$C$11 -> 3.76932941 | AV14: =AV9+AV10*Parameters!$C$13+AV11*Parameters!$C$12+AV12*Parameters!$C$11 -> 6.210684628 | AW14: =AW9+AW10*Parameters!$C$13+AW11*Parameters!$C$12+AW12*Parameters!$C$11 -> 30.66764128 | AX14: =AX9+AX10*Parameters!$C$13+AX11*Parameters!$C$12+AX12*Parameters!$C$11 -> 124.0969302 | AY14: =AY9+AY10*Parameters!$C$13+AY11*Parameters!$C$12+AY12*Parameters!$C$11 -> 38.27523558 | AZ14: =AZ9+AZ10*Parameters!$C$13+AZ11*Parameters!$C$12+AZ12*Parameters!$C$11 -> 19.23704879 | BA14: =BA9+BA10*Parameters!$C$13+BA11*Parameters!$C$12+BA12*Parameters!$C$11 -> 53.18181905 | BB14: =BB9+BB10*Parameters!$C$13+BB11*Parameters!$C$12+BB12*Parameters!$C$11 -> 234.7910336 | BC14: =BC9+BC10*Parameters!$C$13+BC11*Parameters!$C$12+BC12*Parameters!$C$11 -> 55.01593773 | BD14: =BD9+BD10*Parameters!$C$13+BD11*Parameters!$C$12+BD12*Parameters!$C$11 -> 10.26894495 | BE14: =BE9+BE10*Parameters!$C$13+BE11*Parameters!$C$12+BE12*Parameters!$C$11 -> 6.137321768 | BF14: =BF9+BF10*Parameters!$C$13+BF11*Parameters!$C$12+BF12*Parameters!$C$11 -> 32.46375032 | BG14: =BG9+BG10*Parameters!$C$13+BG11*Parameters!$C$12+BG12*Parameters!$C$11 -> 103.8859548 | BH14: =BH9+BH10*Parameters!$C$13+BH11*Parameters!$C$12+BH12*Parameters!$C$11 -> 19.51870961 | BI14: =BI9+BI10*Parameters!$C$13+BI11*Parameters!$C$12+BI12*Parameters!$C$11 -> 5.458909363 | BJ14: =BJ9+BJ10*Parameters!$C$13+BJ11*Parameters!$C$12+BJ12*Parameters!$C$11 -> 4.868793686 | BK14: =BK9+BK10*Parameters!$C$13+BK11*Parameters!$C$12+BK12*Parameters!$C$11 -> 7.067605501 | BL14: =BL9+BL10*Parameters!$C$13+BL11*Parameters!$C$12+BL12*Parameters!$C$11 -> 36.91401816 | BM14: =BM9+BM10*Parameters!$C$13+BM11*Parameters!$C$12+BM12*Parameters!$C$11 -> 194.3530225 | BN14: =BN9+BN10*Parameters!$C$13+BN11*Parameters!$C$12+BN12*Parameters!$C$11 -> 67.77526198 | BO14: =BO9+BO10*Parameters!$C$13+BO11*Parameters!$C$12+BO12*Parameters!$C$11 -> 30.176607 | BP14: =BP9+BP10*Parameters!$C$13+BP11*Parameters!$C$12+BP12*Parameters!$C$11 -> 60.5962107 | BQ14: =BQ9+BQ10*Parameters!$C$13+BQ11*Parameters!$C$12+BQ12*Parameters!$C$11 -> 352.9011022 | BR14: =BR9+BR10*Parameters!$C$13+BR11*Parameters!$C$12+BR12*Parameters!$C$11 -> 91.47274233 | BS14: =BS9+BS10*Parameters!$C$13+BS11*Parameters!$C$12+BS12*Parameters!$C$11 -> 20.42694338 | BT14: =BT9+BT10*Parameters!$C$13+BT11*Parameters!$C$12+BT12*Parameters!$C$11 -> 14.31375052 | BU14: =BU9+BU10*Parameters!$C$13+BU11*Parameters!$C$12+BU12*Parameters!$C$11 -> 49.83214189 | BV14: =BV9+BV10*Parameters!$C$13+BV11*Parameters!$C$12+BV12*Parameters!$C$11 -> 176.0455781 | BW14: =BW9+BW10*Parameters!$C$13+BW11*Parameters!$C$12+BW12*Parameters!$C$11 -> 32.71625501 | BX14: =BX9+BX10*Parameters!$C$13+BX11*Parameters!$C$12+BX12*Parameters!$C$11 -> 6.844571131 | BY14: =BY9+BY10*Parameters!$C$13+BY11*Parameters!$C$12+BY12*Parameters!$C$11 -> 5.592495763 | BZ14: =BZ9+BZ10*Parameters!$C$13+BZ11*Parameters!$C$12+BZ12*Parameters!$C$11 -> 13.36668248 | CA14: =CA9+CA10*Parameters!$C$13+CA11*Parameters!$C$12+CA12*Parameters!$C$11 -> 58.52000439 | CB14: =CB9+CB10*Parameters!$C$13+CB11*Parameters!$C$12+CB12*Parameters!$C$11 -> 140.5760531 | CC14: =CC9+CC10*Parameters!$C$13+CC11*Parameters!$C$12+CC12*Parameters!$C$11 -> 77.12148141 | CD14: =CD9+CD10*Parameters!$C$13+CD11*Parameters!$C$12+CD12*Parameters!$C$11 -> 33.63541628 | CE14: =CE9+CE10*Parameters!$C$13+CE11*Parameters!$C$12+CE12*Parameters!$C$11 -> 63.66093476 | CF14: =CF9+CF10*Parameters!$C$13+CF11*Parameters!$C$12+CF12*Parameters!$C$11 -> 314.9938855 | CG14: =CG9+CG10*Parameters!$C$13+CG11*Parameters!$C$12+CG12*Parameters!$C$11 -> 83.70898634 | CH14: =CH9+CH10*Parameters!$C$13+CH11*Parameters!$C$12+CH12*Parameters!$C$11 -> 45.30466005 | CI14: =CI9+CI10*Parameters!$C$13+CI11*Parameters!$C$12+CI12*Parameters!$C$11 -> 22.30340222 | CJ14: =CJ9+CJ10*Parameters!$C$13+CJ11*Parameters!$C$12+CJ12*Parameters!$C$11 -> 53.61662623 | CK14: =CK9+CK10*Parameters!$C$13+CK11*Parameters!$C$12+CK12*Parameters!$C$11 -> 204.9336748 | CL14: =CL9+CL10*Parameters!$C$13+CL11*Parameters!$C$12+CL12*Parameters!$C$11 -> 17.26590488 | CM14: =CM9+CM10*Parameters!$C$13+CM11*Parameters!$C$12+CM12*Parameters!$C$11 -> 7.89563974 | CN14: =CN9+CN10*Parameters!$C$13+CN11*Parameters!$C$12+CN12*Parameters!$C$11 -> 3.938497535 | CO14: =CO9+CO10*Parameters!$C$13+CO11*Parameters!$C$12+CO12*Parameters!$C$11 -> 8.637274877 | CP14: =CP9+CP10*Parameters!$C$13+CP11*Parameters!$C$12+CP12*Parameters!$C$11 -> 37.73731703 | CQ14: =CQ9+CQ10*Parameters!$C$13+CQ11*Parameters!$C$12+CQ12*Parameters!$C$11 -> 137.8796336 | CR14: =CR9+CR10*Parameters!$C$13+CR11*Parameters!$C$12+CR12*Parameters!$C$11 -> 70.33580374 | CS14: =CS9+CS10*Parameters!$C$13+CS11*Parameters!$C$12+CS12*Parameters!$C$11 -> 33.01121536 | CT14: =CT9+CT10*Parameters!$C$13+CT11*Parameters!$C$12+CT12*Parameters!$C$11 -> 63.10855675 | CU14: =CU9+CU10*Parameters!$C$13+CU11*Parameters!$C$12+CU12*Parameters!$C$11 -> 304.3352095 | CV14: =CV9+CV10*Parameters!$C$13+CV11*Parameters!$C$12+CV12*Parameters!$C$11 -> 121.5918766 | CW14: =CW9+CW10*Parameters!$C$13+CW11*Parameters!$C$12+CW12*Parameters!$C$11 -> 56.49215028 | CX14: =CX9+CX10*Parameters!$C$13+CX11*Parameters!$C$12+CX12*Parameters!$C$11 -> 29.23995107 | CY14: =CY9+CY10*Parameters!$C$13+CY11*Parameters!$C$12+CY12*Parameters!$C$11 -> 59.76636453 | CZ14: =CZ9+CZ10*Parameters!$C$13+CZ11*Parameters!$C$12+CZ12*Parameters!$C$11 -> 267.0903425 | DA14: =DA9+DA10*Parameters!$C$13+DA11*Parameters!$C$12+DA12*Parameters!$C$11 -> 34.83802421 | DB14: =DB9+DB10*Parameters!$C$13+DB11*Parameters!$C$12+DB12*Parameters!$C$11 -> 28.65497811 | DC14: =DC9+DC10*Parameters!$C$13+DC11*Parameters!$C$12+DC12*Parameters!$C$11 -> 7.711772466 | DD14: =DD9+DD10*Parameters!$C$13+DD11*Parameters!$C$12+DD12*Parameters!$C$11 -> 22.79908865 | DE14: =DE9+DE10*Parameters!$C$13+DE11*Parameters!$C$12+DE12*Parameters!$C$11 -> 94.00386344 | DF14: =DF9+DF10*Parameters!$C$13+DF11*Parameters!$C$12+DF12*Parameters!$C$11 -> 140.5760531 | DG14: =DG9+DG10*Parameters!$C$13+DG11*Parameters!$C$12+DG12*Parameters!$C$11 -> 77.12148141 | DH14: =DH9+DH10*Parameters!$C$13+DH11*Parameters!$C$12+DH12*Parameters!$C$11 -> 33.63541628 | DI14: =DI9+DI10*Parameters!$C$13+DI11*Parameters!$C$12+DI12*Parameters!$C$11 -> 63.66093476 | DJ14: =DJ9+DJ10*Parameters!$C$13+DJ11*Parameters!$C$12+DJ12*Parameters!$C$11 -> 314.9938855 | DK14: =DK9+DK10*Parameters!$C$13+DK11*Parameters!$C$12+DK12*Parameters!$C$11 -> 92.23985135 | DL14: =DL9+DL10*Parameters!$C$13+DL11*Parameters!$C$12+DL12*Parameters!$C$11 -> 42.80941127 | DM14: =DM9+DM10*Parameters!$C$13+DM11*Parameters!$C$12+DM12*Parameters!$C$11 -> 22.22669864 | DN14: =DN9+DN10*Parameters!$C$13+DN11*Parameters!$C$12+DN12*Parameters!$C$11 -> 46.77949284 | DO14: =DO9+DO10*Parameters!$C$13+DO11*Parameters!$C$12+DO12*Parameters!$C$11 -> 204.0554541 | DP14: =DP9+DP10*Parameters!$C$13+DP11*Parameters!$C$12+DP12*Parameters!$C$11 -> 26.84975103 | DQ14: =DQ9+DQ10*Parameters!$C$13+DQ11*Parameters!$C$12+DQ12*Parameters!$C$11 -> 13.70034297 | DR14: =DR9+DR10*Parameters!$C$13+DR11*Parameters!$C$12+DR12*Parameters!$C$11 -> 7.692855819 | DS14: =DS9+DS10*Parameters!$C$13+DS11*Parameters!$C$12+DS12*Parameters!$C$11 -> 17.38761621 | DT14: =DT9+DT10*Parameters!$C$13+DT11*Parameters!$C$12+DT12*Parameters!$C$11 -> 65.63056603 | EA14: Drill | EN14: 0 | EO14: 0 | EP14: 12.55
A15: non-harvest, non-fertilizer, non-pesticide, non-planting operations | B15: 1 | D15: Labor Hrs. | E15: 0.901 | F15: 0.224 | G15: 0.158 | H15: 0.14 | I15: =+SUM(E15:H15) -> 1.423 | J15: 0.901 | K15: 0.224 | L15: 0.158 | M15: 0.14 | N15: =+SUM(J15:M15) -> 1.423 | S15: =+SUM(O15:R15) -> 0 | T15: 0.901 | U15: 0.224 | V15: 0.158 | W15: 0.14 | X15: =+SUM(T15:W15) -> 1.423 | Y15: 0.901 | Z15: 0.224 | AA15: 0.158 | AB15: 0.14 | AC15: =+SUM(Y15:AB15) -> 1.423 | AD15: 0.901 | AE15: 0.224 | AF15: 0.156 | AG15: 0.14 | AH15: =+SUM(AD15:AG15) -> 1.421 | AI15: 0.901 | AJ15: 0.224 | AK15: 0.158 | AL15: 0.14 | AM15: =+SUM(AI15:AL15) -> 1.423 | AN15: 0.901 | AO15: 0.224 | AP15: 0.158 | AQ15: 0.144 | AR15: =+SUM(AN15:AQ15) -> 1.427 | AS15: 0.901 | AT15: 0.224 | AU15: 0.158 | AV15: 0.14 | AW15: =+SUM(AS15:AV15) -> 1.423 | AX15: 0.901 | AY15: 0.224 | AZ15: 0.158 | BA15: 0.14 | BB15: =+SUM(AX15:BA15) -> 1.423 | BC15: 0.901 | BD15: 0.224 | BE15: 0.158 | BF15: 0.14 | BG15: =+SUM(BC15:BF15) -> 1.423 | BH15: 0.901 | BI15: 0.224 | BJ15: 0.156 | BK15: 0.14 | BL15: =+SUM(BH15:BK15) -> 1.421 | BM15: 0.901 | BN15: 0.224 | BO15: 0.158 | BP15: 0.14 | BQ15: =+SUM(BM15:BP15) -> 1.423 | BR15: 0.901 | BS15: 0.224 | BT15: 0.158 | BU15: 0.14 | BV15: =+SUM(BR15:BU15) -> 1.423 | BW15: 0.901 | BX15: 0.224 | BY15: 0.158 | BZ15: 0.14 | CA15: =+SUM(BW15:BZ15) -> 1.423 | CB15: 0.68 | CC15: 0.224 | CD15: 0.158 | CE15: 0.14 | CF15: =+SUM(CB15:CE15) -> 1.202 | CG15: 0.68 | CH15: 0.224 | CI15: 0.158 | CJ15: 0.14 | CK15: =+SUM(CG15:CJ15) -> 1.202 | CL15: 0.68 | CM15: 0.224 | CN15: 0.158 | CO15: 0.14 | CP15: =+SUM(CL15:CO15) -> 1.202 | CQ15: 0.68 | CR15: 0.224 | CS15: 0.158 | CT15: 0.14 | CU15: =+SUM(CQ15:CT15) -> 1.202 | CV15: 0.68 | CW15: 0.224 | CX15: 0.158 | CY15: 0.14 | CZ15: =+SUM(CV15:CY15) -> 1.202 | DA15: 0.68 | DB15: 0.224 | DC15: 0.158 | DD15: 0.14 | DE15: =+SUM(DA15:DD15) -> 1.202 | DF15: 0.68 | DG15: 0.224 | DH15: 0.158 | DI15: 0.14 | DJ15: =+SUM(DF15:DI15) -> 1.202 | DK15: 0.68 | DL15: 0.224 | DM15: 0.158 | DN15: 0.14 | DO15: =+SUM(DK15:DN15) -> 1.202 | DP15: 0.68 | DQ15: 0.224 | DR15: 0.158 | DS15: 0.14 | DT15: =+SUM(DP15:DS15) -> 1.202 | EA15: Planter | EE15: 1 | EN15: 1 | EO15: 19.42 | EP15: 19.42
A16: fertilizer operations | B16: 2 | D16: Tractor 1 | I16: 95 | N16: 95 | X16: 95 | AC16: 95 | AH16: 95 | AM16: 95 | AR16: 95 | AW16: 95 | BB16: 95 | BG16: 95 | BL16: 95 | BQ16: 95 | BV16: 95 | CA16: 95 | CF16: 95 | CK16: 95 | CP16: 95 | CU16: 95 | CZ16: 95 | DE16: 95 | DJ16: 95 | DO16: 95 | DT16: 95 | EA16: Cultivator | EF16: 1 | EN16: 1 | EO16: 0
A17: pesticide operations | B17: 3 | D17: Tractor 2 | N17: 95 | AH17: 95 | AW17: 95 | BL17: 95 | CA17: 95 | CP17: 95 | DT17: 95 | EA17: Rotary Hoe | EN17: 0 | EO17: 0
A18: planting operations | B18: 4 | D18: Tractor 3 | AH18: 95 | BL18: 95 | EA18: Sprayer | EE18: 1 | EF18: 1 | EN18: 2 | EO18: 11.64 | EP18: 5.82
EA19: S. Shreader | EB19: 1 | EN19: 1 | EO19: 0
B20: 2.5 | C20: =B20/Parameters!C9 -> 0.7598784195 | D20: Fuel | E20: 5.09 | F20: 1.565 | G20: 1.1 | H20: 0.975 | I20: =+SUM(E20:H20) -> 8.73 | J20: 4.382 | K20: 1.421 | L20: 0.653 | M20: 0.975 | N20: =+SUM(J20:M20) -> 7.431 | O20: 5.09 | P20: 1.023 | Q20: 0.941 | R20: 0.975 | S20: =+SUM(O20:R20) -> 8.029 | T20: 5.09 | U20: 1.565 | V20: 1.1 | W20: 0.975 | X20: =+SUM(T20:W20) -> 8.73 | Y20: 5.09 | Z20: 1.565 | AA20: 1.1 | AB20: 0.975 | AC20: =+SUM(Y20:AB20) -> 8.73 | AD20: 4.382 | AE20: 1.421 | AF20: 0.653 | AG20: 0.975 | AH20: =+SUM(AD20:AG20) -> 7.431 | AI20: 5.09 | AJ20: 1.565 | AK20: 1.1 | AL20: 0.975 | AM20: =+SUM(AI20:AL20) -> 8.73 | AN20: 5.09 | AO20: 1.565 | AP20: 1.1 | AQ20: 0.975 | AR20: =+SUM(AN20:AQ20) -> 8.73 | AS20: 4.382 | AT20: 1.421 | AU20: 0.653 | AV20: 0.975 | AW20: =+SUM(AS20:AV20) -> 7.431 | AX20: 5.09 | AY20: 1.565 | AZ20: 1.1 | BA20: 0.975 | BB20: =+SUM(AX20:BA20) -> 8.73 | BC20: 5.09 | BD20: 1.565 | BE20: 1.1 | BF20: 0.975 | BG20: =+SUM(BC20:BF20) -> 8.73 | BH20: 4.382 | BI20: 0.929 | BJ20: 0.653 | BK20: 0.975 | BL20: =+SUM(BH20:BK20) -> 6.939 | BM20: 5.09 | BN20: 1.565 | BO20: 1.1 | BP20: 0.975 | BQ20: =+SUM(BM20:BP20) -> 8.73 | BR20: 5.09 | BS20: 1.565 | BT20: 1.1 | BU20: 0.975 | BV20: =+SUM(BR20:BU20) -> 8.73 | BW20: 4.382 | BX20: 1.421 | BY20: 0.653 | BZ20: 0.975 | CA20: =+SUM(BW20:BZ20) -> 7.431 | CB20: 3.585 | CC20: 1.565 | CD20: 1.1 | CE20: 0.975 | CF20: =+SUM(CB20:CE20) -> 7.225 | CG20: 3.585 | CH20: 1.565 | CI20: 1.1 | CJ20: 0.975 | CK20: =+SUM(CG20:CJ20) -> 7.225 | CL20: 3.231 | CM20: 1.493 | CN20: 0.653 | CO20: 0.975 | CP20: =+SUM(CL20:CO20) -> 6.352 | CQ20: 3.585 | CR20: 1.565 | CS20: 1.1 | CT20: 0.975 | CU20: =+SUM(CQ20:CT20) -> 7.225 | CV20: 3.585 | CW20: 1.565 | CX20: 1.1 | CY20: 0.975 | CZ20: =+SUM(CV20:CY20) -> 7.225 | DA20: 3.585 | DB20: 1.565 | DC20: 1.1 | DD20: 0.975 | DE20: =+SUM(DA20:DD20) -> 7.225 | DF20: 3.585 | DG20: 1.565 | DH20: 1.1 | DI20: 0.975 | DJ20: =+SUM(DF20:DI20) -> 7.225 | DK20: 3.585 | DL20: 1.565 | DM20: 1.1 | DN20: 0.975 | DO20: =+SUM(DK20:DN20) -> 7.225 | DP20: 3.231 | DQ20: 1.493 | DR20: 0.653 | DS20: 0.975 | DT20: =+SUM(DP20:DS20) -> 6.352 | EA20: Dry Fert. Spdr. | EN20: 0 | EO20: 0 | EP20: 5.6
B21: 0.37 | C21: =B21/Parameters!C9 -> 0.1124620061 | D21: Lube | E21: 0.763 | F21: 0.235 | G21: 0.165 | H21: 0.146 | I21: 1.309 | J21: 0.657 | K21: 0.213 | L21: 0.098 | M21: 0.146 | N21: 1.114 | O21: 0.763 | P21: 0.153 | Q21: 0.141 | R21: 0.146 | S21: 1.203 | T21: 0.763 | U21: 0.235 | V21: 0.165 | W21: 0.146 | X21: 1.309 | Y21: 0.763 | Z21: 0.235 | AA21: 0.165 | AB21: 0.146 | AC21: 1.309 | AD21: 0.657 | AE21: 0.213 | AF21: 0.098 | AG21: 0.146 | AH21: 1.114 | AI21: 0.763 | AJ21: 0.235 | AK21: 0.165 | AL21: 0.146 | AM21: 1.309 | AN21: 0.763 | AO21: 0.235 | AP21: 0.165 | AQ21: 0.146 | AR21: 1.309 | AS21: 0.657 | AT21: 0.213 | AU21: 0.098 | AV21: 0.146 | AW21: 1.114 | AX21: 0.763 | AY21: 0.235 | AZ21: 0.165 | BA21: 0.146 | BB21: 1.309 | BC21: 0.763 | BD21: 0.235 | BE21: 0.165 | BF21: 0.146 | BG21: 1.309 | BH21: 0.657 | BI21: 0.139 | BJ21: 0.098 | BK21: 0.146 | BL21: 1.04 | BM21: 0.763 | BN21: 0.235 | BO21: 0.165 | BP21: 0.146 | BQ21: 1.309 | BR21: 0.763 | BS21: 0.235 | BT21: 0.165 | BU21: 0.146 | BV21: 1.309 | BW21: 0.657 | BX21: 0.213 | BY21: 0.098 | BZ21: 0.146 | CA21: 1.114 | CB21: 0.538 | CC21: 0.235 | CD21: 0.165 | CE21: 0.146 | CF21: 1.084 | CG21: 0.538 | CH21: 0.235 | CI21: 0.165 | CJ21: 0.146 | CK21: 1.084 | CL21: 0.485 | CM21: 0.224 | CN21: 0.098 | CO21: 0.146 | CP21: 0.953 | CQ21: 0.538 | CR21: 0.235 | CS21: 0.165 | CT21: 0.146 | CU21: 1.084 | CV21: 0.538 | CW21: 0.235 | CX21: 0.165 | CY21: 0.146 | CZ21: 1.084 | DA21: 0.538 | DB21: 0.235 | DC21: 0.165 | DD21: 0.146 | DE21: 1.084 | DF21: 0.538 | DG21: 0.235 | DH21: 0.165 | DI21: 0.146 | DJ21: 1.084 | DK21: 0.538 | DL21: 0.235 | DM21: 0.165 | DN21: 0.146 | DO21: 1.084 | DP21: 0.485 | DQ21: 0.224 | DR21: 0.098 | DS21: 0.146 | DT21: 0.953 | EA21: Windrower | EN21: 0 | EO21: 0
B22: 9.01 | C22: =B22 -> 9.01 | D22: Repairs | E22: 13.6559512 | F22: 5.029701923 | G22: 2.493738632 | H22: 4.490716581 | I22: =+SUM(E22:H22) -> 25.67010833 | J22: 15.78208692 | K22: 5.663071795 | L22: 2.555833718 | M22: 5.116635043 | N22: 29.11762748 | O22: 21.93446799 | P22: 6.96706859 | Q22: 3.546871282 | R22: 7.091258761 | S22: 39.53966662 | T22: 11.98186769 | U22: 4.570198291 | V22: 2.208101239 | W22: 4.138016496 | X22: 22.89818372 | Y22: 13.7329491 | Z22: 5.089313205 | AA22: 2.50615765 | AB22: 4.403783462 | AC22: 25.73220342 | AD22: 18.5242059 | AE22: 6.517500171 | AF22: 2.801730256 | AG22: 5.551300641 | AH22: 33.39473697 | AI22: 11.92225641 | AJ22: 4.54784406 | AK22: 2.193198419 | AL22: 4.125597479 | AM22: 22.78889637 | AN22: 15.03197829 | AO22: 5.382402009 | AP22: 2.719764744 | AQ22: 4.729161709 | AR22: 27.86330675 | AS22: 20.23803026 | AT22: 6.885103077 | AU22: 2.794278846 | AV22: 6.127543034 | AW22: 36.04495521 | AX22: 11.97690009 | AY22: 4.56274688 | AZ22: 2.203133632 | BA22: 4.138016496 | BB22: 22.88079709 | BC22: 14.68424581 | BD22: 5.320306923 | BE22: 2.665121068 | BF22: 4.575165897 | BG22: 27.2448397 | BH22: 20.54353808 | BI22: 6.062964145 | BJ22: 2.933371838 | BK22: 6.070415556 | BL22: 35.61028962 | BM22: 11.44784996 | BN22: 4.421170085 | BO22: 2.118684316 | BP22: 4.063502393 | BQ22: 22.05120675 | BR22: 12.88597214 | BS22: 4.818578632 | BT22: 2.349678034 | BU22: 4.26469047 | BV22: 24.31891927 | BW22: 16.15714124 | BX22: 5.754972521 | BY22: 2.647734444 | BZ22: 4.977542051 | CA22: 29.53739026 | CB22: 7.831432179 | CC22: 4.391364444 | CD22: 2.098813889 | CE22: 4.046115769 | CF22: 18.36772628 | CG22: 8.179164658 | CH22: 4.557779274 | CI22: 2.193198419 | CJ22: 4.130565085 | CK22: 19.06070744 | CL22: 11.54720209 | CM22: 5.973547222 | CN22: 2.593090769 | CO22: 5.446980897 | CP22: 25.56082098 | CQ22: 7.841367393 | CR22: 4.398815855 | CS22: 2.103781496 | CT22: 4.048599573 | CU22: 18.39256432 | CV22: 7.918365299 | CW22: 4.448491923 | CX22: 2.126135726 | CY22: 4.070953803 | CZ22: 18.56394675 | DA22: 9.681865726 | DB22: 5.228406197 | DC22: 2.603025983 | DD22: 4.595036325 | DE22: 22.10833423 | DF22: 7.831432179 | DG22: 4.391364444 | DH22: 2.098813889 | DI22: 4.046115769 | DJ22: 18.36772628 | DK22: 8.089747735 | DL22: 4.530457436 | DM22: 2.173327991 | DN22: 4.133048889 | DO22: 18.92658205 | DP22: 10.13640175 | DQ22: 5.409723846 | DR22: 2.486287222 | DS22: 4.778837778 | DT22: 22.8112506 | EA22: Baler | EN22: 0 | EO22: 0
B23: 3.03 | C23: =B23 -> 3.03 | D23: Depreciation | E23: 54.58903154 | F23: 14.51286338 | G23: 7.674952564 | H23: 16.49990611 | I23: 93.27675359 | J23: 25.54840197 | K23: 6.164800085 | L23: 3.546871282 | M23: 7.506053932 | N23: 42.76612726 | O23: 11.21188863 | P23: 1.756049017 | Q23: 1.952269487 | R23: 2.841471111 | S23: 17.76167825 | T23: 114.5480461 | U23: 31.69581543 | V23: 18.61362282 | W23: 37.9972247 | X23: 202.854709 | Y23: 60.43093718 | Z23: 12.10109026 | AA23: 8.010266026 | AB23: 27.68695671 | AC23: 108.2292502 | AD23: 16.73586744 | AE23: 3.680996667 | AF23: 1.957237094 | AG23: 6.356052949 | AH23: 28.73015415 | AI23: 114.1382185 | AJ23: 35.65748188 | AK23: 20.71740432 | AL23: 38.82681504 | AM23: 209.3399197 | AN23: 33.06687491 | AO23: 9.40864735 | AP23: 5.499140769 | AQ23: 12.94061581 | AR23: 60.91527885 | AS23: 12.22776423 | AT23: 3.196655 | AU23: 1.967172308 | AV23: 4.443524316 | AW23: 21.83511585 | AX23: 109.8983661 | AY23: 34.35348509 | AZ23: 19.80088085 | BA23: 38.01461132 | BB23: 202.0673433 | BC23: 43.31256402 | BD23: 9.689317137 | BE23: 6.19708953 | BF23: 20.79936983 | BG23: 79.99834051 | BH23: 12.29234312 | BI23: 2.466416795 | BJ23: 1.65669688 | BK23: 4.597520128 | BL23: 21.01297692 | BM23: 176.7201294 | BN23: 59.78018068 | BO23: 32.12302962 | BP23: 47.64431718 | BQ23: 316.2676569 | BR23: 73.80373479 | BS23: 18.69807214 | BT23: 13.11696585 | BU23: 32.66449876 | BV23: 138.2832715 | BW23: 23.88673748 | BX23: 6.090285983 | BY23: 2.955726068 | BZ23: 9.40864735 | CA23: 42.34139688 | CB23: 142.4684803 | CC23: 70.27921774 | CD23: 37.73890915 | CE23: 52.62185923 | CF23: 303.1084664 | CG23: 82.35795376 | CH23: 38.82433124 | CI23: 21.88230812 | CJ23: 38.56601568 | CK23: 181.6306088 | CL23: 14.10055201 | CM23: 6.115124017 | CN23: 3.211557821 | CO23: 5.99341765 | CP23: 29.4206515 | CQ23: 139.0333802 | CR23: 65.43828487 | CS23: 36.6857765 | CT23: 51.68794915 | CU23: 292.8453907 | CV23: 118.9319591 | CW23: 51.86181538 | CX23: 30.51849261 | CY23: 46.22358162 | CZ23: 247.5358487 | DA23: 32.38134517 | DB23: 20.31006056 | DC23: 7.235319359 | DD23: 15.45422487 | DE23: 75.38094996 | DF23: 142.4684803 | DG23: 70.27921774 | DH23: 37.73890915 | DI23: 52.62185923 | DJ23: 303.1084664 | DK23: 89.17102654 | DL23: 38.47163115 | DM23: 22.58274068 | DN23: 35.35445786 | DO23: 185.5798562 | DP23: 22.72183368 | DQ23: 10.71512795 | DR23: 4.907995556 | DS23: 11.86264513 | DT23: 50.20760231 | EN23: 0 | EO23: 0
B24: 0.16 | C24: =B24/Parameters!C13 -> 18.82352941 | D24: Insurance | E24: 501.1197588 | F24: 135.7199864 | G24: 74.95870338 | H24: 144.8529316 | I24: 856.6513801 | J24: 238.1644584 | K24: 59.74540744 | L24: 34.78318308 | M24: 67.07014372 | N24: 399.7631926 | O24: 107.0146703 | P24: 16.79299491 | Q24: 18.68565312 | R24: 26.445055 | S24: 168.9383733 | T24: 1070.807395 | U24: 300.7463694 | V24: 181.7622504 | W24: 334.9259882 | X24: 1888.242003 | Y24: 545.9524105 | Z24: 115.4645695 | AA24: 77.15935321 | AB24: 234.8386456 | AC24: 973.4149788 | AD24: 154.3087712 | AE24: 35.80899389 | AF24: 19.07561026 | AG24: 55.41117047 | AH24: 264.6045458 | AI24: 1077.203189 | AJ24: 335.7779328 | AK24: 200.8602149 | AL24: 343.49511 | AM24: 1957.336446 | AN24: 307.6935675 | AO24: 88.47556158 | AP24: 53.16829598 | AQ24: 112.3598153 | AR24: 561.6972403 | AS24: 115.0696448 | AT24: 30.8736765 | AU24: 19.2519603 | AV24: 39.10003342 | AW24: 204.295315 | AX24: 1033.408767 | AY24: 322.3082668 | AZ24: 191.3969238 | BA24: 335.1073059 | BB24: 1882.221263 | BC24: 393.605844 | BD24: 91.69457081 | BE24: 59.49205949 | BF24: 176.4916195 | BG24: 721.2840938 | BH24: 114.3990179 | BI24: 23.44213667 | BJ24: 15.85411722 | BK24: 40.39906261 | BL24: 194.0943344 | BM24: 1686.346042 | BN24: 562.5168955 | BO24: 315.3511335 | BP24: 434.5265053 | BQ24: 2998.740576 | BR24: 678.9725026 | BS24: 176.4667815 | BT24: 123.8200842 | BU24: 279.8550988 | BV24: 1259.114467 | BW24: 221.3292388 | BX24: 58.37186415 | BY24: 28.12410611 | BZ24: 82.34305094 | CA24: 390.16826 | CB24: 1374.323205 | CC24: 665.3240028 | CD24: 373.3553947 | CE24: 485.9387523 | CF24: 2898.941355 | CG24: 772.4802499 | CH24: 360.4371331 | CI24: 209.6106543 | CJ24: 340.8026671 | CK24: 1683.330704 | CL24: 131.7806742 | CM24: 57.26657162 | CN24: 31.0972188 | CO24: 53.37941927 | CP24: 273.5238839 | CQ24: 1338.837105 | CR24: 622.8261263 | CS24: 362.4713681 | CT24: 476.2916598 | CU24: 2800.42626 | CV24: 1131.285524 | CW24: 493.4000977 | CX24: 298.8065189 | CY24: 419.8621299 | CZ24: 2343.354271 | DA24: 295.2894532 | DB24: 178.8388138 | DC24: 68.76161385 | DD24: 134.0632895 | DE24: 676.9531704 | DF24: 1374.323205 | DG24: 665.3240028 | DH24: 373.3553947 | DI24: 485.9387523 | DJ24: 2898.941355 | DK24: 843.3208072 | DL24: 364.4683461 | DM24: 220.1171428 | DN24: 319.1116118 | DO24: 1747.017908 | DP24: 210.119834 | DQ24: 98.38096962 | DR24: 46.89420855 | DS24: 103.3386412 | DT24: 458.7336534 | EA24: Operations/Month | EB24: =SUM(EB4:EB23) -> 1 | EC24: 2 | ED24: 2 | EE24: 2 | EF24: 2 | EG24: 0 | EH24: 0 | EI24: 0 | EJ24: 0 | EK24: 0 | EL24: 0 | EM24: 0 | EN24: =SUM(EN4:EN23)-SUM(EB24:EM24) -> 0
B25: 0.43 | C25: =B25/Parameters!C12 -> 43 | D25: Taxes | E25: 774.0649165 | F25: 208.2867871 | G25: 113.3309824 | H25: 227.3524621 | I25: 1323.035148 | J25: 365.9139197 | K25: 90.57437547 | L25: 52.51257188 | M25: 104.605381 | N25: 613.606248 | O25: 163.0765973 | P25: 25.57820761 | Q25: 28.44948436 | R25: 40.64992675 | S25: 257.754216 | T25: 1643.547625 | U25: 459.2204789 | V25: 274.8353321 | W25: 524.9145955 | X25: 2902.518032 | Y25: 848.112064 | Z25: 175.9650532 | AA25: 117.2156509 | AB25: 373.2709454 | AC25: 1514.563714 | AD25: 237.993076 | AE25: 54.21149342 | AF25: 28.85931192 | AG25: 87.1839838 | AH25: 408.2478651 | AI25: 1647.896765 | AJ25: 514.0703098 | AK25: 304.4497203 | AL25: 537.6341528 | AM25: 3004.050948 | AN25: 473.0329097 | AO25: 135.5212821 | AP25: 80.65903222 | AQ25: 177.0653781 | AR25: 866.2786022 | AS25: 176.2034983 | AT25: 46.8569515 | AU25: 29.08782184 | AV25: 61.3151712 | AW25: 313.4634429 | AX25: 1582.893146 | AY25: 494.0806599 | AZ25: 290.4038119 | BA25: 525.1853301 | BB25: 2892.562947 | BC25: 610.1661803 | BD25: 140.1461241 | BE25: 90.47999094 | BF25: 280.4909525 | BG25: 1121.283248 | BH25: 175.8657011 | BI25: 35.76676923 | BJ25: 24.13263402 | BK25: 63.38417944 | BL25: 299.1492838 | BM25: 2569.951657 | BN25: 861.4128313 | BO25: 475.9613139 | BP25: 672.7431236 | BQ25: 4580.068925 | BR25: 1047.988693 | BS25: 269.9546584 | BT25: 189.3999459 | BU25: 443.1751088 | BV25: 1950.518406 | BW25: 340.7604424 | BX25: 88.81832645 | BY25: 42.90273645 | BZ25: 129.3937391 | CA25: 601.8752444 | CB25: 2086.670574 | CC25: 1016.717608 | CD25: 562.0524242 | CE25: 749.0505322 | CF25: 4414.491138 | CG25: 1184.274986 | CH25: 554.5587893 | CI25: 319.0197111 | CJ25: 533.6352293 | CK25: 2591.488716 | CL25: 202.285918 | CM25: 87.8372241 | CN25: 47.1525241 | CO25: 83.34650752 | CP25: 420.6221738 | CQ25: 2034.001522 | CR25: 950.0200344 | CS25: 545.895283 | CT25: 734.7314055 | CU25: 4264.648245 | CV25: 1725.947803 | CW25: 752.7141423 | CX25: 451.4039495 | CY25: 650.9775542 | CZ25: 3581.043449 | DA25: 457.1961791 | DB25: 280.3940841 | DC25: 104.9357268 | DD25: 211.3418653 | DE25: 1053.867855 | DF25: 2086.670574 | DG25: 1016.717608 | DH25: 562.0524242 | DI25: 749.0505322 | DJ25: 4414.491138 | DK25: 1289.170972 | DL25: 556.824018 | DM25: 333.0308462 | DN25: 495.8814174 | DO25: 2674.907254 | DP25: 323.7290024 | DQ25: 151.9590932 | DR25: 71.43418632 | DS25: 162.6468993 | DT25: 709.7691812 | EA25: Custom Cost/Month | EB25: =EB4*$EP4+EB5*$EP5+EB6*$EP6+EB7*$EP7+EB8*$EP8+EB9*$EP9+EB10*$EP10+EB11*$EP11+EB12*$EP12+EB13*$EP13+EB14*$EP14+EB15*$EP15+EB16*$EP16+EB17*$EP17+EB18*$EP18+EB19*$EP19+EB20*$EP20+EB21*$EP21 -> 0 | EC25: 27.43 | ED25: 28.51 | EE25: 25.24 | EF25: 5.82 | EG25: 0 | EH25: 0 | EI25: 0 | EJ25: 0 | EK25: 0 | EL25: 0 | EM25: 0 | EN25: =SUM(EB25:EM25)-EO25 -> 0 | EO25: =SUM(EO4:EO23) -> 87
B26: 2.47 | C26: =B26/Parameters!C11 -> 35.28571429 | D26: Interest | E26: 501.1197588 | F26: 135.7199864 | G26: 74.95870338 | H26: 144.8529316 | I26: 856.6513801 | J26: 238.1644584 | K26: 59.74540744 | L26: 34.78318308 | M26: 67.07014372 | N26: 399.7631926 | O26: 107.0146703 | P26: 16.79299491 | Q26: 18.68565312 | R26: 26.445055 | S26: 168.9383733 | T26: 1070.807395 | U26: 300.7463694 | V26: 181.7597666 | W26: 334.9259882 | X26: 1888.239519 | Y26: 545.9524105 | Z26: 115.4645695 | AA26: 77.15935321 | AB26: 234.8386456 | AC26: 973.4149788 | AD26: 154.3087712 | AE26: 35.80899389 | AF26: 19.07561026 | AG26: 55.41117047 | AH26: 264.6045458 | AI26: 1077.203189 | AJ26: 335.7779328 | AK26: 200.8602149 | AL26: 343.49511 | AM26: 1957.336446 | AN26: 307.6935675 | AO26: 88.47556158 | AP26: 53.16829598 | AQ26: 112.3598153 | AR26: 561.6972403 | AS26: 115.0696448 | AT26: 30.8736765 | AU26: 19.2519603 | AV26: 39.10003342 | AW26: 204.295315 | AX26: 1033.408767 | AY26: 322.3082668 | AZ26: 191.3969238 | BA26: 335.1073059 | BB26: 1882.221263 | BC26: 393.605844 | BD26: 91.69457081 | BE26: 59.49205949 | BF26: 176.4916195 | BG26: 721.2840938 | BH26: 114.3990179 | BI26: 23.44213667 | BJ26: 15.85411722 | BK26: 40.39906261 | BL26: 194.0943344 | BM26: 1686.346042 | BN26: 562.5168955 | BO26: 315.3511335 | BP26: 434.5265053 | BQ26: 2998.740576 | BR26: 678.9725026 | BS26: 176.4667815 | BT26: 123.8200842 | BU26: 279.8550988 | BV26: 1259.114467 | BW26: 221.3292388 | BX26: 58.37186415 | BY26: 28.12410611 | BZ26: 82.34305094 | CA26: 390.16826 | CB26: 1374.323205 | CC26: 665.3240028 | CD26: 373.3553947 | CE26: 485.9387523 | CF26: 2898.941355 | CG26: 772.4802499 | CH26: 360.4371331 | CI26: 209.6106543 | CJ26: 340.8026671 | CK26: 1683.330704 | CL26: 131.7806742 | CM26: 57.26657162 | CN26: 31.0972188 | CO26: 53.37941927 | CP26: 273.5238839 | CQ26: 1338.837105 | CR26: 622.8261263 | CS26: 362.4713681 | CT26: 476.2916598 | CU26: 2800.42626 | CV26: 1131.285524 | CW26: 493.4000977 | CX26: 298.8065189 | CY26: 419.8621299 | CZ26: 2343.354271 | DA26: 295.2894532 | DB26: 178.8388138 | DC26: 68.76161385 | DD26: 134.0632895 | DE26: 676.9531704 | DF26: 1374.323205 | DG26: 665.3240028 | DH26: 373.3553947 | DI26: 485.9387523 | DJ26: 2898.941355 | DK26: 843.3208072 | DL26: 364.4683461 | DM26: 220.1171428 | DN26: 319.1116118 | DO26: 1747.017908 | DP26: 210.119834 | DQ26: 98.38096962 | DR26: 46.89420855 | DS26: 103.3386412 | DT26: 458.7336534
D27: Ttl Variable Costs | E27: =(SUM(E20:E21)*Parameters!$C$9)+E22 -> 32.9123212 | F27: =(SUM(F20:F21)*Parameters!$C$9)+F22 -> 10.95170192 | G27: =(SUM(G20:G21)*Parameters!$C$9)+G22 -> 6.655588632 | H27: =(SUM(H20:H21)*Parameters!$C$9)+H22 -> 8.178806581 | I27: =(SUM(I20:I21)*Parameters!$C$9)+I22 -> 58.69841833 | J27: =(SUM(J20:J21)*Parameters!$C$9)+J22 -> 32.36039692 | K27: =(SUM(K20:K21)*Parameters!$C$9)+K22 -> 11.03893179 | L27: =(SUM(L20:L21)*Parameters!$C$9)+L22 -> 5.026623718 | M27: =(SUM(M20:M21)*Parameters!$C$9)+M22 -> 8.804725043 | N27: =(SUM(N20:N21)*Parameters!$C$9)+N22 -> 57.23067748 | O27: =(SUM(O20:O21)*Parameters!$C$9)+O22 -> 41.19083799 | P27: =(SUM(P20:P21)*Parameters!$C$9)+P22 -> 10.83610859 | Q27: =(SUM(Q20:Q21)*Parameters!$C$9)+Q22 -> 7.106651282 | R27: =(SUM(R20:R21)*Parameters!$C$9)+R22 -> 10.77934876 | S27: =(SUM(S20:S21)*Parameters!$C$9)+S22 -> 69.91294662 | T27: =(SUM(T20:T21)*Parameters!$C$9)+T22 -> 31.23823769 | U27: =(SUM(U20:U21)*Parameters!$C$9)+U22 -> 10.49219829 | V27: =(SUM(V20:V21)*Parameters!$C$9)+V22 -> 6.369951239 | W27: =(SUM(W20:W21)*Parameters!$C$9)+W22 -> 7.826106496 | X27: =(SUM(X20:X21)*Parameters!$C$9)+X22 -> 55.92649372 | Y27: =(SUM(Y20:Y21)*Parameters!$C$9)+Y22 -> 32.9893191 | Z27: =(SUM(Z20:Z21)*Parameters!$C$9)+Z22 -> 11.01131321 | AA27: =(SUM(AA20:AA21)*Parameters!$C$9)+AA22 -> 6.66800765 | AB27: =(SUM(AB20:AB21)*Parameters!$C$9)+AB22 -> 8.091873462 | AC27: =(SUM(AC20:AC21)*Parameters!$C$9)+AC22 -> 58.76051342 | AD27: =(SUM(AD20:AD21)*Parameters!$C$9)+AD22 -> 35.1025159 | AE27: =(SUM(AE20:AE21)*Parameters!$C$9)+AE22 -> 11.89336017 | AF27: =(SUM(AF20:AF21)*Parameters!$C$9)+AF22 -> 5.272520256 | AG27: =(SUM(AG20:AG21)*Parameters!$C$9)+AG22 -> 9.239390641 | AH27: =(SUM(AH20:AH21)*Parameters!$C$9)+AH22 -> 61.50778697 | AI27: =(SUM(AI20:AI21)*Parameters!$C$9)+AI22 -> 31.17862641 | AJ27: =(SUM(AJ20:AJ21)*Parameters!$C$9)+AJ22 -> 10.46984406 | AK27: =(SUM(AK20:AK21)*Parameters!$C$9)+AK22 -> 6.355048419 | AL27: =(SUM(AL20:AL21)*Parameters!$C$9)+AL22 -> 7.813687479 | AM27: =(SUM(AM20:AM21)*Parameters!$C$9)+AM22 -> 55.81720637 | AN27: =(SUM(AN20:AN21)*Parameters!$C$9)+AN22 -> 34.28834829 | AO27: =(SUM(AO20:AO21)*Parameters!$C$9)+AO22 -> 11.30440201 | AP27: =(SUM(AP20:AP21)*Parameters!$C$9)+AP22 -> 6.881614744 | AQ27: =(SUM(AQ20:AQ21)*Parameters!$C$9)+AQ22 -> 8.417251709 | AR27: =(SUM(AR20:AR21)*Parameters!$C$9)+AR22 -> 60.89161675 | AS27: =(SUM(AS20:AS21)*Parameters!$C$9)+AS22 -> 36.81634026 | AT27: =(SUM(AT20:AT21)*Parameters!$C$9)+AT22 -> 12.26096308 | AU27: =(SUM(AU20:AU21)*Parameters!$C$9)+AU22 -> 5.265068846 | AV27: =(SUM(AV20:AV21)*Parameters!$C$9)+AV22 -> 9.815633034 | AW27: =(SUM(AW20:AW21)*Parameters!$C$9)+AW22 -> 64.15800521 | AX27: =(SUM(AX20:AX21)*Parameters!$C$9)+AX22 -> 31.23327009 | AY27: =(SUM(AY20:AY21)*Parameters!$C$9)+AY22 -> 10.48474688 | AZ27: =(SUM(AZ20:AZ21)*Parameters!$C$9)+AZ22 -> 6.364983632 | BA27: =(SUM(BA20:BA21)*Parameters!$C$9)+BA22 -> 7.826106496 | BB27: =(SUM(BB20:BB21)*Parameters!$C$9)+BB22 -> 55.90910709 | BC27: =(SUM(BC20:BC21)*Parameters!$C$9)+BC22 -> 33.94061581 | BD27: =(SUM(BD20:BD21)*Parameters!$C$9)+BD22 -> 11.24230692 | BE27: =(SUM(BE20:BE21)*Parameters!$C$9)+BE22 -> 6.826971068 | BF27: =(SUM(BF20:BF21)*Parameters!$C$9)+BF22 -> 8.263255897 | BG27: =(SUM(BG20:BG21)*Parameters!$C$9)+BG22 -> 60.2731497 | BH27: =(SUM(BH20:BH21)*Parameters!$C$9)+BH22 -> 37.12184808 | BI27: =(SUM(BI20:BI21)*Parameters!$C$9)+BI22 -> 9.576684145 | BJ27: =(SUM(BJ20:BJ21)*Parameters!$C$9)+BJ22 -> 5.404161838 | BK27: =(SUM(BK20:BK21)*Parameters!$C$9)+BK22 -> 9.758505556 | BL27: =(SUM(BL20:BL21)*Parameters!$C$9)+BL22 -> 61.86119962 | BM27: =(SUM(BM20:BM21)*Parameters!$C$9)+BM22 -> 30.70421996 | BN27: =(SUM(BN20:BN21)*Parameters!$C$9)+BN22 -> 10.34317009 | BO27: =(SUM(BO20:BO21)*Parameters!$C$9)+BO22 -> 6.280534316 | BP27: =(SUM(BP20:BP21)*Parameters!$C$9)+BP22 -> 7.751592393 | BQ27: =(SUM(BQ20:BQ21)*Parameters!$C$9)+BQ22 -> 55.07951675 | BR27: =(SUM(BR20:BR21)*Parameters!$C$9)+BR22 -> 32.14234214 | BS27: =(SUM(BS20:BS21)*Parameters!$C$9)+BS22 -> 10.74057863 | BT27: =(SUM(BT20:BT21)*Parameters!$C$9)+BT22 -> 6.511528034 | BU27: =(SUM(BU20:BU21)*Parameters!$C$9)+BU22 -> 7.95278047 | BV27: =(SUM(BV20:BV21)*Parameters!$C$9)+BV22 -> 57.34722927 | BW27: =(SUM(BW20:BW21)*Parameters!$C$9)+BW22 -> 32.73545124 | BX27: =(SUM(BX20:BX21)*Parameters!$C$9)+BX22 -> 11.13083252 | BY27: =(SUM(BY20:BY21)*Parameters!$C$9)+BY22 -> 5.118524444 | BZ27: =(SUM(BZ20:BZ21)*Parameters!$C$9)+BZ22 -> 8.665632051 | CA27: =(SUM(CA20:CA21)*Parameters!$C$9)+CA22 -> 57.65044026 | CB27: =(SUM(CB20:CB21)*Parameters!$C$9)+CB22 -> 21.39610218 | CC27: =(SUM(CC20:CC21)*Parameters!$C$9)+CC22 -> 10.31336444 | CD27: =(SUM(CD20:CD21)*Parameters!$C$9)+CD22 -> 6.260663889 | CE27: =(SUM(CE20:CE21)*Parameters!$C$9)+CE22 -> 7.734205769 | CF27: =(SUM(CF20:CF21)*Parameters!$C$9)+CF22 -> 45.70433628 | CG27: =(SUM(CG20:CG21)*Parameters!$C$9)+CG22 -> 21.74383466 | CH27: =(SUM(CH20:CH21)*Parameters!$C$9)+CH22 -> 10.47977927 | CI27: =(SUM(CI20:CI21)*Parameters!$C$9)+CI22 -> 6.355048419 | CJ27: =(SUM(CJ20:CJ21)*Parameters!$C$9)+CJ22 -> 7.818655085 | CK27: =(SUM(CK20:CK21)*Parameters!$C$9)+CK22 -> 46.39731744 | CL27: =(SUM(CL20:CL21)*Parameters!$C$9)+CL22 -> 23.77284209 | CM27: =(SUM(CM20:CM21)*Parameters!$C$9)+CM22 -> 11.62247722 | CN27: =(SUM(CN20:CN21)*Parameters!$C$9)+CN22 -> 5.063880769 | CO27: =(SUM(CO20:CO21)*Parameters!$C$9)+CO22 -> 9.135070897 | CP27: =(SUM(CP20:CP21)*Parameters!$C$9)+CP22 -> 49.59427098 | CQ27: =(SUM(CQ20:CQ21)*Parameters!$C$9)+CQ22 -> 21.40603739 | CR27: =(SUM(CR20:CR21)*Parameters!$C$9)+CR22 -> 10.32081585 | CS27: =(SUM(CS20:CS21)*Parameters!$C$9)+CS22 -> 6.265631496 | CT27: =(SUM(CT20:CT21)*Parameters!$C$9)+CT22 -> 7.736689573 | CU27: =(SUM(CU20:CU21)*Parameters!$C$9)+CU22 -> 45.72917432 | CV27: =(SUM(CV20:CV21)*Parameters!$C$9)+CV22 -> 21.4830353 | CW27: =(SUM(CW20:CW21)*Parameters!$C$9)+CW22 -> 10.37049192 | CX27: =(SUM(CX20:CX21)*Parameters!$C$9)+CX22 -> 6.287985726 | CY27: =(SUM(CY20:CY21)*Parameters!$C$9)+CY22 -> 7.759043803 | CZ27: =(SUM(CZ20:CZ21)*Parameters!$C$9)+CZ22 -> 45.90055675 | DA27: =(SUM(DA20:DA21)*Parameters!$C$9)+DA22 -> 23.24653573 | DB27: =(SUM(DB20:DB21)*Parameters!$C$9)+DB22 -> 11.1504062 | DC27: =(SUM(DC20:DC21)*Parameters!$C$9)+DC22 -> 6.764875983 | DD27: =(SUM(DD20:DD21)*Parameters!$C$9)+DD22 -> 8.283126325 | DE27: =(SUM(DE20:DE21)*Parameters!$C$9)+DE22 -> 49.44494423 | DF27: =(SUM(DF20:DF21)*Parameters!$C$9)+DF22 -> 21.39610218 | DG27: =(SUM(DG20:DG21)*Parameters!$C$9)+DG22 -> 10.31336444 | DH27: =(SUM(DH20:DH21)*Parameters!$C$9)+DH22 -> 6.260663889 | DI27: =(SUM(DI20:DI21)*Parameters!$C$9)+DI22 -> 7.734205769 | DJ27: =(SUM(DJ20:DJ21)*Parameters!$C$9)+DJ22 -> 45.70433628 | DK27: =(SUM(DK20:DK21)*Parameters!$C$9)+DK22 -> 21.65441774 | DL27: =(SUM(DL20:DL21)*Parameters!$C$9)+DL22 -> 10.45245744 | DM27: =(SUM(DM20:DM21)*Parameters!$C$9)+DM22 -> 6.335177991 | DN27: =(SUM(DN20:DN21)*Parameters!$C$9)+DN22 -> 7.821138889 | DO27: =(SUM(DO20:DO21)*Parameters!$C$9)+DO22 -> 46.26319205 | DP27: =(SUM(DP20:DP21)*Parameters!$C$9)+DP22 -> 22.36204175 | DQ27: =(SUM(DQ20:DQ21)*Parameters!$C$9)+DQ22 -> 11.05865385 | DR27: =(SUM(DR20:DR21)*Parameters!$C$9)+DR22 -> 4.957077222 | DS27: =(SUM(DS20:DS21)*Parameters!$C$9)+DS22 -> 8.466927778 | DT27: =(SUM(DT20:DT21)*Parameters!$C$9)+DT22 -> 46.8447006 | DZ27: 2 | EA27: Offset Disc | EC27: 1 | ED27: 1 | EN27: =SUM(EB27:EM27) -> 2 | EO27: =EN27*EP27 -> 21.58 | EP27: 10.79
D28: Ttl Fixed Costs | E28: =E23+E24*Parameters!$C$13+E25*Parameters!$C$12+E26*Parameters!$C$11 -> 101.6675818 | F28: =F23+F24*Parameters!$C$13+F25*Parameters!$C$12+F26*Parameters!$C$11 -> 27.24975018 | G28: =G23+G24*Parameters!$C$13+G25*Parameters!$C$12+G26*Parameters!$C$11 -> 14.6925206 | H28: =H23+H24*Parameters!$C$13+H25*Parameters!$C$12+H26*Parameters!$C$11 -> 30.14438586 | I28: =I23+I24*Parameters!$C$13+I25*Parameters!$C$12+I26*Parameters!$C$11 -> 173.7542384 | J28: =J23+J24*Parameters!$C$13+J25*Parameters!$C$12+J26*Parameters!$C$11 -> 47.90345115 | K28: =K23+K24*Parameters!$C$13+K25*Parameters!$C$12+K26*Parameters!$C$11 -> 11.76055832 | L28: =L23+L24*Parameters!$C$13+L25*Parameters!$C$12+L26*Parameters!$C$11 -> 6.802476872 | M28: =M23+M24*Parameters!$C$13+M25*Parameters!$C$12+M26*Parameters!$C$11 -> 13.81711402 | N28: =N23+N24*Parameters!$C$13+N25*Parameters!$C$12+N26*Parameters!$C$11 -> 80.28360037 | O28: =O23+O24*Parameters!$C$13+O25*Parameters!$C$12+O26*Parameters!$C$11 -> 21.24330622 | P28: =P23+P24*Parameters!$C$13+P25*Parameters!$C$12+P26*Parameters!$C$11 -> 3.330081194 | Q28: =Q23+Q24*Parameters!$C$13+Q25*Parameters!$C$12+Q26*Parameters!$C$11 -> 3.703588101 | R28: =R23+R24*Parameters!$C$13+R25*Parameters!$C$12+R26*Parameters!$C$11 -> 5.323907196 | S28: =S23+S24*Parameters!$C$13+S25*Parameters!$C$12+S26*Parameters!$C$11 -> 33.60088271 | T28: =T23+T24*Parameters!$C$13+T25*Parameters!$C$12+T26*Parameters!$C$11 -> 215.0419028 | U28: =U23+U24*Parameters!$C$13+U25*Parameters!$C$12+U26*Parameters!$C$11 -> 59.89661021 | V28: =V23+V24*Parameters!$C$13+V25*Parameters!$C$12+V26*Parameters!$C$11 -> 35.63013893 | W28: =W23+W24*Parameters!$C$13+W25*Parameters!$C$12+W26*Parameters!$C$11 -> 69.53806073 | X28: =X23+X24*Parameters!$C$13+X25*Parameters!$C$12+X26*Parameters!$C$11 -> 380.1067127 | Y28: =Y23+Y24*Parameters!$C$13+Y25*Parameters!$C$12+Y26*Parameters!$C$11 -> 111.769322 | Z28: =Z23+Z24*Parameters!$C$13+Z25*Parameters!$C$12+Z26*Parameters!$C$11 -> 22.9247095 | AA28: =AA23+AA24*Parameters!$C$13+AA25*Parameters!$C$12+AA26*Parameters!$C$11 -> 15.23943176 | AB28: =AB23+AB24*Parameters!$C$13+AB25*Parameters!$C$12+AB26*Parameters!$C$11 -> 49.85449985 | AC28: =AC23+AC24*Parameters!$C$13+AC25*Parameters!$C$12+AC26*Parameters!$C$11 -> 199.7879631 | AD28: =AD23+AD24*Parameters!$C$13+AD25*Parameters!$C$12+AD26*Parameters!$C$11 -> 31.22903673 | AE28: =AE23+AE24*Parameters!$C$13+AE25*Parameters!$C$12+AE26*Parameters!$C$11 -> 7.034117621 | AF28: =AF23+AF24*Parameters!$C$13+AF25*Parameters!$C$12+AF26*Parameters!$C$11 -> 3.743265618 | AG28: =AG23+AG24*Parameters!$C$13+AG25*Parameters!$C$12+AG26*Parameters!$C$11 -> 11.57766967 | AH28: =AH23+AH24*Parameters!$C$13+AH25*Parameters!$C$12+AH26*Parameters!$C$11 -> 53.58408964 | AI28: =AI23+AI24*Parameters!$C$13+AI25*Parameters!$C$12+AI26*Parameters!$C$11 -> 215.1776365 | AJ28: =AJ23+AJ24*Parameters!$C$13+AJ25*Parameters!$C$12+AJ26*Parameters!$C$11 -> 67.1567527 | AK28: =AK23+AK24*Parameters!$C$13+AK25*Parameters!$C$12+AK26*Parameters!$C$11 -> 39.52942839 | AL28: =AL23+AL24*Parameters!$C$13+AL25*Parameters!$C$12+AL26*Parameters!$C$11 -> 71.16752271 | AM28: =AM23+AM24*Parameters!$C$13+AM25*Parameters!$C$12+AM26*Parameters!$C$11 -> 393.0313402 | AN28: =AN23+AN24*Parameters!$C$13+AN25*Parameters!$C$12+AN26*Parameters!$C$11 -> 61.95114906 | AO28: =AO23+AO24*Parameters!$C$13+AO25*Parameters!$C$12+AO26*Parameters!$C$11 -> 17.70919176 | AP28: =AP23+AP24*Parameters!$C$13+AP25*Parameters!$C$12+AP26*Parameters!$C$11 -> 10.47944233 | AQ28: =AQ23+AQ24*Parameters!$C$13+AQ25*Parameters!$C$12+AQ26*Parameters!$C$11 -> 23.53151509 | AR28: =AR23+AR24*Parameters!$C$13+AR25*Parameters!$C$12+AR26*Parameters!$C$11 -> 113.6712982 | AS28: =AS23+AS24*Parameters!$C$13+AS25*Parameters!$C$12+AS26*Parameters!$C$11 -> 23.02276633 | AT28: =AT23+AT24*Parameters!$C$13+AT25*Parameters!$C$12+AT26*Parameters!$C$11 -> 6.08880812 | AU28: =AU23+AU24*Parameters!$C$13+AU25*Parameters!$C$12+AU26*Parameters!$C$11 -> 3.76932941 | AV28: =AV23+AV24*Parameters!$C$13+AV25*Parameters!$C$12+AV26*Parameters!$C$11 -> 8.126028652 | AW28: =AW23+AW24*Parameters!$C$13+AW25*Parameters!$C$12+AW26*Parameters!$C$11 -> 41.00693251 | AX28: =AX23+AX24*Parameters!$C$13+AX25*Parameters!$C$12+AX26*Parameters!$C$11 -> 206.8498857 | AY28: =AY23+AY24*Parameters!$C$13+AY25*Parameters!$C$12+AY26*Parameters!$C$11 -> 64.59549063 | AZ28: =AZ23+AZ24*Parameters!$C$13+AZ25*Parameters!$C$12+AZ26*Parameters!$C$11 -> 37.7295775 | BA28: =BA23+BA24*Parameters!$C$13+BA25*Parameters!$C$12+BA26*Parameters!$C$11 -> 69.57238814 | BB28: =BB23+BB24*Parameters!$C$13+BB25*Parameters!$C$12+BB26*Parameters!$C$11 -> 378.747342 | BC28: =BC23+BC24*Parameters!$C$13+BC25*Parameters!$C$12+BC26*Parameters!$C$11 -> 80.31228457 | BD28: =BD23+BD24*Parameters!$C$13+BD25*Parameters!$C$12+BD26*Parameters!$C$11 -> 18.28880219 | BE28: =BE23+BE24*Parameters!$C$13+BE25*Parameters!$C$12+BE26*Parameters!$C$11 -> 11.77201611 | BF28: =BF23+BF24*Parameters!$C$13+BF25*Parameters!$C$12+BF26*Parameters!$C$11 -> 37.45887149 | BG28: =BG23+BG24*Parameters!$C$13+BG25*Parameters!$C$12+BG26*Parameters!$C$11 -> 147.8319744 | BH28: =BH23+BH24*Parameters!$C$13+BH25*Parameters!$C$12+BH26*Parameters!$C$11 -> 23.03132303 | BI28: =BI23+BI24*Parameters!$C$13+BI25*Parameters!$C$12+BI26*Parameters!$C$11 -> 4.664292216 | BJ28: =BJ23+BJ24*Parameters!$C$13+BJ25*Parameters!$C$12+BJ26*Parameters!$C$11 -> 3.142571422 | BK28: =BK23+BK24*Parameters!$C$13+BK25*Parameters!$C$12+BK26*Parameters!$C$11 -> 8.402688337 | BL28: =BL23+BL24*Parameters!$C$13+BL25*Parameters!$C$12+BL26*Parameters!$C$11 -> 39.24087501 | BM28: =BM23+BM24*Parameters!$C$13+BM25*Parameters!$C$12+BM26*Parameters!$C$11 -> 334.7978103 | BN28: =BN23+BN24*Parameters!$C$13+BN25*Parameters!$C$12+BN26*Parameters!$C$11 -> 112.5518853 | BO28: =BO23+BO24*Parameters!$C$13+BO25*Parameters!$C$12+BO26*Parameters!$C$11 -> 61.63770673 | BP28: =BP23+BP24*Parameters!$C$13+BP25*Parameters!$C$12+BP26*Parameters!$C$11 -> 88.48207908 | BQ28: =BQ23+BQ24*Parameters!$C$13+BQ25*Parameters!$C$12+BQ26*Parameters!$C$11 -> 597.4694814 | BR28: =BR23+BR24*Parameters!$C$13+BR25*Parameters!$C$12+BR26*Parameters!$C$11 -> 137.5829632 | BS28: =BS23+BS24*Parameters!$C$13+BS25*Parameters!$C$12+BS26*Parameters!$C$11 -> 35.25026107 | BT28: =BT23+BT24*Parameters!$C$13+BT25*Parameters!$C$12+BT26*Parameters!$C$11 -> 24.73084193 | BU28: =BU23+BU24*Parameters!$C$13+BU25*Parameters!$C$12+BU26*Parameters!$C$11 -> 59.0648751 | BV28: =BV23+BV24*Parameters!$C$13+BV25*Parameters!$C$12+BV26*Parameters!$C$11 -> 256.6289413 | BW28: =BW23+BW24*Parameters!$C$13+BW25*Parameters!$C$12+BW26*Parameters!$C$11 -> 44.66868715 | BX28: =BX23+BX24*Parameters!$C$13+BX25*Parameters!$C$12+BX26*Parameters!$C$11 -> 11.56066058 | BY28: =BY23+BY24*Parameters!$C$13+BY25*Parameters!$C$12+BY26*Parameters!$C$11 -> 5.592495763 | BZ28: =BZ23+BZ24*Parameters!$C$13+BZ25*Parameters!$C$12+BZ26*Parameters!$C$11 -> 17.16651424 | CA28: =CA23+CA24*Parameters!$C$13+CA25*Parameters!$C$12+CA26*Parameters!$C$11 -> 78.98835774 | CB28: =CB23+CB24*Parameters!$C$13+CB25*Parameters!$C$12+CB26*Parameters!$C$11 -> 271.2195576 | CC28: =CC23+CC24*Parameters!$C$13+CC25*Parameters!$C$12+CC26*Parameters!$C$11 -> 132.674328 | CD28: =CD23+CD24*Parameters!$C$13+CD25*Parameters!$C$12+CD26*Parameters!$C$11 -> 72.66783187 | CE28: =CE23+CE24*Parameters!$C$13+CE25*Parameters!$C$12+CE26*Parameters!$C$11 -> 98.25855661 | CF28: =CF23+CF24*Parameters!$C$13+CF25*Parameters!$C$12+CF26*Parameters!$C$11 -> 574.8202741 | CG28: =CG23+CG24*Parameters!$C$13+CG25*Parameters!$C$12+CG26*Parameters!$C$11 -> 154.8404032 | CH28: =CH23+CH24*Parameters!$C$13+CH25*Parameters!$C$12+CH26*Parameters!$C$11 -> 72.66423408 | CI28: =CI23+CI24*Parameters!$C$13+CI25*Parameters!$C$12+CI26*Parameters!$C$11 -> 41.52694159 | CJ28: =CJ23+CJ24*Parameters!$C$13+CJ25*Parameters!$C$12+CJ26*Parameters!$C$11 -> 70.65537734 | CK28: =CK23+CK24*Parameters!$C$13+CK25*Parameters!$C$12+CK26*Parameters!$C$11 -> 339.6869563 | CL28: =CL23+CL24*Parameters!$C$13+CL25*Parameters!$C$12+CL26*Parameters!$C$11 -> 26.46819411 | CM28: =CM23+CM24*Parameters!$C$13+CM25*Parameters!$C$12+CM26*Parameters!$C$11 -> 11.48892213 | CN28: =CN23+CN24*Parameters!$C$13+CN25*Parameters!$C$12+CN26*Parameters!$C$11 -> 6.124214738 | CO28: =CO23+CO24*Parameters!$C$13+CO25*Parameters!$C$12+CO26*Parameters!$C$11 -> 11.01716714 | CP28: =CP23+CP24*Parameters!$C$13+CP25*Parameters!$C$12+CP26*Parameters!$C$11 -> 55.09849812 | CQ28: =CQ23+CQ24*Parameters!$C$13+CQ25*Parameters!$C$12+CQ26*Parameters!$C$11 -> 264.4721082 | CR28: =CR23+CR24*Parameters!$C$13+CR25*Parameters!$C$12+CR26*Parameters!$C$11 -> 123.8303361 | CS28: =CS23+CS24*Parameters!$C$13+CS25*Parameters!$C$12+CS26*Parameters!$C$11 -> 70.59873172 | CT28: =CT23+CT24*Parameters!$C$13+CT25*Parameters!$C$12+CT26*Parameters!$C$11 -> 96.42415849 | CU28: =CU23+CU24*Parameters!$C$13+CU25*Parameters!$C$12+CU26*Parameters!$C$11 -> 555.3253345 | CV28: =CV23+CV24*Parameters!$C$13+CV25*Parameters!$C$12+CV26*Parameters!$C$11 -> 224.9973508 | CW28: =CW23+CW24*Parameters!$C$13+CW25*Parameters!$C$12+CW26*Parameters!$C$11 -> 98.12086448 | CX28: =CX23+CX24*Parameters!$C$13+CX25*Parameters!$C$12+CX26*Parameters!$C$11 -> 58.48884383 | CY28: =CY23+CY24*Parameters!$C$13+CY25*Parameters!$C$12+CY26*Parameters!$C$11 -> 85.69253436 | CZ28: =CZ23+CZ24*Parameters!$C$13+CZ25*Parameters!$C$12+CZ26*Parameters!$C$11 -> 467.2995935 | DA28: =DA23+DA24*Parameters!$C$13+DA25*Parameters!$C$12+DA26*Parameters!$C$11 -> 60.13352904 | DB28: =DB23+DB24*Parameters!$C$13+DB25*Parameters!$C$12+DB26*Parameters!$C$11 -> 37.15284828 | DC28: =DC23+DC24*Parameters!$C$13+DC25*Parameters!$C$12+DC26*Parameters!$C$11 -> 13.68246331 | DD28: =DD23+DD24*Parameters!$C$13+DD25*Parameters!$C$12+DD26*Parameters!$C$11 -> 28.09161175 | DE28: =DE23+DE24*Parameters!$C$13+DE25*Parameters!$C$12+DE26*Parameters!$C$11 -> 139.0604524 | DF28: =DF23+DF24*Parameters!$C$13+DF25*Parameters!$C$12+DF26*Parameters!$C$11 -> 271.2195576 | DG28: =DG23+DG24*Parameters!$C$13+DG25*Parameters!$C$12+DG26*Parameters!$C$11 -> 132.674328 | DH28: =DH23+DH24*Parameters!$C$13+DH25*Parameters!$C$12+DH26*Parameters!$C$11 -> 72.66783187 | DI28: =DI23+DI24*Parameters!$C$13+DI25*Parameters!$C$12+DI26*Parameters!$C$11 -> 98.25855661 | DJ28: =DJ23+DJ24*Parameters!$C$13+DJ25*Parameters!$C$12+DJ26*Parameters!$C$11 -> 574.8202741 | DK28: =DK23+DK24*Parameters!$C$13+DK25*Parameters!$C$12+DK26*Parameters!$C$11 -> 168.2634196 | DL28: =DL23+DL24*Parameters!$C$13+DL25*Parameters!$C$12+DL26*Parameters!$C$11 -> 72.6506365 | DM28: =DM23+DM24*Parameters!$C$13+DM25*Parameters!$C$12+DM26*Parameters!$C$11 -> 43.19224485 | DN28: =DN23+DN24*Parameters!$C$13+DN25*Parameters!$C$12+DN26*Parameters!$C$11 -> 65.36353357 | DO28: =DO23+DO24*Parameters!$C$13+DO25*Parameters!$C$12+DO26*Parameters!$C$11 -> 349.4698345 | DP28: =DP23+DP24*Parameters!$C$13+DP25*Parameters!$C$12+DP26*Parameters!$C$11 -> 42.45353067 | DQ28: =DQ23+DQ24*Parameters!$C$13+DQ25*Parameters!$C$12+DQ26*Parameters!$C$11 -> 19.957625 | DR28: =DR23+DR24*Parameters!$C$13+DR25*Parameters!$C$12+DR26*Parameters!$C$11 -> 9.30353279 | DS28: =DS23+DS24*Parameters!$C$13+DS25*Parameters!$C$12+DS26*Parameters!$C$11 -> 21.60119746 | DT28: =DT23+DT24*Parameters!$C$13+DT25*Parameters!$C$12+DT26*Parameters!$C$11 -> 93.31588591 | EA28: Chisel | EC28: 1 | EN28: 1 | EO28: 16.64 | EP28: 16.64
D29: Labor Hrs. | E29: 0.729 | F29: 0.224 | G29: 0.158 | H29: 0.14 | I29: =+SUM(E29:H29) -> 1.251 | J29: 0.729 | K29: 0.224 | L29: 0.158 | M29: 0.14 | N29: =+SUM(J29:M29) -> 1.251 | O29: 0.729 | P29: 0.224 | Q29: 0.156 | R29: 0.14 | S29: =+SUM(O29:R29) -> 1.249 | T29: 0.729 | U29: 0.224 | V29: 0.158 | W29: 0.14 | X29: =+SUM(T29:W29) -> 1.251 | Y29: 0.729 | Z29: 0.224 | AA29: 0.158 | AB29: 0.14 | AC29: =+SUM(Y29:AB29) -> 1.251 | AD29: 0.729 | AE29: 0.224 | AF29: 0.158 | AG29: 0.14 | AH29: =+SUM(AD29:AG29) -> 1.251 | AI29: 0.729 | AJ29: 0.224 | AK29: 0.158 | AL29: 0.14 | AM29: =+SUM(AI29:AL29) -> 1.251 | AN29: 0.729 | AO29: 0.224 | AP29: 0.158 | AQ29: 0.14 | AR29: =+SUM(AN29:AQ29) -> 1.251 | AS29: 0.729 | AT29: 0.224 | AU29: 0.158 | AV29: 0.14 | AW29: =+SUM(AS29:AV29) -> 1.251 | AX29: 0.729 | AY29: 0.224 | AZ29: 0.158 | BA29: 0.14 | BB29: =+SUM(AX29:BA29) -> 1.251 | BC29: 0.729 | BD29: 0.224 | BE29: 0.158 | BF29: 0.14 | BG29: =+SUM(BC29:BF29) -> 1.251 | BH29: 0.729 | BI29: 0.224 | BJ29: 0.158 | BK29: 0.14 | BL29: =+SUM(BH29:BK29) -> 1.251 | BM29: 0.729 | BN29: 0.224 | BO29: 0.158 | BP29: 0.14 | BQ29: =+SUM(BM29:BP29) -> 1.251 | BR29: 0.729 | BS29: 0.224 | BT29: 0.158 | BU29: 0.14 | BV29: =+SUM(BR29:BU29) -> 1.251 | BW29: 0.729 | BX29: 0.224 | BY29: 0.158 | BZ29: 0.14 | CA29: =+SUM(BW29:BZ29) -> 1.251 | CB29: 0.514 | CC29: 0.224 | CD29: 0.158 | CE29: 0.14 | CF29: =+SUM(CB29:CE29) -> 1.036 | CG29: 0.514 | CH29: 0.224 | CI29: 0.158 | CJ29: 0.14 | CK29: =+SUM(CG29:CJ29) -> 1.036 | CL29: 0.514 | CM29: 0.224 | CN29: 0.158 | CO29: 0.14 | CP29: =+SUM(CL29:CO29) -> 1.036 | CQ29: 0.514 | CR29: 0.224 | CS29: 0.158 | CT29: 0.14 | CU29: =+SUM(CQ29:CT29) -> 1.036 | CV29: 0.514 | CW29: 0.224 | CX29: 0.158 | CY29: 0.14 | CZ29: =+SUM(CV29:CY29) -> 1.036 | DA29: 0.514 | DB29: 0.224 | DC29: 0.158 | DD29: 0.14 | DE29: =+SUM(DA29:DD29) -> 1.036 | DF29: 0.514 | DG29: 0.224 | DH29: 0.158 | DI29: 0.14 | DJ29: =+SUM(DF29:DI29) -> 1.036 | DK29: 0.514 | DL29: 0.224 | DM29: 0.158 | DN29: 0.14 | DO29: =+SUM(DK29:DN29) -> 1.036 | DP29: 0.514 | DQ29: 0.224 | DR29: 0.158 | DS29: 0.14 | DT29: =+SUM(DP29:DS29) -> 1.036 | EA29: Anhy. App. | ED29: 1 | EN29: 1 | EO29: 17.72 | EP29: 17.72
D30: Tractor 1 | I30: 160 | N30: 160 | S30: 160 | X30: 160 | AC30: 160 | AH30: 160 | AM30: 160 | AR30: 160 | AW30: 160 | BB30: 160 | BG30: 160 | BL30: 160 | BQ30: 160 | BV30: 160 | CA30: 160 | CF30: 160 | CK30: 160 | CP30: 160 | CU30: 160 | CZ30: 160 | DE30: 160 | DJ30: 160 | DO30: 160 | DT30: 160 | EA30: Sweep Plow | EN30: 0 | EO30: 0 | EP30: 13.17
D31: Tractor 2 | N31: 95 | S31: 160 | AH31: 95 | AW31: 95 | BL31: 95 | CA31: 95 | CP31: 95 | DT31: 95 | EA31: M.B. Plow | EN31: 0 | EO31: 0 | EP31: 21.8
D32: Tractor 3 | S32: 95 | EA32: Field Cultivator | EN32: 0 | EO32: 0 | EP32: 15.39
EA33: Cultipacker | EN33: 0 | EO33: 0
D34: Fuel | E34: 4.912 | F34: 1.232 | G34: 0.653 | H34: 0.822 | I34: =+SUM(E34:H34) -> 7.619 | J34: 4.912 | K34: 1.232 | L34: 0.653 | M34: 0.822 | N34: =+SUM(J34:M34) -> 7.619 | O34: 5.619 | P34: 1.276 | Q34: 0.876 | R34: 0.822 | S34: =+SUM(O34:R34) -> 8.593 | T34: 4.912 | U34: 1.232 | V34: 0.653 | W34: 0.822 | X34: =+SUM(T34:W34) -> 7.619 | Y34: 4.912 | Z34: 1.232 | AA34: 0.653 | AB34: 0.822 | AC34: =+SUM(Y34:AB34) -> 7.619 | AD34: 4.912 | AE34: 1.232 | AF34: 0.653 | AG34: 0.822 | AH34: =+SUM(AD34:AG34) -> 7.619 | AI34: 4.912 | AJ34: 1.232 | AK34: 0.653 | AL34: 0.579 | AM34: =+SUM(AI34:AL34) -> 7.376 | AN34: 4.912 | AO34: 1.232 | AP34: 0.653 | AQ34: 0.579 | AR34: =+SUM(AN34:AQ34) -> 7.376 | AS34: 4.912 | AT34: 1.232 | AU34: 0.653 | AV34: 0.822 | AW34: =+SUM(AS34:AV34) -> 7.619 | AX34: 4.912 | AY34: 1.232 | AZ34: 0.653 | BA34: 0.579 | BB34: =+SUM(AX34:BA34) -> 7.376 | BC34: 4.912 | BD34: 1.232 | BE34: 0.653 | BF34: 0.579 | BG34: =+SUM(BC34:BF34) -> 7.376 | BH34: 4.912 | BI34: 1.156 | BJ34: 0.653 | BK34: 0.822 | BL34: =+SUM(BH34:BK34) -> 7.543 | BM34: 4.912 | BN34: 1.232 | BO34: 0.653 | BP34: 0.822 | BQ34: =+SUM(BM34:BP34) -> 7.619 | BR34: 4.912 | BS34: 1.232 | BT34: 0.653 | BU34: 0.822 | BV34: =+SUM(BR34:BU34) -> 7.619 | BW34: 4.912 | BX34: 1.232 | BY34: 0.653 | BZ34: 0.822 | CA34: =+SUM(BW34:BZ34) -> 7.619 | CB34: 3.396 | CC34: 1.232 | CD34: 0.653 | CE34: 0.579 | CF34: =+SUM(CB34:CE34) -> 5.86 | CG34: 3.396 | CH34: 1.232 | CI34: 0.653 | CJ34: 0.579 | CK34: =+SUM(CG34:CJ34) -> 5.86 | CL34: 3.396 | CM34: 1.426 | CN34: 0.653 | CO34: 0.822 | CP34: =+SUM(CL34:CO34) -> 6.297 | CQ34: 3.396 | CR34: 1.232 | CS34: 0.653 | CT34: 0.822 | CU34: =+SUM(CQ34:CT34) -> 6.103 | CV34: 3.396 | CW34: 1.232 | CX34: 0.653 | CY34: 0.822 | CZ34: =+SUM(CV34:CY34) -> 6.103 | DA34: 3.396 | DB34: 1.232 | DC34: 0.653 | DD34: 0.579 | DE34: =+SUM(DA34:DD34) -> 5.86 | DF34: 3.396 | DG34: 1.232 | DH34: 0.653 | DI34: 0.822 | DJ34: =+SUM(DF34:DI34) -> 6.103 | DK34: 3.396 | DL34: 1.426 | DM34: 0.653 | DN34: 0.822 | DO34: =+SUM(DK34:DN34) -> 6.297 | DP34: 3.396 | DQ34: 1.426 | DR34: 0.653 | DS34: 0.822 | DT34: =+SUM(DP34:DS34) -> 6.297 | EA34: Tandem Disk | EN34: 0 | EO34: 0 | EP34: 12.27
D35: Lube | E35: 0.737 | F35: 0.185 | G35: 0.098 | H35: 0.123 | I35: 1.143 | J35: 0.737 | K35: 0.185 | L35: 0.098 | M35: 0.123 | N35: 1.143 | O35: 0.843 | P35: 0.191 | Q35: 0.131 | R35: 0.123 | S35: 1.288 | T35: 0.737 | U35: 0.185 | V35: 0.098 | W35: 0.123 | X35: 1.143 | Y35: 0.737 | Z35: 0.185 | AA35: 0.098 | AB35: 0.123 | AC35: 1.143 | AD35: 0.737 | AE35: 0.185 | AF35: 0.098 | AG35: 0.123 | AH35: 1.143 | AI35: 0.737 | AJ35: 0.185 | AK35: 0.098 | AL35: 0.087 | AM35: 1.107 | AN35: 0.737 | AO35: 0.185 | AP35: 0.098 | AQ35: 0.087 | AR35: 1.107 | AS35: 0.737 | AT35: 0.185 | AU35: 0.098 | AV35: 0.123 | AW35: 1.143 | AX35: 0.737 | AY35: 0.185 | AZ35: 0.098 | BA35: 0.087 | BB35: 1.107 | BC35: 0.737 | BD35: 0.185 | BE35: 0.098 | BF35: 0.087 | BG35: 1.107 | BH35: 0.737 | BI35: 0.173 | BJ35: 0.098 | BK35: 0.123 | BL35: 1.131 | BM35: 0.737 | BN35: 0.185 | BO35: 0.098 | BP35: 0.123 | BQ35: 1.143 | BR35: 0.737 | BS35: 0.185 | BT35: 0.098 | BU35: 0.123 | BV35: 1.143 | BW35: 0.737 | BX35: 0.185 | BY35: 0.098 | BZ35: 0.123 | CA35: 1.143 | CB35: 0.509 | CC35: 0.185 | CD35: 0.098 | CE35: 0.087 | CF35: 0.879 | CG35: 0.509 | CH35: 0.185 | CI35: 0.098 | CJ35: 0.087 | CK35: 0.879 | CL35: 0.509 | CM35: 0.214 | CN35: 0.098 | CO35: 0.123 | CP35: 0.944 | CQ35: 0.509 | CR35: 0.185 | CS35: 0.098 | CT35: 0.123 | CU35: 0.915 | CV35: 0.509 | CW35: 0.185 | CX35: 0.098 | CY35: 0.123 | CZ35: 0.915 | DA35: 0.509 | DB35: 0.185 | DC35: 0.098 | DD35: 0.087 | DE35: 0.879 | DF35: 0.509 | DG35: 0.185 | DH35: 0.098 | DI35: 0.123 | DJ35: 0.915 | DK35: 0.509 | DL35: 0.214 | DM35: 0.098 | DN35: 0.123 | DO35: 0.944 | DP35: 0.509 | DQ35: 0.214 | DR35: 0.098 | DS35: 0.123 | DT35: 0.944 | EA35: Springtooth | EN35: 0 | EO35: 0
D36: Repairs | E36: 9.704219957 | F36: 3.452486752 | G36: 2.352161838 | H36: 5.660587991 | I36: 21.16945654 | J36: 11.01815197 | K36: 3.765445983 | L36: 2.555833718 | M36: 6.010804274 | N36: 23.35023594 | O36: 16.39310256 | P36: 5.300436496 | Q36: 3.067497222 | R36: 7.558213803 | S36: 32.31925009 | T36: 9.195040256 | U36: 3.358102222 | V36: 2.297518162 | W36: 5.521495 | X36: 20.37215564 | Y36: 9.701736154 | Z36: 3.49471141 | AA36: 2.367064658 | AB36: 5.566203462 | AC36: 21.12971568 | AD36: 12.33208397 | AE36: 4.130565085 | AF36: 2.801730256 | AG36: 6.107672607 | AH36: 25.37205192 | AI36: 9.192556453 | AJ36: 3.350650812 | AK36: 2.302485769 | AL36: 4.224949615 | AM36: 19.07064265 | AN36: 10.17862641 | AO36: 3.541903675 | AP36: 2.461449188 | AQ36: 4.498167991 | AR36: 20.68014726 | AS36: 13.12193346 | AT36: 4.182724957 | AU36: 2.794278846 | AV36: 6.410696624 | AW36: 26.50963389 | AX36: 9.202491667 | AY36: 3.353134615 | AZ36: 2.302485769 | BA36: 4.224949615 | BB36: 19.08306167 | BC36: 10.03456581 | BD36: 3.534452265 | BE36: 2.41922453 | BF36: 4.356591197 | BG36: 20.3448338 | BH36: 13.39763564 | BI36: 4.513070812 | BJ36: 2.771924615 | BK36: 6.425599444 | BL36: 27.10823051 | BM36: 9.036076838 | BN36: 3.320845171 | BO36: 2.285099145 | BP36: 5.509075983 | BQ36: 20.15109714 | BR36: 9.475710043 | BS36: 3.425164915 | BT36: 2.32484 | BU36: 5.538881624 | BV36: 20.76459658 | BW36: 11.30627316 | BX36: 3.882184744 | BY36: 2.647734444 | BZ36: 5.886614103 | CA36: 23.72280645 | CB36: 5.956160598 | CC36: 3.315877564 | CD36: 2.282615342 | CE36: 4.210046795 | CF36: 15.7647003 | CG36: 6.033158504 | CH36: 3.368037436 | CI36: 2.319872393 | CJ36: 4.242336239 | CK36: 15.96340457 | CL36: 7.483699701 | CM36: 3.787800214 | CN36: 2.593090769 | CO36: 6.182186709 | CP36: 20.04677739 | CQ36: 5.958644402 | CR36: 3.318361368 | CS36: 2.277647735 | CT36: 5.506592179 | CU36: 17.06124568 | CV36: 5.968579615 | CW36: 3.338231795 | CX36: 2.292550556 | CY36: 5.506592179 | CZ36: 17.10595415 | DA36: 6.383374786 | DB36: 3.556806496 | DC36: 2.50615765 | DD36: 4.508103205 | DE36: 16.95444214 | DF36: 5.956160598 | DG36: 3.315877564 | DH36: 2.277647735 | DI36: 5.506592179 | DJ36: 17.05627808 | DK36: 6.023223291 | DL36: 3.248814872 | DM36: 2.295034359 | DN36: 5.536397821 | DO36: 17.10347034 | DP36: 6.895038291 | DQ36: 3.621385385 | DR36: 2.486287222 | DS36: 5.809616197 | DT36: 18.81232709 | EA36: S. Harrow | EN36: 0 | EO36: 0 | EP36: 7.8
D37: Depreciation | E37: 81.4389465 | F37: 21.40293406 | G37: 11.19201821 | H37: 48.02682291 | I37: 162.0607217 | J37: 31.95909859 | K37: 7.722144829 | L37: 3.546871282 | M37: 19.71146393 | N37: 62.93957863 | O37: 11.45778517 | P37: 3.710802308 | Q37: 2.252809701 | R37: 5.511559786 | S37: 22.93295697 | T37: 183.3195951 | U37: 49.20662953 | V37: 23.4669747 | W37: 110.8074381 | X37: 366.8006375 | Y37: 88.5649785 | Z37: 19.42334274 | AA37: 9.378841709 | AB37: 88.70158769 | AC37: 206.0687506 | AD37: 21.32841996 | AE37: 4.647196197 | AF37: 1.957237094 | AG37: 18.15163538 | AH37: 46.08448863 | AI37: 183.5133318 | AJ37: 54.54680688 | AK37: 21.05520158 | AL37: 39.12487145 | AM37: 298.2402117 | AN37: 51.23092932 | AO37: 14.99720504 | AP37: 5.305404103 | AQ37: 12.77171718 | AR37: 84.30525564 | AS37: 15.31264808 | AT37: 4.006374915 | AU37: 1.967172308 | AV37: 12.2799241 | AW37: 33.5661194 | AX37: 173.3620272 | AY37: 51.8742344 | AZ37: 21.05520158 | BA37: 39.12487145 | BB37: 285.4163347 | BC37: 61.21085145 | BD37: 14.86059585 | BE37: 6.639206538 | BF37: 21.19181077 | BG37: 103.9024646 | BH37: 14.96988321 | BI37: 4.292012308 | BJ37: 2.073975855 | BK37: 12.53327205 | BL37: 33.86914342 | BM37: 309.0844974 | BN37: 97.53399265 | BO37: 32.89300868 | BP37: 132.3047567 | BQ37: 571.8162555 | BR37: 109.3544131 | BS37: 29.74602974 | BT37: 15.46912769 | BU37: 101.8533268 | BV37: 256.4228974 | BW37: 29.66158043 | BX37: 7.905946282 | BY37: 2.955726068 | BZ37: 26.47237684 | CA37: 66.99562962 | CB37: 293.978005 | CC37: 123.633799 | CD37: 33.43944543 | CE37: 48.81170479 | CF37: 499.8629542 | CG37: 167.413318 | CH37: 73.55287064 | CI37: 17.80390291 | CJ37: 34.95208171 | CK37: 293.7221733 | CL37: 18.72539397 | CM37: 8.412642179 | CN37: 3.211557821 | CO37: 15.65541295 | CP37: 46.00500692 | CQ37: 263.3030328 | CR37: 109.7021456 | CS37: 40.12087662 | CT37: 140.8987165 | CU37: 554.0247716 | CV37: 252.2625266 | CW37: 100.3928504 | CX37: 26.18177184 | CY37: 140.8987165 | CZ37: 519.7358654 | DA37: 71.54844128 | DB37: 40.63502393 | DC37: 5.424626667 | DD37: 13.85217167 | DE37: 131.4602635 | DF37: 266.0749574 | DG37: 114.1729918 | DH37: 43.61558803 | DI37: 140.8987165 | DJ37: 564.7622538 | DK37: 147.4261519 | DL37: 67.61906427 | DM37: 24.36611154 | DN37: 96.4063459 | DO37: 335.8176736 | DP37: 29.50510081 | DQ37: 15.12636282 | DR37: 4.907995556 | DS37: 33.37486654 | DT37: 82.91432573 | EA37: Drill | EN37: 0 | EO37: 0 | EP37: 12.55
D38: Insurance | E38: 773.7991495 | F38: 201.4662629 | G38: 111.2942636 | H38: 405.7963512 | I38: 1492.356027 | J38: 302.4875156 | K38: 73.46593752 | L38: 34.78318308 | M38: 166.680596 | N38: 577.4172322 | O38: 110.720505 | P38: 34.8701162 | Q38: 22.26233004 | R38: 46.70295568 | S38: 214.5559069 | T38: 1763.321594 | U38: 467.898888 | V38: 231.8655329 | W38: 941.4012366 | X38: 3404.487251 | Y38: 827.6753294 | Z38: 184.9688406 | AA38: 91.27729184 | AB38: 735.6653156 | AC38: 1839.586777 | AD38: 199.3749004 | AE38: 44.36569667 | AF38: 19.07561026 | AG38: 151.3903022 | AH38: 414.2065095 | AI38: 1781.863186 | AJ38: 516.3082167 | AK38: 204.3375397 | AL38: 346.57751 | AM38: 2849.086452 | AN38: 492.2476129 | AO38: 141.0303581 | AP38: 51.18373705 | AQ38: 110.5987986 | AR38: 795.0605068 | AS38: 146.0153516 | AT38: 37.9251944 | AU38: 19.2519603 | AV38: 102.8841052 | AW38: 306.0766115 | AX38: 1677.036747 | AY38: 488.7156445 | AZ38: 204.3375397 | BA38: 346.57751 | BB38: 2716.667441 | BC38: 574.955783 | BD38: 140.2529276 | BE38: 64.05480637 | BF38: 180.5377353 | BG38: 959.8012523 | BH38: 141.1396455 | BI38: 39.65143778 | BJ38: 20.17841897 | BK38: 104.4464176 | BL38: 305.4159198 | BM38: 3031.370301 | BN38: 923.3588885 | BO38: 323.3142072 | BP38: 1163.3862 | BQ38: 5441.429597 | BR38: 1040.49009 | BS38: 279.5048825 | BT38: 148.1241007 | BU38: 848.9466219 | BV38: 2317.065695 | BW38: 279.4080142 | BX38: 73.94282778 | BY38: 28.12410611 | BZ38: 221.0088282 | CA38: 602.4837763 | CB38: 2899.07548 | CC38: 1187.23568 | CD38: 328.952441 | CE38: 446.5828871 | CF38: 4861.846488 | CG38: 1619.608728 | CH38: 690.0204602 | CI38: 167.5101864 | CJ38: 303.4860045 | CK38: 2780.625379 | CL38: 173.0888088 | CM38: 76.93332709 | CN38: 31.0972188 | CO38: 131.6068079 | CP38: 412.7261627 | CQ38: 2582.333417 | CR38: 1050.862453 | CS38: 397.9450485 | CT38: 1252.130012 | CU38: 5283.27093 | CV38: 2468.311937 | CW38: 965.504065 | CX38: 254.0160918 | CY38: 1252.130012 | CZ38: 4939.962106 | DA38: 681.9182934 | DB38: 365.4867055 | DC38: 50.07844453 | DD38: 117.5037721 | DE38: 1214.987216 | DF38: 2610.931929 | DG38: 1089.54024 | DH38: 434.0471312 | DI38: 1252.130012 | DJ38: 5386.649312 | DK38: 1413.080473 | DL38: 639.785536 | DM38: 238.5419965 | DN38: 833.2589195 | DO38: 3124.666926 | DP38: 269.4057378 | DQ38: 135.004651 | DR38: 46.89420855 | DS38: 277.0359819 | DT38: 728.3405793 | EA38: Planter | EE38: 1 | EN38: 1 | EO38: 19.42 | EP38: 19.42
D39: Taxes | E39: 1180.993882 | F39: 308.4859008 | G39: 167.2593222 | H39: 645.9354333 | I39: 2302.674538 | J39: 462.2879761 | K39: 112.0766617 | L39: 52.51257188 | M39: 265.2428833 | N39: 892.1200929 | O39: 168.0069471 | P39: 53.41916013 | Q39: 33.52141094 | R39: 74.25827081 | S39: 329.2057889 | T39: 2679.914602 | U39: 713.9245843 | V39: 349.2028903 | W39: 1495.438427 | X39: 5238.480503 | Y39: 1270.500222 | Z39: 282.0830705 | AA39: 138.1690166 | AB39: 1179.17077 | AC39: 2869.923079 | AD39: 306.0120326 | AE39: 67.60416145 | AF39: 28.85931192 | AG39: 242.1534467 | AH39: 644.6289527 | AI39: 2699.427361 | AJ39: 789.0447349 | AK39: 309.6110638 | AL39: 542.2068349 | AM39: 4340.289995 | AN39: 748.3972919 | AO39: 216.0213509 | AP39: 77.71324137 | AQ39: 174.4549007 | AR39: 1216.586785 | AS39: 222.578592 | AT39: 57.95706897 | AU39: 29.08782184 | AV39: 164.2862095 | AW39: 473.9096923 | AX39: 2543.844399 | AY39: 748.0893003 | AZ39: 309.6110638 | BA39: 542.2068349 | BB39: 4143.751598 | BC39: 881.0100403 | BD39: 214.5559069 | BE39: 97.25580667 | BF39: 286.4967891 | BG39: 1479.318543 | BH39: 215.9890615 | BI39: 61.11895073 | BJ39: 30.55326585 | BK39: 167.1078102 | BL39: 474.7690883 | BM39: 4576.790305 | BN39: 1411.036303 | BO39: 487.7767668 | BP39: 1824.914951 | BQ39: 8300.518326 | BR39: 1587.259672 | BS39: 428.237515 | BT39: 225.4722229 | BU39: 1358.218224 | BV39: 3599.187633 | BW39: 427.7134325 | BX39: 113.4700754 | BY39: 42.90273645 | BZ39: 353.3657448 | CA39: 937.4519891 | CB39: 4368.967989 | CC39: 1805.402191 | CD39: 496.1496681 | CE39: 690.6364434 | CF39: 7361.156292 | CG39: 2456.675318 | CH39: 1057.787297 | CI39: 256.5346685 | CJ39: 478.2488969 | CK39: 4249.24618 | CL39: 266.7182625 | CM39: 118.9990218 | CN39: 47.1525241 | CO39: 209.8813889 | CP39: 642.7511973 | CQ39: 3898.853548 | CR39: 1599.370697 | CS39: 598.5494317 | CT39: 1956.631046 | CU39: 8053.404723 | CV39: 3729.622086 | CW39: 1467.473284 | CX39: 384.924951 | CY39: 1956.631046 | CZ39: 7538.651368 | DA39: 1039.658016 | DB39: 568.6643089 | DC39: 77.20157786 | DD39: 186.7596629 | DE39: 1872.283566 | DF39: 3941.301749 | DG39: 1660.400231 | DH39: 652.130039 | DI39: 1956.631046 | DJ39: 8210.463065 | DK39: 2150.206265 | DL39: 977.885825 | DM39: 360.375038 | DN39: 1315.293133 | DO39: 4803.760261 | DP39: 416.9312419 | DQ39: 210.6414327 | DR39: 71.43418632 | DS39: 443.9127984 | DT39: 1142.919659 | EA39: Cultivator | EF39: 1 | EN39: 1 | EO39: 0
